Workbook

Sheet Latest Data Fine Aggregate
A1: Producer Name | B1: Facility Name | C1: Sample Date | D1: Material Description | E1: Facility ID | F1: Direction | G1: Latitude | H1: Direction2 | I1: Longitude | J1: Sample ID | K1: Sampled By | L1: Resistivity [ohm-cm]: | M1: pH Units: | N1: Chloride [ppm]: | O1: Sulfate [ppm]: | P1: Geosynthetic Spec | Q1: Steel Spec | R1: SO4 | S1: Cl
A2: Martin Marietta | B2: Arrowood Quarry - Charlotte | C2: 2019-09-18 | D2: Miscellaneous Material for Electrochemical | E2: CA31 | F2: =VLOOKUP(Table57[[#This Row],[Facility ID]],'Coord.'!$A$1:$E$818,2,FALSE) -> N | G2: =VLOOKUP(Table57[[#This Row],[Facility ID]],'Coord.'!$A$1:$E$818,3,FALSE) -> 35.111865 | H2: =VLOOKUP(Table57[[#This Row],[Facility ID]],'Coord.'!$A$1:$E$818,4,FALSE) -> W | I2: =VLOOKUP(Table57[[#This Row],[Facility ID]],'Coord.'!$A$1:$E$818,5,FALSE) -> -80.921875 | J2: 983528 | K2: Smith, Michael L | L2: 3535 | M2: 7.92 | N2: <32 | O2: <186.704 | P2: =IF(ISBLANK(M2),"N/A",IF(AND(4.5<=$M2,$M2<=9),IF($L2>=3000,IF($S2<=100,IF($R2<=200,"MEETS","DOES NOT MEET"),"DOES NOT MEET"),"DOES NOT MEET"),"DOES NOT MEET")) -> MEETS | Q2: =IF(ISBLANK(M2), "N/A", IF(AND(5 <= $M2, $M2 <= 10),IF($L2>=3000,IF($S2<=100,IF($R2<=200,"MEETS","DOES NOT MEET"),"DOES NOT MEET"),"DOES NOT MEET"),"DOES NOT MEET")) -> MEETS | R2: =IF(LEFT(O2, 1)="<", VALUE(RIGHT(O2,LEN(O2)-1)), O2) -> 186.704 | S2: =IF(LEFT(N2, 1)="<", VALUE(RIGHT(N2,LEN(N2)-1)), N2) -> 32
A3: Martin Marietta | B3: Bakers Quarry - Monroe | C3: 2019-11-27 | D3: Miscellaneous Material for Electrochemical | E3: CA32 | F3: =VLOOKUP(Table57[[#This Row],[Facility ID]],'Coord.'!$A$1:$E$818,2,FALSE) -> N | G3: =VLOOKUP(Table57[[#This Row],[Facility ID]],'Coord.'!$A$1:$E$818,3,FALSE) -> 35.027618 | H3: =VLOOKUP(Table57[[#This Row],[Facility ID]],'Coord.'!$A$1:$E$818,4,FALSE) -> W | I3: =VLOOKUP(Table57[[#This Row],[Facility ID]],'Coord.'!$A$1:$E$818,5,FALSE) -> -80.603741 | J3: 993355 | K3: Smith, Michael L | L3: 11890 | M3: 8.88 | N3: <30 | O3: <55.509 | P3: MEETS | Q3: MEETS | R3: 55.509 | S3: 30
A4: Sloan Construction Co. | B4: Blacksburg Quarry - Blacksburg, SC | C4: 2019-08-22 | D4: Miscellaneous Material for Electrochemical | E4: CA382 | F4: =VLOOKUP(Table57[[#This Row],[Facility ID]],'Coord.'!$A$1:$E$818,2,FALSE) -> N | G4: =VLOOKUP(Table57[[#This Row],[Facility ID]],'Coord.'!$A$1:$E$818,3,FALSE) -> 35.136633 | H4: =VLOOKUP(Table57[[#This Row],[Facility ID]],'Coord.'!$A$1:$E$818,4,FALSE) -> W | I4: =VLOOKUP(Table57[[#This Row],[Facility ID]],'Coord.'!$A$1:$E$818,5,FALSE) -> 81.528683 | J4: 979542 | K4: Brinson, Joseph | L4: 27180 | M4: 8.14 | N4: <29 | O4: <24.283 | P4: MEETS | Q4: MEETS | R4: 24.283 | S4: 29
A5: Appalachian Aggregates, LLC | B5: Bluefield Plant | C5: 2017-03-22 | D5: Miscellaneous Material for Electrochemical | E5: CA307 | F5: =VLOOKUP(Table57[[#This Row],[Facility ID]],'Coord.'!$A$1:$E$818,2,FALSE) -> N | G5: =VLOOKUP(Table57[[#This Row],[Facility ID]],'Coord.'!$A$1:$E$818,3,FALSE) -> 37.236154 | H5: =VLOOKUP(Table57[[#This Row],[Facility ID]],'Coord.'!$A$1:$E$818,4,FALSE) -> W | I5: =VLOOKUP(Table57[[#This Row],[Facility ID]],'Coord.'!$A$1:$E$818,5,FALSE) -> -81.319535 | J5: 850415 | K5: Church, Tracy G | L5: 5817 | M5: 8.8 | N5: 8.9 | O5: 103.9 | P5: MEETS | Q5: MEETS | R5: 103.9 | S5: 8.9
A6: Vulcan Materials Co. | B6: Boone Quarry - Boone | C6: 2018-05-11 | D6: Miscellaneous Material for Electrochemical | E6: CA21 | F6: =VLOOKUP(Table57[[#This Row],[Facility ID]],'Coord.'!$A$1:$E$818,2,FALSE) -> N | G6: =VLOOKUP(Table57[[#This Row],[Facility ID]],'Coord.'!$A$1:$E$818,3,FALSE) -> 36.205551 | H6: =VLOOKUP(Table57[[#This Row],[Facility ID]],'Coord.'!$A$1:$E$818,4,FALSE) -> W | I6: =VLOOKUP(Table57[[#This Row],[Facility ID]],'Coord.'!$A$1:$E$818,5,FALSE) -> -81.71842 | J6: 911785 | K6: Bumgarner, Dan F | L6: 26702 | M6: 9.2 | N6: 0 | O6: <21.68 | P6: =IF(ISBLANK(M6),"N/A",IF(AND(4.5<=$M6,Table57[[#Headers],[Producer Name]]<=9),IF($L6>=3000,IF($S6<=100,IF($R6<=200,"MEETS","DOES NOT MEET"),"DOES NOT MEET"),"DOES NOT MEET"),"DOES NOT MEET")) -> DOES NOT MEET | Q6: MEETS | R6: 21.68 | S6: 0
A7: Vulcan Materials Co. | B7: Cabarrus Quarry - Concord | C7: 2019-09-24 | D7: Miscellaneous Material for Electrochemical | E7: CA186 | F7: =VLOOKUP(Table57[[#This Row],[Facility ID]],'Coord.'!$A$1:$E$818,2,FALSE) -> N | G7: =VLOOKUP(Table57[[#This Row],[Facility ID]],'Coord.'!$A$1:$E$818,3,FALSE) -> 35.40403 | H7: =VLOOKUP(Table57[[#This Row],[Facility ID]],'Coord.'!$A$1:$E$818,4,FALSE) -> W | I7: =VLOOKUP(Table57[[#This Row],[Facility ID]],'Coord.'!$A$1:$E$818,5,FALSE) -> -80.704829 | J7: 985125 | K7: Cero, Kevin M | L7: 6884 | M7: 9.08 | N7: <32 | O7: <95.874 | P7: DOES NOT MEET | Q7: MEETS | R7: 95.874 | S7: 32
A8: Salem Stone Corp. | B8: Cardinal Quarries - Smethport Quarry - W. Jefferson | C8: 2016-08-02 | D8: Miscellaneous Material for Electrochemical | E8: CA123 | F8: =VLOOKUP(Table57[[#This Row],[Facility ID]],'Coord.'!$A$1:$E$818,2,FALSE) -> N | G8: =VLOOKUP(Table57[[#This Row],[Facility ID]],'Coord.'!$A$1:$E$818,3,FALSE) -> 36.439356 | H8: =VLOOKUP(Table57[[#This Row],[Facility ID]],'Coord.'!$A$1:$E$818,4,FALSE) -> W | I8: =VLOOKUP(Table57[[#This Row],[Facility ID]],'Coord.'!$A$1:$E$818,5,FALSE) -> -81.48872 | J8: 819964 | K8: Church, Tracy G | L8: 3880 | M8: 8 | N8: 0 | O8: 73 | P8: MEETS | Q8: MEETS | R8: 73 | S8: 0
A9: Salem Stone Corp. | B9: Cardinal Realty - Galax Quarry - Galax, VA | C9: 2016-03-07 | D9: Miscellaneous Material for Electrochemical | E9: CA11 | F9: =VLOOKUP(Table57[[#This Row],[Facility ID]],'Coord.'!$A$1:$E$818,2,FALSE) -> N | G9: =VLOOKUP(Table57[[#This Row],[Facility ID]],'Coord.'!$A$1:$E$818,3,FALSE) -> 36.574819 | H9: =VLOOKUP(Table57[[#This Row],[Facility ID]],'Coord.'!$A$1:$E$818,4,FALSE) -> W | I9: =VLOOKUP(Table57[[#This Row],[Facility ID]],'Coord.'!$A$1:$E$818,5,FALSE) -> -80.929177 | J9: 797296 | K9: Whitley, Christopher D | L9: 4916 | M9: 9.5 | N9: 0 | O9: 28 | P9: DOES NOT MEET | Q9: MEETS | R9: 28 | S9: 0
A10: Martin Marietta | B10: Charlotte Quarry - Charlotte | C10: 2016-04-14 | D10: Miscellaneous Material for Electrochemical | E10: CA41 | F10: =VLOOKUP(Table57[[#This Row],[Facility ID]],'Coord.'!$A$1:$E$818,2,FALSE) -> N | G10: =VLOOKUP(Table57[[#This Row],[Facility ID]],'Coord.'!$A$1:$E$818,3,FALSE) -> 35.297229 | H10: =VLOOKUP(Table57[[#This Row],[Facility ID]],'Coord.'!$A$1:$E$818,4,FALSE) -> W | I10: =VLOOKUP(Table57[[#This Row],[Facility ID]],'Coord.'!$A$1:$E$818,5,FALSE) -> -80.863066 | J10: 802309 | K10: Adair, Mildred (Millie) L | L10: 9970 | M10: 7.7 | N10: 0 | O10: 8.6 | P10: MEETS | Q10: MEETS | R10: 8.6 | S10: 0
A11: Martin Marietta | B11: Clarks Quarry - New Bern | C11: 2016-08-03 | D11: Miscellaneous Material for Electrochemical | E11: CA189 | F11: =VLOOKUP(Table57[[#This Row],[Facility ID]],'Coord.'!$A$1:$E$818,2,FALSE) -> N | G11: =VLOOKUP(Table57[[#This Row],[Facility ID]],'Coord.'!$A$1:$E$818,3,FALSE) -> 35.150664 | H11: =VLOOKUP(Table57[[#This Row],[Facility ID]],'Coord.'!$A$1:$E$818,4,FALSE) -> W | I11: =VLOOKUP(Table57[[#This Row],[Facility ID]],'Coord.'!$A$1:$E$818,5,FALSE) -> -77.151771 | J11: 819245 | K11: Maynard, William BJ T | L11: 8163 | M11: 8.4 | N11: 0 | O11: 31.8 | P11: MEETS | Q11: MEETS | R11: 31.8 | S11: 0
A12: Vulcan Materials Co. | B12: Clear Creek Q. - Charlotte | C12: 2020-02-04 | D12: Miscellaneous Material for Electrochemical | E12: CA249 | F12: =VLOOKUP(Table57[[#This Row],[Facility ID]],'Coord.'!$A$1:$E$818,2,FALSE) -> N | G12: =VLOOKUP(Table57[[#This Row],[Facility ID]],'Coord.'!$A$1:$E$818,3,FALSE) -> 35.2205 | H12: =VLOOKUP(Table57[[#This Row],[Facility ID]],'Coord.'!$A$1:$E$818,4,FALSE) -> W | I12: =VLOOKUP(Table57[[#This Row],[Facility ID]],'Coord.'!$A$1:$E$818,5,FALSE) -> -80.647542 | J12: 998654 | K12: Pegues, Jr., Henderson | L12: 5334 | M12: 8.91 | N12: <30 | O12: <123.735 | P12: MEETS | Q12: MEETS | R12: 123.735 | S12: 30
A13: Vulcan Materials Co. | B13: Havre De Grace Quarry - Havre De Grace, MD | C13: 2019-08-26 | D13: Miscellaneous Material for Electrochemical | E13: CA345 | F13: =VLOOKUP(Table57[[#This Row],[Facility ID]],'Coord.'!$A$1:$E$818,2,FALSE) -> N | G13: =VLOOKUP(Table57[[#This Row],[Facility ID]],'Coord.'!$A$1:$E$818,3,FALSE) -> 35.58499 | H13: =VLOOKUP(Table57[[#This Row],[Facility ID]],'Coord.'!$A$1:$E$818,4,FALSE) -> W | I13: =VLOOKUP(Table57[[#This Row],[Facility ID]],'Coord.'!$A$1:$E$818,5,FALSE) -> -76.103046 | J13: 980139 | K13: Bonds, Maria M | L13: 17270 | M13: 9.18 | N13: <29 | O13: <38.217 | P13: DOES NOT MEET | Q13: MEETS | R13: 38.217 | S13: 29
A14: Hanson Aggregates Southeast, Inc. | B14: Jefferson Quarry - Jefferson, SC | C14: 2016-12-14 | D14: Miscellaneous Material for Electrochemical | E14: CA120 | F14: =VLOOKUP(Table57[[#This Row],[Facility ID]],'Coord.'!$A$1:$E$818,2,FALSE) -> N | G14: =VLOOKUP(Table57[[#This Row],[Facility ID]],'Coord.'!$A$1:$E$818,3,FALSE) -> 34.69969 | H14: =VLOOKUP(Table57[[#This Row],[Facility ID]],'Coord.'!$A$1:$E$818,4,FALSE) -> W | I14: =VLOOKUP(Table57[[#This Row],[Facility ID]],'Coord.'!$A$1:$E$818,5,FALSE) -> -80.332675 | J14: 838779 | K14: Jordan, Daniel H | L14: 14691 | M14: 8.1 | N14: 0 | O14: 0 | P14: MEETS | Q14: MEETS | R14: 0 | S14: 0
A15: Vulcan Materials Co. | B15: Lenior Quarry - Lenoir | C15: 2016-06-24 | D15: Miscellaneous Material for Electrochemical | E15: CA91 | F15: =VLOOKUP(Table57[[#This Row],[Facility ID]],'Coord.'!$A$1:$E$818,2,FALSE) -> N | G15: =VLOOKUP(Table57[[#This Row],[Facility ID]],'Coord.'!$A$1:$E$818,3,FALSE) -> 35.93525 | H15: =VLOOKUP(Table57[[#This Row],[Facility ID]],'Coord.'!$A$1:$E$818,4,FALSE) -> W | I15: =VLOOKUP(Table57[[#This Row],[Facility ID]],'Coord.'!$A$1:$E$818,5,FALSE) -> -81.488753 | J15: 815310 | K15: Church, Tracy G | L15: 11291 | M15: 8.5 | N15: 2.1 | O15: 25 | P15: MEETS | Q15: MEETS | R15: 25 | S15: 2.1
A16: Georgia Stone Products | B16: Lynches River Quarry - Jefferson, SC | C16: 2015-06-29 | D16: Miscellaneous Material for Electrochemical | E16: CA325 | F16: =VLOOKUP(Table57[[#This Row],[Facility ID]],'Coord.'!$A$1:$E$818,2,FALSE) -> N | G16: =VLOOKUP(Table57[[#This Row],[Facility ID]],'Coord.'!$A$1:$E$818,3,FALSE) -> 34.703235 | H16: =VLOOKUP(Table57[[#This Row],[Facility ID]],'Coord.'!$A$1:$E$818,4,FALSE) -> W | I16: =VLOOKUP(Table57[[#This Row],[Facility ID]],'Coord.'!$A$1:$E$818,5,FALSE) -> -80.461099 | J16: 764178 | K16: Jordan, Daniel H | L16: 16875 | M16: 8.4 | N16: 0 | O16: 200 | P16: MEETS | Q16: MEETS | R16: 200 | S16: 0
A17: Martin Marietta | B17: Mallard Creek Quarry - Charlotte | C17: 2014-01-02 | D17: Miscellaneous Material for Electrochemical | E17: CA188 | F17: =VLOOKUP(Table57[[#This Row],[Facility ID]],'Coord.'!$A$1:$E$818,2,FALSE) -> N | G17: =VLOOKUP(Table57[[#This Row],[Facility ID]],'Coord.'!$A$1:$E$818,3,FALSE) -> 35.318085 | H17: =VLOOKUP(Table57[[#This Row],[Facility ID]],'Coord.'!$A$1:$E$818,4,FALSE) -> W | I17: =VLOOKUP(Table57[[#This Row],[Facility ID]],'Coord.'!$A$1:$E$818,5,FALSE) -> -80.728078 | J17: 694428 | K17: Adair, Mildred (Millie) L | L17: 11794 | M17: 8.2 | N17: 0 | O17: 0 | P17: MEETS | Q17: MEETS | R17: 0 | S17: 0
A18: Martin Marietta | B18: Matthews Quarry - Matthews | C18: 2019-12-03 | D18: Miscellaneous Material for Electrochemical | E18: CA37 | F18: =VLOOKUP(Table57[[#This Row],[Facility ID]],'Coord.'!$A$1:$E$818,2,FALSE) -> 0 | G18: =VLOOKUP(Table57[[#This Row],[Facility ID]],'Coord.'!$A$1:$E$818,3,FALSE) -> 35.131263 | H18: =VLOOKUP(Table57[[#This Row],[Facility ID]],'Coord.'!$A$1:$E$818,4,FALSE) -> W | I18: =VLOOKUP(Table57[[#This Row],[Facility ID]],'Coord.'!$A$1:$E$818,5,FALSE) -> -80.720372 | J18: 993338 | K18: Smith, Michael L | L18: 9169 | M18: 8.95 | N18: <30 | O18: <71.982 | P18: MEETS | Q18: MEETS | R18: 71.982 | S18: 30
A19: Wake Stone Corp. | B19: Moncure Quarry - Moncure | C19: 2019-02-05 | D19: Miscellaneous Material for Electrochemical | E19: CA100 | F19: =VLOOKUP(Table57[[#This Row],[Facility ID]],'Coord.'!$A$1:$E$818,2,FALSE) -> N | G19: =VLOOKUP(Table57[[#This Row],[Facility ID]],'Coord.'!$A$1:$E$818,3,FALSE) -> 35.61616 | H19: =VLOOKUP(Table57[[#This Row],[Facility ID]],'Coord.'!$A$1:$E$818,4,FALSE) -> W | I19: =VLOOKUP(Table57[[#This Row],[Facility ID]],'Coord.'!$A$1:$E$818,5,FALSE) -> -79.103876 | J19: 948576 | K19: Jordan, Daniel H | L19: 13360 | M19: 9.2 | N19: 0 | O19: <49.401 | P19: DOES NOT MEET | Q19: MEETS | R19: 49.401 | S19: 0
A20: Ararat Rock Products | B20: Mt. Airy Quarry - Mt. Airy | C20: 2017-01-31 | D20: Miscellaneous Material for Electrochemical | E20: CA3 | F20: =VLOOKUP(Table57[[#This Row],[Facility ID]],'Coord.'!$A$1:$E$818,2,FALSE) -> N | G20: =VLOOKUP(Table57[[#This Row],[Facility ID]],'Coord.'!$A$1:$E$818,3,FALSE) -> 36.461476 | H20: =VLOOKUP(Table57[[#This Row],[Facility ID]],'Coord.'!$A$1:$E$818,4,FALSE) -> W | I20: =VLOOKUP(Table57[[#This Row],[Facility ID]],'Coord.'!$A$1:$E$818,5,FALSE) -> -80.593324 | J20: 843862 | K20: Whitley, Christopher D | L20: 9355 | M20: 7.7 | N20: 0 | O20: 64.4 | P20: MEETS | Q20: MEETS | R20: 64.4 | S20: 0
A21: Vulcan Materials Co. | B21: Pineville Quarry - Charlotte | C21: 2019-08-21 | D21: Miscellaneous Material for Electrochemical | E21: CA101 | F21: =VLOOKUP(Table57[[#This Row],[Facility ID]],'Coord.'!$A$1:$E$818,2,FALSE) -> N | G21: =VLOOKUP(Table57[[#This Row],[Facility ID]],'Coord.'!$A$1:$E$818,3,FALSE) -> 35.115856 | H21: =VLOOKUP(Table57[[#This Row],[Facility ID]],'Coord.'!$A$1:$E$818,4,FALSE) -> W | I21: =VLOOKUP(Table57[[#This Row],[Facility ID]],'Coord.'!$A$1:$E$818,5,FALSE) -> -80.896596 | J21: 979255 | K21: Smith, Michael L | L21: 2661 | M21: 7.78 | N21: <32 | O21: <248.027 | P21: DOES NOT MEET | Q21: DOES NOT MEET | R21: 248.027 | S21: 32
A22: Luck Stone Corporation | B22: Pittsboro Quarry - Moncure | C22: 2016-03-29 | D22: Miscellaneous Material for Electrochemical | E22: CA292 | F22: =VLOOKUP(Table57[[#This Row],[Facility ID]],'Coord.'!$A$1:$E$818,2,FALSE) -> N | G22: =VLOOKUP(Table57[[#This Row],[Facility ID]],'Coord.'!$A$1:$E$818,3,FALSE) -> 35.660416 | H22: =VLOOKUP(Table57[[#This Row],[Facility ID]],'Coord.'!$A$1:$E$818,4,FALSE) -> W | I22: =VLOOKUP(Table57[[#This Row],[Facility ID]],'Coord.'!$A$1:$E$818,5,FALSE) -> -79.176833 | J22: 799661 | K22: Jackson, Brandon M | L22: 3383 | M22: 7.3 | N22: 0 | O22: 123 | P22: MEETS | Q22: MEETS | R22: 123 | S22: 0
A23: Martin Marietta | B23: Rock Hill Quarry - Rock Hill, SC | C23: 2019-09-10 | D23: Miscellaneous Material for Electrochemical | E23: CA271 | F23: =VLOOKUP(Table57[[#This Row],[Facility ID]],'Coord.'!$A$1:$E$818,2,FALSE) -> N | G23: =VLOOKUP(Table57[[#This Row],[Facility ID]],'Coord.'!$A$1:$E$818,3,FALSE) -> 34.894787 | H23: =VLOOKUP(Table57[[#This Row],[Facility ID]],'Coord.'!$A$1:$E$818,4,FALSE) -> W | I23: =VLOOKUP(Table57[[#This Row],[Facility ID]],'Coord.'!$A$1:$E$818,5,FALSE) -> -80.999022 | J23: 982312 | K23: Adair, Mildred (Millie) L | L23: 9347 | M23: 9.23 | N23: <32 | O23: <70.611 | P23: DOES NOT MEET | Q23: MEETS | R23: 70.611 | S23: 32
A24: Vulcan Materials Co. | B24: Rockingham Quarry - Rockingham | C24: 2018-05-11 | D24: Miscellaneous Material for Electrochemical | E24: CA94 | F24: =VLOOKUP(Table57[[#This Row],[Facility ID]],'Coord.'!$A$1:$E$818,2,FALSE) -> N | G24: =VLOOKUP(Table57[[#This Row],[Facility ID]],'Coord.'!$A$1:$E$818,3,FALSE) -> 34.938706 | H24: =VLOOKUP(Table57[[#This Row],[Facility ID]],'Coord.'!$A$1:$E$818,4,FALSE) -> W | I24: =VLOOKUP(Table57[[#This Row],[Facility ID]],'Coord.'!$A$1:$E$818,5,FALSE) -> -79.823208 | J24: 911061 | K24: Jordan, Daniel H | L24: 5811 | M24: 9.2 | N24: 0 | O24: 99 | P24: DOES NOT MEET | Q24: MEETS | R24: 99 | S24: 0
A25: Martin Marietta | B25: Statesville Quarry - Statesville | C25: 2016-09-09 | D25: Miscellaneous Material for Electrochemical | E25: CA54 | F25: =VLOOKUP(Table57[[#This Row],[Facility ID]],'Coord.'!$A$1:$E$818,2,FALSE) -> N | G25: =VLOOKUP(Table57[[#This Row],[Facility ID]],'Coord.'!$A$1:$E$818,3,FALSE) -> 35.804466 | H25: =VLOOKUP(Table57[[#This Row],[Facility ID]],'Coord.'!$A$1:$E$818,4,FALSE) -> W | I25: =VLOOKUP(Table57[[#This Row],[Facility ID]],'Coord.'!$A$1:$E$818,5,FALSE) -> -80.913084 | J25: 825461 | K25: Whitley, Christopher D | L25: 2408 | M25: 7.3 | N25: 0 | O25: 192 | P25: DOES NOT MEET | Q25: DOES NOT MEET | R25: 192 | S25: 0
A26: Hedrick Industries | B26: Aquadale Quarry - Norwood | C26: 2017-03-21 | D26: Sand, 2MS | E26: FA479 | F26: =VLOOKUP(Table57[[#This Row],[Facility ID]],'Coord.'!$A$1:$E$818,2,FALSE) -> N | G26: =VLOOKUP(Table57[[#This Row],[Facility ID]],'Coord.'!$A$1:$E$818,3,FALSE) -> 35.236498 | H26: =VLOOKUP(Table57[[#This Row],[Facility ID]],'Coord.'!$A$1:$E$818,4,FALSE) -> W | I26: =VLOOKUP(Table57[[#This Row],[Facility ID]],'Coord.'!$A$1:$E$818,5,FALSE) -> -80.239287 | J26: 850263 | K26: Thomas, Mark D | L26: 2023 | M26: 8 | N26: 0 | O26: 96.6 | P26: DOES NOT MEET | Q26: DOES NOT MEET | R26: 96.6 | S26: 0
A27: Martin Marietta | B27: Bonds Quarry - Concord | C27: 2019-04-09 | D27: Sand, 2MS | E27: FA392 | F27: =VLOOKUP(Table57[[#This Row],[Facility ID]],'Coord.'!$A$1:$E$818,2,FALSE) -> N | G27: =VLOOKUP(Table57[[#This Row],[Facility ID]],'Coord.'!$A$1:$E$818,3,FALSE) -> 35.379275 | H27: =VLOOKUP(Table57[[#This Row],[Facility ID]],'Coord.'!$A$1:$E$818,4,FALSE) -> W | I27: =VLOOKUP(Table57[[#This Row],[Facility ID]],'Coord.'!$A$1:$E$818,5,FALSE) -> -80.698135 | J27: 958526 | K27: Pegues, Jr., Henderson | L27: 7606 | M27: 8.7 | N27: <30 | O27: <86.774 | P27: MEETS | Q27: MEETS | R27: 86.774 | S27: 30
A28: Hedrick Industries | B28: Piedmont (Pageland #3) - Pageland, SC | C28: 2016-03-18 | D28: Sand, 2MS | E28: FA239 | F28: =VLOOKUP(Table57[[#This Row],[Facility ID]],'Coord.'!$A$1:$E$818,2,FALSE) -> N | G28: =VLOOKUP(Table57[[#This Row],[Facility ID]],'Coord.'!$A$1:$E$818,3,FALSE) -> 34.756193 | H28: =VLOOKUP(Table57[[#This Row],[Facility ID]],'Coord.'!$A$1:$E$818,4,FALSE) -> W | I28: =VLOOKUP(Table57[[#This Row],[Facility ID]],'Coord.'!$A$1:$E$818,5,FALSE) -> -80.313792 | J28: 798283 | K28: Jordan, Daniel H | L28: 25530 | M28: 6.8 | N28: 0 | O28: 12.8 | P28: MEETS | Q28: MEETS | R28: 12.8 | S28: 0
A29: Vulcan Materials Co. | B29: 115 Quarry - N. Wilkesboro | C29: 2002-06-27 | D29: Sand, 2MS - Chemistry Check | E29: FA173 | F29: =VLOOKUP(Table57[[#This Row],[Facility ID]],'Coord.'!$A$1:$E$818,2,FALSE) -> N | G29: =VLOOKUP(Table57[[#This Row],[Facility ID]],'Coord.'!$A$1:$E$818,3,FALSE) -> 36.106464 | H29: =VLOOKUP(Table57[[#This Row],[Facility ID]],'Coord.'!$A$1:$E$818,4,FALSE) -> W | I29: =VLOOKUP(Table57[[#This Row],[Facility ID]],'Coord.'!$A$1:$E$818,5,FALSE) -> -81.099031 | J29: 264750 | K29: Hamby Jr, Kenneth R | P29: N/A | Q29: N/A
A30: Maymead Materials, Inc. | B30: 421 Quarry - Mountain City, TN | C30: 2002-06-27 | D30: Sand, 2MS - Chemistry Check | E30: FA164 | F30: =VLOOKUP(Table57[[#This Row],[Facility ID]],'Coord.'!$A$1:$E$818,2,FALSE) -> N | G30: =VLOOKUP(Table57[[#This Row],[Facility ID]],'Coord.'!$A$1:$E$818,3,FALSE) -> 36.426709 | H30: =VLOOKUP(Table57[[#This Row],[Facility ID]],'Coord.'!$A$1:$E$818,4,FALSE) -> W | I30: =VLOOKUP(Table57[[#This Row],[Facility ID]],'Coord.'!$A$1:$E$818,5,FALSE) -> -81.773808 | J30: 264749 | K30: Hamby Jr, Kenneth R | P30: N/A | Q30: N/A
A31: Blue Water Industries | B31: Abingdon Quarry | C31: 2002-10-03 | D31: Sand, 2MS - Chemistry Check | E31: FA88 | F31: =VLOOKUP(Table57[[#This Row],[Facility ID]],'Coord.'!$A$1:$E$818,2,FALSE) -> N | G31: =VLOOKUP(Table57[[#This Row],[Facility ID]],'Coord.'!$A$1:$E$818,3,FALSE) -> 36.695328 | H31: =VLOOKUP(Table57[[#This Row],[Facility ID]],'Coord.'!$A$1:$E$818,4,FALSE) -> W | I31: =VLOOKUP(Table57[[#This Row],[Facility ID]],'Coord.'!$A$1:$E$818,5,FALSE) -> -81.982737 | J31: 279423 | K31: Hamby Jr, Kenneth R | P31: N/A | Q31: N/A
A32: Martin Marietta | B32: Arrowood Quarry - Charlotte | C32: 2016-12-06 | D32: Sand, 2MS - Chemistry Check | E32: FA203 | F32: =VLOOKUP(Table57[[#This Row],[Facility ID]],'Coord.'!$A$1:$E$818,2,FALSE) -> N | G32: =VLOOKUP(Table57[[#This Row],[Facility ID]],'Coord.'!$A$1:$E$818,3,FALSE) -> 35.111862 | H32: =VLOOKUP(Table57[[#This Row],[Facility ID]],'Coord.'!$A$1:$E$818,4,FALSE) -> W | I32: =VLOOKUP(Table57[[#This Row],[Facility ID]],'Coord.'!$A$1:$E$818,5,FALSE) -> -80.921875 | J32: 837865 | K32: Adair, Mildred (Millie) L | L32: 3339 | M32: 7.3 | N32: 8.9 | O32: 8.5 | P32: MEETS | Q32: MEETS | R32: 8.5 | S32: 8.9
A33: Austinville Limestone Co. | B33: Austinville Limestone | C33: 2001-08-28 | D33: Sand, 2MS - Chemistry Check | E33: FA337 | F33: =VLOOKUP(Table57[[#This Row],[Facility ID]],'Coord.'!$A$1:$E$818,2,FALSE) -> N | G33: =VLOOKUP(Table57[[#This Row],[Facility ID]],'Coord.'!$A$1:$E$818,3,FALSE) -> 0 | H33: =VLOOKUP(Table57[[#This Row],[Facility ID]],'Coord.'!$A$1:$E$818,4,FALSE) -> W | I33: =VLOOKUP(Table57[[#This Row],[Facility ID]],'Coord.'!$A$1:$E$818,5,FALSE) -> 0 | J33: 228420 | K33: Wagoner, Roy M | P33: N/A | Q33: N/A
A34: American Materials Co. | B34: Black Creek Plant - Mt. Croghan, SC | C34: 2019-06-12 | D34: Sand, 2MS - Chemistry Check | E34: FA422 | F34: =VLOOKUP(Table57[[#This Row],[Facility ID]],'Coord.'!$A$1:$E$818,2,FALSE) -> N | G34: =VLOOKUP(Table57[[#This Row],[Facility ID]],'Coord.'!$A$1:$E$818,3,FALSE) -> 34.717707 | H34: =VLOOKUP(Table57[[#This Row],[Facility ID]],'Coord.'!$A$1:$E$818,4,FALSE) -> W | I34: =VLOOKUP(Table57[[#This Row],[Facility ID]],'Coord.'!$A$1:$E$818,5,FALSE) -> -80.284664 | J34: 968053 | K34: Jordan, Daniel H | L34: 23730 | M34: 7.54 | N34: <30 | O34: <27.813 | P34: =IF(ISBLANK(M34),"N/A",IF(AND(4.5<=$M34,$M34<=9),IF($L34>=3000,IF($S34<=100,IF($R34<=200,"MEETS","DOES NOT MEET"),"DOES NOT MEET"),"DOES NOT MEET"),"DOES NOT MEET")) -> MEETS | Q34: =IF(ISBLANK(M34), "N/A", IF(AND(5 <= $M34, $M34 <= 10),IF($L34>=3000,IF($S34<=100,IF($R34<=200,"MEETS","DOES NOT MEET"),"DOES NOT MEET"),"DOES NOT MEET"),"DOES NOT MEET")) -> MEETS | R34: =IF(LEFT(O34, 1)="<", VALUE(RIGHT(O34,LEN(O34)-1)), O34) -> 27.813 | S34: =IF(LEFT(N34, 1)="<", VALUE(RIGHT(N34,LEN(N34)-1)), N34) -> 30
A35: Sloan Construction Co. | B35: Blacksburg Quarry - Blacksburg, SC | C35: 2019-08-22 | D35: Sand, 2MS - Chemistry Check | E35: FA476 | F35: =VLOOKUP(Table57[[#This Row],[Facility ID]],'Coord.'!$A$1:$E$818,2,FALSE) -> N | G35: =VLOOKUP(Table57[[#This Row],[Facility ID]],'Coord.'!$A$1:$E$818,3,FALSE) -> 35.158249 | H35: =VLOOKUP(Table57[[#This Row],[Facility ID]],'Coord.'!$A$1:$E$818,4,FALSE) -> W | I35: =VLOOKUP(Table57[[#This Row],[Facility ID]],'Coord.'!$A$1:$E$818,5,FALSE) -> -81.453967 | J35: 979544 | K35: Brinson, Joseph | L35: 14950 | M35: 8.3 | N35: <29 | O35: <44.147 | P35: MEETS | Q35: MEETS | R35: 44.147 | S35: 29
A36: Boxley Materials Company | B36: Blue Ridge Quarry - Blue Ridge, VA | C36: 2019-03-05 | D36: Sand, 2MS - Chemistry Check | E36: FA362 | F36: =VLOOKUP(Table57[[#This Row],[Facility ID]],'Coord.'!$A$1:$E$818,2,FALSE) -> N | G36: =VLOOKUP(Table57[[#This Row],[Facility ID]],'Coord.'!$A$1:$E$818,3,FALSE) -> 37.391289 | H36: =VLOOKUP(Table57[[#This Row],[Facility ID]],'Coord.'!$A$1:$E$818,4,FALSE) -> W | I36: =VLOOKUP(Table57[[#This Row],[Facility ID]],'Coord.'!$A$1:$E$818,5,FALSE) -> -79.796708 | J36: 953113 | K36: Westmoreland, Braxton J | L36: 4005 | M36: 8.8 | N36: <30 | O36: <164.794 | P36: MEETS | Q36: MEETS | R36: 164.794 | S36: 30
A37: Martin Marietta | B37: Bonds Quarry - Concord | C37: 2018-09-10 | D37: Sand, 2MS - Chemistry Check | E37: FA392 | F37: =VLOOKUP(Table57[[#This Row],[Facility ID]],'Coord.'!$A$1:$E$818,2,FALSE) -> N | G37: =VLOOKUP(Table57[[#This Row],[Facility ID]],'Coord.'!$A$1:$E$818,3,FALSE) -> 35.379275 | H37: =VLOOKUP(Table57[[#This Row],[Facility ID]],'Coord.'!$A$1:$E$818,4,FALSE) -> W | I37: =VLOOKUP(Table57[[#This Row],[Facility ID]],'Coord.'!$A$1:$E$818,5,FALSE) -> -80.698135 | J37: 930605 | K37: Pegues, Jr., Henderson | L37: 4721 | M37: 8.3 | N37: 0 | O37: 83.6 | P37: MEETS | Q37: MEETS | R37: 83.6 | S37: 0
A38: Vulcan Materials Co. | B38: Boone Quarry - Boone | C38: 2001-07-30 | D38: Sand, 2MS - Chemistry Check | E38: FA236 | F38: =VLOOKUP(Table57[[#This Row],[Facility ID]],'Coord.'!$A$1:$E$818,2,FALSE) -> N | G38: =VLOOKUP(Table57[[#This Row],[Facility ID]],'Coord.'!$A$1:$E$818,3,FALSE) -> 36.205551 | H38: =VLOOKUP(Table57[[#This Row],[Facility ID]],'Coord.'!$A$1:$E$818,4,FALSE) -> W | I38: =VLOOKUP(Table57[[#This Row],[Facility ID]],'Coord.'!$A$1:$E$818,5,FALSE) -> -81.71842 | J38: 223852 | K38: Hamby Jr, Kenneth R | P38: N/A | Q38: N/A
A39: Hanson Aggregates Southeast, Inc. | B39: Brewer (Pageland #1) - Jefferson, SC | C39: 2019-06-12 | D39: Sand, 2MS - Chemistry Check | E39: FA64 | F39: =VLOOKUP(Table57[[#This Row],[Facility ID]],'Coord.'!$A$1:$E$818,2,FALSE) -> N | G39: =VLOOKUP(Table57[[#This Row],[Facility ID]],'Coord.'!$A$1:$E$818,3,FALSE) -> 34.699778 | H39: =VLOOKUP(Table57[[#This Row],[Facility ID]],'Coord.'!$A$1:$E$818,4,FALSE) -> W | I39: =VLOOKUP(Table57[[#This Row],[Facility ID]],'Coord.'!$A$1:$E$818,5,FALSE) -> -80.334435 | J39: 968057 | K39: Jordan, Daniel H | L39: 34930 | M39: 6.41 | N39: <30 | O39: <18.895 | P39: MEETS | Q39: MEETS | R39: 18.895 | S39: 30
A40: Vulcan Materials Co. | B40: Bristol Quarry - Bristol, TN | C40: 2002-10-03 | D40: Sand, 2MS - Chemistry Check | E40: FA66 | F40: =VLOOKUP(Table57[[#This Row],[Facility ID]],'Coord.'!$A$1:$E$818,2,FALSE) -> N | G40: =VLOOKUP(Table57[[#This Row],[Facility ID]],'Coord.'!$A$1:$E$818,3,FALSE) -> 36.586728 | H40: =VLOOKUP(Table57[[#This Row],[Facility ID]],'Coord.'!$A$1:$E$818,4,FALSE) -> W | I40: =VLOOKUP(Table57[[#This Row],[Facility ID]],'Coord.'!$A$1:$E$818,5,FALSE) -> -82.277083 | J40: 279424 | K40: Hamby Jr, Kenneth R | P40: N/A | Q40: N/A
A41: Carolina Sunrock LLC | B41: Butner Quarry - Butner | C41: 2019-03-25 | D41: Sand, 2MS - Chemistry Check | E41: FA171 | F41: =VLOOKUP(Table57[[#This Row],[Facility ID]],'Coord.'!$A$1:$E$818,2,FALSE) -> N | G41: =VLOOKUP(Table57[[#This Row],[Facility ID]],'Coord.'!$A$1:$E$818,3,FALSE) -> 36.121972 | H41: =VLOOKUP(Table57[[#This Row],[Facility ID]],'Coord.'!$A$1:$E$818,4,FALSE) -> W | I41: =VLOOKUP(Table57[[#This Row],[Facility ID]],'Coord.'!$A$1:$E$818,5,FALSE) -> -78.772541 | J41: 955937 | K41: Skinner, III, John L | L41: 6505 | M41: 10.3 | N41: <30 | O41: <101.46 | P41: DOES NOT MEET | Q41: DOES NOT MEET | R41: 101.46 | S41: 30
A42: Vulcan Materials Co. | B42: Cabarrus Quarry -- Concord | C42: 2018-10-18 | D42: Sand, 2MS - Chemistry Check | E42: FA339 | F42: =VLOOKUP(Table57[[#This Row],[Facility ID]],'Coord.'!$A$1:$E$818,2,FALSE) -> N | G42: =VLOOKUP(Table57[[#This Row],[Facility ID]],'Coord.'!$A$1:$E$818,3,FALSE) -> 35.406385 | H42: =VLOOKUP(Table57[[#This Row],[Facility ID]],'Coord.'!$A$1:$E$818,4,FALSE) -> W | I42: =VLOOKUP(Table57[[#This Row],[Facility ID]],'Coord.'!$A$1:$E$818,5,FALSE) -> -80.704422 | J42: 935931 | K42: Cero, Kevin M | L42: 7516 | M42: 9 | N42: 0 | O42: <87.8 | P42: MEETS | Q42: MEETS | R42: 87.8 | S42: 0
A43: Cardinal Stone Company | B43: Carolina Sand Pee Dee Pit | C43: 2001-01-31 | D43: Sand, 2MS - Chemistry Check | E43: FA22152 | F43: =VLOOKUP(Table57[[#This Row],[Facility ID]],'Coord.'!$A$1:$E$818,2,FALSE) -> 0 | G43: =VLOOKUP(Table57[[#This Row],[Facility ID]],'Coord.'!$A$1:$E$818,3,FALSE) -> 0 | H43: =VLOOKUP(Table57[[#This Row],[Facility ID]],'Coord.'!$A$1:$E$818,4,FALSE) -> 0 | I43: =VLOOKUP(Table57[[#This Row],[Facility ID]],'Coord.'!$A$1:$E$818,5,FALSE) -> 0 | J43: 175117 | K43: Allen, Daniel W | N43: 7 | P43: N/A | Q43: N/A | S43: 7
A44: Cardinal Stone Company | B44: Carolina Sand Pee Dee Pit | C44: 2001-01-31 | D44: Sand, 2MS - Chemistry Check | E44: FA22152 | F44: =VLOOKUP(Table57[[#This Row],[Facility ID]],'Coord.'!$A$1:$E$818,2,FALSE) -> 0 | G44: =VLOOKUP(Table57[[#This Row],[Facility ID]],'Coord.'!$A$1:$E$818,3,FALSE) -> 0 | H44: =VLOOKUP(Table57[[#This Row],[Facility ID]],'Coord.'!$A$1:$E$818,4,FALSE) -> 0 | I44: =VLOOKUP(Table57[[#This Row],[Facility ID]],'Coord.'!$A$1:$E$818,5,FALSE) -> 0 | J44: 175118 | K44: Allen, Daniel W | N44: 7 | P44: N/A | Q44: N/A | S44: 7
A45: Martin Marietta | B45: Charlotte Quarry - Charlotte | C45: 2016-09-08 | D45: Sand, 2MS - Chemistry Check | E45: FA562 | F45: =VLOOKUP(Table57[[#This Row],[Facility ID]],'Coord.'!$A$1:$E$818,2,FALSE) -> N | G45: =VLOOKUP(Table57[[#This Row],[Facility ID]],'Coord.'!$A$1:$E$818,3,FALSE) -> 35.295997 | H45: =VLOOKUP(Table57[[#This Row],[Facility ID]],'Coord.'!$A$1:$E$818,4,FALSE) -> W | I45: =VLOOKUP(Table57[[#This Row],[Facility ID]],'Coord.'!$A$1:$E$818,5,FALSE) -> -80.860734 | J45: 825585 | K45: Adair, Mildred (Millie) L | L45: 6112 | M45: 7.5 | N45: 0 | O45: 50.7 | P45: MEETS | Q45: MEETS | R45: 50.7 | S45: 0
A46: Martin Marietta | B46: Clarks Quarry - New Bern | C46: 2019-09-25 | D46: Sand, 2MS - Chemistry Check | E46: FA214 | F46: =VLOOKUP(Table57[[#This Row],[Facility ID]],'Coord.'!$A$1:$E$818,2,FALSE) -> N | G46: =VLOOKUP(Table57[[#This Row],[Facility ID]],'Coord.'!$A$1:$E$818,3,FALSE) -> 35.150667 | H46: =VLOOKUP(Table57[[#This Row],[Facility ID]],'Coord.'!$A$1:$E$818,4,FALSE) -> W | I46: =VLOOKUP(Table57[[#This Row],[Facility ID]],'Coord.'!$A$1:$E$818,5,FALSE) -> -77.151771 | J46: 984815 | K46: Cobb, James R | L46: 1669 | M46: 7.92 | N46: <32 | O46: <395.446 | P46: DOES NOT MEET | Q46: DOES NOT MEET | R46: 395.446 | S46: 32
A47: Martin Marietta | B47: Denver Quarry - Denver | C47: 2019-09-20 | D47: Sand, 2MS - Chemistry Check | E47: FA377 | F47: =VLOOKUP(Table57[[#This Row],[Facility ID]],'Coord.'!$A$1:$E$818,2,FALSE) -> N | G47: =VLOOKUP(Table57[[#This Row],[Facility ID]],'Coord.'!$A$1:$E$818,3,FALSE) -> 35.527092 | H47: =VLOOKUP(Table57[[#This Row],[Facility ID]],'Coord.'!$A$1:$E$818,4,FALSE) -> W | I47: =VLOOKUP(Table57[[#This Row],[Facility ID]],'Coord.'!$A$1:$E$818,5,FALSE) -> -81.026444 | J47: 983982 | K47: Myers, Jesse J | L47: 5025 | M47: 7.89 | N47: <32 | O47: <131.343 | P47: MEETS | Q47: MEETS | R47: 131.343 | S47: 32
A48: Vulcan Materials Co. | B48: East Forsyth Quarry - Kernersville | C48: 2013-05-30 | D48: Sand, 2MS - Chemistry Check | E48: FA158 | F48: =VLOOKUP(Table57[[#This Row],[Facility ID]],'Coord.'!$A$1:$E$818,2,FALSE) -> N | G48: =VLOOKUP(Table57[[#This Row],[Facility ID]],'Coord.'!$A$1:$E$818,3,FALSE) -> 36.02462 | H48: =VLOOKUP(Table57[[#This Row],[Facility ID]],'Coord.'!$A$1:$E$818,4,FALSE) -> W | I48: =VLOOKUP(Table57[[#This Row],[Facility ID]],'Coord.'!$A$1:$E$818,5,FALSE) -> -80.06013 | J48: 668582 | K48: Vincent, Timothy L | L48: 9852 | M48: 7.6 | N48: 0 | O48: 0 | P48: MEETS | Q48: MEETS | R48: 0 | S48: 0
A49: Vulcan Materials Co. | B49: Enka Quarry - Enka | C49: 2013-05-29 | D49: Sand, 2MS - Chemistry Check | E49: CA69 | F49: =VLOOKUP(Table57[[#This Row],[Facility ID]],'Coord.'!$A$1:$E$818,2,FALSE) -> N | G49: =VLOOKUP(Table57[[#This Row],[Facility ID]],'Coord.'!$A$1:$E$818,3,FALSE) -> 35.3237 | H49: =VLOOKUP(Table57[[#This Row],[Facility ID]],'Coord.'!$A$1:$E$818,4,FALSE) -> W | I49: =VLOOKUP(Table57[[#This Row],[Facility ID]],'Coord.'!$A$1:$E$818,5,FALSE) -> -82.4009 | J49: 668686 | K49: Rhymer, Robert C | L49: 4277 | M49: 5.4 | N49: 0 | O49: 0 | P49: MEETS | Q49: MEETS | R49: 0 | S49: 0
A50: Boxley Materials Company | B50: Fieldale Quarry - Martinsville, VA | C50: 2019-03-05 | D50: Sand, 2MS - Chemistry Check | E50: FA373 | F50: =VLOOKUP(Table57[[#This Row],[Facility ID]],'Coord.'!$A$1:$E$818,2,FALSE) -> N | G50: =VLOOKUP(Table57[[#This Row],[Facility ID]],'Coord.'!$A$1:$E$818,3,FALSE) -> 36.688298 | H50: =VLOOKUP(Table57[[#This Row],[Facility ID]],'Coord.'!$A$1:$E$818,4,FALSE) -> W | I50: =VLOOKUP(Table57[[#This Row],[Facility ID]],'Coord.'!$A$1:$E$818,5,FALSE) -> -79.938883 | J50: 953150 | K50: Westmoreland, Braxton J | L50: 6135 | M50: 8 | N50: 0 | O50: <107.579 | P50: MEETS | Q50: MEETS | R50: 107.579 | S50: 0
A51: Martin Marietta | B51: Franklin Quarry - Franklinton | C51: 2019-03-27 | D51: Sand, 2MS - Chemistry Check | E51: FA349 | F51: =VLOOKUP(Table57[[#This Row],[Facility ID]],'Coord.'!$A$1:$E$818,2,FALSE) -> N | G51: =VLOOKUP(Table57[[#This Row],[Facility ID]],'Coord.'!$A$1:$E$818,3,FALSE) -> 36.070531 | H51: =VLOOKUP(Table57[[#This Row],[Facility ID]],'Coord.'!$A$1:$E$818,4,FALSE) -> W | I51: =VLOOKUP(Table57[[#This Row],[Facility ID]],'Coord.'!$A$1:$E$818,5,FALSE) -> -78.485542 | J51: 956774 | K51: Skinner, III, John L | L51: 14320 | M51: 8.7 | N51: <30 | O51: <46.089 | P51: MEETS | Q51: MEETS | R51: 46.089 | S51: 30
A52: Martin Marietta | B52: Garner Quarry - Garner | C52: 2016-02-09 | D52: Sand, 2MS - Chemistry Check | E52: FA382 | F52: =VLOOKUP(Table57[[#This Row],[Facility ID]],'Coord.'!$A$1:$E$818,2,FALSE) -> N | G52: =VLOOKUP(Table57[[#This Row],[Facility ID]],'Coord.'!$A$1:$E$818,3,FALSE) -> 35.702161 | H52: =VLOOKUP(Table57[[#This Row],[Facility ID]],'Coord.'!$A$1:$E$818,4,FALSE) -> W | I52: =VLOOKUP(Table57[[#This Row],[Facility ID]],'Coord.'!$A$1:$E$818,5,FALSE) -> -78.577137 | J52: 793219 | K52: Skinner, III, John L | L52: 18765 | M52: 8.2 | N52: 5 | O52: 2.4 | P52: MEETS | Q52: MEETS | R52: 2.4 | S52: 5
A53: Vulcan Materials Co. | B53: Greystone Quarry - Henderson | C53: 2019-04-01 | D53: Sand, 2MS - Chemistry Check | E53: FA183 | F53: =VLOOKUP(Table57[[#This Row],[Facility ID]],'Coord.'!$A$1:$E$818,2,FALSE) -> N | G53: =VLOOKUP(Table57[[#This Row],[Facility ID]],'Coord.'!$A$1:$E$818,3,FALSE) -> 36.355217 | H53: =VLOOKUP(Table57[[#This Row],[Facility ID]],'Coord.'!$A$1:$E$818,4,FALSE) -> W | I53: =VLOOKUP(Table57[[#This Row],[Facility ID]],'Coord.'!$A$1:$E$818,5,FALSE) -> -78.348459 | J53: 957256 | K53: Skinner, III, John L | L53: 14610 | M53: 9.1 | N53: <30 | O53: <45.175 | P53: DOES NOT MEET | Q53: MEETS | R53: 45.175 | S53: 30
A54: L.B.M. Industries | B54: Hewitt Quarry - Topton | C54: 2011-01-05 | D54: Sand, 2MS - Chemistry Check | E54: FA247 | F54: =VLOOKUP(Table57[[#This Row],[Facility ID]],'Coord.'!$A$1:$E$818,2,FALSE) -> N | G54: =VLOOKUP(Table57[[#This Row],[Facility ID]],'Coord.'!$A$1:$E$818,3,FALSE) -> 35.18432 | H54: =VLOOKUP(Table57[[#This Row],[Facility ID]],'Coord.'!$A$1:$E$818,4,FALSE) -> W | I54: =VLOOKUP(Table57[[#This Row],[Facility ID]],'Coord.'!$A$1:$E$818,5,FALSE) -> -83.38953 | J54: 529435 | K54: Rhymer, Robert C | L54: 11000 | M54: 7.7 | N54: 0 | O54: 0 | P54: MEETS | Q54: MEETS | R54: 0 | S54: 0
A55: Martin Marietta | B55: Jamestown Quarry - Jamestown | C55: 2019-06-04 | D55: Sand, 2MS - Chemistry Check | E55: FA251 | F55: =VLOOKUP(Table57[[#This Row],[Facility ID]],'Coord.'!$A$1:$E$818,2,FALSE) -> N | G55: =VLOOKUP(Table57[[#This Row],[Facility ID]],'Coord.'!$A$1:$E$818,3,FALSE) -> 35.964759 | H55: =VLOOKUP(Table57[[#This Row],[Facility ID]],'Coord.'!$A$1:$E$818,4,FALSE) -> W | I55: =VLOOKUP(Table57[[#This Row],[Facility ID]],'Coord.'!$A$1:$E$818,5,FALSE) -> -79.920194 | J55: 966795 | K55: Waller, John M | L55: 13850 | M55: 9.17 | N55: <30 | O55: <47.653 | P55: DOES NOT MEET | Q55: MEETS | R55: 47.653 | S55: 30
A56: Carolina Sunrock LLC | B56: Kittrell Quarry - Kittrell | C56: 2019-02-01 | D56: Sand, 2MS - Chemistry Check | E56: FA397 | F56: =VLOOKUP(Table57[[#This Row],[Facility ID]],'Coord.'!$A$1:$E$818,2,FALSE) -> N | G56: =VLOOKUP(Table57[[#This Row],[Facility ID]],'Coord.'!$A$1:$E$818,3,FALSE) -> 36.16971 | H56: =VLOOKUP(Table57[[#This Row],[Facility ID]],'Coord.'!$A$1:$E$818,4,FALSE) -> W | I56: =VLOOKUP(Table57[[#This Row],[Facility ID]],'Coord.'!$A$1:$E$818,5,FALSE) -> -78.444864 | J56: 948023 | K56: Skinner, III, John L | L56: 6444 | M56: 10.6 | N56: 0 | O56: <102.421 | P56: DOES NOT MEET | Q56: DOES NOT MEET | R56: 102.421 | S56: 0
A57: Wake Stone Corp. | B57: Knightdale Quarry - Knightdale | C57: 2019-01-15 | D57: Sand, 2MS - Chemistry Check | E57: FA481 | F57: =VLOOKUP(Table57[[#This Row],[Facility ID]],'Coord.'!$A$1:$E$818,2,FALSE) -> N | G57: =VLOOKUP(Table57[[#This Row],[Facility ID]],'Coord.'!$A$1:$E$818,3,FALSE) -> 35.797773 | H57: =VLOOKUP(Table57[[#This Row],[Facility ID]],'Coord.'!$A$1:$E$818,4,FALSE) -> W | I57: =VLOOKUP(Table57[[#This Row],[Facility ID]],'Coord.'!$A$1:$E$818,5,FALSE) -> -78.502251 | J57: 945620 | K57: Skinner, III, John L | L57: 15920 | M57: 9.1 | N57: 0 | O57: <41.457 | P57: DOES NOT MEET | Q57: MEETS | R57: 41.457 | S57: 0
A58: Hedrick Industries | B58: Lake Norman Quarry | C58: 2019-07-12 | D58: Sand, 2MS - Chemistry Check | E58: FA226 | F58: =VLOOKUP(Table57[[#This Row],[Facility ID]],'Coord.'!$A$1:$E$818,2,FALSE) -> N | G58: =VLOOKUP(Table57[[#This Row],[Facility ID]],'Coord.'!$A$1:$E$818,3,FALSE) -> 35.428624 | H58: =VLOOKUP(Table57[[#This Row],[Facility ID]],'Coord.'!$A$1:$E$818,4,FALSE) -> W | I58: =VLOOKUP(Table57[[#This Row],[Facility ID]],'Coord.'!$A$1:$E$818,5,FALSE) -> -81.017242 | J58: 972394 | K58: Gosnell, Jimmy L | L58: 4117 | M58: 8.24 | N58: <29 | O58: <160.311 | P58: MEETS | Q58: MEETS | R58: 160.311 | S58: 29
A59: Georgia Stone Products | B59: Lynches River Quarry - Jefferson, SC | C59: 2016-02-11 | D59: Sand, 2MS - Chemistry Check | E59: FA425 | F59: =VLOOKUP(Table57[[#This Row],[Facility ID]],'Coord.'!$A$1:$E$818,2,FALSE) -> N | G59: =VLOOKUP(Table57[[#This Row],[Facility ID]],'Coord.'!$A$1:$E$818,3,FALSE) -> 34.730891 | H59: =VLOOKUP(Table57[[#This Row],[Facility ID]],'Coord.'!$A$1:$E$818,4,FALSE) -> W | I59: =VLOOKUP(Table57[[#This Row],[Facility ID]],'Coord.'!$A$1:$E$818,5,FALSE) -> -80.452881 | J59: 793639 | K59: Jordan, Daniel H | L59: 23154 | M59: 7.3 | N59: 0 | O59: 9.2 | P59: MEETS | Q59: MEETS | R59: 9.2 | S59: 0
A60: Martin Marietta | B60: Mallard Creek Quarry - Charlotte | C60: 2019-11-06 | D60: Sand, 2MS - Chemistry Check | E60: FA423 | F60: =VLOOKUP(Table57[[#This Row],[Facility ID]],'Coord.'!$A$1:$E$818,2,FALSE) -> N | G60: =VLOOKUP(Table57[[#This Row],[Facility ID]],'Coord.'!$A$1:$E$818,3,FALSE) -> 35.318082 | H60: =VLOOKUP(Table57[[#This Row],[Facility ID]],'Coord.'!$A$1:$E$818,4,FALSE) -> W | I60: =VLOOKUP(Table57[[#This Row],[Facility ID]],'Coord.'!$A$1:$E$818,5,FALSE) -> -80.728078 | J60: 990709 | K60: Pegues, Jr., Henderson | L60: 8025 | M60: 8.94 | N60: <32 | O60: <82.243 | P60: MEETS | Q60: MEETS | R60: 82.243 | S60: 32
A61: Martin Marietta | B61: Matthews Quarry - Matthews | C61: 2015-11-12 | D61: Sand, 2MS - Chemistry Check | E61: CA37 | F61: =VLOOKUP(Table57[[#This Row],[Facility ID]],'Coord.'!$A$1:$E$818,2,FALSE) -> 0 | G61: =VLOOKUP(Table57[[#This Row],[Facility ID]],'Coord.'!$A$1:$E$818,3,FALSE) -> 35.131263 | H61: =VLOOKUP(Table57[[#This Row],[Facility ID]],'Coord.'!$A$1:$E$818,4,FALSE) -> W | I61: =VLOOKUP(Table57[[#This Row],[Facility ID]],'Coord.'!$A$1:$E$818,5,FALSE) -> -80.720372 | J61: 783957 | K61: Adair, Mildred (Millie) L | L61: 3383 | M61: 7.6 | N61: 5 | O61: 300 | P61: DOES NOT MEET | Q61: DOES NOT MEET | R61: 300 | S61: 5
A62: Blue Water Industries | B62: Midway Quarry - Mascot, TN | C62: 2017-02-20 | D62: Sand, 2MS - Chemistry Check | E62: FA168 | F62: =VLOOKUP(Table57[[#This Row],[Facility ID]],'Coord.'!$A$1:$E$818,2,FALSE) -> N | G62: =VLOOKUP(Table57[[#This Row],[Facility ID]],'Coord.'!$A$1:$E$818,3,FALSE) -> 36.066125 | H62: =VLOOKUP(Table57[[#This Row],[Facility ID]],'Coord.'!$A$1:$E$818,4,FALSE) -> W | I62: =VLOOKUP(Table57[[#This Row],[Facility ID]],'Coord.'!$A$1:$E$818,5,FALSE) -> -83.728347 | J62: 845874 | K62: Rhymer, Robert C | L62: 4405 | M62: 9.4 | N62: 8.9 | O62: 37.4 | P62: DOES NOT MEET | Q62: MEETS | R62: 37.4 | S62: 8.9
A63: Wake Stone Corp. | B63: Nash County Quarry - Battleboro | C63: 2016-03-11 | D63: Sand, 2MS - Chemistry Check | E63: FA480 | F63: =VLOOKUP(Table57[[#This Row],[Facility ID]],'Coord.'!$A$1:$E$818,2,FALSE) -> N | G63: =VLOOKUP(Table57[[#This Row],[Facility ID]],'Coord.'!$A$1:$E$818,3,FALSE) -> 36.060037 | H63: =VLOOKUP(Table57[[#This Row],[Facility ID]],'Coord.'!$A$1:$E$818,4,FALSE) -> W | I63: =VLOOKUP(Table57[[#This Row],[Facility ID]],'Coord.'!$A$1:$E$818,5,FALSE) -> -77.83229 | J63: 797388 | K63: Raines, James R | L63: 8361 | M63: 8.5 | N63: 0 | O63: 12.1 | P63: MEETS | Q63: MEETS | R63: 12.1 | S63: 0
A64: Hanson Aggregates Southeast, Inc. | B64: Neverson Quarry - Sims | C64: 2016-03-15 | D64: Sand, 2MS - Chemistry Check | E64: CA66 | F64: =VLOOKUP(Table57[[#This Row],[Facility ID]],'Coord.'!$A$1:$E$818,2,FALSE) -> N | G64: =VLOOKUP(Table57[[#This Row],[Facility ID]],'Coord.'!$A$1:$E$818,3,FALSE) -> 35.766501 | H64: =VLOOKUP(Table57[[#This Row],[Facility ID]],'Coord.'!$A$1:$E$818,4,FALSE) -> W | I64: =VLOOKUP(Table57[[#This Row],[Facility ID]],'Coord.'!$A$1:$E$818,5,FALSE) -> -78.084275 | J64: 798235 | K64: Raines, James R | L64: 25867 | M64: 7.9 | N64: 0 | O64: 4.5 | P64: MEETS | Q64: MEETS | R64: 4.5 | S64: 0
A65: Vulcan Materials Co. | B65: North Quarry - Winston Salem | C65: 2016-03-23 | D65: Sand, 2MS - Chemistry Check | E65: CA72 | F65: =VLOOKUP(Table57[[#This Row],[Facility ID]],'Coord.'!$A$1:$E$818,2,FALSE) -> N | G65: =VLOOKUP(Table57[[#This Row],[Facility ID]],'Coord.'!$A$1:$E$818,3,FALSE) -> 36.176855 | H65: =VLOOKUP(Table57[[#This Row],[Facility ID]],'Coord.'!$A$1:$E$818,4,FALSE) -> W | I65: =VLOOKUP(Table57[[#This Row],[Facility ID]],'Coord.'!$A$1:$E$818,5,FALSE) -> -80.268285 | J65: 798945 | K65: Wallace, Weston G | L65: 24278 | M65: 8 | N65: 0 | O65: 7.1 | P65: MEETS | Q65: MEETS | R65: 7.1 | S65: 0
A66: Vulcan Materials Co. | B66: Pacolet Quarry - Pacolet, SC | C66: 2019-08-01 | D66: Sand, 2MS - Chemistry Check | E66: FA212 | F66: =VLOOKUP(Table57[[#This Row],[Facility ID]],'Coord.'!$A$1:$E$818,2,FALSE) -> N | G66: =VLOOKUP(Table57[[#This Row],[Facility ID]],'Coord.'!$A$1:$E$818,3,FALSE) -> 34.907637 | H66: =VLOOKUP(Table57[[#This Row],[Facility ID]],'Coord.'!$A$1:$E$818,4,FALSE) -> W | I66: =VLOOKUP(Table57[[#This Row],[Facility ID]],'Coord.'!$A$1:$E$818,5,FALSE) -> -81.784472 | J66: 975600 | K66: Gosnell, Jimmy L | L66: 1466 | M66: 7.41 | N66: <29 | O66: >400<800 | P66: =IF(ISBLANK(M66),"N/A",IF(AND(4.5<=$M66,$M66<=9),IF($L66>=3000,IF($S66<=100,IF($R66<=200,"MEETS","DOES NOT MEET"),"DOES NOT MEET"),"DOES NOT MEET"),"DOES NOT MEET")) -> DOES NOT MEET | Q66: =IF(ISBLANK(M66), "N/A", IF(AND(5 <= $M66, $M66 <= 10),IF($L66>=3000,IF($S66<=100,IF($R66<=200,"MEETS","DOES NOT MEET"),"DOES NOT MEET"),"DOES NOT MEET"),"DOES NOT MEET")) -> DOES NOT MEET | R66: =IF(LEFT(O66, 1)="<", VALUE(RIGHT(O66,LEN(O66)-1)), O66) -> >400<800 | S66: =IF(LEFT(N66, 1)="<", VALUE(RIGHT(N66,LEN(N66)-1)), N66) -> 29
A67: Hedrick Industries | B67: Piedmont (Pageland #3) - Pageland, SC | C67: 2019-06-12 | D67: Sand, 2MS - Chemistry Check | E67: FA239 | F67: =VLOOKUP(Table57[[#This Row],[Facility ID]],'Coord.'!$A$1:$E$818,2,FALSE) -> N | G67: =VLOOKUP(Table57[[#This Row],[Facility ID]],'Coord.'!$A$1:$E$818,3,FALSE) -> 34.756193 | H67: =VLOOKUP(Table57[[#This Row],[Facility ID]],'Coord.'!$A$1:$E$818,4,FALSE) -> W | I67: =VLOOKUP(Table57[[#This Row],[Facility ID]],'Coord.'!$A$1:$E$818,5,FALSE) -> -80.313792 | J67: 968059 | K67: Jordan, Daniel H | L67: 40530 | M67: 6.44 | N67: <30 | O67: <16.284 | P67: MEETS | Q67: MEETS | R67: 16.284 | S67: 30
A68: Martin Marietta | B68: Pomona Quarry - Greensboro | C68: 2019-05-28 | D68: Sand, 2MS - Chemistry Check | E68: FA163 | F68: =VLOOKUP(Table57[[#This Row],[Facility ID]],'Coord.'!$A$1:$E$818,2,FALSE) -> 0 | G68: =VLOOKUP(Table57[[#This Row],[Facility ID]],'Coord.'!$A$1:$E$818,3,FALSE) -> 36.0604 | H68: =VLOOKUP(Table57[[#This Row],[Facility ID]],'Coord.'!$A$1:$E$818,4,FALSE) -> 0 | I68: =VLOOKUP(Table57[[#This Row],[Facility ID]],'Coord.'!$A$1:$E$818,5,FALSE) -> -79.925365 | J68: 965380 | K68: Waller, John M | L68: 10610 | M68: 8.9 | N68: <30 | O68: <62.205 | P68: MEETS | Q68: MEETS | R68: 62.205 | S68: 30
A69: Vulcan Materials Co. | B69: Rockingham Quarry - Rockingham | C69: 2016-06-09 | D69: Sand, 2MS - Chemistry Check | E69: FA374 | F69: =VLOOKUP(Table57[[#This Row],[Facility ID]],'Coord.'!$A$1:$E$818,2,FALSE) -> N | G69: =VLOOKUP(Table57[[#This Row],[Facility ID]],'Coord.'!$A$1:$E$818,3,FALSE) -> 34.938709 | H69: =VLOOKUP(Table57[[#This Row],[Facility ID]],'Coord.'!$A$1:$E$818,4,FALSE) -> W | I69: =VLOOKUP(Table57[[#This Row],[Facility ID]],'Coord.'!$A$1:$E$818,5,FALSE) -> -79.823208 | J69: 810588 | K69: Tucker, Rusty J | L69: 9407 | M69: 8.9 | N69: 2.1 | O69: 16.7 | P69: MEETS | Q69: MEETS | R69: 16.7 | S69: 2.1
A70: Hanson Aggregates Southeast, Inc. | B70: Rocky Mount Quarry (#2) | C70: 2016-04-14 | D70: Sand, 2MS - Chemistry Check | E70: FA491 | F70: =VLOOKUP(Table57[[#This Row],[Facility ID]],'Coord.'!$A$1:$E$818,2,FALSE) -> N | G70: =VLOOKUP(Table57[[#This Row],[Facility ID]],'Coord.'!$A$1:$E$818,3,FALSE) -> 35.891003 | H70: =VLOOKUP(Table57[[#This Row],[Facility ID]],'Coord.'!$A$1:$E$818,4,FALSE) -> W | I70: =VLOOKUP(Table57[[#This Row],[Facility ID]],'Coord.'!$A$1:$E$818,5,FALSE) -> -77.86548 | J70: 802199 | K70: Raines, James R | L70: 19135 | M70: 8.4 | N70: 0 | O70: 38.8 | P70: MEETS | Q70: MEETS | R70: 38.8 | S70: 0
A71: Hanson Aggregates Southeast, Inc. | B71: Rougemont Quarry | C71: 2019-01-11 | D71: Sand, 2MS - Chemistry Check | E71: FA464 | F71: =VLOOKUP(Table57[[#This Row],[Facility ID]],'Coord.'!$A$1:$E$818,2,FALSE) -> N | G71: =VLOOKUP(Table57[[#This Row],[Facility ID]],'Coord.'!$A$1:$E$818,3,FALSE) -> 36.224885 | H71: =VLOOKUP(Table57[[#This Row],[Facility ID]],'Coord.'!$A$1:$E$818,4,FALSE) -> W | I71: =VLOOKUP(Table57[[#This Row],[Facility ID]],'Coord.'!$A$1:$E$818,5,FALSE) -> -78.951488 | J71: 945248 | K71: Skinner, III, John L | L71: 19060 | M71: 9.4 | N71: 0 | O71: <34.627 | P71: DOES NOT MEET | Q71: MEETS | R71: 34.627 | S71: 0
A72: Martin Marietta | B72: Salem Stone Quarry - Kernersville | C72: 2013-08-20 | D72: Sand, 2MS - Chemistry Check | E72: FA305 | F72: =VLOOKUP(Table57[[#This Row],[Facility ID]],'Coord.'!$A$1:$E$818,2,FALSE) -> N | G72: =VLOOKUP(Table57[[#This Row],[Facility ID]],'Coord.'!$A$1:$E$818,3,FALSE) -> 36.035983 | H72: =VLOOKUP(Table57[[#This Row],[Facility ID]],'Coord.'!$A$1:$E$818,4,FALSE) -> W | I72: =VLOOKUP(Table57[[#This Row],[Facility ID]],'Coord.'!$A$1:$E$818,5,FALSE) -> -80.106778 | J72: 677612 | K72: Vincent, Timothy L | L72: 7413 | M72: 7.3 | N72: 0 | O72: 0 | P72: MEETS | Q72: MEETS | R72: 0 | S72: 0
A73: Hanson Aggregates Southeast, Inc. | B73: Sandy Flats Quarry - Taylors, SC | C73: 2016-12-14 | D73: Sand, 2MS - Chemistry Check | E73: FA438 | F73: =VLOOKUP(Table57[[#This Row],[Facility ID]],'Coord.'!$A$1:$E$818,2,FALSE) -> N | G73: =VLOOKUP(Table57[[#This Row],[Facility ID]],'Coord.'!$A$1:$E$818,3,FALSE) -> 35.008494 | H73: =VLOOKUP(Table57[[#This Row],[Facility ID]],'Coord.'!$A$1:$E$818,4,FALSE) -> W | I73: =VLOOKUP(Table57[[#This Row],[Facility ID]],'Coord.'!$A$1:$E$818,5,FALSE) -> -82.345755 | J73: 839146 | K73: Wood, Dean Michael M | L73: 14616 | M73: 7.8 | N73: 0 | O73: 5.6 | P73: MEETS | Q73: MEETS | R73: 5.6 | S73: 0
A74: Vulcan Materials Co. | B74: Smith Grove Q. - Mocksville | C74: 2016-04-26 | D74: Sand, 2MS - Chemistry Check | E74: FA76 | F74: =VLOOKUP(Table57[[#This Row],[Facility ID]],'Coord.'!$A$1:$E$818,2,FALSE) -> N | G74: =VLOOKUP(Table57[[#This Row],[Facility ID]],'Coord.'!$A$1:$E$818,3,FALSE) -> 35.967188 | H74: =VLOOKUP(Table57[[#This Row],[Facility ID]],'Coord.'!$A$1:$E$818,4,FALSE) -> W | I74: =VLOOKUP(Table57[[#This Row],[Facility ID]],'Coord.'!$A$1:$E$818,5,FALSE) -> -80.530693 | J74: 803859 | K74: Wallace, Weston G | L74: 6254 | M74: 6.2 | N74: 0 | O74: 49 | P74: MEETS | Q74: MEETS | R74: 49 | S74: 0
A75: Vulcan Materials Co. | B75: Spruce Pine Quarry - Bakersville | C75: 2015-08-11 | D75: Sand, 2MS - Chemistry Check | E75: CA111 | F75: =VLOOKUP(Table57[[#This Row],[Facility ID]],'Coord.'!$A$1:$E$818,2,FALSE) -> N | G75: =VLOOKUP(Table57[[#This Row],[Facility ID]],'Coord.'!$A$1:$E$818,3,FALSE) -> 35.5832 | H75: =VLOOKUP(Table57[[#This Row],[Facility ID]],'Coord.'!$A$1:$E$818,4,FALSE) -> W | I75: =VLOOKUP(Table57[[#This Row],[Facility ID]],'Coord.'!$A$1:$E$818,5,FALSE) -> -82.0541 | J75: 770808 | K75: Rhymer, Robert C | L75: 931966 | M75: 7.2 | N75: 0 | O75: 300 | P75: DOES NOT MEET | Q75: DOES NOT MEET | R75: 300 | S75: 0
A76: Wake Stone Corp. | B76: Triangle Quarry - Cary | C76: 2012-03-12 | D76: Sand, 2MS - Chemistry Check | E76: CA157 | F76: =VLOOKUP(Table57[[#This Row],[Facility ID]],'Coord.'!$A$1:$E$818,2,FALSE) -> N | G76: =VLOOKUP(Table57[[#This Row],[Facility ID]],'Coord.'!$A$1:$E$818,3,FALSE) -> 35.838397 | H76: =VLOOKUP(Table57[[#This Row],[Facility ID]],'Coord.'!$A$1:$E$818,4,FALSE) -> W | I76: =VLOOKUP(Table57[[#This Row],[Facility ID]],'Coord.'!$A$1:$E$818,5,FALSE) -> -78.767809 | J76: 617977 | K76: Gowl, Adam L | L76: 7052 | M76: 7.8 | N76: 0 | O76: 0 | P76: MEETS | Q76: MEETS | R76: 0 | S76: 0
A77: Blue Water Industries | B77: Watauga Quarry | C77: 2002-10-03 | D77: Sand, 2MS - Chemistry Check | E77: FA78 | F77: =VLOOKUP(Table57[[#This Row],[Facility ID]],'Coord.'!$A$1:$E$818,2,FALSE) -> N | G77: =VLOOKUP(Table57[[#This Row],[Facility ID]],'Coord.'!$A$1:$E$818,3,FALSE) -> 36.370568 | H77: =VLOOKUP(Table57[[#This Row],[Facility ID]],'Coord.'!$A$1:$E$818,4,FALSE) -> W | I77: =VLOOKUP(Table57[[#This Row],[Facility ID]],'Coord.'!$A$1:$E$818,5,FALSE) -> -82.296366 | J77: 279422 | K77: Hamby Jr, Kenneth R | P77: N/A | Q77: N/A
A78: LBM Industries | B78: Whitewater Falls - Sapphire | C78: 2016-05-24 | D78: Sand, 2MS - Chemistry Check | E78: FA162 | F78: =VLOOKUP(Table57[[#This Row],[Facility ID]],'Coord.'!$A$1:$E$818,2,FALSE) -> N | G78: =VLOOKUP(Table57[[#This Row],[Facility ID]],'Coord.'!$A$1:$E$818,3,FALSE) -> 35.05631 | H78: =VLOOKUP(Table57[[#This Row],[Facility ID]],'Coord.'!$A$1:$E$818,4,FALSE) -> W | I78: =VLOOKUP(Table57[[#This Row],[Facility ID]],'Coord.'!$A$1:$E$818,5,FALSE) -> -82.58279 | J78: 808253 | K78: Wood, Dean Michael M | L78: 12303 | M78: 7.9 | N78: 2.1 | O78: 24.8 | P78: MEETS | Q78: MEETS | R78: 24.8 | S78: 2.1
A79: Martin Marietta | B79: Woodleaf Quarry - Salisbury | C79: 2000-07-26 | D79: Sand, 2MS - Chemistry Check | E79: FA100 | F79: =VLOOKUP(Table57[[#This Row],[Facility ID]],'Coord.'!$A$1:$E$818,2,FALSE) -> N | G79: =VLOOKUP(Table57[[#This Row],[Facility ID]],'Coord.'!$A$1:$E$818,3,FALSE) -> 35.773536 | H79: =VLOOKUP(Table57[[#This Row],[Facility ID]],'Coord.'!$A$1:$E$818,4,FALSE) -> W | I79: =VLOOKUP(Table57[[#This Row],[Facility ID]],'Coord.'!$A$1:$E$818,5,FALSE) -> -80.598793 | J79: 145927 | K79: Wrenn, Kevin O | P79: N/A | Q79: N/A
A80: Carolina Sunrock LLC | B80: Woodsdale Quarry - Roxboro | C80: 2019-01-11 | D80: Sand, 2MS - Chemistry Check | E80: FA440 | F80: =VLOOKUP(Table57[[#This Row],[Facility ID]],'Coord.'!$A$1:$E$818,2,FALSE) -> N | G80: =VLOOKUP(Table57[[#This Row],[Facility ID]],'Coord.'!$A$1:$E$818,3,FALSE) -> 36.516779 | H80: =VLOOKUP(Table57[[#This Row],[Facility ID]],'Coord.'!$A$1:$E$818,4,FALSE) -> W | I80: =VLOOKUP(Table57[[#This Row],[Facility ID]],'Coord.'!$A$1:$E$818,5,FALSE) -> -78.963525 | J80: 945252 | K80: Skinner, III, John L | L80: 13210 | M80: 9.1 | N80: 0 | O80: <49.962 | P80: DOES NOT MEET | Q80: MEETS | R80: 49.962 | S80: 0
A81: Hanson Aggregates Southeast, Inc. | B81: Hasskamp Pit - Horatio, SC | C81: 2001-03-20 | D81: Sand, 2S | E81: FA117 | F81: =VLOOKUP(Table57[[#This Row],[Facility ID]],'Coord.'!$A$1:$E$818,2,FALSE) -> 0 | G81: =VLOOKUP(Table57[[#This Row],[Facility ID]],'Coord.'!$A$1:$E$818,3,FALSE) -> 0 | H81: =VLOOKUP(Table57[[#This Row],[Facility ID]],'Coord.'!$A$1:$E$818,4,FALSE) -> 0 | I81: =VLOOKUP(Table57[[#This Row],[Facility ID]],'Coord.'!$A$1:$E$818,5,FALSE) -> 0 | J81: 182599 | K81: Chavis, Raymond S | P81: N/A | Q81: N/A
A82: Oldcastle Stone Products - Bonsal Mining | B82: Lilesville Pit | C82: 2016-03-23 | D82: Sand, 2S | E82: FA6 | F82: =VLOOKUP(Table57[[#This Row],[Facility ID]],'Coord.'!$A$1:$E$818,2,FALSE) -> N | G82: =VLOOKUP(Table57[[#This Row],[Facility ID]],'Coord.'!$A$1:$E$818,3,FALSE) -> 34.95381 | H82: =VLOOKUP(Table57[[#This Row],[Facility ID]],'Coord.'!$A$1:$E$818,4,FALSE) -> W | I82: =VLOOKUP(Table57[[#This Row],[Facility ID]],'Coord.'!$A$1:$E$818,5,FALSE) -> -79.942446 | J82: 799217 | K82: Jackson, Brandon M | L82: 139121 | M82: 6.8 | N82: 0 | O82: 6.1 | P82: MEETS | Q82: MEETS | R82: 6.1 | S82: 0
A83: Dawson Contracting Inc | B83: Ashley Heights Sand | C83: 2016-02-03 | D83: Sand, 2S - Chemistry Check | E83: FA494 | F83: =VLOOKUP(Table57[[#This Row],[Facility ID]],'Coord.'!$A$1:$E$818,2,FALSE) -> N | G83: =VLOOKUP(Table57[[#This Row],[Facility ID]],'Coord.'!$A$1:$E$818,3,FALSE) -> 35.07643 | H83: =VLOOKUP(Table57[[#This Row],[Facility ID]],'Coord.'!$A$1:$E$818,4,FALSE) -> W | I83: =VLOOKUP(Table57[[#This Row],[Facility ID]],'Coord.'!$A$1:$E$818,5,FALSE) -> -79.389662 | J83: 792505 | K83: Jordan, Daniel H | L83: 90498 | M83: 6.5 | N83: 0 | O83: 6.9 | P83: MEETS | Q83: MEETS | R83: 6.9 | S83: 0
A84: Hedrick Industries | B84: B.V. Hedrick Gravel & Sand - Lilesville | C84: 2019-06-25 | D84: Sand, 2S - Chemistry Check | E84: FA221 | F84: =VLOOKUP(Table57[[#This Row],[Facility ID]],'Coord.'!$A$1:$E$818,2,FALSE) -> N | G84: =VLOOKUP(Table57[[#This Row],[Facility ID]],'Coord.'!$A$1:$E$818,3,FALSE) -> 34.953819 | H84: =VLOOKUP(Table57[[#This Row],[Facility ID]],'Coord.'!$A$1:$E$818,4,FALSE) -> W | I84: =VLOOKUP(Table57[[#This Row],[Facility ID]],'Coord.'!$A$1:$E$818,5,FALSE) -> -79.928801 | J84: 969726 | K84: Jordan, Daniel H | L84: 130300 | M84: 5.84 | N84: <29 | O84: <5.065 | P84: MEETS | Q84: MEETS | R84: 5.065 | S84: 29
A85: American Materials Co. | B85: Bailey Mine - Linden | C85: 2015-08-27 | D85: Sand, 2S - Chemistry Check | E85: FA483 | F85: =VLOOKUP(Table57[[#This Row],[Facility ID]],'Coord.'!$A$1:$E$818,2,FALSE) -> N | G85: =VLOOKUP(Table57[[#This Row],[Facility ID]],'Coord.'!$A$1:$E$818,3,FALSE) -> 35.207302 | H85: =VLOOKUP(Table57[[#This Row],[Facility ID]],'Coord.'!$A$1:$E$818,4,FALSE) -> W | I85: =VLOOKUP(Table57[[#This Row],[Facility ID]],'Coord.'!$A$1:$E$818,5,FALSE) -> -78.764446 | J85: 773447 | K85: Russell, Jonathan T | L85: 60350 | M85: 5.4 | N85: 0 | O85: 0 | P85: MEETS | Q85: MEETS | R85: 0 | S85: 0
A86: Bent River Materials | B86: Bent River Pit | C86: 2019-07-02 | D86: Sand, 2S - Chemistry Check | E86: FA460 | F86: =VLOOKUP(Table57[[#This Row],[Facility ID]],'Coord.'!$A$1:$E$818,2,FALSE) -> N | G86: =VLOOKUP(Table57[[#This Row],[Facility ID]],'Coord.'!$A$1:$E$818,3,FALSE) -> 36.095441 | H86: =VLOOKUP(Table57[[#This Row],[Facility ID]],'Coord.'!$A$1:$E$818,4,FALSE) -> W | I86: =VLOOKUP(Table57[[#This Row],[Facility ID]],'Coord.'!$A$1:$E$818,5,FALSE) -> -77.256911 | J86: 970953 | K86: Thomas, Grady Q | L86: 23650 | M86: 4.98 | N86: <29 | O86: <27.907 | P86: MEETS | Q86: DOES NOT MEET | R86: 27.907 | S86: 29
A87: GS Materials, Inc. | B87: Blue Water Sand & Gravel - Mill Creek Pit | C87: 2016-04-15 | D87: Sand, 2S - Chemistry Check | E87: FA489 | F87: =VLOOKUP(Table57[[#This Row],[Facility ID]],'Coord.'!$A$1:$E$818,2,FALSE) -> N | G87: =VLOOKUP(Table57[[#This Row],[Facility ID]],'Coord.'!$A$1:$E$818,3,FALSE) -> 35.352076 | H87: =VLOOKUP(Table57[[#This Row],[Facility ID]],'Coord.'!$A$1:$E$818,4,FALSE) -> W | I87: =VLOOKUP(Table57[[#This Row],[Facility ID]],'Coord.'!$A$1:$E$818,5,FALSE) -> -78.194148 | J87: 803132 | K87: Raines, James R | L87: 46729 | M87: 4.9 | N87: 0 | O87: 8 | P87: MEETS | Q87: DOES NOT MEET | R87: 8 | S87: 0
A88: Titan Mid-Atlantic Aggregates LLC | B88: Branchville Sand Plant - Sebrell Farms | C88: 2020-01-22 | D88: Sand, 2S - Chemistry Check | E88: FA613 | F88: =VLOOKUP(Table57[[#This Row],[Facility ID]],'Coord.'!$A$1:$E$818,2,FALSE) -> N | G88: =VLOOKUP(Table57[[#This Row],[Facility ID]],'Coord.'!$A$1:$E$818,3,FALSE) -> 36.573938 | H88: =VLOOKUP(Table57[[#This Row],[Facility ID]],'Coord.'!$A$1:$E$818,4,FALSE) -> W | I88: =VLOOKUP(Table57[[#This Row],[Facility ID]],'Coord.'!$A$1:$E$818,5,FALSE) -> -77.294354 | J88: 997214 | K88: Bonds, Maria M | L88: 36700 | M88: 6.25 | N88: <30 | O88: <17.894 | P88: MEETS | Q88: MEETS | R88: 17.894 | S88: 30
A89: Best Sand & Gravel, Inc. | B89: Brooks Pit - Goldsboro | C89: 2016-04-07 | D89: Sand, 2S - Chemistry Check | E89: FA340 | F89: =VLOOKUP(Table57[[#This Row],[Facility ID]],'Coord.'!$A$1:$E$818,2,FALSE) -> N | G89: =VLOOKUP(Table57[[#This Row],[Facility ID]],'Coord.'!$A$1:$E$818,3,FALSE) -> 35.30229 | H89: =VLOOKUP(Table57[[#This Row],[Facility ID]],'Coord.'!$A$1:$E$818,4,FALSE) -> W | I89: =VLOOKUP(Table57[[#This Row],[Facility ID]],'Coord.'!$A$1:$E$818,5,FALSE) -> -77.936389 | J89: 801024 | K89: Raines, James R | L89: 16537 | M89: 7.3 | N89: 0 | O89: 0 | P89: MEETS | Q89: MEETS | R89: 0 | S89: 0
A90: Carolina Sand | B90: Burke County Pit | C90: 2016-12-14 | D90: Sand, 2S - Chemistry Check | E90: FA334 | F90: =VLOOKUP(Table57[[#This Row],[Facility ID]],'Coord.'!$A$1:$E$818,2,FALSE) -> N | G90: =VLOOKUP(Table57[[#This Row],[Facility ID]],'Coord.'!$A$1:$E$818,3,FALSE) -> 35.4617 | H90: =VLOOKUP(Table57[[#This Row],[Facility ID]],'Coord.'!$A$1:$E$818,4,FALSE) -> W | I90: =VLOOKUP(Table57[[#This Row],[Facility ID]],'Coord.'!$A$1:$E$818,5,FALSE) -> -81.4105 | J90: 839021 | K90: Ausley, Jeff A | L90: 35486 | M90: 6.7 | N90: 0 | O90: 4.6 | P90: MEETS | Q90: MEETS | R90: 4.6 | S90: 0
A91: APAC-Atlantic - Thompson-Arthur | B91: Candor Pit | C91: 2019-08-12 | D91: Sand, 2S - Chemistry Check | E91: FA60 | F91: =VLOOKUP(Table57[[#This Row],[Facility ID]],'Coord.'!$A$1:$E$818,2,FALSE) -> N | G91: =VLOOKUP(Table57[[#This Row],[Facility ID]],'Coord.'!$A$1:$E$818,3,FALSE) -> 35.212105 | H91: =VLOOKUP(Table57[[#This Row],[Facility ID]],'Coord.'!$A$1:$E$818,4,FALSE) -> W | I91: =VLOOKUP(Table57[[#This Row],[Facility ID]],'Coord.'!$A$1:$E$818,5,FALSE) -> -79.726964 | J91: 977381 | K91: Jackson, Brandon M | L91: 68040 | M91: 5.1 | N91: <29 | O91: <9.7002 | P91: MEETS | Q91: MEETS | R91: 9.7002 | S91: 29
A92: Westside Minerals LLC | B92: Dempsey Wood Pit - LaGrange | C92: 2020-09-24 | D92: Sand, 2S - Chemistry Check | E92: FA403 | F92: =VLOOKUP(Table57[[#This Row],[Facility ID]],'Coord.'!$A$1:$E$818,2,FALSE) -> N | G92: =VLOOKUP(Table57[[#This Row],[Facility ID]],'Coord.'!$A$1:$E$818,3,FALSE) -> 35.228448 | H92: =VLOOKUP(Table57[[#This Row],[Facility ID]],'Coord.'!$A$1:$E$818,4,FALSE) -> W | I92: =VLOOKUP(Table57[[#This Row],[Facility ID]],'Coord.'!$A$1:$E$818,5,FALSE) -> -77.722069 | J92: 1021168 | K92: Cobb, James R | L92: 80040 | M92: 4.88 | N92: <30 | O92: <18.739 | P92: MEETS | Q92: DOES NOT MEET | R92: 18.739 | S92: 30
A93: American Materials Co. | B93: Dupree Mine - Greenville | C93: 2020-09-22 | D93: Sand, 2S - Chemistry Check | E93: FA478 | F93: =VLOOKUP(Table57[[#This Row],[Facility ID]],'Coord.'!$A$1:$E$818,2,FALSE) -> N | G93: =VLOOKUP(Table57[[#This Row],[Facility ID]],'Coord.'!$A$1:$E$818,3,FALSE) -> 35.703061 | H93: =VLOOKUP(Table57[[#This Row],[Facility ID]],'Coord.'!$A$1:$E$818,4,FALSE) -> W | I93: =VLOOKUP(Table57[[#This Row],[Facility ID]],'Coord.'!$A$1:$E$818,5,FALSE) -> -77.480889 | J93: 1020735 | K93: Harris, Kevin T | L93: 100050 | M93: 4.91 | N93: <30 | O93: <19.125 | P93: MEETS | Q93: DOES NOT MEET | R93: 19.125 | S93: 30
A94: Martin Marietta | B94: Edmund Pit - Lexington, SC | C94: 2013-10-03 | D94: Sand, 2S - Chemistry Check | E94: FA265 | F94: =VLOOKUP(Table57[[#This Row],[Facility ID]],'Coord.'!$A$1:$E$818,2,FALSE) -> N | G94: =VLOOKUP(Table57[[#This Row],[Facility ID]],'Coord.'!$A$1:$E$818,3,FALSE) -> 33.855843 | H94: =VLOOKUP(Table57[[#This Row],[Facility ID]],'Coord.'!$A$1:$E$818,4,FALSE) -> W | I94: =VLOOKUP(Table57[[#This Row],[Facility ID]],'Coord.'!$A$1:$E$818,5,FALSE) -> -81.204702 | J94: 683832 | K94: Rhymer, Robert C | L94: 43178 | M94: 7.1 | N94: 0 | O94: 0 | P94: MEETS | Q94: MEETS | R94: 0 | S94: 0
A95: GS Materials, Inc. | B95: Emery Pit - Jackson Springs | C95: 2019-08-12 | D95: Sand, 2S - Chemistry Check | E95: FA113 | F95: =VLOOKUP(Table57[[#This Row],[Facility ID]],'Coord.'!$A$1:$E$818,2,FALSE) -> N | G95: =VLOOKUP(Table57[[#This Row],[Facility ID]],'Coord.'!$A$1:$E$818,3,FALSE) -> 35.247394 | H95: =VLOOKUP(Table57[[#This Row],[Facility ID]],'Coord.'!$A$1:$E$818,4,FALSE) -> W | I95: =VLOOKUP(Table57[[#This Row],[Facility ID]],'Coord.'!$A$1:$E$818,5,FALSE) -> -79.722059 | J95: 977380 | K95: Jackson, Brandon M | L95: 48450 | M95: 4.88 | N95: <29 | O95: <13.622 | P95: MEETS | Q95: DOES NOT MEET | R95: 13.622 | S95: 29
A96: Wade Moore Equipment Co. | B96: Fleming Pit - Louisburg | C96: 2019-02-01 | D96: Sand, 2S - Chemistry Check | E96: FA165 | F96: =VLOOKUP(Table57[[#This Row],[Facility ID]],'Coord.'!$A$1:$E$818,2,FALSE) -> N | G96: =VLOOKUP(Table57[[#This Row],[Facility ID]],'Coord.'!$A$1:$E$818,3,FALSE) -> 36.076609 | H96: =VLOOKUP(Table57[[#This Row],[Facility ID]],'Coord.'!$A$1:$E$818,4,FALSE) -> W | I96: =VLOOKUP(Table57[[#This Row],[Facility ID]],'Coord.'!$A$1:$E$818,5,FALSE) -> -78.268576 | J96: 948020 | K96: Skinner, III, John L | L96: 79110 | M96: 6.7 | N96: 0 | O96: <8.343 | P96: MEETS | Q96: MEETS | R96: 8.343 | S96: 0
A97: PGS Aggregates, LLC | B97: Great Pit | C97: 2016-04-18 | D97: Sand, 2S - Chemistry Check | E97: FA254 | F97: =VLOOKUP(Table57[[#This Row],[Facility ID]],'Coord.'!$A$1:$E$818,2,FALSE) -> N | G97: =VLOOKUP(Table57[[#This Row],[Facility ID]],'Coord.'!$A$1:$E$818,3,FALSE) -> 35.966748 | H97: =VLOOKUP(Table57[[#This Row],[Facility ID]],'Coord.'!$A$1:$E$818,4,FALSE) -> W | I97: =VLOOKUP(Table57[[#This Row],[Facility ID]],'Coord.'!$A$1:$E$818,5,FALSE) -> -77.685067 | J97: 803141 | K97: Raines, James R | L97: 49727 | M97: 5.1 | N97: 0 | O97: 7.1 | P97: MEETS | Q97: MEETS | R97: 7.1 | S97: 0
A98: GS Materials, Inc. | B98: Hall Pit - Lemon Springs | C98: 2016-03-08 | D98: Sand, 2S - Chemistry Check | E98: FA122 | F98: =VLOOKUP(Table57[[#This Row],[Facility ID]],'Coord.'!$A$1:$E$818,2,FALSE) -> N | G98: =VLOOKUP(Table57[[#This Row],[Facility ID]],'Coord.'!$A$1:$E$818,3,FALSE) -> 35.410109 | H98: =VLOOKUP(Table57[[#This Row],[Facility ID]],'Coord.'!$A$1:$E$818,4,FALSE) -> W | I98: =VLOOKUP(Table57[[#This Row],[Facility ID]],'Coord.'!$A$1:$E$818,5,FALSE) -> -79.199066 | J98: 796684 | K98: Murphy, Billy J | L98: 117385 | M98: 5.4 | N98: 0 | O98: 6.1 | P98: =IF(ISBLANK(M98),"N/A",IF(AND(4.5<=$M98,$M98<=9),IF($L98>=3000,IF($S98<=100,IF($R98<=200,"MEETS","DOES NOT MEET"),"DOES NOT MEET"),"DOES NOT MEET"),"DOES NOT MEET")) -> MEETS | Q98: =IF(ISBLANK(M98), "N/A", IF(AND(5 <= $M98, $M98 <= 10),IF($L98>=3000,IF($S98<=100,IF($R98<=200,"MEETS","DOES NOT MEET"),"DOES NOT MEET"),"DOES NOT MEET"),"DOES NOT MEET")) -> MEETS | R98: 6.1 | S98: 0
A99: Vulcan Materials Co. | B99: Kitty Hawk Sales Yard | C99: 2020-09-21 | D99: Sand, 2S - Chemistry Check | E99: FA338 | F99: =VLOOKUP(Table57[[#This Row],[Facility ID]],'Coord.'!$A$1:$E$818,2,FALSE) -> N | G99: =VLOOKUP(Table57[[#This Row],[Facility ID]],'Coord.'!$A$1:$E$818,3,FALSE) -> 36.054643 | H99: =VLOOKUP(Table57[[#This Row],[Facility ID]],'Coord.'!$A$1:$E$818,4,FALSE) -> W | I99: =VLOOKUP(Table57[[#This Row],[Facility ID]],'Coord.'!$A$1:$E$818,5,FALSE) -> -75.720912 | J99: 1021098 | K99: Bonds, Maria M | L99: 43355 | M99: 4.31 | N99: <30 | O99: <30.192 | P99: DOES NOT MEET | Q99: DOES NOT MEET
A100: Martin Marietta | B100: Loamy Sand and Gravel - Bethune, SC | C100: 2019-06-21 | D100: Sand, 2S - Chemistry Check | E100: FA429 | F100: =VLOOKUP(Table57[[#This Row],[Facility ID]],'Coord.'!$A$1:$E$818,2,FALSE) -> N | G100: =VLOOKUP(Table57[[#This Row],[Facility ID]],'Coord.'!$A$1:$E$818,3,FALSE) -> 34.524981 | H100: =VLOOKUP(Table57[[#This Row],[Facility ID]],'Coord.'!$A$1:$E$818,4,FALSE) -> W | I100: =VLOOKUP(Table57[[#This Row],[Facility ID]],'Coord.'!$A$1:$E$818,5,FALSE) -> -80.373752 | J100: 969545 | K100: Jordan, Daniel H | L100: 82960 | M100: 5.48 | N100: <29 | O100: <7.956 | P100: MEETS | Q100: MEETS | R100: =IF(LEFT(O100, 1)="<", VALUE(RIGHT(O100,LEN(O100)-1)), O100) -> 7.956 | S100: =IF(LEFT(N100, 1)="<", VALUE(RIGHT(N100,LEN(N100)-1)), N100) -> 29
A101: Hanson Aggregates Southeast, Inc. | B101: Marlboro S&G - Bennettsville | C101: 2019-06-19 | D101: Sand, 2S - Chemistry Check | E101: FA10 | F101: =VLOOKUP(Table57[[#This Row],[Facility ID]],'Coord.'!$A$1:$E$818,2,FALSE) -> N | G101: =VLOOKUP(Table57[[#This Row],[Facility ID]],'Coord.'!$A$1:$E$818,3,FALSE) -> 34.584906 | H101: =VLOOKUP(Table57[[#This Row],[Facility ID]],'Coord.'!$A$1:$E$818,4,FALSE) -> W | I101: =VLOOKUP(Table57[[#This Row],[Facility ID]],'Coord.'!$A$1:$E$818,5,FALSE) -> -79.748662 | J101: 968878 | K101: Jordan, Daniel H | L101: 142100 | M101: 5.07 | N101: <29 | O101: <4.645 | P101: MEETS | Q101: MEETS | R101: =IF(LEFT(O101, 1)="<", VALUE(RIGHT(O101,LEN(O101)-1)), O101) -> 4.645 | S101: =IF(LEFT(N101, 1)="<", VALUE(RIGHT(N101,LEN(N101)-1)), N101) -> 29
A102: Mar-Mac Sand and Gravel, LLC | B102: Mar-Mac Sand & Gravel - Goldsboro | C102: 2016-04-15 | D102: Sand, 2S - Chemistry Check | E102: FA336 | F102: =VLOOKUP(Table57[[#This Row],[Facility ID]],'Coord.'!$A$1:$E$818,2,FALSE) -> N | G102: =VLOOKUP(Table57[[#This Row],[Facility ID]],'Coord.'!$A$1:$E$818,3,FALSE) -> 35.342329 | H102: =VLOOKUP(Table57[[#This Row],[Facility ID]],'Coord.'!$A$1:$E$818,4,FALSE) -> W | I102: =VLOOKUP(Table57[[#This Row],[Facility ID]],'Coord.'!$A$1:$E$818,5,FALSE) -> -78.034532 | J102: 803130 | K102: Raines, James R | L102: 1812 | M102: 3.1 | N102: 8.6 | O102: 146 | P102: DOES NOT MEET | Q102: DOES NOT MEET | R102: =IF(LEFT(O102, 1)="<", VALUE(RIGHT(O102,LEN(O102)-1)), O102) -> 146 | S102: =IF(LEFT(N102, 1)="<", VALUE(RIGHT(N102,LEN(N102)-1)), N102) -> 8.6
A103: Mid-East Services, Inc. | B103: Massengill Mine | C103: 2016-04-05 | D103: Sand, 2S - Chemistry Check | E103: FA384 | F103: =VLOOKUP(Table57[[#This Row],[Facility ID]],'Coord.'!$A$1:$E$818,2,FALSE) -> N | G103: =VLOOKUP(Table57[[#This Row],[Facility ID]],'Coord.'!$A$1:$E$818,3,FALSE) -> 35.373412 | H103: =VLOOKUP(Table57[[#This Row],[Facility ID]],'Coord.'!$A$1:$E$818,4,FALSE) -> W | I103: =VLOOKUP(Table57[[#This Row],[Facility ID]],'Coord.'!$A$1:$E$818,5,FALSE) -> -78.310284 | J103: 801022 | K103: Raines, James R | L103: 87108 | M103: 7.4 | N103: 0 | O103: 5.2 | P103: MEETS | Q103: MEETS | R103: =IF(LEFT(O103, 1)="<", VALUE(RIGHT(O103,LEN(O103)-1)), O103) -> 5.2 | S103: =IF(LEFT(N103, 1)="<", VALUE(RIGHT(N103,LEN(N103)-1)), N103) -> 0
A104: Matthews Sand and Gravel | B104: Matthews 3 Pit | C104: 2016-04-05 | D104: Sand, 2S - Chemistry Check | E104: FA472 | F104: =VLOOKUP(Table57[[#This Row],[Facility ID]],'Coord.'!$A$1:$E$818,2,FALSE) -> N | G104: =VLOOKUP(Table57[[#This Row],[Facility ID]],'Coord.'!$A$1:$E$818,3,FALSE) -> 35.396353 | H104: =VLOOKUP(Table57[[#This Row],[Facility ID]],'Coord.'!$A$1:$E$818,4,FALSE) -> W | I104: =VLOOKUP(Table57[[#This Row],[Facility ID]],'Coord.'!$A$1:$E$818,5,FALSE) -> -78.306457 | J104: 801023 | K104: Raines, James R | L104: 71531 | M104: 7.3 | N104: 0 | O104: 0 | P104: MEETS | Q104: MEETS | R104: =IF(LEFT(O104, 1)="<", VALUE(RIGHT(O104,LEN(O104)-1)), O104) -> 0 | S104: =IF(LEFT(N104, 1)="<", VALUE(RIGHT(N104,LEN(N104)-1)), N104) -> 0
A105: Matthews Sand and Gravel | B105: Matthews Pit #4 - Princeton | C105: 2020-10-14 | D105: Sand, 2S - Chemistry Check | E105: FA616 | F105: =VLOOKUP(Table57[[#This Row],[Facility ID]],'Coord.'!$A$1:$E$818,2,FALSE) -> N | G105: =VLOOKUP(Table57[[#This Row],[Facility ID]],'Coord.'!$A$1:$E$818,3,FALSE) -> 35.350309 | H105: =VLOOKUP(Table57[[#This Row],[Facility ID]],'Coord.'!$A$1:$E$818,4,FALSE) -> W | I105: =VLOOKUP(Table57[[#This Row],[Facility ID]],'Coord.'!$A$1:$E$818,5,FALSE) -> -78.188156 | J105: 1023373 | K105: Calestru, Steliana | L105: 113390 | M105: 5.51 | N105: <30 | O105: <14.502 | P105: MEETS | Q105: MEETS
A106: Commercial Ready Mix Products | B106: Newsome Pit #2 - Pendleton | C106: 2020-07-09 | D106: Sand, 2S - Chemistry Check | E106: FA317 | F106: =VLOOKUP(Table57[[#This Row],[Facility ID]],'Coord.'!$A$1:$E$818,2,FALSE) -> N | G106: =VLOOKUP(Table57[[#This Row],[Facility ID]],'Coord.'!$A$1:$E$818,3,FALSE) -> 36.508727 | H106: =VLOOKUP(Table57[[#This Row],[Facility ID]],'Coord.'!$A$1:$E$818,4,FALSE) -> W | I106: =VLOOKUP(Table57[[#This Row],[Facility ID]],'Coord.'!$A$1:$E$818,5,FALSE) -> -77.151348 | J106: 1013570 | K106: Thomas, Grady Q | L106: 260130 | M106: 6.33 | N106: <30 | O106: <2.537 | P106: MEETS | Q106: MEETS | R106: =IF(LEFT(O106, 1)="<", VALUE(RIGHT(O106,LEN(O106)-1)), O106) -> 2.537 | S106: =IF(LEFT(N106, 1)="<", VALUE(RIGHT(N106,LEN(N106)-1)), N106) -> 30
A107: Hedrick Industries | B107: Norman Sand Pit (D&J) - Candor, NC | C107: 2019-07-12 | D107: Sand, 2S - Chemistry Check | E107: FA111 | F107: =VLOOKUP(Table57[[#This Row],[Facility ID]],'Coord.'!$A$1:$E$818,2,FALSE) -> N | G107: =VLOOKUP(Table57[[#This Row],[Facility ID]],'Coord.'!$A$1:$E$818,3,FALSE) -> 35.198165 | H107: =VLOOKUP(Table57[[#This Row],[Facility ID]],'Coord.'!$A$1:$E$818,4,FALSE) -> W | I107: =VLOOKUP(Table57[[#This Row],[Facility ID]],'Coord.'!$A$1:$E$818,5,FALSE) -> -79.75289 | J107: 972349 | K107: Jackson, Brandon M | L107: 44790 | M107: 4.88 | N107: <29 | O107: <14.735 | P107: MEETS | Q107: DOES NOT MEET | R107: 14.735 | S107: 29
A108: Osprey Minerals | B108: Osprey Sand Pit - Mt. Croghan | C108: 2019-06-12 | D108: Sand, 2S - Chemistry Check | E108: FA603 | F108: =VLOOKUP(Table57[[#This Row],[Facility ID]],'Coord.'!$A$1:$E$818,2,FALSE) -> N | G108: =VLOOKUP(Table57[[#This Row],[Facility ID]],'Coord.'!$A$1:$E$818,3,FALSE) -> 34.699564 | H108: =VLOOKUP(Table57[[#This Row],[Facility ID]],'Coord.'!$A$1:$E$818,4,FALSE) -> W | I108: =VLOOKUP(Table57[[#This Row],[Facility ID]],'Coord.'!$A$1:$E$818,5,FALSE) -> -80.269891 | J108: 968060 | K108: Jordan, Daniel H | L108: 51310 | M108: 5.54 | N108: <30 | O108: <12.863 | P108: MEETS | Q108: MEETS | R108: 12.863 | S108: 30
A109: Pea Creek Mines | B109: Pea Creek Mines | C109: 2019-06-26 | D109: Sand, 2S - Chemistry Check | E109: FA447 | F109: =VLOOKUP(Table57[[#This Row],[Facility ID]],'Coord.'!$A$1:$E$818,2,FALSE) -> N | G109: =VLOOKUP(Table57[[#This Row],[Facility ID]],'Coord.'!$A$1:$E$818,3,FALSE) -> 35.665994 | H109: =VLOOKUP(Table57[[#This Row],[Facility ID]],'Coord.'!$A$1:$E$818,4,FALSE) -> W | I109: =VLOOKUP(Table57[[#This Row],[Facility ID]],'Coord.'!$A$1:$E$818,5,FALSE) -> -77.191418 | J109: 970248 | K109: Cobb, James R | L109: 28120 | M109: 4.77 | N109: <29 | O109: <23.471 | P109: MEETS | Q109: DOES NOT MEET | R109: 23.471 | S109: 29
A110: Vulcan Materials Co. | B110: Puddledock Quarry - Prince George, VA | C110: 2019-08-26 | D110: Sand, 2S - Chemistry Check | E110: FA172 | F110: =VLOOKUP(Table57[[#This Row],[Facility ID]],'Coord.'!$A$1:$E$818,2,FALSE) -> N | G110: =VLOOKUP(Table57[[#This Row],[Facility ID]],'Coord.'!$A$1:$E$818,3,FALSE) -> 37.260105 | H110: =VLOOKUP(Table57[[#This Row],[Facility ID]],'Coord.'!$A$1:$E$818,4,FALSE) -> W | I110: =VLOOKUP(Table57[[#This Row],[Facility ID]],'Coord.'!$A$1:$E$818,5,FALSE) -> -77.364735 | J110: 980143 | K110: Bonds, Maria M | L110: 52160 | M110: 4.99 | N110: <29 | O110: <12.653 | P110: MEETS | Q110: DOES NOT MEET | R110: 12.653 | S110: 29
A111: Ernie Everett Site Prep., Inc. | B111: Shepard Pit - Kinston | C111: 44095 | D111: Sand, 2S - Chemistry Check | E111: FA605 | F111: =VLOOKUP(Table57[[#This Row],[Facility ID]],'Coord.'!$A$1:$E$818,2,FALSE) -> N | G111: =VLOOKUP(Table57[[#This Row],[Facility ID]],'Coord.'!$A$1:$E$818,3,FALSE) -> 35.247407 | H111: =VLOOKUP(Table57[[#This Row],[Facility ID]],'Coord.'!$A$1:$E$818,4,FALSE) -> W | I111: =VLOOKUP(Table57[[#This Row],[Facility ID]],'Coord.'!$A$1:$E$818,5,FALSE) -> -77.59285 | J111: 1020626 | K111: Harris, Kevin T | L111: 140070 | M111: 5.39 | N111: <30 | O111: 12 | P111: MEETS | Q111: MEETS | R111: 12 | S111: 30
A112: Thomas Cement, Inc. | B112: Simpson Mine - Pageland, SC | C112: 2019-06-25 | D112: Sand, 2S - Chemistry Check | E112: FA456 | F112: =VLOOKUP(Table57[[#This Row],[Facility ID]],'Coord.'!$A$1:$E$818,2,FALSE) -> N | G112: =VLOOKUP(Table57[[#This Row],[Facility ID]],'Coord.'!$A$1:$E$818,3,FALSE) -> 34.708316 | H112: =VLOOKUP(Table57[[#This Row],[Facility ID]],'Coord.'!$A$1:$E$818,4,FALSE) -> W | I112: =VLOOKUP(Table57[[#This Row],[Facility ID]],'Coord.'!$A$1:$E$818,5,FALSE) -> -80.36808 | J112: 969963 | K112: Jordan, Daniel H | L112: 66420 | M112: 4.9 | N112: <29 | O112: <9.937 | P112: MEETS | Q112: DOES NOT MEET | R112: 9.937 | S112: 29
A113: Stony Creek Sand and Gravel, LLC | B113: Stony Creek Sand & Gravel - Carson, VA | C113: 2016-04-22 | D113: Sand, 2S - Chemistry Check | E113: FA503 | F113: =VLOOKUP(Table57[[#This Row],[Facility ID]],'Coord.'!$A$1:$E$818,2,FALSE) -> N | G113: =VLOOKUP(Table57[[#This Row],[Facility ID]],'Coord.'!$A$1:$E$818,3,FALSE) -> 36.978999 | H113: =VLOOKUP(Table57[[#This Row],[Facility ID]],'Coord.'!$A$1:$E$818,4,FALSE) -> W | I113: =VLOOKUP(Table57[[#This Row],[Facility ID]],'Coord.'!$A$1:$E$818,5,FALSE) -> -77.347684 | J113: 803774 | K113: Raines, James R | L113: 8210 | M113: 4.1 | N113: 4.3 | O113: 31.3 | P113: DOES NOT MEET | Q113: DOES NOT MEET | R113: 31.3 | S113: 4.3
A114: American Materials Co. | B114: Sumter County Pit - Sumter, SC | C114: 2019-06-25 | D114: Sand, 2S - Chemistry Check | E114: FA607 | F114: =VLOOKUP(Table57[[#This Row],[Facility ID]],'Coord.'!$A$1:$E$818,2,FALSE) -> N | G114: =VLOOKUP(Table57[[#This Row],[Facility ID]],'Coord.'!$A$1:$E$818,3,FALSE) -> 33.94986 | H114: =VLOOKUP(Table57[[#This Row],[Facility ID]],'Coord.'!$A$1:$E$818,4,FALSE) -> W | I114: =VLOOKUP(Table57[[#This Row],[Facility ID]],'Coord.'!$A$1:$E$818,5,FALSE) -> -80.481436 | J114: 969961 | K114: Jordan, Daniel H | L114: 79610 | M114: 5.05 | N114: <29 | O114: <8.29 | P114: MEETS | Q114: MEETS | R114: 8.29 | S114: 29
A115: B.E. Singleton & Sons, Inc. | B115: Talley-Whichard Pitt | C115: 2018-03-27 | D115: Sand, 2S - Chemistry Check | E115: FA488 | F115: =VLOOKUP(Table57[[#This Row],[Facility ID]],'Coord.'!$A$1:$E$818,2,FALSE) -> N | G115: =VLOOKUP(Table57[[#This Row],[Facility ID]],'Coord.'!$A$1:$E$818,3,FALSE) -> 35.526295 | H115: =VLOOKUP(Table57[[#This Row],[Facility ID]],'Coord.'!$A$1:$E$818,4,FALSE) -> W | I115: =VLOOKUP(Table57[[#This Row],[Facility ID]],'Coord.'!$A$1:$E$818,5,FALSE) -> -77.064216 | J115: 903394 | K115: Cobb, James R | L115: 2203 | M115: 4 | N115: 21.6 | O115: 30.5 | P115: DOES NOT MEET | Q115: DOES NOT MEET | R115: 30.5 | S115: 21.6
A116: Neuse Sand And Gravel | B116: Tilghman Pit | C116: 2018-02-15 | D116: Sand, 2S - Chemistry Check | E116: FA446 | F116: =VLOOKUP(Table57[[#This Row],[Facility ID]],'Coord.'!$A$1:$E$818,2,FALSE) -> N | G116: =VLOOKUP(Table57[[#This Row],[Facility ID]],'Coord.'!$A$1:$E$818,3,FALSE) -> 35.259956 | H116: =VLOOKUP(Table57[[#This Row],[Facility ID]],'Coord.'!$A$1:$E$818,4,FALSE) -> W | I116: =VLOOKUP(Table57[[#This Row],[Facility ID]],'Coord.'!$A$1:$E$818,5,FALSE) -> -77.5183 | J116: 897315 | K116: Cobb, James R | L116: 93197 | M116: 7.5 | N116: 0 | O116: 7.1 | P116: MEETS | Q116: MEETS | R116: 7.1 | S116: 0
A117: Wake Stone Corp. | B117: Triangle Quarry - Cary | C117: 2011-08-09 | D117: Sand, 2S - Chemistry Check | E117: CA157 | F117: =VLOOKUP(Table57[[#This Row],[Facility ID]],'Coord.'!$A$1:$E$818,2,FALSE) -> N | G117: =VLOOKUP(Table57[[#This Row],[Facility ID]],'Coord.'!$A$1:$E$818,3,FALSE) -> 35.838397 | H117: =VLOOKUP(Table57[[#This Row],[Facility ID]],'Coord.'!$A$1:$E$818,4,FALSE) -> W | I117: =VLOOKUP(Table57[[#This Row],[Facility ID]],'Coord.'!$A$1:$E$818,5,FALSE) -> -78.767809 | J117: 597278 | K117: Gowl, Adam L | L117: 8889 | M117: 7.6 | N117: 0 | O117: 0 | P117: MEETS | Q117: MEETS | R117: 0 | S117: 0
A118: American Materials Co. | B118: Wade Pit - Wade | C118: 2016-05-10 | D118: Sand, 2S - Chemistry Check | E118: FA211 | F118: =VLOOKUP(Table57[[#This Row],[Facility ID]],'Coord.'!$A$1:$E$818,2,FALSE) -> 0 | G118: =VLOOKUP(Table57[[#This Row],[Facility ID]],'Coord.'!$A$1:$E$818,3,FALSE) -> 35.16322 | H118: =VLOOKUP(Table57[[#This Row],[Facility ID]],'Coord.'!$A$1:$E$818,4,FALSE) -> 0 | I118: =VLOOKUP(Table57[[#This Row],[Facility ID]],'Coord.'!$A$1:$E$818,5,FALSE) -> -78.808756 | J118: 805958 | K118: Murphy, Billy J | L118: 91075 | M118: 5.8 | N118: 0 | O118: 7.3 | P118: MEETS | Q118: MEETS | R118: 7.3 | S118: 0
A119: Titan Mid-Atlantic Aggregates LLC | B119: Waverly Sand | C119: 2019-06-26 | D119: Sand, 2S - Chemistry Check | E119: FA589 | F119: =VLOOKUP(Table57[[#This Row],[Facility ID]],'Coord.'!$A$1:$E$818,2,FALSE) -> N | G119: =VLOOKUP(Table57[[#This Row],[Facility ID]],'Coord.'!$A$1:$E$818,3,FALSE) -> 36.935167 | H119: =VLOOKUP(Table57[[#This Row],[Facility ID]],'Coord.'!$A$1:$E$818,4,FALSE) -> W | I119: =VLOOKUP(Table57[[#This Row],[Facility ID]],'Coord.'!$A$1:$E$818,5,FALSE) -> -77.190322 | J119: 970946 | K119: Thomas, Grady Q | L119: 43060 | M119: 5.02 | N119: <29 | O119: <15.327 | P119: MEETS | Q119: MEETS | R119: 15.327 | S119: 29
A120: Weeks Sand Company | B120: Weeks Sand #3 | C120: 2016-03-08 | D120: Sand, 2S - Chemistry Check | E120: FA368 | F120: =VLOOKUP(Table57[[#This Row],[Facility ID]],'Coord.'!$A$1:$E$818,2,FALSE) -> N | G120: =VLOOKUP(Table57[[#This Row],[Facility ID]],'Coord.'!$A$1:$E$818,3,FALSE) -> 35.296217 | H120: =VLOOKUP(Table57[[#This Row],[Facility ID]],'Coord.'!$A$1:$E$818,4,FALSE) -> W | I120: =VLOOKUP(Table57[[#This Row],[Facility ID]],'Coord.'!$A$1:$E$818,5,FALSE) -> -79.149028 | J120: 796682 | K120: Murphy, Billy J | L120: 62344 | M120: 5.2 | N120: 0 | O120: 5.1 | P120: MEETS | Q120: MEETS | R120: 5.1 | S120: 0
A121: American Materials Co. | B121: Bailey Mine - Linden | C121: 2020-07-08 | D121: Screenings - Chemistry Check | E121: FA483 | F121: =VLOOKUP(Table57[[#This Row],[Facility ID]],'Coord.'!$A$1:$E$818,2,FALSE) -> N | G121: =VLOOKUP(Table57[[#This Row],[Facility ID]],'Coord.'!$A$1:$E$818,3,FALSE) -> 35.207302 | H121: =VLOOKUP(Table57[[#This Row],[Facility ID]],'Coord.'!$A$1:$E$818,4,FALSE) -> W | I121: =VLOOKUP(Table57[[#This Row],[Facility ID]],'Coord.'!$A$1:$E$818,5,FALSE) -> -78.764446 | J121: 1013296 | K121: Gilliam, Christopher | L121: 68034 | M121: 5.43 | N121: <30 | O121: <9.701 | P121: MEETS | Q121: MEETS | R121: 9.701 | S121: 30
A122: American Materials Co. | B122: Bailey Mine - Linden | C122: 2020-07-08 | D122: Screenings - Chemistry Check | E122: FA483 | F122: =VLOOKUP(Table57[[#This Row],[Facility ID]],'Coord.'!$A$1:$E$818,2,FALSE) -> N | G122: =VLOOKUP(Table57[[#This Row],[Facility ID]],'Coord.'!$A$1:$E$818,3,FALSE) -> 35.207302 | H122: =VLOOKUP(Table57[[#This Row],[Facility ID]],'Coord.'!$A$1:$E$818,4,FALSE) -> W | I122: =VLOOKUP(Table57[[#This Row],[Facility ID]],'Coord.'!$A$1:$E$818,5,FALSE) -> -78.764446 | J122: 1013293 | K122: Gilliam, Christopher | L122: 70035 | M122: 5.61 | N122: <30 | O122: <9.424 | P122: MEETS | Q122: MEETS | R122: 9.424 | S122: 30
A123: Martin Marietta | B123: Benson Quarry - Benson | C123: 2016-03-16 | D123: Screenings - Chemistry Check | E123: CA176 | F123: =VLOOKUP(Table57[[#This Row],[Facility ID]],'Coord.'!$A$1:$E$818,2,FALSE) -> N | G123: =VLOOKUP(Table57[[#This Row],[Facility ID]],'Coord.'!$A$1:$E$818,3,FALSE) -> 35.422585 | H123: =VLOOKUP(Table57[[#This Row],[Facility ID]],'Coord.'!$A$1:$E$818,4,FALSE) -> W | I123: =VLOOKUP(Table57[[#This Row],[Facility ID]],'Coord.'!$A$1:$E$818,5,FALSE) -> -78.501492 | J123: 798245 | K123: Raines, James R | L123: 10971 | M123: 8 | N123: 0 | O123: 8.1 | P123: MEETS | Q123: MEETS | R123: 8.1 | S123: 0
A124: Vulcan Materials Co. | B124: Blacksburg Quarry - Blacksburg, SC | C124: 2019-07-30 | D124: Screenings - Chemistry Check | E124: FA550 | F124: =VLOOKUP(Table57[[#This Row],[Facility ID]],'Coord.'!$A$1:$E$818,2,FALSE) -> N | G124: =VLOOKUP(Table57[[#This Row],[Facility ID]],'Coord.'!$A$1:$E$818,3,FALSE) -> 35.151106 | H124: =VLOOKUP(Table57[[#This Row],[Facility ID]],'Coord.'!$A$1:$E$818,4,FALSE) -> W | I124: =VLOOKUP(Table57[[#This Row],[Facility ID]],'Coord.'!$A$1:$E$818,5,FALSE) -> -81.435476 | J124: 975114 | K124: Gosnell, Jimmy L | L124: 8724 | M124: 9.35 | N124: <29 | O124: <75.653 | P124: DOES NOT MEET | Q124: MEETS | R124: 75.653 | S124: 29
A125: Martin Marietta | B125: Burlington Quarry - Burlington | C125: 2019-05-31 | D125: Screenings - Chemistry Check | E125: FA497 | F125: =VLOOKUP(Table57[[#This Row],[Facility ID]],'Coord.'!$A$1:$E$818,2,FALSE) -> N | G125: =VLOOKUP(Table57[[#This Row],[Facility ID]],'Coord.'!$A$1:$E$818,3,FALSE) -> 36.054313 | H125: =VLOOKUP(Table57[[#This Row],[Facility ID]],'Coord.'!$A$1:$E$818,4,FALSE) -> W | I125: =VLOOKUP(Table57[[#This Row],[Facility ID]],'Coord.'!$A$1:$E$818,5,FALSE) -> -79.509247 | J125: 966240 | K125: Waller, John M | L125: 7640 | M125: 8.83 | N125: <30 | O125: <86.387 | P125: MEETS | Q125: MEETS | R125: 86.387 | S125: 30
A126: Martin Marietta | B126: Central Rock Quarry - Greensboro | C126: 2019-06-04 | D126: Screenings - Chemistry Check | E126: FA496 | F126: =VLOOKUP(Table57[[#This Row],[Facility ID]],'Coord.'!$A$1:$E$818,2,FALSE) -> N | G126: =VLOOKUP(Table57[[#This Row],[Facility ID]],'Coord.'!$A$1:$E$818,3,FALSE) -> 36.008398 | H126: =VLOOKUP(Table57[[#This Row],[Facility ID]],'Coord.'!$A$1:$E$818,4,FALSE) -> W | I126: =VLOOKUP(Table57[[#This Row],[Facility ID]],'Coord.'!$A$1:$E$818,5,FALSE) -> -79.748478 | J126: 966794 | K126: Waller, John M | L126: 6334 | M126: 8.65 | N126: <30 | O126: <104.2 | P126: MEETS | Q126: MEETS | R126: 104.2 | S126: 30
A127: Martin Marietta | B127: Charlotte Quarry - Charlotte | C127: 2017-06-19 | D127: Screenings - Chemistry Check | E127: FA562 | F127: =VLOOKUP(Table57[[#This Row],[Facility ID]],'Coord.'!$A$1:$E$818,2,FALSE) -> N | G127: =VLOOKUP(Table57[[#This Row],[Facility ID]],'Coord.'!$A$1:$E$818,3,FALSE) -> 35.295997 | H127: =VLOOKUP(Table57[[#This Row],[Facility ID]],'Coord.'!$A$1:$E$818,4,FALSE) -> W | I127: =VLOOKUP(Table57[[#This Row],[Facility ID]],'Coord.'!$A$1:$E$818,5,FALSE) -> -80.860734 | J127: 864046 | K127: Adair, Mildred (Millie) L | L127: 5144 | M127: 8.4 | N127: 4.7 | O127: 120.3 | P127: MEETS | Q127: MEETS | R127: 120.3 | S127: 4.7
A128: Hanson Aggregates Southeast, Inc. | B128: Crabtree Quarry - Raleigh | C128: 2019-03-13 | D128: Screenings - Chemistry Check | E128: FA568 | F128: =VLOOKUP(Table57[[#This Row],[Facility ID]],'Coord.'!$A$1:$E$818,2,FALSE) -> N | G128: =VLOOKUP(Table57[[#This Row],[Facility ID]],'Coord.'!$A$1:$E$818,3,FALSE) -> 35.849207 | H128: =VLOOKUP(Table57[[#This Row],[Facility ID]],'Coord.'!$A$1:$E$818,4,FALSE) -> W | I128: =VLOOKUP(Table57[[#This Row],[Facility ID]],'Coord.'!$A$1:$E$818,5,FALSE) -> -78.711025 | J128: 954291 | K128: Skinner, III, John L | L128: 6379 | M128: 8 | N128: 0 | O128: <103.464 | P128: MEETS | Q128: MEETS | R128: 103.464 | S128: 0
A129: Harrison Construction Co., Inc. | B129: Dillsboro Quarry - Dillsboro | C129: 2016-10-04 | D129: Screenings - Chemistry Check | E129: FA573 | F129: =VLOOKUP(Table57[[#This Row],[Facility ID]],'Coord.'!$A$1:$E$818,2,FALSE) -> N | G129: =VLOOKUP(Table57[[#This Row],[Facility ID]],'Coord.'!$A$1:$E$818,3,FALSE) -> 35.365221 | H129: =VLOOKUP(Table57[[#This Row],[Facility ID]],'Coord.'!$A$1:$E$818,4,FALSE) -> W | I129: =VLOOKUP(Table57[[#This Row],[Facility ID]],'Coord.'!$A$1:$E$818,5,FALSE) -> -83.261218 | J129: 828925 | K129: Kindley, Wallace Quint | L129: 1382 | M129: 7.3 | N129: 0 | O129: 33.5 | P129: DOES NOT MEET | Q129: DOES NOT MEET | R129: 33.5 | S129: 0
A130: Vulcan Materials Co. | B130: Elizabeth City Yard (#216) - Elizabeth City | C130: 2020-09-21 | D130: Screenings - Chemistry Check | E130: FA539 | F130: =VLOOKUP(Table57[[#This Row],[Facility ID]],'Coord.'!$A$1:$E$818,2,FALSE) -> N | G130: =VLOOKUP(Table57[[#This Row],[Facility ID]],'Coord.'!$A$1:$E$818,3,FALSE) -> 36.313476 | H130: =VLOOKUP(Table57[[#This Row],[Facility ID]],'Coord.'!$A$1:$E$818,4,FALSE) -> W | I130: =VLOOKUP(Table57[[#This Row],[Facility ID]],'Coord.'!$A$1:$E$818,5,FALSE) -> -76.209417 | J130: 1021107 | K130: Bonds, Maria M | L130: 14674 | M130: 9.24 | N130: <30 | O130: <75.334 | P130: =IF(ISBLANK(M130),"N/A",IF(AND(4.5<=$M130,$M130<=9),IF($L130>=3000,IF($S130<=100,IF($R130<=200,"MEETS","DOES NOT MEET"),"DOES NOT MEET"),"DOES NOT MEET"),"DOES NOT MEET")) -> DOES NOT MEET | Q130: =IF(ISBLANK(M130), "N/A", IF(AND(5 <= $M130, $M130 <= 10),IF($L130>=3000,IF($S130<=100,IF($R130<=200,"MEETS","DOES NOT MEET"),"DOES NOT MEET"),"DOES NOT MEET"),"DOES NOT MEET")) -> MEETS
A131: Vulcan Materials Co. | B131: Enka Quarry - Enka | C131: 2018-10-05 | D131: Screenings - Chemistry Check | E131: FA458 | F131: =VLOOKUP(Table57[[#This Row],[Facility ID]],'Coord.'!$A$1:$E$818,2,FALSE) -> N | G131: =VLOOKUP(Table57[[#This Row],[Facility ID]],'Coord.'!$A$1:$E$818,3,FALSE) -> 35.548362 | H131: =VLOOKUP(Table57[[#This Row],[Facility ID]],'Coord.'!$A$1:$E$818,4,FALSE) -> W | I131: =VLOOKUP(Table57[[#This Row],[Facility ID]],'Coord.'!$A$1:$E$818,5,FALSE) -> -82.65151 | J131: 933928 | K131: Rhymer, Robert C | L131: 493 | M131: 4 | N131: 0 | O131: >1200 | P131: DOES NOT MEET | Q131: DOES NOT MEET | R131: =IF(LEFT(O131, 1)="<", VALUE(RIGHT(O131,LEN(O131)-1)), O131) -> >1200 | S131: =IF(LEFT(N131, 1)="<", VALUE(RIGHT(N131,LEN(N131)-1)), N131) -> 0
A132: Martin Marietta | B132: Fountain Quarry - Fountain | C132: 2020-09-25 | D132: Screenings - Chemistry Check | E132: FA572 | F132: =VLOOKUP(Table57[[#This Row],[Facility ID]],'Coord.'!$A$1:$E$818,2,FALSE) -> N | G132: =VLOOKUP(Table57[[#This Row],[Facility ID]],'Coord.'!$A$1:$E$818,3,FALSE) -> 35.671943 | H132: =VLOOKUP(Table57[[#This Row],[Facility ID]],'Coord.'!$A$1:$E$818,4,FALSE) -> W | I132: =VLOOKUP(Table57[[#This Row],[Facility ID]],'Coord.'!$A$1:$E$818,5,FALSE) -> -77.626082 | J132: 1021242 | K132: Cobb, James R | L132: 11339 | M132: 9.2 | N132: <30 | O132: <98.758 | P132: DOES NOT MEET | Q132: MEETS | R132: 98.758 | S132: 30
A133: Martin Marietta | B133: Garner Quarry - Garner | C133: 2019-01-29 | D133: Screenings - Chemistry Check | E133: FA382 | F133: =VLOOKUP(Table57[[#This Row],[Facility ID]],'Coord.'!$A$1:$E$818,2,FALSE) -> N | G133: =VLOOKUP(Table57[[#This Row],[Facility ID]],'Coord.'!$A$1:$E$818,3,FALSE) -> 35.702161 | H133: =VLOOKUP(Table57[[#This Row],[Facility ID]],'Coord.'!$A$1:$E$818,4,FALSE) -> W | I133: =VLOOKUP(Table57[[#This Row],[Facility ID]],'Coord.'!$A$1:$E$818,5,FALSE) -> -78.577137 | J133: 947430 | K133: Skinner, III, John L | L133: 15190 | M133: 9.1 | N133: 0 | O133: <43.45 | P133: DOES NOT MEET | Q133: MEETS | R133: 43.45 | S133: 0
A134: SC Rock | B134: Goretown Mine -- Longs, SC | C134: 2016-02-03 | D134: Screenings - Chemistry Check | E134: FA344 | F134: =VLOOKUP(Table57[[#This Row],[Facility ID]],'Coord.'!$A$1:$E$818,2,FALSE) -> N | G134: =VLOOKUP(Table57[[#This Row],[Facility ID]],'Coord.'!$A$1:$E$818,3,FALSE) -> 34.014183 | H134: =VLOOKUP(Table57[[#This Row],[Facility ID]],'Coord.'!$A$1:$E$818,4,FALSE) -> W | I134: =VLOOKUP(Table57[[#This Row],[Facility ID]],'Coord.'!$A$1:$E$818,5,FALSE) -> -78.783806 | J134: 792514 | K134: Walker, Steven E | L134: 6510 | M134: 8.2 | N134: 0 | O134: 37.9 | P134: MEETS | Q134: MEETS | R134: 37.9 | S134: 0
A135: Hedrick Industries | B135: Grove Stone Quarry - Black Mountain | C135: 2016-04-08 | D135: Screenings - Chemistry Check | E135: FA400 | F135: =VLOOKUP(Table57[[#This Row],[Facility ID]],'Coord.'!$A$1:$E$818,2,FALSE) -> N | G135: =VLOOKUP(Table57[[#This Row],[Facility ID]],'Coord.'!$A$1:$E$818,3,FALSE) -> 35.6102 | H135: =VLOOKUP(Table57[[#This Row],[Facility ID]],'Coord.'!$A$1:$E$818,4,FALSE) -> W | I135: =VLOOKUP(Table57[[#This Row],[Facility ID]],'Coord.'!$A$1:$E$818,5,FALSE) -> -82.364769 | J135: 801536 | K135: Rhymer, Robert C | L135: 8157 | M135: 7.5 | N135: 0 | O135: 38.8 | P135: MEETS | Q135: MEETS | R135: 38.8 | S135: 0
A136: Vulcan Materials Co. | B136: Havre De Grace Quarry - Havre De Grace, MD | C136: 2019-08-26 | D136: Screenings - Chemistry Check | E136: FA584 | F136: =VLOOKUP(Table57[[#This Row],[Facility ID]],'Coord.'!$A$1:$E$818,2,FALSE) -> N | G136: =VLOOKUP(Table57[[#This Row],[Facility ID]],'Coord.'!$A$1:$E$818,3,FALSE) -> 39.570875 | H136: =VLOOKUP(Table57[[#This Row],[Facility ID]],'Coord.'!$A$1:$E$818,4,FALSE) -> W | I136: =VLOOKUP(Table57[[#This Row],[Facility ID]],'Coord.'!$A$1:$E$818,5,FALSE) -> -76.10577 | J136: 980141 | K136: Bonds, Maria M | L136: 3264 | M136: 8.17 | N136: <29 | O136: <202.206 | P136: DOES NOT MEET | Q136: DOES NOT MEET | R136: 202.206 | S136: 29
A137: Harrison Construction Co., Inc. | B137: Hayesville Quarry - Hayesville | C137: 2016-07-15 | D137: Screenings - Chemistry Check | E137: FA542 | F137: =VLOOKUP(Table57[[#This Row],[Facility ID]],'Coord.'!$A$1:$E$818,2,FALSE) -> N | G137: =VLOOKUP(Table57[[#This Row],[Facility ID]],'Coord.'!$A$1:$E$818,3,FALSE) -> 34.99182 | H137: =VLOOKUP(Table57[[#This Row],[Facility ID]],'Coord.'!$A$1:$E$818,4,FALSE) -> W | I137: =VLOOKUP(Table57[[#This Row],[Facility ID]],'Coord.'!$A$1:$E$818,5,FALSE) -> -83.848622 | J137: 816297 | K137: Ledford, Brandon S | L137: 2440 | M137: 7.8 | N137: 2.1 | O137: 144.7 | P137: DOES NOT MEET | Q137: DOES NOT MEET | R137: 144.7 | S137: 2.1
A138: Rogers Group, Inc. | B138: Henrietta Quarry - Mooresboro | C138: 2016-02-19 | D138: Screenings - Chemistry Check | E138: CA369 | F138: =VLOOKUP(Table57[[#This Row],[Facility ID]],'Coord.'!$A$1:$E$818,2,FALSE) -> N | G138: =VLOOKUP(Table57[[#This Row],[Facility ID]],'Coord.'!$A$1:$E$818,3,FALSE) -> 35.239413 | H138: =VLOOKUP(Table57[[#This Row],[Facility ID]],'Coord.'!$A$1:$E$818,4,FALSE) -> W | I138: =VLOOKUP(Table57[[#This Row],[Facility ID]],'Coord.'!$A$1:$E$818,5,FALSE) -> -81.814165 | J138: 794436 | K138: Rhymer, Robert C | L138: 7663 | M138: 8 | N138: 5.4 | O138: 24.7 | P138: MEETS | Q138: MEETS | R138: 24.7 | S138: 5.4
A139: Martin Marietta | B139: Hickory Quarry - Hickory | C139: 2019-07-08 | D139: Screenings - Chemistry Check | E139: FA541 | F139: =VLOOKUP(Table57[[#This Row],[Facility ID]],'Coord.'!$A$1:$E$818,2,FALSE) -> N | G139: =VLOOKUP(Table57[[#This Row],[Facility ID]],'Coord.'!$A$1:$E$818,3,FALSE) -> 35.717029 | H139: =VLOOKUP(Table57[[#This Row],[Facility ID]],'Coord.'!$A$1:$E$818,4,FALSE) -> W | I139: =VLOOKUP(Table57[[#This Row],[Facility ID]],'Coord.'!$A$1:$E$818,5,FALSE) -> -81.301834 | J139: 971767 | K139: Gosnell, Jimmy L | L139: 18600 | M139: 9.05 | N139: <29 | O139: <35.484 | P139: DOES NOT MEET | Q139: MEETS | R139: 35.484 | S139: 29
A140: Hanson Aggregates Southeast, Inc. | B140: Holly Springs Quarry | C140: 2019-03-29 | D140: Screenings - Chemistry Check | E140: FA513 | F140: =VLOOKUP(Table57[[#This Row],[Facility ID]],'Coord.'!$A$1:$E$818,2,FALSE) -> N | G140: =VLOOKUP(Table57[[#This Row],[Facility ID]],'Coord.'!$A$1:$E$818,3,FALSE) -> 35.603318 | H140: =VLOOKUP(Table57[[#This Row],[Facility ID]],'Coord.'!$A$1:$E$818,4,FALSE) -> W | I140: =VLOOKUP(Table57[[#This Row],[Facility ID]],'Coord.'!$A$1:$E$818,5,FALSE) -> -78.883706 | J140: 956970 | K140: Skinner, III, John L | L140: 8079 | M140: 8.8 | N140: <30 | O140: <81.693 | P140: MEETS | Q140: MEETS | R140: 81.693 | S140: 30
A141: Vulcan Materials Co. | B141: Jack Quarry - Petersburg, VA | C141: 2019-08-26 | D141: Screenings - Chemistry Check | E141: FA549 | F141: =VLOOKUP(Table57[[#This Row],[Facility ID]],'Coord.'!$A$1:$E$818,2,FALSE) -> N | G141: =VLOOKUP(Table57[[#This Row],[Facility ID]],'Coord.'!$A$1:$E$818,3,FALSE) -> 37.197593 | H141: =VLOOKUP(Table57[[#This Row],[Facility ID]],'Coord.'!$A$1:$E$818,4,FALSE) -> W | I141: =VLOOKUP(Table57[[#This Row],[Facility ID]],'Coord.'!$A$1:$E$818,5,FALSE) -> -77.50463 | J141: 980162 | K141: Bonds, Maria M | L141: 6465 | M141: 9.13 | N141: <29 | O141: <102.088 | P141: DOES NOT MEET | Q141: MEETS | R141: 102.088 | S141: 29
A142: Hanson Aggregates Southeast, Inc. | B142: Jefferson Quarry - Jefferson, SC | C142: 2019-09-13 | D142: Screenings - Chemistry Check | E142: FA587 | F142: =VLOOKUP(Table57[[#This Row],[Facility ID]],'Coord.'!$A$1:$E$818,2,FALSE) -> N | G142: =VLOOKUP(Table57[[#This Row],[Facility ID]],'Coord.'!$A$1:$E$818,3,FALSE) -> 34.694555 | H142: =VLOOKUP(Table57[[#This Row],[Facility ID]],'Coord.'!$A$1:$E$818,4,FALSE) -> W | I142: =VLOOKUP(Table57[[#This Row],[Facility ID]],'Coord.'!$A$1:$E$818,5,FALSE) -> -80.444869 | J142: 982920 | K142: Jordan, Daniel H | L142: 16120 | M142: 8.47 | N142: <32 | O142: <40.943 | P142: MEETS | Q142: MEETS | R142: 40.943 | S142: 32
A143: Martin Marietta | B143: Kings Mountain Quarry - Kings Mountain | C143: 2019-07-01 | D143: Screenings - Chemistry Check | E143: FA414 | F143: =VLOOKUP(Table57[[#This Row],[Facility ID]],'Coord.'!$A$1:$E$818,2,FALSE) -> N | G143: =VLOOKUP(Table57[[#This Row],[Facility ID]],'Coord.'!$A$1:$E$818,3,FALSE) -> 35.225721 | H143: =VLOOKUP(Table57[[#This Row],[Facility ID]],'Coord.'!$A$1:$E$818,4,FALSE) -> W | I143: =VLOOKUP(Table57[[#This Row],[Facility ID]],'Coord.'!$A$1:$E$818,5,FALSE) -> -81.339362 | J143: 970681 | K143: Gosnell, Jimmy L | L143: 1946 | M143: 7.96 | N143: <29 | O143: <339.157 | P143: DOES NOT MEET | Q143: DOES NOT MEET | R143: 339.157 | S143: 29
A144: Carolina Sunrock LLC | B144: Kittrell Quarry - Kittrell | C144: 2016-02-04 | D144: Screenings - Chemistry Check | E144: CA304 | F144: =VLOOKUP(Table57[[#This Row],[Facility ID]],'Coord.'!$A$1:$E$818,2,FALSE) -> N | G144: =VLOOKUP(Table57[[#This Row],[Facility ID]],'Coord.'!$A$1:$E$818,3,FALSE) -> 36.169713 | H144: =VLOOKUP(Table57[[#This Row],[Facility ID]],'Coord.'!$A$1:$E$818,4,FALSE) -> W | I144: =VLOOKUP(Table57[[#This Row],[Facility ID]],'Coord.'!$A$1:$E$818,5,FALSE) -> -78.444864 | J144: 792563 | K144: Skinner, III, John L | L144: 9872 | M144: 7.9 | N144: 5 | O144: 67.7 | P144: MEETS | Q144: MEETS | R144: 67.7 | S144: 5
A145: Vulcan Materials Co. | B145: Kitty Hawk Sales Yard | C145: 2020-09-21 | D145: Screenings - Chemistry Check | E145: FA338 | F145: =VLOOKUP(Table57[[#This Row],[Facility ID]],'Coord.'!$A$1:$E$818,2,FALSE) -> N | G145: =VLOOKUP(Table57[[#This Row],[Facility ID]],'Coord.'!$A$1:$E$818,3,FALSE) -> 36.054643 | H145: =VLOOKUP(Table57[[#This Row],[Facility ID]],'Coord.'!$A$1:$E$818,4,FALSE) -> W | I145: =VLOOKUP(Table57[[#This Row],[Facility ID]],'Coord.'!$A$1:$E$818,5,FALSE) -> -75.720912 | J145: 1021097 | K145: Bonds, Maria M | L145: 17676 | M145: 8.74 | N145: <30 | O145: <59.621 | P145: MEETS | Q145: MEETS
A146: Martin Marietta | B146: Lemon Springs - Sanford | C146: 2019-08-16 | D146: Screenings - Chemistry Check | E146: FA518 | F146: =VLOOKUP(Table57[[#This Row],[Facility ID]],'Coord.'!$A$1:$E$818,2,FALSE) -> N | G146: =VLOOKUP(Table57[[#This Row],[Facility ID]],'Coord.'!$A$1:$E$818,3,FALSE) -> 35.409128 | H146: =VLOOKUP(Table57[[#This Row],[Facility ID]],'Coord.'!$A$1:$E$818,4,FALSE) -> W | I146: =VLOOKUP(Table57[[#This Row],[Facility ID]],'Coord.'!$A$1:$E$818,5,FALSE) -> -79.211862 | J146: 978240 | K146: Jackson, Brandon M | L146: 9415 | M146: 9.15 | N146: <29 | O146: <70.10 | P146: DOES NOT MEET | Q146: MEETS | R146: =IF(LEFT(O146, 1)="<", VALUE(RIGHT(O146,LEN(O146)-1)), O146) -> 70.1 | S146: =IF(LEFT(N146, 1)="<", VALUE(RIGHT(N146,LEN(N146)-1)), N146) -> 29
A147: McCrary Stone | B147: Low Gap Quarry - Burnsville | C147: 2019-03-05 | D147: Screenings - Chemistry Check | E147: FA540 | F147: =VLOOKUP(Table57[[#This Row],[Facility ID]],'Coord.'!$A$1:$E$818,2,FALSE) -> N | G147: =VLOOKUP(Table57[[#This Row],[Facility ID]],'Coord.'!$A$1:$E$818,3,FALSE) -> 35.867697 | H147: =VLOOKUP(Table57[[#This Row],[Facility ID]],'Coord.'!$A$1:$E$818,4,FALSE) -> W | I147: =VLOOKUP(Table57[[#This Row],[Facility ID]],'Coord.'!$A$1:$E$818,5,FALSE) -> -82.298516 | J147: 952987 | K147: Kindley, Wallace Quint | L147: 1371 | M147: 3.1 | N147: <30 | O147: <481.4 | P147: DOES NOT MEET | Q147: DOES NOT MEET | R147: 481.4 | S147: 30
A148: Martin Marietta | B148: Mallard Creek Quarry - Charlotte | C148: 2017-11-07 | D148: Screenings - Chemistry Check | E148: FA423 | F148: =VLOOKUP(Table57[[#This Row],[Facility ID]],'Coord.'!$A$1:$E$818,2,FALSE) -> N | G148: =VLOOKUP(Table57[[#This Row],[Facility ID]],'Coord.'!$A$1:$E$818,3,FALSE) -> 35.318082 | H148: =VLOOKUP(Table57[[#This Row],[Facility ID]],'Coord.'!$A$1:$E$818,4,FALSE) -> W | I148: =VLOOKUP(Table57[[#This Row],[Facility ID]],'Coord.'!$A$1:$E$818,5,FALSE) -> -80.728078 | J148: 885615 | K148: Pegues, Jr., Henderson | L148: 11131 | M148: 9 | N148: 3.6 | O148: 55.7 | P148: MEETS | Q148: MEETS | R148: 55.7 | S148: 3.6
A149: McCrary Stone | B149: Marshall Quarry - Marshall | C149: 2019-08-12 | D149: Screenings - Chemistry Check | E149: FA557 | F149: =VLOOKUP(Table57[[#This Row],[Facility ID]],'Coord.'!$A$1:$E$818,2,FALSE) -> N | G149: =VLOOKUP(Table57[[#This Row],[Facility ID]],'Coord.'!$A$1:$E$818,3,FALSE) -> 35.793067 | H149: =VLOOKUP(Table57[[#This Row],[Facility ID]],'Coord.'!$A$1:$E$818,4,FALSE) -> W | I149: =VLOOKUP(Table57[[#This Row],[Facility ID]],'Coord.'!$A$1:$E$818,5,FALSE) -> -82.654432 | J149: 978217 | K149: Kindley, Wallace Quint | L149: 6053 | M149: 9.07 | N149: <29 | O149: <109.0 | P149: DOES NOT MEET | Q149: MEETS | R149: 109 | S149: 29
A150: Covia Holdings Corporation | B150: Marston Facility - Marston | C150: 2019-08-16 | D150: Screenings - Chemistry Check | E150: FA617 | F150: =VLOOKUP(Table57[[#This Row],[Facility ID]],'Coord.'!$A$1:$E$818,2,FALSE) -> N | G150: =VLOOKUP(Table57[[#This Row],[Facility ID]],'Coord.'!$A$1:$E$818,3,FALSE) -> 34.955119 | H150: =VLOOKUP(Table57[[#This Row],[Facility ID]],'Coord.'!$A$1:$E$818,4,FALSE) -> W | I150: =VLOOKUP(Table57[[#This Row],[Facility ID]],'Coord.'!$A$1:$E$818,5,FALSE) -> -79.604387 | J150: 978801 | K150: Jordan, Daniel H | L150: 91790 | M150: 6.91 | N150: <29 | O150: <7.1903 | P150: MEETS | Q150: MEETS | R150: 7.1903 | S150: 29
A151: Thompson Contractors | B151: Miller Creek Quarry - Rutherfordton | C151: 2019-09-27 | D151: Screenings - Chemistry Check | E151: FA585 | F151: =VLOOKUP(Table57[[#This Row],[Facility ID]],'Coord.'!$A$1:$E$818,2,FALSE) -> N | G151: =VLOOKUP(Table57[[#This Row],[Facility ID]],'Coord.'!$A$1:$E$818,3,FALSE) -> 35.360682 | H151: =VLOOKUP(Table57[[#This Row],[Facility ID]],'Coord.'!$A$1:$E$818,4,FALSE) -> W | I151: =VLOOKUP(Table57[[#This Row],[Facility ID]],'Coord.'!$A$1:$E$818,5,FALSE) -> -82.005069 | J151: 985275 | K151: Norton, Stephen S | L151: 9480 | M151: 8.84 | N151: <30 | O151: <69.620 | P151: MEETS | Q151: MEETS | R151: 69.62 | S151: 30
A152: Hanson Aggregates Southeast, Inc. | B152: Morehead City Sales Yard | C152: 2017-09-14 | D152: Screenings - Chemistry Check | E152: FA570 | F152: =VLOOKUP(Table57[[#This Row],[Facility ID]],'Coord.'!$A$1:$E$818,2,FALSE) -> N | G152: =VLOOKUP(Table57[[#This Row],[Facility ID]],'Coord.'!$A$1:$E$818,3,FALSE) -> 34.741937 | H152: =VLOOKUP(Table57[[#This Row],[Facility ID]],'Coord.'!$A$1:$E$818,4,FALSE) -> W | I152: =VLOOKUP(Table57[[#This Row],[Facility ID]],'Coord.'!$A$1:$E$818,5,FALSE) -> -76.802224 | J152: 876864 | K152: Bartlett, Jr., Charles T | L152: 5669 | M152: 8.8 | N152: 0 | O152: 86.2 | P152: MEETS | Q152: MEETS | R152: 86.2 | S152: 0
A153: Vulcan Materials Co. | B153: Morganton Quarry - Morganton | C153: 2016-12-06 | D153: Screenings - Chemistry Check | E153: FA85 | F153: =VLOOKUP(Table57[[#This Row],[Facility ID]],'Coord.'!$A$1:$E$818,2,FALSE) -> N | G153: =VLOOKUP(Table57[[#This Row],[Facility ID]],'Coord.'!$A$1:$E$818,3,FALSE) -> 35.768222 | H153: =VLOOKUP(Table57[[#This Row],[Facility ID]],'Coord.'!$A$1:$E$818,4,FALSE) -> W | I153: =VLOOKUP(Table57[[#This Row],[Facility ID]],'Coord.'!$A$1:$E$818,5,FALSE) -> -81.661835 | J153: 838536 | K153: Ausley, Jeff A | L153: 7402 | M153: 7.7 | N153: 0 | O153: 26.3 | P153: MEETS | Q153: MEETS | R153: 26.3 | S153: 0
A154: Hedrick Industries | B154: North Buncombe Quarry - Asheville | C154: 2019-04-29 | D154: Screenings - Chemistry Check | E154: FA126 | F154: =VLOOKUP(Table57[[#This Row],[Facility ID]],'Coord.'!$A$1:$E$818,2,FALSE) -> N | G154: =VLOOKUP(Table57[[#This Row],[Facility ID]],'Coord.'!$A$1:$E$818,3,FALSE) -> 35.681039 | H154: =VLOOKUP(Table57[[#This Row],[Facility ID]],'Coord.'!$A$1:$E$818,4,FALSE) -> W | I154: =VLOOKUP(Table57[[#This Row],[Facility ID]],'Coord.'!$A$1:$E$818,5,FALSE) -> -82.600758 | J154: 961055 | K154: Kindley, Wallace Quint | L154: 767 | M154: 3.6 | N154: <30 | O154: >800<1200 | P154: DOES NOT MEET | Q154: DOES NOT MEET | R154: >800<1200 | S154: 30
A155: Vulcan Materials Co. | B155: Penrose Quarry - Pisgah Forest | C155: 2017-03-07 | D155: Screenings - Chemistry Check | E155: FA229 | F155: =VLOOKUP(Table57[[#This Row],[Facility ID]],'Coord.'!$A$1:$E$818,2,FALSE) -> N | G155: =VLOOKUP(Table57[[#This Row],[Facility ID]],'Coord.'!$A$1:$E$818,3,FALSE) -> 35.275878 | H155: =VLOOKUP(Table57[[#This Row],[Facility ID]],'Coord.'!$A$1:$E$818,4,FALSE) -> W | I155: =VLOOKUP(Table57[[#This Row],[Facility ID]],'Coord.'!$A$1:$E$818,5,FALSE) -> -82.643301 | J155: 848244 | K155: Wood, Dean Michael M | L155: 16044 | M155: 9.2 | N155: 0 | O155: 37.4 | P155: DOES NOT MEET | Q155: MEETS | R155: 37.4 | S155: 0
A156: Vulcan Materials Co. | B156: Pineville Quarry - Charlotte | C156: 2016-10-06 | D156: Screenings - Chemistry Check | E156: FA266 | F156: =VLOOKUP(Table57[[#This Row],[Facility ID]],'Coord.'!$A$1:$E$818,2,FALSE) -> N | G156: =VLOOKUP(Table57[[#This Row],[Facility ID]],'Coord.'!$A$1:$E$818,3,FALSE) -> 35.115859 | H156: =VLOOKUP(Table57[[#This Row],[Facility ID]],'Coord.'!$A$1:$E$818,4,FALSE) -> W | I156: =VLOOKUP(Table57[[#This Row],[Facility ID]],'Coord.'!$A$1:$E$818,5,FALSE) -> -80.896596 | J156: 832586 | K156: Adair, Mildred (Millie) L | L156: 1872 | M156: 7.6 | N156: 0 | O156: 93.3 | P156: DOES NOT MEET | Q156: DOES NOT MEET | R156: 93.3 | S156: 0
A157: Luck Stone Corporation | B157: Pittsboro Quarry - Moncure | C157: 2018-11-30 | D157: Screenings - Chemistry Check | E157: FA561 | F157: =VLOOKUP(Table57[[#This Row],[Facility ID]],'Coord.'!$A$1:$E$818,2,FALSE) -> N | G157: =VLOOKUP(Table57[[#This Row],[Facility ID]],'Coord.'!$A$1:$E$818,3,FALSE) -> 35.66056 | H157: =VLOOKUP(Table57[[#This Row],[Facility ID]],'Coord.'!$A$1:$E$818,4,FALSE) -> W | I157: =VLOOKUP(Table57[[#This Row],[Facility ID]],'Coord.'!$A$1:$E$818,5,FALSE) -> -79.176798 | J157: 941285 | K157: Jackson, Brandon M | L157: 13310 | M157: 9.4 | N157: 0 | O157: <49.59 | P157: DOES NOT MEET | Q157: MEETS | R157: 49.59 | S157: 0
A158: Hanson Aggregates Southeast, Inc. | B158: Princeton Quarry | C158: 2016-03-24 | D158: Screenings - Chemistry Check | E158: CA64 | F158: =VLOOKUP(Table57[[#This Row],[Facility ID]],'Coord.'!$A$1:$E$818,2,FALSE) -> N | G158: =VLOOKUP(Table57[[#This Row],[Facility ID]],'Coord.'!$A$1:$E$818,3,FALSE) -> 35.472107 | H158: =VLOOKUP(Table57[[#This Row],[Facility ID]],'Coord.'!$A$1:$E$818,4,FALSE) -> W | I158: =VLOOKUP(Table57[[#This Row],[Facility ID]],'Coord.'!$A$1:$E$818,5,FALSE) -> -78.137972 | J158: 799118 | K158: Raines, James R | L158: 6472 | M158: 8.4 | N158: 10 | O158: 14.1 | P158: MEETS | Q158: MEETS | R158: 14.1 | S158: 10
A159: Hanson Aggregates Southeast, Inc. | B159: Raleigh Quarry - Wake Forest | C159: 2016-02-12 | D159: Screenings - Chemistry Check | E159: CA67 | F159: =VLOOKUP(Table57[[#This Row],[Facility ID]],'Coord.'!$A$1:$E$818,2,FALSE) -> N | G159: =VLOOKUP(Table57[[#This Row],[Facility ID]],'Coord.'!$A$1:$E$818,3,FALSE) -> 35.931107 | H159: =VLOOKUP(Table57[[#This Row],[Facility ID]],'Coord.'!$A$1:$E$818,4,FALSE) -> W | I159: =VLOOKUP(Table57[[#This Row],[Facility ID]],'Coord.'!$A$1:$E$818,5,FALSE) -> -78.543345 | J159: 793722 | K159: Skinner, III, John L | L159: 17053 | M159: 7.4 | N159: 0 | O159: 0 | P159: MEETS | Q159: MEETS | R159: 0 | S159: 0
A160: Martin Marietta | B160: Raleigh-Durham Quarry - Raleigh | C160: 2019-01-18 | D160: Screenings - Chemistry Check | E160: FA578 | F160: =VLOOKUP(Table57[[#This Row],[Facility ID]],'Coord.'!$A$1:$E$818,2,FALSE) -> N | G160: =VLOOKUP(Table57[[#This Row],[Facility ID]],'Coord.'!$A$1:$E$818,3,FALSE) -> 35.894327 | H160: =VLOOKUP(Table57[[#This Row],[Facility ID]],'Coord.'!$A$1:$E$818,4,FALSE) -> W | I160: =VLOOKUP(Table57[[#This Row],[Facility ID]],'Coord.'!$A$1:$E$818,5,FALSE) -> -78.749028 | J160: 946462 | K160: Skinner, III, John L | L160: 12420 | M160: 9.4 | N160: 0 | O160: <53.140 | P160: DOES NOT MEET | Q160: MEETS | R160: 53.14 | S160: 0
A161: Martin Marietta | B161: Reidsville Quarry - Reidsville | C161: 2016-02-09 | D161: Screenings - Chemistry Check | E161: CA52 | F161: =VLOOKUP(Table57[[#This Row],[Facility ID]],'Coord.'!$A$1:$E$818,2,FALSE) -> 0 | G161: =VLOOKUP(Table57[[#This Row],[Facility ID]],'Coord.'!$A$1:$E$818,3,FALSE) -> 36.371012 | H161: =VLOOKUP(Table57[[#This Row],[Facility ID]],'Coord.'!$A$1:$E$818,4,FALSE) -> 0 | I161: =VLOOKUP(Table57[[#This Row],[Facility ID]],'Coord.'!$A$1:$E$818,5,FALSE) -> -79.726775 | J161: 793251 | K161: Loshinskiy, Roman | L161: 16518 | M161: 9 | N161: 5 | O161: 18.9 | P161: MEETS | Q161: MEETS | R161: 18.9 | S161: 5
A162: Vulcan Materials Co. | B162: Rockingham Quarry - Rockingham | C162: 2019-08-13 | D162: Screenings - Chemistry Check | E162: FA374 | F162: =VLOOKUP(Table57[[#This Row],[Facility ID]],'Coord.'!$A$1:$E$818,2,FALSE) -> N | G162: =VLOOKUP(Table57[[#This Row],[Facility ID]],'Coord.'!$A$1:$E$818,3,FALSE) -> 34.938709 | H162: =VLOOKUP(Table57[[#This Row],[Facility ID]],'Coord.'!$A$1:$E$818,4,FALSE) -> W | I162: =VLOOKUP(Table57[[#This Row],[Facility ID]],'Coord.'!$A$1:$E$818,5,FALSE) -> -79.823208 | J162: 977732 | K162: Jordan, Daniel H | L162: 5849 | M162: 8.72 | N162: <29 | O162: <112.8 | P162: =IF(ISBLANK(M162),"N/A",IF(AND(4.5<=$M162,$M162<=9),IF($L162>=3000,IF($S162<=100,IF($R162<=200,"MEETS","DOES NOT MEET"),"DOES NOT MEET"),"DOES NOT MEET"),"DOES NOT MEET")) -> MEETS | Q162: =IF(ISBLANK(M162), "N/A", IF(AND(5 <= $M162, $M162 <= 10),IF($L162>=3000,IF($S162<=100,IF($R162<=200,"MEETS","DOES NOT MEET"),"DOES NOT MEET"),"DOES NOT MEET"),"DOES NOT MEET")) -> MEETS | R162: 112.8 | S162: 29
A163: Vulcan Materials Co. | B163: Skippers Quarry - Skippers, VA | C163: 2020-02-05 | D163: Screenings - Chemistry Check | E163: FA531 | F163: =VLOOKUP(Table57[[#This Row],[Facility ID]],'Coord.'!$A$1:$E$818,2,FALSE) -> N | G163: =VLOOKUP(Table57[[#This Row],[Facility ID]],'Coord.'!$A$1:$E$818,3,FALSE) -> 36.607691 | H163: =VLOOKUP(Table57[[#This Row],[Facility ID]],'Coord.'!$A$1:$E$818,4,FALSE) -> W | I163: =VLOOKUP(Table57[[#This Row],[Facility ID]],'Coord.'!$A$1:$E$818,5,FALSE) -> -77.582035 | J163: 998861 | K163: Thomas, Grady Q | L163: 6484 | M163: 8.8 | N163: <30 | O163: <101.789 | P163: MEETS | Q163: MEETS | R163: 101.789 | S163: 30
A164: Hedrick Industries | B164: South McDowell Quarry - Marion | C164: 2017-01-13 | D164: Screenings - Chemistry Check | E164: FA415 | F164: =VLOOKUP(Table57[[#This Row],[Facility ID]],'Coord.'!$A$1:$E$818,2,FALSE) -> N | G164: =VLOOKUP(Table57[[#This Row],[Facility ID]],'Coord.'!$A$1:$E$818,3,FALSE) -> 35.3757 | H164: =VLOOKUP(Table57[[#This Row],[Facility ID]],'Coord.'!$A$1:$E$818,4,FALSE) -> W | I164: =VLOOKUP(Table57[[#This Row],[Facility ID]],'Coord.'!$A$1:$E$818,5,FALSE) -> -81.5741 | J164: 841899 | K164: Rhymer, Robert C | L164: 10930 | M164: 7.5 | N164: 0 | O164: 55.9 | P164: MEETS | Q164: MEETS | R164: 55.9 | S164: 0
A165: Salem Stone Corp. | B165: Southside Materials - S. Boston Quarry (VA) | C165: 2019-05-21 | D165: Screenings - Chemistry Check | E165: FA197 | F165: =VLOOKUP(Table57[[#This Row],[Facility ID]],'Coord.'!$A$1:$E$818,2,FALSE) -> N | G165: =VLOOKUP(Table57[[#This Row],[Facility ID]],'Coord.'!$A$1:$E$818,3,FALSE) -> 36.727431 | H165: =VLOOKUP(Table57[[#This Row],[Facility ID]],'Coord.'!$A$1:$E$818,4,FALSE) -> W | I165: =VLOOKUP(Table57[[#This Row],[Facility ID]],'Coord.'!$A$1:$E$818,5,FALSE) -> -78.846989 | J165: 964761 | K165: Westmoreland, Braxton J | L165: 7227 | M165: 9 | N165: <30 | O165: <91.324 | P165: MEETS | Q165: MEETS | R165: 91.324 | S165: 30
A166: Salem Stone Corp. | B166: Southside Materials - Shelton Quarry - Pelham | C166: 2019-02-28 | D166: Screenings - Chemistry Check | E166: FA533 | F166: =VLOOKUP(Table57[[#This Row],[Facility ID]],'Coord.'!$A$1:$E$818,2,FALSE) -> N | G166: =VLOOKUP(Table57[[#This Row],[Facility ID]],'Coord.'!$A$1:$E$818,3,FALSE) -> 36.534803 | H166: =VLOOKUP(Table57[[#This Row],[Facility ID]],'Coord.'!$A$1:$E$818,4,FALSE) -> W | I166: =VLOOKUP(Table57[[#This Row],[Facility ID]],'Coord.'!$A$1:$E$818,5,FALSE) -> -79.459612 | J166: 952403 | K166: Westmoreland, Braxton J | L166: 18390 | M166: 9 | N166: 0 | O166: <35.889 | P166: MEETS | Q166: MEETS | R166: 35.889 | S166: 0
A167: Vulcan Materials Co. | B167: Spruce Pine Quarry - Bakersville | C167: 2019-09-16 | D167: Screenings - Chemistry Check | E167: FA558 | F167: =VLOOKUP(Table57[[#This Row],[Facility ID]],'Coord.'!$A$1:$E$818,2,FALSE) -> N | G167: =VLOOKUP(Table57[[#This Row],[Facility ID]],'Coord.'!$A$1:$E$818,3,FALSE) -> 35.970223 | H167: =VLOOKUP(Table57[[#This Row],[Facility ID]],'Coord.'!$A$1:$E$818,4,FALSE) -> W | I167: =VLOOKUP(Table57[[#This Row],[Facility ID]],'Coord.'!$A$1:$E$818,5,FALSE) -> -82.099553 | J167: 983094 | K167: Norton, Stephen S | L167: 3326 | M167: 7.47 | N167: <32 | O167: <198.437 | P167: MEETS | Q167: MEETS | R167: 198.437 | S167: 32
A168: Martin Marietta | B168: Statesville Quarry - Statesville | C168: 2019-10-09 | D168: Screenings - Chemistry Check | E168: FA534 | F168: =VLOOKUP(Table57[[#This Row],[Facility ID]],'Coord.'!$A$1:$E$818,2,FALSE) -> N | G168: =VLOOKUP(Table57[[#This Row],[Facility ID]],'Coord.'!$A$1:$E$818,3,FALSE) -> 35.804439 | H168: =VLOOKUP(Table57[[#This Row],[Facility ID]],'Coord.'!$A$1:$E$818,4,FALSE) -> W | I168: =VLOOKUP(Table57[[#This Row],[Facility ID]],'Coord.'!$A$1:$E$818,5,FALSE) -> -80.913159 | J168: 987454 | K168: Brinson, Joseph | L168: 2276 | M168: 7.81 | N168: <30 | O168: <289.982 | P168: DOES NOT MEET | Q168: DOES NOT MEET | R168: 289.982 | S168: 30
A169: Vulcan Materials Co. | B169: Stokesdale Quarry - Stokesdale | C169: 2019-02-28 | D169: Screenings - Chemistry Check | E169: FA499 | F169: =VLOOKUP(Table57[[#This Row],[Facility ID]],'Coord.'!$A$1:$E$818,2,FALSE) -> N | G169: =VLOOKUP(Table57[[#This Row],[Facility ID]],'Coord.'!$A$1:$E$818,3,FALSE) -> 36.23968 | H169: =VLOOKUP(Table57[[#This Row],[Facility ID]],'Coord.'!$A$1:$E$818,4,FALSE) -> W | I169: =VLOOKUP(Table57[[#This Row],[Facility ID]],'Coord.'!$A$1:$E$818,5,FALSE) -> -79.933006 | J169: 952380 | K169: Westmoreland, Braxton J | L169: 19350 | M169: 9.1 | N169: 0 | O169: <34.109 | P169: DOES NOT MEET | Q169: MEETS | R169: 34.109 | S169: 0
A170: Harrison Construction Co., Inc. | B170: Waynesville Quarry - Waynesville | C170: 2019-07-29 | D170: Screenings - Chemistry Check | E170: FA564 | F170: =VLOOKUP(Table57[[#This Row],[Facility ID]],'Coord.'!$A$1:$E$818,2,FALSE) -> N | G170: =VLOOKUP(Table57[[#This Row],[Facility ID]],'Coord.'!$A$1:$E$818,3,FALSE) -> 35.440697 | H170: =VLOOKUP(Table57[[#This Row],[Facility ID]],'Coord.'!$A$1:$E$818,4,FALSE) -> W | I170: =VLOOKUP(Table57[[#This Row],[Facility ID]],'Coord.'!$A$1:$E$818,5,FALSE) -> -83.007457 | J170: 974815 | K170: Kindley, Wallace Quint | L170: 2712 | M170: 7.95 | N170: <32 | O170: <243.363 | P170: DOES NOT MEET | Q170: DOES NOT MEET | R170: 243.363 | S170: 32
A171: LBM Industries | B171: Whitewater Falls - Sapphire | C171: 2016-05-24 | D171: Screenings - Chemistry Check | E171: FA162 | F171: =VLOOKUP(Table57[[#This Row],[Facility ID]],'Coord.'!$A$1:$E$818,2,FALSE) -> N | G171: =VLOOKUP(Table57[[#This Row],[Facility ID]],'Coord.'!$A$1:$E$818,3,FALSE) -> 35.05631 | H171: =VLOOKUP(Table57[[#This Row],[Facility ID]],'Coord.'!$A$1:$E$818,4,FALSE) -> W | I171: =VLOOKUP(Table57[[#This Row],[Facility ID]],'Coord.'!$A$1:$E$818,5,FALSE) -> -82.58279 | J171: 808254 | K171: Wood, Dean Michael M | L171: 14663 | M171: 8.6 | N171: 2.1 | O171: 9.3 | P171: MEETS | Q171: MEETS | R171: 9.3 | S171: 2.1
A172: Boone's Concrete Supply, LLC | B172: Woodlawn Quarry - Marion | C172: 2019-09-23 | D172: Screenings - Chemistry Check | E172: FA546 | F172: =VLOOKUP(Table57[[#This Row],[Facility ID]],'Coord.'!$A$1:$E$818,2,FALSE) -> N | G172: =VLOOKUP(Table57[[#This Row],[Facility ID]],'Coord.'!$A$1:$E$818,3,FALSE) -> 35.78735 | H172: =VLOOKUP(Table57[[#This Row],[Facility ID]],'Coord.'!$A$1:$E$818,4,FALSE) -> W | I172: =VLOOKUP(Table57[[#This Row],[Facility ID]],'Coord.'!$A$1:$E$818,5,FALSE) -> -82.036387 | J172: 984076 | K172: Norton, Stephen S | L172: 12950 | M172: 10 | N172: <32 | O172: <50.965 | P172: DOES NOT MEET | Q172: MEETS | R172: 50.965 | S172: 32
A173: Martin Marietta | B173: Charlotte Quarry - Charlotte | C173: 2019-07-10 | D173: Screenings, Washed | E173: FA562 | F173: =VLOOKUP(Table57[[#This Row],[Facility ID]],'Coord.'!$A$1:$E$818,2,FALSE) -> N | G173: =VLOOKUP(Table57[[#This Row],[Facility ID]],'Coord.'!$A$1:$E$818,3,FALSE) -> 35.295997 | H173: =VLOOKUP(Table57[[#This Row],[Facility ID]],'Coord.'!$A$1:$E$818,4,FALSE) -> W | I173: =VLOOKUP(Table57[[#This Row],[Facility ID]],'Coord.'!$A$1:$E$818,5,FALSE) -> -80.860734 | J173: 972773 | K173: Pegues, Jr., Henderson | L173: 5792 | M173: 8.36 | N173: <29 | O173: <113.950 | P173: MEETS | Q173: MEETS | R173: 113.95 | S173: 29
A174: Vulcan Materials Co. | B174: Enka Quarry - Enka | C174: 2019-09-05 | D174: Screenings, Washed | E174: FA458 | F174: =VLOOKUP(Table57[[#This Row],[Facility ID]],'Coord.'!$A$1:$E$818,2,FALSE) -> N | G174: =VLOOKUP(Table57[[#This Row],[Facility ID]],'Coord.'!$A$1:$E$818,3,FALSE) -> 35.548362 | H174: =VLOOKUP(Table57[[#This Row],[Facility ID]],'Coord.'!$A$1:$E$818,4,FALSE) -> W | I174: =VLOOKUP(Table57[[#This Row],[Facility ID]],'Coord.'!$A$1:$E$818,5,FALSE) -> -82.65151 | J174: 981857 | K174: Rhymer, Robert C | L174: 873 | M174: 5.14 | N174: <32 | O174: >400<800 | P174: DOES NOT MEET | Q174: DOES NOT MEET | R174: >400<800 | S174: 32
A175: Hedrick Industries | B175: Grove Stone Quarry - Black Mountain | C175: 2019-04-23 | D175: Screenings, Washed | E175: FA400 | F175: =VLOOKUP(Table57[[#This Row],[Facility ID]],'Coord.'!$A$1:$E$818,2,FALSE) -> N | G175: =VLOOKUP(Table57[[#This Row],[Facility ID]],'Coord.'!$A$1:$E$818,3,FALSE) -> 35.6102 | H175: =VLOOKUP(Table57[[#This Row],[Facility ID]],'Coord.'!$A$1:$E$818,4,FALSE) -> W | I175: =VLOOKUP(Table57[[#This Row],[Facility ID]],'Coord.'!$A$1:$E$818,5,FALSE) -> -82.364769 | J175: 960226 | K175: Rhymer, Robert C | L175: 10150 | M175: 8.4 | N175: <30 | O175: <65.025 | P175: MEETS | Q175: MEETS | R175: 65.025 | S175: 30
A176: Rogers Group, Inc. | B176: Henrietta Quarry - Mooresboro | C176: 2019-04-30 | D176: Screenings, Washed | E176: FA528 | F176: =VLOOKUP(Table57[[#This Row],[Facility ID]],'Coord.'!$A$1:$E$818,2,FALSE) -> N | G176: =VLOOKUP(Table57[[#This Row],[Facility ID]],'Coord.'!$A$1:$E$818,3,FALSE) -> 35.239448 | H176: =VLOOKUP(Table57[[#This Row],[Facility ID]],'Coord.'!$A$1:$E$818,4,FALSE) -> W | I176: =VLOOKUP(Table57[[#This Row],[Facility ID]],'Coord.'!$A$1:$E$818,5,FALSE) -> -81.814254 | J176: 961360 | K176: Rhymer, Robert C | L176: 22130 | M176: 8.7 | N176: <30 | O176: <29.824 | P176: MEETS | Q176: MEETS | R176: 29.824 | S176: 30
A177: Hanson Aggregates Southeast, Inc. | B177: Jefferson Quarry - Jefferson, SC | C177: 2018-12-07 | D177: Screenings, Washed | E177: FA587 | F177: =VLOOKUP(Table57[[#This Row],[Facility ID]],'Coord.'!$A$1:$E$818,2,FALSE) -> N | G177: =VLOOKUP(Table57[[#This Row],[Facility ID]],'Coord.'!$A$1:$E$818,3,FALSE) -> 34.694555 | H177: =VLOOKUP(Table57[[#This Row],[Facility ID]],'Coord.'!$A$1:$E$818,4,FALSE) -> W | I177: =VLOOKUP(Table57[[#This Row],[Facility ID]],'Coord.'!$A$1:$E$818,5,FALSE) -> -80.444869 | J177: 942236 | K177: Jordan, Daniel H | L177: 17700 | M177: 9.2 | N177: 0 | O177: <37.288 | P177: DOES NOT MEET | Q177: MEETS | R177: 37.288 | S177: 0
A178: Georgia Stone Products | B178: Lynches River Quarry - Jefferson, SC | C178: 2018-12-06 | D178: Screenings, Washed | E178: FA425 | F178: =VLOOKUP(Table57[[#This Row],[Facility ID]],'Coord.'!$A$1:$E$818,2,FALSE) -> N | G178: =VLOOKUP(Table57[[#This Row],[Facility ID]],'Coord.'!$A$1:$E$818,3,FALSE) -> 34.730891 | H178: =VLOOKUP(Table57[[#This Row],[Facility ID]],'Coord.'!$A$1:$E$818,4,FALSE) -> W | I178: =VLOOKUP(Table57[[#This Row],[Facility ID]],'Coord.'!$A$1:$E$818,5,FALSE) -> -80.452881 | J178: 942224 | K178: Jordan, Daniel H | L178: 21340 | M178: 9.1 | N178: 0 | O178: <30.928 | P178: DOES NOT MEET | Q178: MEETS | R178: 30.928 | S178: 0
A179: Wake Stone Corp. | B179: Moncure Quarry - Moncure | C179: 2018-03-29 | D179: Screenings, Washed | E179: FA502 | F179: =VLOOKUP(Table57[[#This Row],[Facility ID]],'Coord.'!$A$1:$E$818,2,FALSE) -> N | G179: =VLOOKUP(Table57[[#This Row],[Facility ID]],'Coord.'!$A$1:$E$818,3,FALSE) -> 35.618667 | H179: =VLOOKUP(Table57[[#This Row],[Facility ID]],'Coord.'!$A$1:$E$818,4,FALSE) -> W | I179: =VLOOKUP(Table57[[#This Row],[Facility ID]],'Coord.'!$A$1:$E$818,5,FALSE) -> -79.105463 | J179: 904094 | K179: Jackson, Brandon M | L179: 4476 | M179: 7.5 | N179: 0 | O179: 124.3 | P179: MEETS | Q179: MEETS | R179: 124.3 | S179: 0
A180: Hanson Aggregates Southeast, Inc. | B180: Raleigh Quarry - Wake Forest | C180: 2019-01-09 | D180: Screenings, Washed | E180: FA515 | F180: =VLOOKUP(Table57[[#This Row],[Facility ID]],'Coord.'!$A$1:$E$818,2,FALSE) -> N | G180: =VLOOKUP(Table57[[#This Row],[Facility ID]],'Coord.'!$A$1:$E$818,3,FALSE) -> 35.931152 | H180: =VLOOKUP(Table57[[#This Row],[Facility ID]],'Coord.'!$A$1:$E$818,4,FALSE) -> W | I180: =VLOOKUP(Table57[[#This Row],[Facility ID]],'Coord.'!$A$1:$E$818,5,FALSE) -> -78.543354 | J180: 944673 | K180: Skinner, III, John L | L180: 15740 | M180: 9.3 | N180: 0 | O180: <41.931 | P180: DOES NOT MEET | Q180: MEETS | R180: 41.931 | S180: 0
A181: Hedrick Industries | B181: South McDowell Quarry - Marion | C181: 2019-01-24 | D181: Screenings, Washed | E181: FA415 | F181: =VLOOKUP(Table57[[#This Row],[Facility ID]],'Coord.'!$A$1:$E$818,2,FALSE) -> N | G181: =VLOOKUP(Table57[[#This Row],[Facility ID]],'Coord.'!$A$1:$E$818,3,FALSE) -> 35.3757 | H181: =VLOOKUP(Table57[[#This Row],[Facility ID]],'Coord.'!$A$1:$E$818,4,FALSE) -> W | I181: =VLOOKUP(Table57[[#This Row],[Facility ID]],'Coord.'!$A$1:$E$818,5,FALSE) -> -81.5741 | J181: 946851 | K181: Rhymer, Robert C | L181: 17770 | M181: 8.7 | N181: 0 | O181: <37.141 | P181: MEETS | Q181: MEETS | R181: 37.141 | S181: 0
A182: Martin Marietta | B182: Central Rock Quarry - Greensboro | C182: 2017-07-05 | D182: Select Material, Class III, Type 1 | E182: FA496 | F182: =VLOOKUP(Table57[[#This Row],[Facility ID]],'Coord.'!$A$1:$E$818,2,FALSE) -> N | G182: =VLOOKUP(Table57[[#This Row],[Facility ID]],'Coord.'!$A$1:$E$818,3,FALSE) -> 36.008398 | H182: =VLOOKUP(Table57[[#This Row],[Facility ID]],'Coord.'!$A$1:$E$818,4,FALSE) -> W | I182: =VLOOKUP(Table57[[#This Row],[Facility ID]],'Coord.'!$A$1:$E$818,5,FALSE) -> -79.748478 | J182: 866376 | K182: Cravens, Lane T | L182: 9091 | M182: 7.3 | N182: 4.7 | O182: 62.2 | P182: MEETS | Q182: MEETS | R182: 62.2 | S182: 4.7
A183: Vulcan Materials Co. | B183: North Quarry - Winston Salem | C183: 2020-08-19 | D183: Select Material, Class III, Type 1 | E183: FA466 | F183: =VLOOKUP(Table57[[#This Row],[Facility ID]],'Coord.'!$A$1:$E$818,2,FALSE) -> N | G183: =VLOOKUP(Table57[[#This Row],[Facility ID]],'Coord.'!$A$1:$E$818,3,FALSE) -> 36.177826 | H183: =VLOOKUP(Table57[[#This Row],[Facility ID]],'Coord.'!$A$1:$E$818,4,FALSE) -> W | I183: =VLOOKUP(Table57[[#This Row],[Facility ID]],'Coord.'!$A$1:$E$818,5,FALSE) -> -80.265813 | J183: 1017747 | K183: Carpenter, Gregory S | L183: 7337 | M183: 8.6 | N183: <30 | O183: <141.056 | P183: MEETS | Q183: MEETS | R183: 141.056 | S183: 30
A184: Vulcan Materials Co. | B184: North Quarry - Winston Salem | C184: 2020-08-19 | D184: Select Material, Class III, Type 1 | E184: FA466 | F184: =VLOOKUP(Table57[[#This Row],[Facility ID]],'Coord.'!$A$1:$E$818,2,FALSE) -> N | G184: =VLOOKUP(Table57[[#This Row],[Facility ID]],'Coord.'!$A$1:$E$818,3,FALSE) -> 36.177826 | H184: =VLOOKUP(Table57[[#This Row],[Facility ID]],'Coord.'!$A$1:$E$818,4,FALSE) -> W | I184: =VLOOKUP(Table57[[#This Row],[Facility ID]],'Coord.'!$A$1:$E$818,5,FALSE) -> -80.265813 | J184: 1017749 | K184: Carpenter, Gregory S | L184: 10005 | M184: 8.7 | N184: <30 | O184: <117.312 | P184: MEETS | Q184: MEETS | R184: 117.312 | S184: 30
A185: Vulcan Materials Co. | B185: North Quarry - Winston Salem | C185: 2020-08-19 | D185: Select Material, Class III, Type 1 | E185: FA466 | F185: =VLOOKUP(Table57[[#This Row],[Facility ID]],'Coord.'!$A$1:$E$818,2,FALSE) -> N | G185: =VLOOKUP(Table57[[#This Row],[Facility ID]],'Coord.'!$A$1:$E$818,3,FALSE) -> 36.177826 | H185: =VLOOKUP(Table57[[#This Row],[Facility ID]],'Coord.'!$A$1:$E$818,4,FALSE) -> W | I185: =VLOOKUP(Table57[[#This Row],[Facility ID]],'Coord.'!$A$1:$E$818,5,FALSE) -> -80.265813 | J185: 1017748 | K185: Carpenter, Gregory S | L185: 16008 | M185: 8.82 | N185: <30 | O185: <71.467 | P185: MEETS | Q185: MEETS | R185: 71.467 | S185: 30
A186: American Materials Co. | B186: Black Creek Plant - Mt. Croghan, SC | C186: 2016-03-04 | D186: Select Material, Class III, Type 3 - Chemistry Check | E186: FA422 | F186: =VLOOKUP(Table57[[#This Row],[Facility ID]],'Coord.'!$A$1:$E$818,2,FALSE) -> N | G186: =VLOOKUP(Table57[[#This Row],[Facility ID]],'Coord.'!$A$1:$E$818,3,FALSE) -> 34.717707 | H186: =VLOOKUP(Table57[[#This Row],[Facility ID]],'Coord.'!$A$1:$E$818,4,FALSE) -> W | I186: =VLOOKUP(Table57[[#This Row],[Facility ID]],'Coord.'!$A$1:$E$818,5,FALSE) -> -80.284664 | J186: 797150 | K186: Jordan, Daniel H | L186: 96618 | M186: 5.5 | N186: 0 | O186: 5.1 | P186: MEETS | Q186: MEETS | R186: 5.1 | S186: 0
A187: Martin Marietta | B187: Lemon Springs - Sanford | C187: 2018-10-29 | D187: Select Material, Class III, Type 3 - Chemistry Check | E187: FA518 | F187: =VLOOKUP(Table57[[#This Row],[Facility ID]],'Coord.'!$A$1:$E$818,2,FALSE) -> N | G187: =VLOOKUP(Table57[[#This Row],[Facility ID]],'Coord.'!$A$1:$E$818,3,FALSE) -> 35.409128 | H187: =VLOOKUP(Table57[[#This Row],[Facility ID]],'Coord.'!$A$1:$E$818,4,FALSE) -> W | I187: =VLOOKUP(Table57[[#This Row],[Facility ID]],'Coord.'!$A$1:$E$818,5,FALSE) -> -79.211862 | J187: 937185 | K187: Jackson, Brandon M | L187: 10060 | M187: 8.6 | N187: 0 | O187: <65.6 | P187: MEETS | Q187: MEETS | R187: 65.6 | S187: 0
A188: Martin Marietta | B188: Edmund Pit - Lexington, SC | C188: 2000-07-14 | D188: Yearly Quality Check for Fine Aggregate (Strength, Soundness, etc.) | E188: FA265 | F188: =VLOOKUP(Table57[[#This Row],[Facility ID]],'Coord.'!$A$1:$E$818,2,FALSE) -> N | G188: =VLOOKUP(Table57[[#This Row],[Facility ID]],'Coord.'!$A$1:$E$818,3,FALSE) -> 33.855843 | H188: =VLOOKUP(Table57[[#This Row],[Facility ID]],'Coord.'!$A$1:$E$818,4,FALSE) -> W | I188: =VLOOKUP(Table57[[#This Row],[Facility ID]],'Coord.'!$A$1:$E$818,5,FALSE) -> -81.204702 | J188: 143321 | K188: Keyes, Terry L | N188: 35.4 | P188: N/A | Q188: N/A | S188: 35.4
A189: Hedrick Industries | B189: Grove Stone Quarry - Black Mountain | C189: 2016-12-12 | D189: Yearly Quality Check for Fine Aggregate (Strength, Soundness, etc.) | E189: FA400 | F189: =VLOOKUP(Table57[[#This Row],[Facility ID]],'Coord.'!$A$1:$E$818,2,FALSE) -> N | G189: =VLOOKUP(Table57[[#This Row],[Facility ID]],'Coord.'!$A$1:$E$818,3,FALSE) -> 35.6102 | H189: =VLOOKUP(Table57[[#This Row],[Facility ID]],'Coord.'!$A$1:$E$818,4,FALSE) -> W | I189: =VLOOKUP(Table57[[#This Row],[Facility ID]],'Coord.'!$A$1:$E$818,5,FALSE) -> -82.364769 | J189: 838364 | K189: Rhymer, Robert C | L189: 6575 | M189: 7.3 | N189: 0 | O189: 22.2 | P189: MEETS | Q189: MEETS | R189: 22.2 | S189: 0

Sheet Latest Data Coarse Aggregate
A1: Producer Name | B1: Facility Name | C1: Sample Date | D1: Material Description | E1: Facility ID | F1: Direction | G1: Latitude | H1: Direction2 | I1: Longitude | J1: Sample ID | K1: Sampled By | L1: Resistivity [ohm-cm]: | M1: pH Units: | N1: Chloride [ppm]: | O1: Sulfate [ppm]: | P1: Geosynthetic Spec | Q1: Steel Spec | R1: Coastal Plain Geosynthetic Spec | S1: Coastal Plain Steel Spec | T1: SO4 | U1: Cl | V1: Coastal Plain Aggregates
A2: Martin Marietta | B2: Statesville Quarry - Statesville | C2: 2003-11-20 | D2: Stone for Erosion Control (#57) | E2: CA54 | F2: =VLOOKUP(Table16[[#This Row],[Facility ID]],'Coord.'!$A$1:$E$818,2,FALSE) -> N | G2: =VLOOKUP(Table16[[#This Row],[Facility ID]],'Coord.'!$A$1:$E$818,3,FALSE) -> 35.804466 | H2: =VLOOKUP(Table16[[#This Row],[Facility ID]],'Coord.'!$A$1:$E$818,4,FALSE) -> W | I2: =VLOOKUP(Table16[[#This Row],[Facility ID]],'Coord.'!$A$1:$E$818,5,FALSE) -> -80.913084 | J2: 320107 | K2: Leatherman, Barbara L | L2: 21950 | M2: 6.3 | N2: 26 | P2: =IF(AND(4.5 <= $M2, $M2 <= 9), "MEETS", "DOES NOT MEET") -> MEETS | Q2: =IF(AND(5 <= $M2, $M2 <= 10), "MEETS", "DOES NOT MEET") -> MEETS | R2: =IF(OR(ISBLANK(L2), NOT(ISNUMBER(MATCH($E2, Coastal,0)))), "N/A", IF(AND(4.5 <= $M2, $M2 <= 9),IF($L2>=5000,IF($U2<=100,IF($T2<=200,"MEETS","DOES NOT MEET"),"DOES NOT MEET"),"DOES NOT MEET"),"DOES NOT MEET")) -> N/A | S2: =IF(OR(ISBLANK(M2), NOT(ISNUMBER(MATCH($E2, Coastal, 0)))), "N/A", IF(AND(5 <= $M2, $M2 <= 10),IF($L2>=5000,IF($U2<=100,IF($T2<=200,"MEETS","DOES NOT MEET"),"DOES NOT MEET"),"DOES NOT MEET"),"DOES NOT MEET")) -> N/A | T2: =IF(LEFT(O2, 1)="<", VALUE(RIGHT(O2,LEN(O2)-1)), O2) ->  | U2: =IF(LEFT(N2, 1)="<", VALUE(RIGHT(N2,LEN(N2)-1)), N2) -> 26 | V2: CA345
A3: Radford Quarries Of Boone, Inc. | B3: Bamboo Quarry | C3: 2019-04-26 | D3: Select Material, Class VI | E3: CA122 | F3: =VLOOKUP(Table16[[#This Row],[Facility ID]],'Coord.'!$A$1:$E$818,2,FALSE) -> N | G3: =VLOOKUP(Table16[[#This Row],[Facility ID]],'Coord.'!$A$1:$E$818,3,FALSE) -> 36.215747 | H3: =VLOOKUP(Table16[[#This Row],[Facility ID]],'Coord.'!$A$1:$E$818,4,FALSE) -> W | I3: =VLOOKUP(Table16[[#This Row],[Facility ID]],'Coord.'!$A$1:$E$818,5,FALSE) -> -81.636512 | J3: 960975 | K3: Winkler, Jeffrey D | L3: 21960 | M3: 9.6 | N3: <30 | O3: <30.055 | P3: DOES NOT MEET | Q3: MEETS | R3: N/A | S3: N/A | T3: 30.055 | U3: 30 | V3: CA224
A4: Salem Stone Corp. | B4: Cardinal Quarries - Smethport Quarry - W. Jefferson | C4: 2019-06-25 | D4: Select Material, Class VI | E4: CA123 | F4: =VLOOKUP(Table16[[#This Row],[Facility ID]],'Coord.'!$A$1:$E$818,2,FALSE) -> N | G4: =VLOOKUP(Table16[[#This Row],[Facility ID]],'Coord.'!$A$1:$E$818,3,FALSE) -> 36.439356 | H4: =VLOOKUP(Table16[[#This Row],[Facility ID]],'Coord.'!$A$1:$E$818,4,FALSE) -> W | I4: =VLOOKUP(Table16[[#This Row],[Facility ID]],'Coord.'!$A$1:$E$818,5,FALSE) -> -81.48872 | J4: 970103 | K4: Murray, Brandi S | L4: 13030 | M4: 9.11 | N4: <29 | O4: <50.652 | P4: DOES NOT MEET | Q4: MEETS | R4: N/A | S4: N/A | T4: 50.652 | U4: 29 | V4: CA137
A5: Rogers Group, Inc. | B5: Mitchell County Stone | C5: 2015-07-22 | D5: Select Material, Class VI | E5: CA315 | F5: =VLOOKUP(Table16[[#This Row],[Facility ID]],'Coord.'!$A$1:$E$818,2,FALSE) -> N | G5: =VLOOKUP(Table16[[#This Row],[Facility ID]],'Coord.'!$A$1:$E$818,3,FALSE) -> 35.899016 | H5: =VLOOKUP(Table16[[#This Row],[Facility ID]],'Coord.'!$A$1:$E$818,4,FALSE) -> W | I5: =VLOOKUP(Table16[[#This Row],[Facility ID]],'Coord.'!$A$1:$E$818,5,FALSE) -> -82.100712 | J5: 767763 | K5: Radcliff, Roger Keith | L5: 50865 | M5: 7.2 | N5: 0 | O5: 0 | P5: MEETS | Q5: MEETS | R5: N/A | S5: N/A | T5: 0 | U5: 0 | V5: CA337
A6: Vulcan Materials Co. | B6: Spruce Pine Quarry - Bakersville | C6: 2015-07-22 | D6: Select Material, Class VI | E6: CA111 | F6: =VLOOKUP(Table16[[#This Row],[Facility ID]],'Coord.'!$A$1:$E$818,2,FALSE) -> N | G6: =VLOOKUP(Table16[[#This Row],[Facility ID]],'Coord.'!$A$1:$E$818,3,FALSE) -> 35.5832 | H6: =VLOOKUP(Table16[[#This Row],[Facility ID]],'Coord.'!$A$1:$E$818,4,FALSE) -> W | I6: =VLOOKUP(Table16[[#This Row],[Facility ID]],'Coord.'!$A$1:$E$818,5,FALSE) -> -82.0541 | J6: 767762 | K6: Radcliff, Roger Keith | L6: 25374 | M6: 8.2 | N6: 0 | O6: 0 | P6: MEETS | Q6: MEETS | R6: N/A | S6: N/A | T6: 0 | U6: 0 | V6: CA216
A7: Maymead Materials, Inc. | B7: Turnip Patch Quarry - Mountain City, TN | C7: 2019-06-25 | D7: Select Material, Class VI | E7: CA153 | F7: =VLOOKUP(Table16[[#This Row],[Facility ID]],'Coord.'!$A$1:$E$818,2,FALSE) -> N | G7: =VLOOKUP(Table16[[#This Row],[Facility ID]],'Coord.'!$A$1:$E$818,3,FALSE) -> 36.426709 | H7: =VLOOKUP(Table16[[#This Row],[Facility ID]],'Coord.'!$A$1:$E$818,4,FALSE) -> W | I7: =VLOOKUP(Table16[[#This Row],[Facility ID]],'Coord.'!$A$1:$E$818,5,FALSE) -> -81.773808 | J7: 970106 | K7: Murray, Brandi S | L7: 22950 | M7: 9.46 | N7: <29 | O7: <28.758 | P7: DOES NOT MEET | Q7: MEETS | R7: N/A | S7: N/A | T7: 28.758 | U7: 29 | V7: CA55
A8: Wake Stone Corp. | B8: Knightdale Quarry - Knightdale | C8: 2012-06-13 | D8: Select Material, Class II, Type 1 | E8: CA98 | F8: =VLOOKUP(Table16[[#This Row],[Facility ID]],'Coord.'!$A$1:$E$818,2,FALSE) -> N | G8: =VLOOKUP(Table16[[#This Row],[Facility ID]],'Coord.'!$A$1:$E$818,3,FALSE) -> 35.797773 | H8: =VLOOKUP(Table16[[#This Row],[Facility ID]],'Coord.'!$A$1:$E$818,4,FALSE) -> W | I8: =VLOOKUP(Table16[[#This Row],[Facility ID]],'Coord.'!$A$1:$E$818,5,FALSE) -> -78.502251 | J8: 630833 | K8: Carter, PE, Sean C | L8: 9800 | M8: 8.8 | P8: MEETS | Q8: MEETS | R8: N/A | S8: N/A | V8: CA371
A9: Vulcan Materials Co. | B9: Havre De Grace Quarry - Havre De Grace, MD | C9: 2020-09-21 | D9: Miscellaneous Material for Electrochemical | E9: CA345 | F9: =VLOOKUP(Table16[[#This Row],[Facility ID]],'Coord.'!$A$1:$E$818,2,FALSE) -> N | G9: =VLOOKUP(Table16[[#This Row],[Facility ID]],'Coord.'!$A$1:$E$818,3,FALSE) -> 35.58499 | H9: =VLOOKUP(Table16[[#This Row],[Facility ID]],'Coord.'!$A$1:$E$818,4,FALSE) -> W | I9: =VLOOKUP(Table16[[#This Row],[Facility ID]],'Coord.'!$A$1:$E$818,5,FALSE) -> -76.103046 | J9: 1021092 | K9: Bonds, Maria M | L9: 21050 | M9: 8.78 | N9: <30 | O9: <31.354 | P9: MEETS | Q9: MEETS | R9: =IF(ISBLANK(L9), "N/A", IF(AND(4.5 <= $M9, $M9 <= 9),IF($L9>=5000,IF($U9<=100,IF($T9<=200,"MEETS","DOES NOT MEET"),"DOES NOT MEET"),"DOES NOT MEET"),"DOES NOT MEET")) -> MEETS | S9: =IF(ISBLANK(M9), "N/A", IF(AND(5 <= $M9, $M9 <= 10),IF($L9>=5000,IF($U9<=100,IF($T9<=200,"MEETS","DOES NOT MEET"),"DOES NOT MEET"),"DOES NOT MEET"),"DOES NOT MEET")) -> MEETS | T9: 31.354 | U9: 30 | V9: CA288
A10: Hanson Aggregates Southeast, Inc. | B10: Princeton Quarry | C10: 2013-06-12 | D10: Miscellaneous Material for Electrochemical | E10: CA64 | F10: =VLOOKUP(Table16[[#This Row],[Facility ID]],'Coord.'!$A$1:$E$818,2,FALSE) -> N | G10: =VLOOKUP(Table16[[#This Row],[Facility ID]],'Coord.'!$A$1:$E$818,3,FALSE) -> 35.472107 | H10: =VLOOKUP(Table16[[#This Row],[Facility ID]],'Coord.'!$A$1:$E$818,4,FALSE) -> W | I10: =VLOOKUP(Table16[[#This Row],[Facility ID]],'Coord.'!$A$1:$E$818,5,FALSE) -> -78.137972 | J10: 669957 | K10: Gardner, Joseph Tyler | L10: 23809 | M10: 7.8 | N10: 0 | O10: 0 | P10: MEETS | Q10: MEETS | R10: =IF(OR(ISBLANK(L10), NOT(ISNUMBER(MATCH($E10, Coastal,0)))), "N/A", IF(AND(4.5 <= $M10, $M10 <= 9),IF($L10>=5000,IF($U10<=100,IF($T10<=200,"MEETS","DOES NOT MEET"),"DOES NOT MEET"),"DOES NOT MEET"),"DOES NOT MEET")) -> MEETS | S10: =IF(OR(ISBLANK(M10), NOT(ISNUMBER(MATCH($E10, Coastal, 0)))), "N/A", IF(AND(5 <= $M10, $M10 <= 10),IF($L10>=5000,IF($U10<=100,IF($T10<=200,"MEETS","DOES NOT MEET"),"DOES NOT MEET"),"DOES NOT MEET"),"DOES NOT MEET")) -> MEETS | T10: 0 | U10: 0 | V10: CA42
A11: Martin Marietta | B11: Castle Hayne Yard - Castle Hayne | C11: 2018-07-13 | D11: Coarse Aggregate, #78M | E11: CA319 | F11: =VLOOKUP(Table16[[#This Row],[Facility ID]],'Coord.'!$A$1:$E$818,2,FALSE) -> N | G11: =VLOOKUP(Table16[[#This Row],[Facility ID]],'Coord.'!$A$1:$E$818,3,FALSE) -> 34.359216 | H11: =VLOOKUP(Table16[[#This Row],[Facility ID]],'Coord.'!$A$1:$E$818,4,FALSE) -> W | I11: =VLOOKUP(Table16[[#This Row],[Facility ID]],'Coord.'!$A$1:$E$818,5,FALSE) -> -77.857908 | J11: 920602 | K11: Oehman, Christopher E | L11: 16480 | M11: 9.4 | N11: 0 | O11: <38.6 | P11: DOES NOT MEET | Q11: MEETS | R11: DOES NOT MEET | S11: MEETS | T11: 38.6 | U11: 0 | V11: CA64
A12: Martin Marietta | B12: Cumberland Quarry | C12: 2011-06-08 | D12: ABC Stone for Electrochemical | E12: CA339 | F12: =VLOOKUP(Table16[[#This Row],[Facility ID]],'Coord.'!$A$1:$E$818,2,FALSE) -> N | G12: =VLOOKUP(Table16[[#This Row],[Facility ID]],'Coord.'!$A$1:$E$818,3,FALSE) -> 35.21551 | H12: =VLOOKUP(Table16[[#This Row],[Facility ID]],'Coord.'!$A$1:$E$818,4,FALSE) -> W | I12: =VLOOKUP(Table16[[#This Row],[Facility ID]],'Coord.'!$A$1:$E$818,5,FALSE) -> -78.9334 | J12: 541382 | K12: Robinson, Beatrice H | L12: 5247 | M12: 7.6 | N12: 0 | O12: 0 | P12: MEETS | Q12: MEETS | R12: N/A | S12: N/A | T12: 0 | U12: 0 | V12: CA380
A13: Martin Marietta | B13: Cumberland Quarry | C13: 2011-06-08 | D13: ABC Stone for Electrochemical | E13: CA339 | F13: =VLOOKUP(Table16[[#This Row],[Facility ID]],'Coord.'!$A$1:$E$818,2,FALSE) -> N | G13: =VLOOKUP(Table16[[#This Row],[Facility ID]],'Coord.'!$A$1:$E$818,3,FALSE) -> 35.21551 | H13: =VLOOKUP(Table16[[#This Row],[Facility ID]],'Coord.'!$A$1:$E$818,4,FALSE) -> W | I13: =VLOOKUP(Table16[[#This Row],[Facility ID]],'Coord.'!$A$1:$E$818,5,FALSE) -> -78.9334 | J13: 541380 | K13: Robinson, Beatrice H | L13: 6169 | M13: 7.7 | N13: 0 | O13: 0 | P13: MEETS | Q13: MEETS | R13: N/A | S13: N/A | T13: 0 | U13: 0 | V13: CA189
A14: Thompson Contractors | B14: Miller Creek Quarry - Rutherfordton | C14: 2004-07-01 | D14: ABC Stone for Electrochemical | E14: CA59 | F14: =VLOOKUP(Table16[[#This Row],[Facility ID]],'Coord.'!$A$1:$E$818,2,FALSE) -> N | G14: =VLOOKUP(Table16[[#This Row],[Facility ID]],'Coord.'!$A$1:$E$818,3,FALSE) -> 35.2139 | H14: =VLOOKUP(Table16[[#This Row],[Facility ID]],'Coord.'!$A$1:$E$818,4,FALSE) -> W | I14: =VLOOKUP(Table16[[#This Row],[Facility ID]],'Coord.'!$A$1:$E$818,5,FALSE) -> -82.0021 | J14: 342622 | K14: Worley, Lester V | L14: 22050 | M14: 9 | N14: 26 | P14: MEETS | Q14: MEETS | R14: N/A | S14: N/A | U14: 26 | V14: CA38
A15: Thompson Contractors | B15: Miller Creek Quarry - Rutherfordton | C15: 2004-07-01 | D15: ABC Stone for Electrochemical | E15: CA59 | F15: =VLOOKUP(Table16[[#This Row],[Facility ID]],'Coord.'!$A$1:$E$818,2,FALSE) -> N | G15: =VLOOKUP(Table16[[#This Row],[Facility ID]],'Coord.'!$A$1:$E$818,3,FALSE) -> 35.2139 | H15: =VLOOKUP(Table16[[#This Row],[Facility ID]],'Coord.'!$A$1:$E$818,4,FALSE) -> W | I15: =VLOOKUP(Table16[[#This Row],[Facility ID]],'Coord.'!$A$1:$E$818,5,FALSE) -> -82.0021 | J15: 342623 | K15: Worley, Lester V | L15: 24120 | M15: 9.1 | N15: 26 | P15: DOES NOT MEET | Q15: MEETS | R15: N/A | S15: N/A | U15: 26 | V15: CA381
A16: Vulcan Materials Co. | B16: 115 Quarry - N. Wilkesboro | C16: 2018-05-10 | D16: #78-M Stone for Electrochemical | E16: CA79 | F16: =VLOOKUP(Table16[[#This Row],[Facility ID]],'Coord.'!$A$1:$E$818,2,FALSE) -> N | G16: =VLOOKUP(Table16[[#This Row],[Facility ID]],'Coord.'!$A$1:$E$818,3,FALSE) -> 36.106467 | H16: =VLOOKUP(Table16[[#This Row],[Facility ID]],'Coord.'!$A$1:$E$818,4,FALSE) -> W | I16: =VLOOKUP(Table16[[#This Row],[Facility ID]],'Coord.'!$A$1:$E$818,5,FALSE) -> -81.099031 | J16: 910655 | K16: Patrie, Garin T | L16: 10774 | M16: 8.1 | N16: 0 | O16: 53.4 | P16: MEETS | Q16: MEETS | R16: N/A | S16: N/A | T16: 53.4 | U16: 0 | V16: CA408
A17: Martin Marietta | B17: American Stone - Carrboro | C17: 2019-02-13 | D17: #78-M Stone for Electrochemical | E17: CA2 | F17: =VLOOKUP(Table16[[#This Row],[Facility ID]],'Coord.'!$A$1:$E$818,2,FALSE) -> N | G17: =VLOOKUP(Table16[[#This Row],[Facility ID]],'Coord.'!$A$1:$E$818,3,FALSE) -> 35.927265 | H17: =VLOOKUP(Table16[[#This Row],[Facility ID]],'Coord.'!$A$1:$E$818,4,FALSE) -> W | I17: =VLOOKUP(Table16[[#This Row],[Facility ID]],'Coord.'!$A$1:$E$818,5,FALSE) -> -79.153772 | J17: 949792 | K17: Westmoreland, Braxton J | L17: 14230 | M17: 8.9 | N17: 0 | O17: <46.381 | P17: MEETS | Q17: MEETS | R17: N/A | S17: N/A | T17: 46.381 | U17: 0 | V17: CA259
A18: Hedrick Industries | B18: Aquadale Quarry - Norwood | C18: 2019-09-24 | D18: #78-M Stone for Electrochemical | E18: CA274 | F18: =VLOOKUP(Table16[[#This Row],[Facility ID]],'Coord.'!$A$1:$E$818,2,FALSE) -> N | G18: =VLOOKUP(Table16[[#This Row],[Facility ID]],'Coord.'!$A$1:$E$818,3,FALSE) -> 35.236498 | H18: =VLOOKUP(Table16[[#This Row],[Facility ID]],'Coord.'!$A$1:$E$818,4,FALSE) -> W | I18: =VLOOKUP(Table16[[#This Row],[Facility ID]],'Coord.'!$A$1:$E$818,5,FALSE) -> -80.239287 | J18: 984802 | K18: Smith, Michael L | L18: 9018 | M18: 8.86 | N18: <32 | O18: <73.187 | P18: MEETS | Q18: MEETS | R18: N/A | S18: N/A | T18: 73.187 | U18: 32 | V18: CA380
A19: Martin Marietta | B19: Arrowood Quarry - Charlotte | C19: 2019-09-18 | D19: #78-M Stone for Electrochemical | E19: CA31 | F19: =VLOOKUP(Table16[[#This Row],[Facility ID]],'Coord.'!$A$1:$E$818,2,FALSE) -> N | G19: =VLOOKUP(Table16[[#This Row],[Facility ID]],'Coord.'!$A$1:$E$818,3,FALSE) -> 35.111865 | H19: =VLOOKUP(Table16[[#This Row],[Facility ID]],'Coord.'!$A$1:$E$818,4,FALSE) -> W | I19: =VLOOKUP(Table16[[#This Row],[Facility ID]],'Coord.'!$A$1:$E$818,5,FALSE) -> -80.921875 | J19: 983524 | K19: Smith, Michael L | L19: 9789 | M19: 9.03 | N19: <32 | O19: <67.423 | P19: DOES NOT MEET | Q19: MEETS | R19: N/A | S19: N/A | T19: 67.423 | U19: 32 | V19: CA319
A20: Martin Marietta | B20: Asheboro Quarry - Asheboro | C20: 2019-08-22 | D20: #78-M Stone for Electrochemical | E20: CA30 | F20: =VLOOKUP(Table16[[#This Row],[Facility ID]],'Coord.'!$A$1:$E$818,2,FALSE) -> N | G20: =VLOOKUP(Table16[[#This Row],[Facility ID]],'Coord.'!$A$1:$E$818,3,FALSE) -> 35.766085 | H20: =VLOOKUP(Table16[[#This Row],[Facility ID]],'Coord.'!$A$1:$E$818,4,FALSE) -> W | I20: =VLOOKUP(Table16[[#This Row],[Facility ID]],'Coord.'!$A$1:$E$818,5,FALSE) -> -79.823999 | J20: 979366 | K20: Jackson, Brandon M | L20: 18550 | M20: 9.11 | N20: <29 | O20: <35.580 | P20: DOES NOT MEET | Q20: MEETS | R20: N/A | S20: N/A | T20: 35.58 | U20: 29 | V20: CA349
A21: Martin Marietta | B21: Bakers Quarry - Monroe | C21: 2019-11-27 | D21: #78-M Stone for Electrochemical | E21: CA32 | F21: =VLOOKUP(Table16[[#This Row],[Facility ID]],'Coord.'!$A$1:$E$818,2,FALSE) -> N | G21: =VLOOKUP(Table16[[#This Row],[Facility ID]],'Coord.'!$A$1:$E$818,3,FALSE) -> 35.027618 | H21: =VLOOKUP(Table16[[#This Row],[Facility ID]],'Coord.'!$A$1:$E$818,4,FALSE) -> W | I21: =VLOOKUP(Table16[[#This Row],[Facility ID]],'Coord.'!$A$1:$E$818,5,FALSE) -> -80.603741 | J21: 993359 | K21: Smith, Michael L | L21: 17070 | M21: 9.27 | N21: <30 | O21: <38.664 | P21: DOES NOT MEET | Q21: MEETS | R21: N/A | S21: N/A | T21: 38.664 | U21: 30 | V21: CA272
A22: Radford Quarries Of Boone, Inc. | B22: Bamboo Quarry | C22: 2016-02-08 | D22: #78-M Stone for Electrochemical | E22: CA122 | F22: =VLOOKUP(Table16[[#This Row],[Facility ID]],'Coord.'!$A$1:$E$818,2,FALSE) -> N | G22: =VLOOKUP(Table16[[#This Row],[Facility ID]],'Coord.'!$A$1:$E$818,3,FALSE) -> 36.215747 | H22: =VLOOKUP(Table16[[#This Row],[Facility ID]],'Coord.'!$A$1:$E$818,4,FALSE) -> W | I22: =VLOOKUP(Table16[[#This Row],[Facility ID]],'Coord.'!$A$1:$E$818,5,FALSE) -> -81.636512 | J22: 793017 | K22: Church, Tracy G | L22: 20687 | M22: 7.5 | N22: 5 | O22: 5.2 | P22: MEETS | Q22: MEETS | R22: N/A | S22: N/A | T22: 5.2 | U22: 5 | V22: CA289
A23: Martin Marietta | B23: Belgrade Quarry - Maysville | C23: 2015-09-30 | D23: #78-M Stone for Electrochemical | E23: CA38 | F23: =VLOOKUP(Table16[[#This Row],[Facility ID]],'Coord.'!$A$1:$E$818,2,FALSE) -> N | G23: =VLOOKUP(Table16[[#This Row],[Facility ID]],'Coord.'!$A$1:$E$818,3,FALSE) -> 34.884103 | H23: =VLOOKUP(Table16[[#This Row],[Facility ID]],'Coord.'!$A$1:$E$818,4,FALSE) -> W | I23: =VLOOKUP(Table16[[#This Row],[Facility ID]],'Coord.'!$A$1:$E$818,5,FALSE) -> -77.231483 | J23: 778061 | K23: Cahill, Luke R | L23: 3370 | M23: 7.3 | N23: 0 | O23: 0 | P23: MEETS | Q23: MEETS | R23: DOES NOT MEET | S23: DOES NOT MEET | T23: 0 | U23: 0 | V23: CA310
A24: Martin Marietta | B24: Benson Quarry - Benson | C24: 2016-03-16 | D24: #78-M Stone for Electrochemical | E24: CA176 | F24: =VLOOKUP(Table16[[#This Row],[Facility ID]],'Coord.'!$A$1:$E$818,2,FALSE) -> N | G24: =VLOOKUP(Table16[[#This Row],[Facility ID]],'Coord.'!$A$1:$E$818,3,FALSE) -> 35.422585 | H24: =VLOOKUP(Table16[[#This Row],[Facility ID]],'Coord.'!$A$1:$E$818,4,FALSE) -> W | I24: =VLOOKUP(Table16[[#This Row],[Facility ID]],'Coord.'!$A$1:$E$818,5,FALSE) -> -78.501492 | J24: 798244 | K24: Raines, James R | L24: 20585 | M24: 8.3 | N24: 0 | O24: 4.3 | P24: MEETS | Q24: MEETS | R24: N/A | S24: N/A | T24: 4.3 | U24: 0 | V24: CA138
A25: Vulcan Materials Co. | B25: Blacksburg Quarry - Blacksburg, SC | C25: 2019-07-30 | D25: #78-M Stone for Electrochemical | E25: CA82 | F25: =VLOOKUP(Table16[[#This Row],[Facility ID]],'Coord.'!$A$1:$E$818,2,FALSE) -> N | G25: =VLOOKUP(Table16[[#This Row],[Facility ID]],'Coord.'!$A$1:$E$818,3,FALSE) -> 35.151584 | H25: =VLOOKUP(Table16[[#This Row],[Facility ID]],'Coord.'!$A$1:$E$818,4,FALSE) -> W | I25: =VLOOKUP(Table16[[#This Row],[Facility ID]],'Coord.'!$A$1:$E$818,5,FALSE) -> -81.435599 | J25: 975113 | K25: Gosnell, Jimmy L | L25: 12430 | M25: 9.82 | N25: <29 | O25: <53.097 | P25: DOES NOT MEET | Q25: MEETS | R25: N/A | S25: N/A | T25: 53.097 | U25: 29 | V25: CA63
A26: Boxley Materials Company | B26: Blue Ridge Quarry - Blue Ridge, VA | C26: 2019-03-05 | D26: #78-M Stone for Electrochemical | E26: CA334 | F26: =VLOOKUP(Table16[[#This Row],[Facility ID]],'Coord.'!$A$1:$E$818,2,FALSE) -> N | G26: =VLOOKUP(Table16[[#This Row],[Facility ID]],'Coord.'!$A$1:$E$818,3,FALSE) -> 37.386913 | H26: =VLOOKUP(Table16[[#This Row],[Facility ID]],'Coord.'!$A$1:$E$818,4,FALSE) -> W | I26: =VLOOKUP(Table16[[#This Row],[Facility ID]],'Coord.'!$A$1:$E$818,5,FALSE) -> -79.794444 | J26: 953110 | K26: Westmoreland, Braxton J | L26: 8427 | M26: 9.2 | N26: <30 | O26: <78.32 | P26: DOES NOT MEET | Q26: MEETS | R26: N/A | S26: N/A | T26: 78.32 | U26: 30
A27: Martin Marietta | B27: Bonds Quarry - Concord | C27: 2019-09-04 | D27: #78-M Stone for Electrochemical | E27: CA276 | F27: =VLOOKUP(Table16[[#This Row],[Facility ID]],'Coord.'!$A$1:$E$818,2,FALSE) -> N | G27: =VLOOKUP(Table16[[#This Row],[Facility ID]],'Coord.'!$A$1:$E$818,3,FALSE) -> 35.379278 | H27: =VLOOKUP(Table16[[#This Row],[Facility ID]],'Coord.'!$A$1:$E$818,4,FALSE) -> W | I27: =VLOOKUP(Table16[[#This Row],[Facility ID]],'Coord.'!$A$1:$E$818,5,FALSE) -> -80.698135 | J27: 981563 | K27: Cero, Kevin M | L27: 19530 | M27: 9.43 | N27: <32 | O27: <33.794 | P27: DOES NOT MEET | Q27: MEETS | R27: N/A | S27: N/A | T27: 33.794 | U27: 32
A28: Vulcan Materials Co. | B28: Boone Quarry - Boone | C28: 2016-11-03 | D28: #78-M Stone for Electrochemical | E28: CA21 | F28: =VLOOKUP(Table16[[#This Row],[Facility ID]],'Coord.'!$A$1:$E$818,2,FALSE) -> N | G28: =VLOOKUP(Table16[[#This Row],[Facility ID]],'Coord.'!$A$1:$E$818,3,FALSE) -> 36.205551 | H28: =VLOOKUP(Table16[[#This Row],[Facility ID]],'Coord.'!$A$1:$E$818,4,FALSE) -> W | I28: =VLOOKUP(Table16[[#This Row],[Facility ID]],'Coord.'!$A$1:$E$818,5,FALSE) -> -81.71842 | J28: 833828 | K28: Church, Tracy G | L28: 35881 | M28: 7.7 | N28: 0 | O28: 1.8 | P28: MEETS | Q28: MEETS | R28: N/A | S28: N/A | T28: 1.8 | U28: 0
A29: Martin Marietta | B29: Burlington Quarry - Burlington | C29: 2019-05-31 | D29: #78-M Stone for Electrochemical | E29: CA39 | F29: =VLOOKUP(Table16[[#This Row],[Facility ID]],'Coord.'!$A$1:$E$818,2,FALSE) -> N | G29: =VLOOKUP(Table16[[#This Row],[Facility ID]],'Coord.'!$A$1:$E$818,3,FALSE) -> 36.051876 | H29: =VLOOKUP(Table16[[#This Row],[Facility ID]],'Coord.'!$A$1:$E$818,4,FALSE) -> W | I29: =VLOOKUP(Table16[[#This Row],[Facility ID]],'Coord.'!$A$1:$E$818,5,FALSE) -> -79.508237 | J29: 966238 | K29: Waller, John M | L29: 13960 | M29: 9.25 | N29: <30 | O29: <47.278 | P29: DOES NOT MEET | Q29: MEETS | R29: N/A | S29: N/A | T29: 47.278 | U29: 30
A30: Carolina Sunrock LLC | B30: Butner Quarry - Butner | C30: 2019-03-25 | D30: #78-M Stone for Electrochemical | E30: CA178 | F30: =VLOOKUP(Table16[[#This Row],[Facility ID]],'Coord.'!$A$1:$E$818,2,FALSE) -> N | G30: =VLOOKUP(Table16[[#This Row],[Facility ID]],'Coord.'!$A$1:$E$818,3,FALSE) -> 36.121975 | H30: =VLOOKUP(Table16[[#This Row],[Facility ID]],'Coord.'!$A$1:$E$818,4,FALSE) -> W | I30: =VLOOKUP(Table16[[#This Row],[Facility ID]],'Coord.'!$A$1:$E$818,5,FALSE) -> -78.772541 | J30: 955935 | K30: Skinner, III, John L | L30: 11850 | M30: 10.1 | N30: <30 | O30: <55.696 | P30: DOES NOT MEET | Q30: DOES NOT MEET | R30: N/A | S30: N/A | T30: 55.696 | U30: 30
A31: Vulcan Materials Co. | B31: Cabarrus Quarry - Concord | C31: 2019-09-24 | D31: #78-M Stone for Electrochemical | E31: CA186 | F31: =VLOOKUP(Table16[[#This Row],[Facility ID]],'Coord.'!$A$1:$E$818,2,FALSE) -> N | G31: =VLOOKUP(Table16[[#This Row],[Facility ID]],'Coord.'!$A$1:$E$818,3,FALSE) -> 35.40403 | H31: =VLOOKUP(Table16[[#This Row],[Facility ID]],'Coord.'!$A$1:$E$818,4,FALSE) -> W | I31: =VLOOKUP(Table16[[#This Row],[Facility ID]],'Coord.'!$A$1:$E$818,5,FALSE) -> -80.704829 | J31: 984945 | K31: Cero, Kevin M | L31: 15200 | M31: 9.73 | N31: <32 | O31: <43.421 | P31: DOES NOT MEET | Q31: MEETS | R31: N/A | S31: N/A | T31: 43.421 | U31: 32
A32: Salem Stone Corp. | B32: Cardinal Quarries - Smethport Quarry - W. Jefferson | C32: 2016-08-02 | D32: #78-M Stone for Electrochemical | E32: CA123 | F32: =VLOOKUP(Table16[[#This Row],[Facility ID]],'Coord.'!$A$1:$E$818,2,FALSE) -> N | G32: =VLOOKUP(Table16[[#This Row],[Facility ID]],'Coord.'!$A$1:$E$818,3,FALSE) -> 36.439356 | H32: =VLOOKUP(Table16[[#This Row],[Facility ID]],'Coord.'!$A$1:$E$818,4,FALSE) -> W | I32: =VLOOKUP(Table16[[#This Row],[Facility ID]],'Coord.'!$A$1:$E$818,5,FALSE) -> -81.48872 | J32: 819962 | K32: Church, Tracy G | L32: 7502 | M32: 8.7 | N32: 0 | O32: 40.2 | P32: MEETS | Q32: MEETS | R32: N/A | S32: N/A | T32: 40.2 | U32: 0
A33: Salem Stone Corp. | B33: Cardinal Realty - Galax Quarry - Galax, VA | C33: 2016-03-07 | D33: #78-M Stone for Electrochemical | E33: CA11 | F33: =VLOOKUP(Table16[[#This Row],[Facility ID]],'Coord.'!$A$1:$E$818,2,FALSE) -> N | G33: =VLOOKUP(Table16[[#This Row],[Facility ID]],'Coord.'!$A$1:$E$818,3,FALSE) -> 36.574819 | H33: =VLOOKUP(Table16[[#This Row],[Facility ID]],'Coord.'!$A$1:$E$818,4,FALSE) -> W | I33: =VLOOKUP(Table16[[#This Row],[Facility ID]],'Coord.'!$A$1:$E$818,5,FALSE) -> -80.929177 | J33: 797287 | K33: Whitley, Christopher D | L33: 12880 | M33: 9.2 | N33: 0 | O33: 5.5 | P33: DOES NOT MEET | Q33: MEETS | R33: N/A | S33: N/A | T33: 5.5 | U33: 0
A34: Martin Marietta | B34: Central Rock Quarry - Greensboro | C34: 2019-06-04 | D34: #78-M Stone for Electrochemical | E34: CA28 | F34: =VLOOKUP(Table16[[#This Row],[Facility ID]],'Coord.'!$A$1:$E$818,2,FALSE) -> N | G34: =VLOOKUP(Table16[[#This Row],[Facility ID]],'Coord.'!$A$1:$E$818,3,FALSE) -> 36.005654 | H34: =VLOOKUP(Table16[[#This Row],[Facility ID]],'Coord.'!$A$1:$E$818,4,FALSE) -> W | I34: =VLOOKUP(Table16[[#This Row],[Facility ID]],'Coord.'!$A$1:$E$818,5,FALSE) -> -79.748211 | J34: 966787 | K34: Waller, John M | L34: 15200 | M34: 9.49 | N34: <30 | O34: <43.421 | P34: DOES NOT MEET | Q34: MEETS | R34: N/A | S34: N/A | T34: 43.421 | U34: 30
A35: Martin Marietta | B35: Charlotte Quarry - Charlotte | C35: 2019-07-10 | D35: #78-M Stone for Electrochemical | E35: CA41 | F35: =VLOOKUP(Table16[[#This Row],[Facility ID]],'Coord.'!$A$1:$E$818,2,FALSE) -> N | G35: =VLOOKUP(Table16[[#This Row],[Facility ID]],'Coord.'!$A$1:$E$818,3,FALSE) -> 35.297229 | H35: =VLOOKUP(Table16[[#This Row],[Facility ID]],'Coord.'!$A$1:$E$818,4,FALSE) -> W | I35: =VLOOKUP(Table16[[#This Row],[Facility ID]],'Coord.'!$A$1:$E$818,5,FALSE) -> -80.863066 | J35: 972759 | K35: Pegues, Jr., Henderson | L35: 17520 | M35: 9.34 | N35: <29 | O35: <37.671 | P35: DOES NOT MEET | Q35: MEETS | R35: N/A | S35: N/A | T35: 37.671 | U35: 29
A36: Martin Marietta | B36: Clarks Quarry - New Bern | C36: 2019-09-13 | D36: #78-M Stone for Electrochemical | E36: CA189 | F36: =VLOOKUP(Table16[[#This Row],[Facility ID]],'Coord.'!$A$1:$E$818,2,FALSE) -> N | G36: =VLOOKUP(Table16[[#This Row],[Facility ID]],'Coord.'!$A$1:$E$818,3,FALSE) -> 35.150664 | H36: =VLOOKUP(Table16[[#This Row],[Facility ID]],'Coord.'!$A$1:$E$818,4,FALSE) -> W | I36: =VLOOKUP(Table16[[#This Row],[Facility ID]],'Coord.'!$A$1:$E$818,5,FALSE) -> -77.151771 | J36: 982804 | K36: Cobb, James R | L36: 3934 | M36: 8.05 | N36: <32 | O36: <167.768 | P36: MEETS | Q36: MEETS | R36: DOES NOT MEET | S36: DOES NOT MEET | T36: 167.768 | U36: 32
A37: Vulcan Materials Co. | B37: Clear Creek Q. - Charlotte | C37: 2020-02-04 | D37: #78-M Stone for Electrochemical | E37: CA249 | F37: =VLOOKUP(Table16[[#This Row],[Facility ID]],'Coord.'!$A$1:$E$818,2,FALSE) -> N | G37: =VLOOKUP(Table16[[#This Row],[Facility ID]],'Coord.'!$A$1:$E$818,3,FALSE) -> 35.2205 | H37: =VLOOKUP(Table16[[#This Row],[Facility ID]],'Coord.'!$A$1:$E$818,4,FALSE) -> W | I37: =VLOOKUP(Table16[[#This Row],[Facility ID]],'Coord.'!$A$1:$E$818,5,FALSE) -> -80.647542 | J37: 998424 | K37: Pegues, Jr., Henderson | L37: 20190 | M37: 9.46 | N37: <30 | O37: <32.689 | P37: DOES NOT MEET | Q37: MEETS | R37: N/A | S37: N/A | T37: 32.689 | U37: 30
A38: Hanson Aggregates Southeast, Inc. | B38: Crabtree Quarry - Raleigh | C38: 2019-03-13 | D38: #78-M Stone for Electrochemical | E38: CA61 | F38: =VLOOKUP(Table16[[#This Row],[Facility ID]],'Coord.'!$A$1:$E$818,2,FALSE) -> N | G38: =VLOOKUP(Table16[[#This Row],[Facility ID]],'Coord.'!$A$1:$E$818,3,FALSE) -> 35.846782 | H38: =VLOOKUP(Table16[[#This Row],[Facility ID]],'Coord.'!$A$1:$E$818,4,FALSE) -> W | I38: =VLOOKUP(Table16[[#This Row],[Facility ID]],'Coord.'!$A$1:$E$818,5,FALSE) -> -78.710388 | J38: 954290 | K38: Skinner, III, John L | L38: 17680 | M38: 9 | N38: 0 | O38: <37.330 | P38: MEETS | Q38: MEETS | R38: N/A | S38: N/A | T38: 37.33 | U38: 0
A39: Martin Marietta | B39: Denver Quarry - Denver | C39: 2019-09-20 | D39: #78-M Stone for Electrochemical | E39: CA169 | F39: =VLOOKUP(Table16[[#This Row],[Facility ID]],'Coord.'!$A$1:$E$818,2,FALSE) -> N | G39: =VLOOKUP(Table16[[#This Row],[Facility ID]],'Coord.'!$A$1:$E$818,3,FALSE) -> 35.527092 | H39: =VLOOKUP(Table16[[#This Row],[Facility ID]],'Coord.'!$A$1:$E$818,4,FALSE) -> W | I39: =VLOOKUP(Table16[[#This Row],[Facility ID]],'Coord.'!$A$1:$E$818,5,FALSE) -> -81.026444 | J39: 983981 | K39: Myers, Jesse J | L39: 10780 | M39: 8.52 | N39: <32 | O39: <61.224 | P39: MEETS | Q39: MEETS | R39: N/A | S39: N/A | T39: 61.224 | U39: 32
A40: Harrison Construction Co., Inc. | B40: Dillsboro Quarry - Dillsboro | C40: 2019-02-13 | D40: #78-M Stone for Electrochemical | E40: CA15 | F40: =VLOOKUP(Table16[[#This Row],[Facility ID]],'Coord.'!$A$1:$E$818,2,FALSE) -> N | G40: =VLOOKUP(Table16[[#This Row],[Facility ID]],'Coord.'!$A$1:$E$818,3,FALSE) -> 35.365221 | H40: =VLOOKUP(Table16[[#This Row],[Facility ID]],'Coord.'!$A$1:$E$818,4,FALSE) -> W | I40: =VLOOKUP(Table16[[#This Row],[Facility ID]],'Coord.'!$A$1:$E$818,5,FALSE) -> -83.261218 | J40: 949677 | K40: Ledford, Brandon S | L40: 9607 | M40: 8.8 | N40: 0 | O40: <68.7 | P40: MEETS | Q40: MEETS | R40: N/A | S40: N/A | T40: 68.7 | U40: 0
A41: Martin Marietta | B41: East Alamance Sales Yard | C41: 2016-02-08 | D41: #78-M Stone for Electrochemical | E41: CA377 | F41: =VLOOKUP(Table16[[#This Row],[Facility ID]],'Coord.'!$A$1:$E$818,2,FALSE) -> N | G41: =VLOOKUP(Table16[[#This Row],[Facility ID]],'Coord.'!$A$1:$E$818,3,FALSE) -> 36.12673 | H41: =VLOOKUP(Table16[[#This Row],[Facility ID]],'Coord.'!$A$1:$E$818,4,FALSE) -> W | I41: =VLOOKUP(Table16[[#This Row],[Facility ID]],'Coord.'!$A$1:$E$818,5,FALSE) -> -79.34731 | J41: 793261 | K41: Westmoreland, Braxton J | L41: 15330 | M41: 8.3 | N41: 5 | O41: 9.4 | P41: MEETS | Q41: MEETS | R41: N/A | S41: N/A | T41: 9.4 | U41: 5
A42: Vulcan Materials Co. | B42: East Forsyth Quarry - Kernersville | C42: 2020-02-24 | D42: #78-M Stone for Electrochemical | E42: CA139 | F42: =VLOOKUP(Table16[[#This Row],[Facility ID]],'Coord.'!$A$1:$E$818,2,FALSE) -> N | G42: =VLOOKUP(Table16[[#This Row],[Facility ID]],'Coord.'!$A$1:$E$818,3,FALSE) -> 36.024623 | H42: =VLOOKUP(Table16[[#This Row],[Facility ID]],'Coord.'!$A$1:$E$818,4,FALSE) -> W | I42: =VLOOKUP(Table16[[#This Row],[Facility ID]],'Coord.'!$A$1:$E$818,5,FALSE) -> -80.06013 | J42: 1000310 | K42: Ealey, Lee E | L42: 16860 | M42: 9.25 | N42: <30 | O42: <39.146 | P42: DOES NOT MEET | Q42: MEETS | R42: N/A | S42: N/A | T42: 39.146 | U42: 30
A43: Ararat Rock Products | B43: Eden Quarry - Eden | C43: 2019-03-12 | D43: #78-M Stone for Electrochemical | E43: CA374 | F43: =VLOOKUP(Table16[[#This Row],[Facility ID]],'Coord.'!$A$1:$E$818,2,FALSE) -> N | G43: =VLOOKUP(Table16[[#This Row],[Facility ID]],'Coord.'!$A$1:$E$818,3,FALSE) -> 36.541252 | H43: =VLOOKUP(Table16[[#This Row],[Facility ID]],'Coord.'!$A$1:$E$818,4,FALSE) -> W | I43: =VLOOKUP(Table16[[#This Row],[Facility ID]],'Coord.'!$A$1:$E$818,5,FALSE) -> -79.665728 | J43: 954434 | K43: Westmoreland, Braxton J | L43: 7234 | M43: 8.9 | N43: 0 | O43: <91.236 | P43: MEETS | Q43: MEETS | R43: N/A | S43: N/A | T43: 91.236 | U43: 0
A44: Vulcan Materials Co. | B44: Enka Quarry - Enka | C44: 2019-09-05 | D44: #78-M Stone for Electrochemical | E44: CA69 | F44: =VLOOKUP(Table16[[#This Row],[Facility ID]],'Coord.'!$A$1:$E$818,2,FALSE) -> N | G44: =VLOOKUP(Table16[[#This Row],[Facility ID]],'Coord.'!$A$1:$E$818,3,FALSE) -> 35.3237 | H44: =VLOOKUP(Table16[[#This Row],[Facility ID]],'Coord.'!$A$1:$E$818,4,FALSE) -> W | I44: =VLOOKUP(Table16[[#This Row],[Facility ID]],'Coord.'!$A$1:$E$818,5,FALSE) -> -82.4009 | J44: 981853 | K44: Rhymer, Robert C | L44: 11350 | M44: 8.64 | N44: <32 | O44: <58.150 | P44: MEETS | Q44: MEETS | R44: N/A | S44: N/A | T44: 58.15 | U44: 32
A45: Boxley Materials Company | B45: Fieldale Quarry - Martinsville, VA | C45: 2019-03-05 | D45: #78-M Stone for Electrochemical | E45: CA142 | F45: =VLOOKUP(Table16[[#This Row],[Facility ID]],'Coord.'!$A$1:$E$818,2,FALSE) -> N | G45: =VLOOKUP(Table16[[#This Row],[Facility ID]],'Coord.'!$A$1:$E$818,3,FALSE) -> 36.688295 | H45: =VLOOKUP(Table16[[#This Row],[Facility ID]],'Coord.'!$A$1:$E$818,4,FALSE) -> W | I45: =VLOOKUP(Table16[[#This Row],[Facility ID]],'Coord.'!$A$1:$E$818,5,FALSE) -> -79.938883 | J45: 953149 | K45: Westmoreland, Braxton J | L45: 7555 | M45: 8.7 | N45: 0 | O45: <87.359 | P45: MEETS | Q45: MEETS | R45: N/A | S45: N/A | T45: 87.359 | U45: 0
A46: Martin Marietta | B46: Fountain Quarry - Fountain | C46: 2020-09-25 | D46: #78-M Stone for Electrochemical | E46: CA42 | F46: =VLOOKUP(Table16[[#This Row],[Facility ID]],'Coord.'!$A$1:$E$818,2,FALSE) -> N | G46: =VLOOKUP(Table16[[#This Row],[Facility ID]],'Coord.'!$A$1:$E$818,3,FALSE) -> 35.668506 | H46: =VLOOKUP(Table16[[#This Row],[Facility ID]],'Coord.'!$A$1:$E$818,4,FALSE) -> W | I46: =VLOOKUP(Table16[[#This Row],[Facility ID]],'Coord.'!$A$1:$E$818,5,FALSE) -> -77.630317 | J46: 1021241 | K46: Cobb, James R | L46: 14210 | M46: 9.44 | N46: <30 | O46: <46.446 | P46: DOES NOT MEET | Q46: MEETS | R46: DOES NOT MEET | S46: MEETS | T46: 46.446 | U46: 30
A47: Harrison Construction Co., Inc. | B47: Franklin Quarry - Franklin | C47: 2019-01-17 | D47: #78-M Stone for Electrochemical | E47: CA16 | F47: =VLOOKUP(Table16[[#This Row],[Facility ID]],'Coord.'!$A$1:$E$818,2,FALSE) -> N | G47: =VLOOKUP(Table16[[#This Row],[Facility ID]],'Coord.'!$A$1:$E$818,3,FALSE) -> 35.163902 | H47: =VLOOKUP(Table16[[#This Row],[Facility ID]],'Coord.'!$A$1:$E$818,4,FALSE) -> W | I47: =VLOOKUP(Table16[[#This Row],[Facility ID]],'Coord.'!$A$1:$E$818,5,FALSE) -> -83.425331 | J47: 946030 | K47: Ledford, Brandon S | L47: 11820 | M47: 8.4 | N47: 0 | O47: <55.838 | P47: MEETS | Q47: MEETS | R47: N/A | S47: N/A | T47: 55.838 | U47: 0
A48: Martin Marietta | B48: Franklin Quarry - Franklinton | C48: 2019-03-27 | D48: #78-M Stone for Electrochemical | E48: CA270 | F48: =VLOOKUP(Table16[[#This Row],[Facility ID]],'Coord.'!$A$1:$E$818,2,FALSE) -> N | G48: =VLOOKUP(Table16[[#This Row],[Facility ID]],'Coord.'!$A$1:$E$818,3,FALSE) -> 36.070531 | H48: =VLOOKUP(Table16[[#This Row],[Facility ID]],'Coord.'!$A$1:$E$818,4,FALSE) -> W | I48: =VLOOKUP(Table16[[#This Row],[Facility ID]],'Coord.'!$A$1:$E$818,5,FALSE) -> -78.485542 | J48: 956772 | K48: Skinner, III, John L | L48: 24930 | M48: 8.1 | N48: <30 | O48: <26.474 | P48: MEETS | Q48: MEETS | R48: N/A | S48: N/A | T48: 26.474 | U48: 30
A49: Martin Marietta | B49: Fuquay Quarry - Fuquay-Varina | C49: 2019-01-31 | D49: #78-M Stone for Electrochemical | E49: CA220 | F49: =VLOOKUP(Table16[[#This Row],[Facility ID]],'Coord.'!$A$1:$E$818,2,FALSE) -> 0 | G49: =VLOOKUP(Table16[[#This Row],[Facility ID]],'Coord.'!$A$1:$E$818,3,FALSE) -> 35.579534 | H49: =VLOOKUP(Table16[[#This Row],[Facility ID]],'Coord.'!$A$1:$E$818,4,FALSE) -> W | I49: =VLOOKUP(Table16[[#This Row],[Facility ID]],'Coord.'!$A$1:$E$818,5,FALSE) -> -78.875699 | J49: 947853 | K49: Skinner, III, John L | L49: 20170 | M49: 9.3 | N49: 0 | O49: <32.722 | P49: DOES NOT MEET | Q49: MEETS | R49: N/A | S49: N/A | T49: 32.722 | U49: 0
A50: Martin Marietta | B50: Garner Quarry - Garner | C50: 2019-01-29 | D50: #78-M Stone for Electrochemical | E50: CA57 | F50: =VLOOKUP(Table16[[#This Row],[Facility ID]],'Coord.'!$A$1:$E$818,2,FALSE) -> N | G50: =VLOOKUP(Table16[[#This Row],[Facility ID]],'Coord.'!$A$1:$E$818,3,FALSE) -> 35.702164 | H50: =VLOOKUP(Table16[[#This Row],[Facility ID]],'Coord.'!$A$1:$E$818,4,FALSE) -> W | I50: =VLOOKUP(Table16[[#This Row],[Facility ID]],'Coord.'!$A$1:$E$818,5,FALSE) -> -78.577137 | J50: 947428 | K50: Skinner, III, John L | L50: 21020 | M50: 9.3 | N50: 0 | O50: <31.399 | P50: DOES NOT MEET | Q50: MEETS | R50: N/A | S50: N/A | T50: 31.399 | U50: 0
A51: Carolina Stalite Corp. | B51: Gold Hill (Light Wt.) - Gold Hill | C51: 2020-04-07 | D51: #78-M Stone for Electrochemical | E51: CA226 | F51: =VLOOKUP(Table16[[#This Row],[Facility ID]],'Coord.'!$A$1:$E$818,2,FALSE) -> N | G51: =VLOOKUP(Table16[[#This Row],[Facility ID]],'Coord.'!$A$1:$E$818,3,FALSE) -> 35.504739 | H51: =VLOOKUP(Table16[[#This Row],[Facility ID]],'Coord.'!$A$1:$E$818,4,FALSE) -> W | I51: =VLOOKUP(Table16[[#This Row],[Facility ID]],'Coord.'!$A$1:$E$818,5,FALSE) -> -80.330615 | J51: 1004822 | K51: Whitley, Christopher D | L51: 4816 | M51: 9.67 | N51: <30 | O51: <137.0 | P51: DOES NOT MEET | Q51: MEETS | R51: N/A | S51: N/A | T51: 137 | U51: 30
A52: Vulcan Materials Co. | B52: Gold Hill Quarry - Gold Hill | C52: 2020-02-20 | D52: #78-M Stone for Electrochemical | E52: CA85 | F52: =VLOOKUP(Table16[[#This Row],[Facility ID]],'Coord.'!$A$1:$E$818,2,FALSE) -> N | G52: =VLOOKUP(Table16[[#This Row],[Facility ID]],'Coord.'!$A$1:$E$818,3,FALSE) -> 35.507568 | H52: =VLOOKUP(Table16[[#This Row],[Facility ID]],'Coord.'!$A$1:$E$818,4,FALSE) -> W | I52: =VLOOKUP(Table16[[#This Row],[Facility ID]],'Coord.'!$A$1:$E$818,5,FALSE) -> -80.323988 | J52: 1000216 | K52: Ealey, Lee E | L52: 6092 | M52: 8.35 | N52: <30 | O52: <108.339 | P52: MEETS | Q52: MEETS | R52: N/A | S52: N/A | T52: 108.339 | U52: 30
A53: Vulcan Materials Co. | B53: Greystone Quarry - Henderson | C53: 2019-04-01 | D53: #78-M Stone for Electrochemical | E53: CA70 | F53: =VLOOKUP(Table16[[#This Row],[Facility ID]],'Coord.'!$A$1:$E$818,2,FALSE) -> N | G53: =VLOOKUP(Table16[[#This Row],[Facility ID]],'Coord.'!$A$1:$E$818,3,FALSE) -> 36.355214 | H53: =VLOOKUP(Table16[[#This Row],[Facility ID]],'Coord.'!$A$1:$E$818,4,FALSE) -> W | I53: =VLOOKUP(Table16[[#This Row],[Facility ID]],'Coord.'!$A$1:$E$818,5,FALSE) -> -78.348459 | J53: 957255 | K53: Skinner, III, John L | L53: 24010 | M53: 9.5 | N53: <30 | O53: <27.489 | P53: DOES NOT MEET | Q53: MEETS | R53: N/A | S53: N/A | T53: 27.489 | U53: 30
A54: Hedrick Industries | B54: Grove Stone Quarry - Black Mountain | C54: 2019-04-23 | D54: #78-M Stone for Electrochemical | E54: CA146 | F54: =VLOOKUP(Table16[[#This Row],[Facility ID]],'Coord.'!$A$1:$E$818,2,FALSE) -> N | G54: =VLOOKUP(Table16[[#This Row],[Facility ID]],'Coord.'!$A$1:$E$818,3,FALSE) -> 35.610684 | H54: =VLOOKUP(Table16[[#This Row],[Facility ID]],'Coord.'!$A$1:$E$818,4,FALSE) -> W | I54: =VLOOKUP(Table16[[#This Row],[Facility ID]],'Coord.'!$A$1:$E$818,5,FALSE) -> -82.364769 | J54: 960224 | K54: Rhymer, Robert C | L54: 16900 | M54: 9.2 | N54: <30 | O54: <39.053 | P54: DOES NOT MEET | Q54: MEETS | R54: N/A | S54: N/A | T54: 39.053 | U54: 30
A55: Vulcan Materials Co. | B55: Havre De Grace Quarry - Havre De Grace, MD | C55: 2016-10-26 | D55: #78-M Stone for Electrochemical | E55: CA345 | F55: =VLOOKUP(Table16[[#This Row],[Facility ID]],'Coord.'!$A$1:$E$818,2,FALSE) -> N | G55: =VLOOKUP(Table16[[#This Row],[Facility ID]],'Coord.'!$A$1:$E$818,3,FALSE) -> 35.58499 | H55: =VLOOKUP(Table16[[#This Row],[Facility ID]],'Coord.'!$A$1:$E$818,4,FALSE) -> W | I55: =VLOOKUP(Table16[[#This Row],[Facility ID]],'Coord.'!$A$1:$E$818,5,FALSE) -> -76.103046 | J55: 832499 | K55: Bonds, Maria M | L55: 6605 | M55: 7.9 | N55: 17.7 | O55: 7.6 | P55: MEETS | Q55: MEETS | R55: MEETS | S55: MEETS | T55: 7.6 | U55: 17.7
A56: Harrison Construction Co., Inc. | B56: Hayesville Quarry - Hayesville | C56: 2016-07-15 | D56: #78-M Stone for Electrochemical | E56: CA195 | F56: =VLOOKUP(Table16[[#This Row],[Facility ID]],'Coord.'!$A$1:$E$818,2,FALSE) -> N | G56: =VLOOKUP(Table16[[#This Row],[Facility ID]],'Coord.'!$A$1:$E$818,3,FALSE) -> 34.99182 | H56: =VLOOKUP(Table16[[#This Row],[Facility ID]],'Coord.'!$A$1:$E$818,4,FALSE) -> W | I56: =VLOOKUP(Table16[[#This Row],[Facility ID]],'Coord.'!$A$1:$E$818,5,FALSE) -> -83.848622 | J56: 816298 | K56: Ledford, Brandon S | L56: 8467 | M56: 8.7 | N56: 2.1 | O56: 28.4 | P56: MEETS | Q56: MEETS | R56: N/A | S56: N/A | T56: 28.4 | U56: 2.1
A57: Rogers Group, Inc. | B57: Henrietta Quarry - Mooresboro | C57: 2019-04-30 | D57: #78-M Stone for Electrochemical | E57: CA369 | F57: =VLOOKUP(Table16[[#This Row],[Facility ID]],'Coord.'!$A$1:$E$818,2,FALSE) -> N | G57: =VLOOKUP(Table16[[#This Row],[Facility ID]],'Coord.'!$A$1:$E$818,3,FALSE) -> 35.239413 | H57: =VLOOKUP(Table16[[#This Row],[Facility ID]],'Coord.'!$A$1:$E$818,4,FALSE) -> W | I57: =VLOOKUP(Table16[[#This Row],[Facility ID]],'Coord.'!$A$1:$E$818,5,FALSE) -> -81.814165 | J57: 961359 | K57: Rhymer, Robert C | L57: 18140 | M57: 8.9 | N57: <30 | O57: <36.384 | P57: MEETS | Q57: MEETS | R57: N/A | S57: N/A | T57: 36.384 | U57: 30
A58: L.B.M. Industries | B58: Hewitt Quarry - Topton | C58: 2011-07-26 | D58: #78-M Stone for Electrochemical | E58: CA23 | F58: =VLOOKUP(Table16[[#This Row],[Facility ID]],'Coord.'!$A$1:$E$818,2,FALSE) -> N | G58: =VLOOKUP(Table16[[#This Row],[Facility ID]],'Coord.'!$A$1:$E$818,3,FALSE) -> 35.18289 | H58: =VLOOKUP(Table16[[#This Row],[Facility ID]],'Coord.'!$A$1:$E$818,4,FALSE) -> W | I58: =VLOOKUP(Table16[[#This Row],[Facility ID]],'Coord.'!$A$1:$E$818,5,FALSE) -> -83.38988 | J58: 595694 | K58: Cross, Adam D | L58: 15432 | M58: 8.8 | N58: 0 | O58: 0 | P58: MEETS | Q58: MEETS | R58: N/A | S58: N/A | T58: 0 | U58: 0
A59: Martin Marietta | B59: Hickory Quarry - Hickory | C59: 2019-07-08 | D59: #78-M Stone for Electrochemical | E59: CA43 | F59: =VLOOKUP(Table16[[#This Row],[Facility ID]],'Coord.'!$A$1:$E$818,2,FALSE) -> N | G59: =VLOOKUP(Table16[[#This Row],[Facility ID]],'Coord.'!$A$1:$E$818,3,FALSE) -> 35.71702 | H59: =VLOOKUP(Table16[[#This Row],[Facility ID]],'Coord.'!$A$1:$E$818,4,FALSE) -> W | I59: =VLOOKUP(Table16[[#This Row],[Facility ID]],'Coord.'!$A$1:$E$818,5,FALSE) -> -81.301823 | J59: 971764 | K59: Gosnell, Jimmy L | L59: 21930 | M59: 9.47 | N59: <29 | O59: <30.096 | P59: DOES NOT MEET | Q59: MEETS | R59: N/A | S59: N/A | T59: 30.096 | U59: 29
A60: Hanson Aggregates Southeast, Inc. | B60: Holly Springs Quarry | C60: 2019-03-29 | D60: #78-M Stone for Electrochemical | E60: CA282 | F60: =VLOOKUP(Table16[[#This Row],[Facility ID]],'Coord.'!$A$1:$E$818,2,FALSE) -> N | G60: =VLOOKUP(Table16[[#This Row],[Facility ID]],'Coord.'!$A$1:$E$818,3,FALSE) -> 35.602602 | H60: =VLOOKUP(Table16[[#This Row],[Facility ID]],'Coord.'!$A$1:$E$818,4,FALSE) -> W | I60: =VLOOKUP(Table16[[#This Row],[Facility ID]],'Coord.'!$A$1:$E$818,5,FALSE) -> -78.877609 | J60: 956969 | K60: Skinner, III, John L | L60: 22360 | M60: 9.3 | N60: <30 | O60: <29.517 | P60: DOES NOT MEET | Q60: MEETS | R60: N/A | S60: N/A | T60: 29.517 | U60: 30
A61: Vulcan Materials Co. | B61: Jack Quarry - Petersburg, VA | C61: 2020-09-21 | D61: #78-M Stone for Electrochemical | E61: CA137 | F61: =VLOOKUP(Table16[[#This Row],[Facility ID]],'Coord.'!$A$1:$E$818,2,FALSE) -> 0 | G61: =VLOOKUP(Table16[[#This Row],[Facility ID]],'Coord.'!$A$1:$E$818,3,FALSE) -> 37.197638 | H61: =VLOOKUP(Table16[[#This Row],[Facility ID]],'Coord.'!$A$1:$E$818,4,FALSE) -> 0 | I61: =VLOOKUP(Table16[[#This Row],[Facility ID]],'Coord.'!$A$1:$E$818,5,FALSE) -> -77.504618 | J61: 1021105 | K61: Bonds, Maria M | L61: 10330 | M61: 9.51 | N61: <30 | O61: <63.892 | P61: DOES NOT MEET | Q61: MEETS | R61: DOES NOT MEET | S61: MEETS | T61: 63.892 | U61: 30
A62: Martin Marietta | B62: Jamestown Quarry - Jamestown | C62: 2019-06-04 | D62: #78-M Stone for Electrochemical | E62: CA46 | F62: =VLOOKUP(Table16[[#This Row],[Facility ID]],'Coord.'!$A$1:$E$818,2,FALSE) -> 0 | G62: =VLOOKUP(Table16[[#This Row],[Facility ID]],'Coord.'!$A$1:$E$818,3,FALSE) -> 35.964756 | H62: =VLOOKUP(Table16[[#This Row],[Facility ID]],'Coord.'!$A$1:$E$818,4,FALSE) -> W | I62: =VLOOKUP(Table16[[#This Row],[Facility ID]],'Coord.'!$A$1:$E$818,5,FALSE) -> -79.920194 | J62: 966788 | K62: Waller, John M | L62: 28310 | M62: 9.13 | N62: <30 | O62: <23.313 | P62: DOES NOT MEET | Q62: MEETS | R62: N/A | S62: N/A | T62: 23.313 | U62: 30
A63: Hanson Aggregates Southeast, Inc. | B63: Jefferson Quarry - Jefferson, SC | C63: 2019-09-13 | D63: #78-M Stone for Electrochemical | E63: CA120 | F63: =VLOOKUP(Table16[[#This Row],[Facility ID]],'Coord.'!$A$1:$E$818,2,FALSE) -> N | G63: =VLOOKUP(Table16[[#This Row],[Facility ID]],'Coord.'!$A$1:$E$818,3,FALSE) -> 34.69969 | H63: =VLOOKUP(Table16[[#This Row],[Facility ID]],'Coord.'!$A$1:$E$818,4,FALSE) -> W | I63: =VLOOKUP(Table16[[#This Row],[Facility ID]],'Coord.'!$A$1:$E$818,5,FALSE) -> -80.332675 | J63: 982918 | K63: Jordan, Daniel H | L63: 55150 | M63: 7.86 | N63: <32 | O63: <11.967 | P63: MEETS | Q63: MEETS | R63: N/A | S63: N/A | T63: 11.967 | U63: 32
A64: Martin Marietta | B64: Kannapolis Quarry - Landis | C64: 2020-02-26 | D64: #78-M Stone for Electrochemical | E64: CA47 | F64: =VLOOKUP(Table16[[#This Row],[Facility ID]],'Coord.'!$A$1:$E$818,2,FALSE) -> N | G64: =VLOOKUP(Table16[[#This Row],[Facility ID]],'Coord.'!$A$1:$E$818,3,FALSE) -> 35.520546 | H64: =VLOOKUP(Table16[[#This Row],[Facility ID]],'Coord.'!$A$1:$E$818,4,FALSE) -> W | I64: =VLOOKUP(Table16[[#This Row],[Facility ID]],'Coord.'!$A$1:$E$818,5,FALSE) -> -80.584058 | J64: 1000984 | K64: Ealey, Lee E | L64: 20890 | M64: 9.13 | N64: <30 | O64: <31.594 | P64: DOES NOT MEET | Q64: MEETS | R64: N/A | S64: N/A | T64: 31.594 | U64: 30
A65: Martin Marietta | B65: Kings Mountain Quarry - Kings Mountain | C65: 2019-07-01 | D65: #78-M Stone for Electrochemical | E65: CA48 | F65: =VLOOKUP(Table16[[#This Row],[Facility ID]],'Coord.'!$A$1:$E$818,2,FALSE) -> N | G65: =VLOOKUP(Table16[[#This Row],[Facility ID]],'Coord.'!$A$1:$E$818,3,FALSE) -> 35.225724 | H65: =VLOOKUP(Table16[[#This Row],[Facility ID]],'Coord.'!$A$1:$E$818,4,FALSE) -> W | I65: =VLOOKUP(Table16[[#This Row],[Facility ID]],'Coord.'!$A$1:$E$818,5,FALSE) -> -81.339362 | J65: 970680 | K65: Gosnell, Jimmy L | L65: 12220 | M65: 9.29 | N65: <29 | O65: <54.010 | P65: DOES NOT MEET | Q65: MEETS | R65: N/A | S65: N/A | T65: 54.01 | U65: 29
A66: Carolina Sunrock LLC | B66: Kittrell Quarry - Kittrell | C66: 2019-02-01 | D66: #78-M Stone for Electrochemical | E66: CA304 | F66: =VLOOKUP(Table16[[#This Row],[Facility ID]],'Coord.'!$A$1:$E$818,2,FALSE) -> N | G66: =VLOOKUP(Table16[[#This Row],[Facility ID]],'Coord.'!$A$1:$E$818,3,FALSE) -> 36.169713 | H66: =VLOOKUP(Table16[[#This Row],[Facility ID]],'Coord.'!$A$1:$E$818,4,FALSE) -> W | I66: =VLOOKUP(Table16[[#This Row],[Facility ID]],'Coord.'!$A$1:$E$818,5,FALSE) -> -78.444864 | J66: 948022 | K66: Skinner, III, John L | L66: 18400 | M66: 9.3 | N66: 0 | O66: <35.87 | P66: =IF(AND(4.5 <= $M66, $M66 <= 9), "MEETS", "DOES NOT MEET") -> DOES NOT MEET | Q66: =IF(AND(5 <= $M66, $M66 <= 10), "MEETS", "DOES NOT MEET") -> MEETS | R66: N/A | S66: N/A | T66: =IF(LEFT(O66, 1)="<", VALUE(RIGHT(O66,LEN(O66)-1)), O66) -> 35.87 | U66: =IF(LEFT(N66, 1)="<", VALUE(RIGHT(N66,LEN(N66)-1)), N66) -> 0
A67: Wake Stone Corp. | B67: Knightdale Quarry - Knightdale | C67: 2020-09-14 | D67: #78-M Stone for Electrochemical | E67: CA98 | F67: =VLOOKUP(Table16[[#This Row],[Facility ID]],'Coord.'!$A$1:$E$818,2,FALSE) -> N | G67: =VLOOKUP(Table16[[#This Row],[Facility ID]],'Coord.'!$A$1:$E$818,3,FALSE) -> 35.797773 | H67: =VLOOKUP(Table16[[#This Row],[Facility ID]],'Coord.'!$A$1:$E$818,4,FALSE) -> W | I67: =VLOOKUP(Table16[[#This Row],[Facility ID]],'Coord.'!$A$1:$E$818,5,FALSE) -> -78.502251 | J67: 1020095 | K67: Skinner, III, John L | L67: 16560 | M67: 9.51 | N67: <30 | O67: <39.855 | P67: DOES NOT MEET | Q67: MEETS | R67: N/A | S67: N/A | T67: 39.855 | U67: 30
A68: Hedrick Industries | B68: Lake Norman Quarry - Stanley | C68: 2019-07-12 | D68: #78-M Stone for Electrochemical | E68: CA168 | F68: =VLOOKUP(Table16[[#This Row],[Facility ID]],'Coord.'!$A$1:$E$818,2,FALSE) -> N | G68: =VLOOKUP(Table16[[#This Row],[Facility ID]],'Coord.'!$A$1:$E$818,3,FALSE) -> 35.428624 | H68: =VLOOKUP(Table16[[#This Row],[Facility ID]],'Coord.'!$A$1:$E$818,4,FALSE) -> W | I68: =VLOOKUP(Table16[[#This Row],[Facility ID]],'Coord.'!$A$1:$E$818,5,FALSE) -> -81.017242 | J68: 972393 | K68: Gosnell, Jimmy L | L68: 8980 | M68: 9.04 | N68: <29 | O68: <73.497 | P68: DOES NOT MEET | Q68: MEETS | R68: N/A | S68: N/A | T68: 73.497 | U68: 29
A69: Boxley Materials Company | B69: Lawyers Road Quarry - Lynchburg, VA | C69: 2016-03-14 | D69: #78-M Stone for Electrochemical | E69: CA400 | F69: =VLOOKUP(Table16[[#This Row],[Facility ID]],'Coord.'!$A$1:$E$818,2,FALSE) -> N | G69: =VLOOKUP(Table16[[#This Row],[Facility ID]],'Coord.'!$A$1:$E$818,3,FALSE) -> 37.310776 | H69: =VLOOKUP(Table16[[#This Row],[Facility ID]],'Coord.'!$A$1:$E$818,4,FALSE) -> W | I69: =VLOOKUP(Table16[[#This Row],[Facility ID]],'Coord.'!$A$1:$E$818,5,FALSE) -> -79.196891 | J69: 798420 | K69: Fosque, Robert W | L69: 17065 | M69: 7.6 | N69: 0 | O69: 9.5 | P69: MEETS | Q69: MEETS | R69: N/A | S69: N/A | T69: 9.5 | U69: 0
A70: Martin Marietta | B70: Lemon Springs - Sanford | C70: 2019-08-16 | D70: #78-M Stone for Electrochemical | E70: CA97 | F70: =VLOOKUP(Table16[[#This Row],[Facility ID]],'Coord.'!$A$1:$E$818,2,FALSE) -> 0 | G70: =VLOOKUP(Table16[[#This Row],[Facility ID]],'Coord.'!$A$1:$E$818,3,FALSE) -> 35.410661 | H70: =VLOOKUP(Table16[[#This Row],[Facility ID]],'Coord.'!$A$1:$E$818,4,FALSE) -> 0 | I70: =VLOOKUP(Table16[[#This Row],[Facility ID]],'Coord.'!$A$1:$E$818,5,FALSE) -> -79.2065 | J70: 978234 | K70: Jackson, Brandon M | L70: 15270 | M70: 9.23 | N70: <29 | O70: <43.222 | P70: DOES NOT MEET | Q70: MEETS | R70: N/A | S70: N/A | T70: 43.222 | U70: 29
A71: Vulcan Materials Co. | B71: Lenior Quarry - Lenoir | C71: 2016-06-24 | D71: #78-M Stone for Electrochemical | E71: CA91 | F71: =VLOOKUP(Table16[[#This Row],[Facility ID]],'Coord.'!$A$1:$E$818,2,FALSE) -> N | G71: =VLOOKUP(Table16[[#This Row],[Facility ID]],'Coord.'!$A$1:$E$818,3,FALSE) -> 35.93525 | H71: =VLOOKUP(Table16[[#This Row],[Facility ID]],'Coord.'!$A$1:$E$818,4,FALSE) -> W | I71: =VLOOKUP(Table16[[#This Row],[Facility ID]],'Coord.'!$A$1:$E$818,5,FALSE) -> -81.488753 | J71: 815307 | K71: Church, Tracy G | L71: 17443 | M71: 9.2 | N71: 2.1 | O71: 15.3 | P71: DOES NOT MEET | Q71: MEETS | R71: N/A | S71: N/A | T71: 15.3 | U71: 2.1
A72: McCrary Stone | B72: Low Gap Quarry - Burnsville | C72: 2019-03-05 | D72: #78-M Stone for Electrochemical | E72: CA244 | F72: =VLOOKUP(Table16[[#This Row],[Facility ID]],'Coord.'!$A$1:$E$818,2,FALSE) -> N | G72: =VLOOKUP(Table16[[#This Row],[Facility ID]],'Coord.'!$A$1:$E$818,3,FALSE) -> 35.523 | H72: =VLOOKUP(Table16[[#This Row],[Facility ID]],'Coord.'!$A$1:$E$818,4,FALSE) -> W | I72: =VLOOKUP(Table16[[#This Row],[Facility ID]],'Coord.'!$A$1:$E$818,5,FALSE) -> -82.1754 | J72: 952983 | K72: Kindley, Wallace Quint | L72: 2687 | M72: 3.4 | N72: <30 | O72: <245.627 | P72: DOES NOT MEET | Q72: DOES NOT MEET | R72: N/A | S72: N/A | T72: 245.627 | U72: 30
A73: Georgia Stone Products | B73: Lynches River Quarry - Jefferson, SC | C73: 2019-07-10 | D73: #78-M Stone for Electrochemical | E73: CA325 | F73: =VLOOKUP(Table16[[#This Row],[Facility ID]],'Coord.'!$A$1:$E$818,2,FALSE) -> N | G73: =VLOOKUP(Table16[[#This Row],[Facility ID]],'Coord.'!$A$1:$E$818,3,FALSE) -> 34.703235 | H73: =VLOOKUP(Table16[[#This Row],[Facility ID]],'Coord.'!$A$1:$E$818,4,FALSE) -> W | I73: =VLOOKUP(Table16[[#This Row],[Facility ID]],'Coord.'!$A$1:$E$818,5,FALSE) -> -80.461099 | J73: 971840 | K73: Jordan, Daniel H | L73: 25790 | M73: 9.33 | N73: <29 | O73: <25.591 | P73: DOES NOT MEET | Q73: MEETS | R73: N/A | S73: N/A | T73: 25.591 | U73: 29
A74: Martin Marietta | B74: Mallard Creek Quarry - Charlotte | C74: 2019-11-06 | D74: #78-M Stone for Electrochemical | E74: CA188 | F74: =VLOOKUP(Table16[[#This Row],[Facility ID]],'Coord.'!$A$1:$E$818,2,FALSE) -> N | G74: =VLOOKUP(Table16[[#This Row],[Facility ID]],'Coord.'!$A$1:$E$818,3,FALSE) -> 35.318085 | H74: =VLOOKUP(Table16[[#This Row],[Facility ID]],'Coord.'!$A$1:$E$818,4,FALSE) -> W | I74: =VLOOKUP(Table16[[#This Row],[Facility ID]],'Coord.'!$A$1:$E$818,5,FALSE) -> -80.728078 | J74: 990711 | K74: Pegues, Jr., Henderson | L74: 15450 | M74: 9.34 | N74: <32 | O74: <42.718 | P74: DOES NOT MEET | Q74: MEETS | R74: =IF(OR(ISBLANK(L74), NOT(ISNUMBER(MATCH($E74, Coastal,0)))), "N/A", IF(AND(4.5 <= $M74, $M74 <= 9),IF($L74>=5000,IF($U74<=100,IF($T74<=200,"MEETS","DOES NOT MEET"),"DOES NOT MEET"),"DOES NOT MEET"),"DOES NOT MEET")) -> N/A | S74: =IF(OR(ISBLANK(M74), NOT(ISNUMBER(MATCH($E74, Coastal, 0)))), "N/A", IF(AND(5 <= $M74, $M74 <= 10),IF($L74>=5000,IF($U74<=100,IF($T74<=200,"MEETS","DOES NOT MEET"),"DOES NOT MEET"),"DOES NOT MEET"),"DOES NOT MEET")) -> N/A | T74: 42.718 | U74: 32
A75: Hanson Aggregates Southeast, Inc. | B75: Marlboro Plant - Bennettsville | C75: 2018-10-24 | D75: #78-M Stone for Electrochemical | E75: CA34 | F75: =VLOOKUP(Table16[[#This Row],[Facility ID]],'Coord.'!$A$1:$E$818,2,FALSE) -> N | G75: =VLOOKUP(Table16[[#This Row],[Facility ID]],'Coord.'!$A$1:$E$818,3,FALSE) -> 34.584676 | H75: =VLOOKUP(Table16[[#This Row],[Facility ID]],'Coord.'!$A$1:$E$818,4,FALSE) -> W | I75: =VLOOKUP(Table16[[#This Row],[Facility ID]],'Coord.'!$A$1:$E$818,5,FALSE) -> -79.748297 | J75: 936887 | K75: Jordan, Daniel H | L75: 101900 | M75: 5.8 | N75: 0 | O75: <6.5 | P75: MEETS | Q75: MEETS | R75: N/A | S75: N/A | T75: 6.5 | U75: 0
A76: McCrary Stone | B76: Marshall Quarry - Marshall | C76: 2019-08-12 | D76: #78-M Stone for Electrochemical | E76: CA113 | F76: =VLOOKUP(Table16[[#This Row],[Facility ID]],'Coord.'!$A$1:$E$818,2,FALSE) -> N | G76: =VLOOKUP(Table16[[#This Row],[Facility ID]],'Coord.'!$A$1:$E$818,3,FALSE) -> 35.792836 | H76: =VLOOKUP(Table16[[#This Row],[Facility ID]],'Coord.'!$A$1:$E$818,4,FALSE) -> W | I76: =VLOOKUP(Table16[[#This Row],[Facility ID]],'Coord.'!$A$1:$E$818,5,FALSE) -> -82.655023 | J76: 978213 | K76: Kindley, Wallace Quint | L76: 11310 | M76: 8.83 | N76: <29 | O76: <58.355 | P76: MEETS | Q76: MEETS | R76: N/A | S76: N/A | T76: 58.355 | U76: 29
A77: Harrison Construction Co., Inc. | B77: Massey Branch Quarry - Robbinsville | C77: 2001-10-22 | D77: #78-M Stone for Electrochemical | E77: CA193 | F77: =VLOOKUP(Table16[[#This Row],[Facility ID]],'Coord.'!$A$1:$E$818,2,FALSE) -> N | G77: =VLOOKUP(Table16[[#This Row],[Facility ID]],'Coord.'!$A$1:$E$818,3,FALSE) -> 35.33534 | H77: =VLOOKUP(Table16[[#This Row],[Facility ID]],'Coord.'!$A$1:$E$818,4,FALSE) -> W | I77: =VLOOKUP(Table16[[#This Row],[Facility ID]],'Coord.'!$A$1:$E$818,5,FALSE) -> -83.836817 | J77: 235848 | K77: Wallace, Robert R | L77: 8300 | M77: 5.7 | P77: MEETS | Q77: MEETS | R77: N/A | S77: N/A
A78: Martin Marietta | B78: Matthews Quarry - Matthews | C78: 2019-11-25 | D78: #78-M Stone for Electrochemical | E78: CA37 | F78: =VLOOKUP(Table16[[#This Row],[Facility ID]],'Coord.'!$A$1:$E$818,2,FALSE) -> 0 | G78: =VLOOKUP(Table16[[#This Row],[Facility ID]],'Coord.'!$A$1:$E$818,3,FALSE) -> 35.131263 | H78: =VLOOKUP(Table16[[#This Row],[Facility ID]],'Coord.'!$A$1:$E$818,4,FALSE) -> W | I78: =VLOOKUP(Table16[[#This Row],[Facility ID]],'Coord.'!$A$1:$E$818,5,FALSE) -> -80.720372 | J78: 993308 | K78: Smith, Michael L | L78: 18410 | M78: 9.25 | N78: <30 | O78: <35.850 | P78: DOES NOT MEET | Q78: MEETS | R78: N/A | S78: N/A | T78: 35.85 | U78: 30
A79: Thompson Contractors | B79: Miller Creek Quarry - Rutherfordton | C79: 2019-09-27 | D79: #78-M Stone for Electrochemical | E79: CA59 | F79: =VLOOKUP(Table16[[#This Row],[Facility ID]],'Coord.'!$A$1:$E$818,2,FALSE) -> N | G79: =VLOOKUP(Table16[[#This Row],[Facility ID]],'Coord.'!$A$1:$E$818,3,FALSE) -> 35.2139 | H79: =VLOOKUP(Table16[[#This Row],[Facility ID]],'Coord.'!$A$1:$E$818,4,FALSE) -> W | I79: =VLOOKUP(Table16[[#This Row],[Facility ID]],'Coord.'!$A$1:$E$818,5,FALSE) -> -82.0021 | J79: 985270 | K79: Norton, Stephen S | L79: 14090 | M79: 9.34 | N79: <30 | O79: <46.842 | P79: DOES NOT MEET | Q79: MEETS | R79: N/A | S79: N/A | T79: 46.842 | U79: 30
A80: Rogers Group, Inc. | B80: Mitchell County Stone | C80: 2016-10-25 | D80: #78-M Stone for Electrochemical | E80: CA315 | F80: =VLOOKUP(Table16[[#This Row],[Facility ID]],'Coord.'!$A$1:$E$818,2,FALSE) -> N | G80: =VLOOKUP(Table16[[#This Row],[Facility ID]],'Coord.'!$A$1:$E$818,3,FALSE) -> 35.899016 | H80: =VLOOKUP(Table16[[#This Row],[Facility ID]],'Coord.'!$A$1:$E$818,4,FALSE) -> W | I80: =VLOOKUP(Table16[[#This Row],[Facility ID]],'Coord.'!$A$1:$E$818,5,FALSE) -> -82.100712 | J80: 832457 | K80: Rhymer, Robert C | L80: 42373 | M80: 8.1 | N80: 0 | O80: 0.1 | P80: MEETS | Q80: MEETS | R80: N/A | S80: N/A | T80: 0.1 | U80: 0
A81: Wake Stone Corp. | B81: Moncure Quarry - Moncure | C81: 2020-10-14 | D81: #78-M Stone for Electrochemical | E81: CA100 | F81: =VLOOKUP(Table16[[#This Row],[Facility ID]],'Coord.'!$A$1:$E$818,2,FALSE) -> N | G81: =VLOOKUP(Table16[[#This Row],[Facility ID]],'Coord.'!$A$1:$E$818,3,FALSE) -> 35.61616 | H81: =VLOOKUP(Table16[[#This Row],[Facility ID]],'Coord.'!$A$1:$E$818,4,FALSE) -> W | I81: =VLOOKUP(Table16[[#This Row],[Facility ID]],'Coord.'!$A$1:$E$818,5,FALSE) -> -79.103876 | J81: 1023300 | K81: Braly, James R | L81: 14920 | M81: 9.2 | N81: <30 | O81: <44.236 | P81: DOES NOT MEET | Q81: MEETS | R81: N/A | S81: N/A | T81: 44.236 | U81: 30
A82: Vulcan Materials Co. | B82: Morganton Quarry - Morganton | C82: 2016-04-21 | D82: #78-M Stone for Electrochemical | E82: CA7 | F82: =VLOOKUP(Table16[[#This Row],[Facility ID]],'Coord.'!$A$1:$E$818,2,FALSE) -> N | G82: =VLOOKUP(Table16[[#This Row],[Facility ID]],'Coord.'!$A$1:$E$818,3,FALSE) -> 35.46101 | H82: =VLOOKUP(Table16[[#This Row],[Facility ID]],'Coord.'!$A$1:$E$818,4,FALSE) -> W | I82: =VLOOKUP(Table16[[#This Row],[Facility ID]],'Coord.'!$A$1:$E$818,5,FALSE) -> -81.394 | J82: 803457 | K82: Ausley, Jeff A | L82: 13410 | M82: 8.6 | N82: 0 | O82: 16.7 | P82: MEETS | Q82: MEETS | R82: N/A | S82: N/A | T82: 16.7 | U82: 0
A83: NC Granite Corp. | B83: Mount Airy Quarry | C83: 2016-03-08 | D83: #78-M Stone for Electrochemical | E83: CA24 | F83: =VLOOKUP(Table16[[#This Row],[Facility ID]],'Coord.'!$A$1:$E$818,2,FALSE) -> N | G83: =VLOOKUP(Table16[[#This Row],[Facility ID]],'Coord.'!$A$1:$E$818,3,FALSE) -> 36.507544 | H83: =VLOOKUP(Table16[[#This Row],[Facility ID]],'Coord.'!$A$1:$E$818,4,FALSE) -> W | I83: =VLOOKUP(Table16[[#This Row],[Facility ID]],'Coord.'!$A$1:$E$818,5,FALSE) -> -80.591076 | J83: 797325 | K83: Whitley, Christopher D | L83: 23436 | M83: 7.9 | N83: 0 | O83: 5.2 | P83: MEETS | Q83: MEETS | R83: N/A | S83: N/A | T83: 5.2 | U83: 0
A84: Ararat Rock Products | B84: Mt. Airy Quarry - Mt. Airy | C84: 2017-01-31 | D84: #78-M Stone for Electrochemical | E84: CA3 | F84: =VLOOKUP(Table16[[#This Row],[Facility ID]],'Coord.'!$A$1:$E$818,2,FALSE) -> N | G84: =VLOOKUP(Table16[[#This Row],[Facility ID]],'Coord.'!$A$1:$E$818,3,FALSE) -> 36.461476 | H84: =VLOOKUP(Table16[[#This Row],[Facility ID]],'Coord.'!$A$1:$E$818,4,FALSE) -> W | I84: =VLOOKUP(Table16[[#This Row],[Facility ID]],'Coord.'!$A$1:$E$818,5,FALSE) -> -80.593324 | J84: 843861 | K84: Whitley, Christopher D | L84: 11582 | M84: 8.3 | N84: 0 | O84: 50.8 | P84: MEETS | Q84: MEETS | R84: N/A | S84: N/A | T84: 50.8 | U84: 0
A85: Wake Stone Corp. | B85: Nash County Quarry - Battleboro | C85: 2016-03-11 | D85: #78-M Stone for Electrochemical | E85: CA223 | F85: =VLOOKUP(Table16[[#This Row],[Facility ID]],'Coord.'!$A$1:$E$818,2,FALSE) -> N | G85: =VLOOKUP(Table16[[#This Row],[Facility ID]],'Coord.'!$A$1:$E$818,3,FALSE) -> 36.060037 | H85: =VLOOKUP(Table16[[#This Row],[Facility ID]],'Coord.'!$A$1:$E$818,4,FALSE) -> W | I85: =VLOOKUP(Table16[[#This Row],[Facility ID]],'Coord.'!$A$1:$E$818,5,FALSE) -> -77.83229 | J85: 797387 | K85: Raines, James R | L85: 18450 | M85: 7.6 | N85: 0 | O85: 8.5 | P85: MEETS | Q85: MEETS | R85: N/A | S85: N/A | T85: 8.5 | U85: 0
A86: Hanson Aggregates Southeast, Inc. | B86: Neverson Quarry - Sims | C86: 2016-03-15 | D86: #78-M Stone for Electrochemical | E86: CA66 | F86: =VLOOKUP(Table16[[#This Row],[Facility ID]],'Coord.'!$A$1:$E$818,2,FALSE) -> N | G86: =VLOOKUP(Table16[[#This Row],[Facility ID]],'Coord.'!$A$1:$E$818,3,FALSE) -> 35.766501 | H86: =VLOOKUP(Table16[[#This Row],[Facility ID]],'Coord.'!$A$1:$E$818,4,FALSE) -> W | I86: =VLOOKUP(Table16[[#This Row],[Facility ID]],'Coord.'!$A$1:$E$818,5,FALSE) -> -78.084275 | J86: 798233 | K86: Raines, James R | L86: 23288 | M86: 7.4 | N86: 0 | O86: 4.6 | P86: MEETS | Q86: MEETS | R86: N/A | S86: N/A | T86: 4.6 | U86: 0
A87: Hedrick Industries | B87: North Buncombe Quarry - Asheville | C87: 2019-04-29 | D87: #78-M Stone for Electrochemical | E87: CA131 | F87: =VLOOKUP(Table16[[#This Row],[Facility ID]],'Coord.'!$A$1:$E$818,2,FALSE) -> N | G87: =VLOOKUP(Table16[[#This Row],[Facility ID]],'Coord.'!$A$1:$E$818,3,FALSE) -> 35.6871 | H87: =VLOOKUP(Table16[[#This Row],[Facility ID]],'Coord.'!$A$1:$E$818,4,FALSE) -> W | I87: =VLOOKUP(Table16[[#This Row],[Facility ID]],'Coord.'!$A$1:$E$818,5,FALSE) -> -82.6083 | J87: 961088 | K87: Kindley, Wallace Quint | L87: 8953 | M87: 9.1 | N87: <30 | O87: <73.718 | P87: DOES NOT MEET | Q87: MEETS | R87: N/A | S87: N/A | T87: 73.718 | U87: 30
A88: Vulcan Materials Co. | B88: North Quarry - Winston Salem | C88: 2020-02-25 | D88: #78-M Stone for Electrochemical | E88: CA72 | F88: =VLOOKUP(Table16[[#This Row],[Facility ID]],'Coord.'!$A$1:$E$818,2,FALSE) -> N | G88: =VLOOKUP(Table16[[#This Row],[Facility ID]],'Coord.'!$A$1:$E$818,3,FALSE) -> 36.176855 | H88: =VLOOKUP(Table16[[#This Row],[Facility ID]],'Coord.'!$A$1:$E$818,4,FALSE) -> W | I88: =VLOOKUP(Table16[[#This Row],[Facility ID]],'Coord.'!$A$1:$E$818,5,FALSE) -> -80.268285 | J88: 1000799 | K88: Ealey, Lee E | L88: 19050 | M88: 9.24 | N88: <30 | O88: <34.646 | P88: DOES NOT MEET | Q88: MEETS | R88: N/A | S88: N/A | T88: 34.646 | U88: 30
A89: Vulcan Materials Co. | B89: Penrose Quarry - Pisgah Forest | C89: 2017-03-07 | D89: #78-M Stone for Electrochemical | E89: CA12 | F89: =VLOOKUP(Table16[[#This Row],[Facility ID]],'Coord.'!$A$1:$E$818,2,FALSE) -> N | G89: =VLOOKUP(Table16[[#This Row],[Facility ID]],'Coord.'!$A$1:$E$818,3,FALSE) -> 35.273408 | H89: =VLOOKUP(Table16[[#This Row],[Facility ID]],'Coord.'!$A$1:$E$818,4,FALSE) -> W | I89: =VLOOKUP(Table16[[#This Row],[Facility ID]],'Coord.'!$A$1:$E$818,5,FALSE) -> -82.641864 | J89: 848232 | K89: Wood, Dean Michael M | L89: 22784 | M89: 9.4 | N89: 0 | O89: 26.4 | P89: DOES NOT MEET | Q89: MEETS | R89: N/A | S89: N/A | T89: 26.4 | U89: 0
A90: Vulcan Materials Co. | B90: Pineville Quarry - Charlotte | C90: 2019-08-21 | D90: #78-M Stone for Electrochemical | E90: CA101 | F90: =VLOOKUP(Table16[[#This Row],[Facility ID]],'Coord.'!$A$1:$E$818,2,FALSE) -> N | G90: =VLOOKUP(Table16[[#This Row],[Facility ID]],'Coord.'!$A$1:$E$818,3,FALSE) -> 35.115856 | H90: =VLOOKUP(Table16[[#This Row],[Facility ID]],'Coord.'!$A$1:$E$818,4,FALSE) -> W | I90: =VLOOKUP(Table16[[#This Row],[Facility ID]],'Coord.'!$A$1:$E$818,5,FALSE) -> -80.896596 | J90: 979253 | K90: Smith, Michael L | L90: 12210 | M90: 9.29 | N90: <32 | O90: <54.054 | P90: DOES NOT MEET | Q90: MEETS | R90: N/A | S90: N/A | T90: 54.054 | U90: 32
A91: Luck Stone Corporation | B91: Pittsboro Quarry - Moncure | C91: 2018-11-30 | D91: #78-M Stone for Electrochemical | E91: CA292 | F91: =VLOOKUP(Table16[[#This Row],[Facility ID]],'Coord.'!$A$1:$E$818,2,FALSE) -> N | G91: =VLOOKUP(Table16[[#This Row],[Facility ID]],'Coord.'!$A$1:$E$818,3,FALSE) -> 35.660416 | H91: =VLOOKUP(Table16[[#This Row],[Facility ID]],'Coord.'!$A$1:$E$818,4,FALSE) -> W | I91: =VLOOKUP(Table16[[#This Row],[Facility ID]],'Coord.'!$A$1:$E$818,5,FALSE) -> -79.176833 | J91: 941283 | K91: Jackson, Brandon M | L91: 18920 | M91: 9.4 | N91: 0 | O91: <34.88 | P91: DOES NOT MEET | Q91: MEETS | R91: N/A | S91: N/A | T91: 34.88 | U91: 0
A92: Martin Marietta | B92: Pomona Quarry - Greensboro | C92: 2019-05-28 | D92: #78-M Stone for Electrochemical | E92: CA51 | F92: =VLOOKUP(Table16[[#This Row],[Facility ID]],'Coord.'!$A$1:$E$818,2,FALSE) -> 0 | G92: =VLOOKUP(Table16[[#This Row],[Facility ID]],'Coord.'!$A$1:$E$818,3,FALSE) -> 36.060418 | H92: =VLOOKUP(Table16[[#This Row],[Facility ID]],'Coord.'!$A$1:$E$818,4,FALSE) -> 0 | I92: =VLOOKUP(Table16[[#This Row],[Facility ID]],'Coord.'!$A$1:$E$818,5,FALSE) -> -79.925365 | J92: 965376 | K92: Waller, John M | L92: 18800 | M92: 9.5 | N92: <30 | O92: <35.106 | P92: DOES NOT MEET | Q92: MEETS | R92: N/A | S92: N/A | T92: 35.106 | U92: 30
A93: Hanson Aggregates Southeast, Inc. | B93: Princeton Quarry | C93: 2016-03-24 | D93: #78-M Stone for Electrochemical | E93: CA64 | F93: =VLOOKUP(Table16[[#This Row],[Facility ID]],'Coord.'!$A$1:$E$818,2,FALSE) -> N | G93: =VLOOKUP(Table16[[#This Row],[Facility ID]],'Coord.'!$A$1:$E$818,3,FALSE) -> 35.472107 | H93: =VLOOKUP(Table16[[#This Row],[Facility ID]],'Coord.'!$A$1:$E$818,4,FALSE) -> W | I93: =VLOOKUP(Table16[[#This Row],[Facility ID]],'Coord.'!$A$1:$E$818,5,FALSE) -> -78.137972 | J93: 799117 | K93: Raines, James R | L93: 13463 | M93: 7.7 | N93: 0 | O93: 5.7 | P93: MEETS | Q93: MEETS | R93: MEETS | S93: MEETS | T93: 5.7 | U93: 0
A94: Vulcan Materials Co. | B94: Puddledock Quarry - Prince George, VA | C94: 2020-09-21 | D94: #78-M Stone for Electrochemical | E94: CA224 | F94: =VLOOKUP(Table16[[#This Row],[Facility ID]],'Coord.'!$A$1:$E$818,2,FALSE) -> N | G94: =VLOOKUP(Table16[[#This Row],[Facility ID]],'Coord.'!$A$1:$E$818,3,FALSE) -> 37.260108 | H94: =VLOOKUP(Table16[[#This Row],[Facility ID]],'Coord.'!$A$1:$E$818,4,FALSE) -> W | I94: =VLOOKUP(Table16[[#This Row],[Facility ID]],'Coord.'!$A$1:$E$818,5,FALSE) -> -77.364735 | J94: 1021102 | K94: Bonds, Maria M | L94: 38360 | M94: 4.87 | N94: <30 | O94: <17.205 | P94: MEETS | Q94: DOES NOT MEET | R94: MEETS | S94: DOES NOT MEET | T94: 17.205 | U94: 30
A95: Hanson Aggregates Southeast, Inc. | B95: Raleigh Quarry - Wake Forest | C95: 2019-01-09 | D95: #78-M Stone for Electrochemical | E95: CA67 | F95: =VLOOKUP(Table16[[#This Row],[Facility ID]],'Coord.'!$A$1:$E$818,2,FALSE) -> N | G95: =VLOOKUP(Table16[[#This Row],[Facility ID]],'Coord.'!$A$1:$E$818,3,FALSE) -> 35.931107 | H95: =VLOOKUP(Table16[[#This Row],[Facility ID]],'Coord.'!$A$1:$E$818,4,FALSE) -> W | I95: =VLOOKUP(Table16[[#This Row],[Facility ID]],'Coord.'!$A$1:$E$818,5,FALSE) -> -78.543345 | J95: 944670 | K95: Skinner, III, John L | L95: 21530 | M95: 9.4 | N95: 0 | O95: <30.655 | P95: DOES NOT MEET | Q95: MEETS | R95: N/A | S95: N/A | T95: 30.655 | U95: 0
A96: Martin Marietta | B96: Raleigh-Durham Quarry - Raleigh | C96: 2019-01-18 | D96: #78-M Stone for Electrochemical | E96: CA156 | F96: =VLOOKUP(Table16[[#This Row],[Facility ID]],'Coord.'!$A$1:$E$818,2,FALSE) -> N | G96: =VLOOKUP(Table16[[#This Row],[Facility ID]],'Coord.'!$A$1:$E$818,3,FALSE) -> 35.894071 | H96: =VLOOKUP(Table16[[#This Row],[Facility ID]],'Coord.'!$A$1:$E$818,4,FALSE) -> W | I96: =VLOOKUP(Table16[[#This Row],[Facility ID]],'Coord.'!$A$1:$E$818,5,FALSE) -> -78.74912 | J96: 946460 | K96: Skinner, III, John L | L96: 14230 | M96: 10.1 | N96: 0 | O96: <46.381 | P96: DOES NOT MEET | Q96: DOES NOT MEET | R96: N/A | S96: N/A | T96: 46.381 | U96: 0
A97: Martin Marietta | B97: Reidsville Quarry - Reidsville | C97: 2019-02-13 | D97: #78-M Stone for Electrochemical | E97: CA52 | F97: =VLOOKUP(Table16[[#This Row],[Facility ID]],'Coord.'!$A$1:$E$818,2,FALSE) -> 0 | G97: =VLOOKUP(Table16[[#This Row],[Facility ID]],'Coord.'!$A$1:$E$818,3,FALSE) -> 36.371012 | H97: =VLOOKUP(Table16[[#This Row],[Facility ID]],'Coord.'!$A$1:$E$818,4,FALSE) -> 0 | I97: =VLOOKUP(Table16[[#This Row],[Facility ID]],'Coord.'!$A$1:$E$818,5,FALSE) -> -79.726775 | J97: 949846 | K97: Westmoreland, Braxton J | L97: 17310 | M97: 9.5 | N97: 0 | O97: <38.128 | P97: DOES NOT MEET | Q97: MEETS | R97: N/A | S97: N/A | T97: 38.128 | U97: 0
A98: Martin Marietta | B98: Rock Hill Quarry - Rock Hill, SC | C98: 2019-09-10 | D98: #78-M Stone for Electrochemical | E98: CA271 | F98: =VLOOKUP(Table16[[#This Row],[Facility ID]],'Coord.'!$A$1:$E$818,2,FALSE) -> N | G98: =VLOOKUP(Table16[[#This Row],[Facility ID]],'Coord.'!$A$1:$E$818,3,FALSE) -> 34.894787 | H98: =VLOOKUP(Table16[[#This Row],[Facility ID]],'Coord.'!$A$1:$E$818,4,FALSE) -> W | I98: =VLOOKUP(Table16[[#This Row],[Facility ID]],'Coord.'!$A$1:$E$818,5,FALSE) -> -80.999022 | J98: 982310 | K98: Adair, Mildred (Millie) L | L98: 16020 | M98: 9.47 | N98: <32 | O98: <41.199 | P98: DOES NOT MEET | Q98: MEETS | R98: N/A | S98: N/A | T98: 41.199 | U98: 32
A99: Vulcan Materials Co. | B99: Rockingham Quarry - Rockingham | C99: 2019-08-13 | D99: #78-M Stone for Electrochemical | E99: CA94 | F99: =VLOOKUP(Table16[[#This Row],[Facility ID]],'Coord.'!$A$1:$E$818,2,FALSE) -> N | G99: =VLOOKUP(Table16[[#This Row],[Facility ID]],'Coord.'!$A$1:$E$818,3,FALSE) -> 34.938706 | H99: =VLOOKUP(Table16[[#This Row],[Facility ID]],'Coord.'!$A$1:$E$818,4,FALSE) -> W | I99: =VLOOKUP(Table16[[#This Row],[Facility ID]],'Coord.'!$A$1:$E$818,5,FALSE) -> -79.823208 | J99: 977705 | K99: Jordan, Daniel H | L99: 13960 | M99: 9.42 | N99: <29 | O99: <47.278 | P99: DOES NOT MEET | Q99: MEETS | R99: N/A | S99: N/A | T99: 47.278 | U99: 29
A100: Hanson Aggregates Southeast, Inc. | B100: Rocky Mount Quarry (#2) | C100: 2016-04-14 | D100: #78-M Stone for Electrochemical | E100: CA371 | F100: =VLOOKUP(Table16[[#This Row],[Facility ID]],'Coord.'!$A$1:$E$818,2,FALSE) -> N | G100: =VLOOKUP(Table16[[#This Row],[Facility ID]],'Coord.'!$A$1:$E$818,3,FALSE) -> 35.97284 | H100: =VLOOKUP(Table16[[#This Row],[Facility ID]],'Coord.'!$A$1:$E$818,4,FALSE) -> W | I100: =VLOOKUP(Table16[[#This Row],[Facility ID]],'Coord.'!$A$1:$E$818,5,FALSE) -> -77.760083 | J100: 802198 | K100: Raines, James R | L100: 10244 | M100: 9.3 | N100: 0 | O100: 62.7 | P100: DOES NOT MEET | Q100: MEETS | R100: DOES NOT MEET | S100: MEETS | T100: 62.7 | U100: 0
A101: Hanson Aggregates Southeast, Inc. | B101: Rougemont Quarry | C101: 2019-01-11 | D101: #78-M Stone for Electrochemical | E101: CA217 | F101: =VLOOKUP(Table16[[#This Row],[Facility ID]],'Coord.'!$A$1:$E$818,2,FALSE) -> N | G101: =VLOOKUP(Table16[[#This Row],[Facility ID]],'Coord.'!$A$1:$E$818,3,FALSE) -> 36.224888 | H101: =VLOOKUP(Table16[[#This Row],[Facility ID]],'Coord.'!$A$1:$E$818,4,FALSE) -> W | I101: =VLOOKUP(Table16[[#This Row],[Facility ID]],'Coord.'!$A$1:$E$818,5,FALSE) -> -78.951488 | J101: 945247 | K101: Skinner, III, John L | L101: 24460 | M101: 9.7 | N101: 0 | O101: <26.983 | P101: DOES NOT MEET | Q101: MEETS | R101: N/A | S101: N/A | T101: 26.983 | U101: 0
A102: Martin Marietta | B102: Salem Stone Quarry - Kernersville | C102: 2020-03-10 | D102: #78-M Stone for Electrochemical | E102: CA209 | F102: =VLOOKUP(Table16[[#This Row],[Facility ID]],'Coord.'!$A$1:$E$818,2,FALSE) -> N | G102: =VLOOKUP(Table16[[#This Row],[Facility ID]],'Coord.'!$A$1:$E$818,3,FALSE) -> 36.03598 | H102: =VLOOKUP(Table16[[#This Row],[Facility ID]],'Coord.'!$A$1:$E$818,4,FALSE) -> W | I102: =VLOOKUP(Table16[[#This Row],[Facility ID]],'Coord.'!$A$1:$E$818,5,FALSE) -> -80.106778 | J102: 1005506 | K102: Ealey, Lee E | L102: 22540 | M102: 9.28 | N102: <30 | O102: <29.281 | P102: DOES NOT MEET | Q102: MEETS | R102: N/A | S102: N/A | T102: 29.281 | U102: 30
A103: Hanson Aggregates Southeast, Inc. | B103: Sandy Flats Quarry - Taylors, SC | C103: 2016-12-14 | D103: #78-M Stone for Electrochemical | E103: CA298 | F103: =VLOOKUP(Table16[[#This Row],[Facility ID]],'Coord.'!$A$1:$E$818,2,FALSE) -> N | G103: =VLOOKUP(Table16[[#This Row],[Facility ID]],'Coord.'!$A$1:$E$818,3,FALSE) -> 35.008491 | H103: =VLOOKUP(Table16[[#This Row],[Facility ID]],'Coord.'!$A$1:$E$818,4,FALSE) -> W | I103: =VLOOKUP(Table16[[#This Row],[Facility ID]],'Coord.'!$A$1:$E$818,5,FALSE) -> -82.345755 | J103: 839144 | K103: Wood, Dean Michael M | L103: 21786 | M103: 7.8 | N103: 0 | O103: 0.9 | P103: MEETS | Q103: MEETS | R103: N/A | S103: N/A | T103: 0.9 | U103: 0
A104: Vulcan Materials Co. | B104: Skippers Quarry - Skippers, VA | C104: 2020-02-05 | D104: #78-M Stone for Electrochemical | E104: CA55 | F104: =VLOOKUP(Table16[[#This Row],[Facility ID]],'Coord.'!$A$1:$E$818,2,FALSE) -> N | G104: =VLOOKUP(Table16[[#This Row],[Facility ID]],'Coord.'!$A$1:$E$818,3,FALSE) -> 36.608707 | H104: =VLOOKUP(Table16[[#This Row],[Facility ID]],'Coord.'!$A$1:$E$818,4,FALSE) -> W | I104: =VLOOKUP(Table16[[#This Row],[Facility ID]],'Coord.'!$A$1:$E$818,5,FALSE) -> -77.582424 | J104: 998832 | K104: Thomas, Grady Q | L104: 15140 | M104: 9.33 | N104: <30 | O104: <43.593 | P104: DOES NOT MEET | Q104: MEETS | R104: DOES NOT MEET | S104: MEETS | T104: 43.593 | U104: 30
A105: Vulcan Materials Co. | B105: Smith Grove Q. - Mocksville | C105: 2020-02-03 | D105: #78-M Stone for Electrochemical | E105: CA80 | F105: =VLOOKUP(Table16[[#This Row],[Facility ID]],'Coord.'!$A$1:$E$818,2,FALSE) -> N | G105: =VLOOKUP(Table16[[#This Row],[Facility ID]],'Coord.'!$A$1:$E$818,3,FALSE) -> 35.967185 | H105: =VLOOKUP(Table16[[#This Row],[Facility ID]],'Coord.'!$A$1:$E$818,4,FALSE) -> W | I105: =VLOOKUP(Table16[[#This Row],[Facility ID]],'Coord.'!$A$1:$E$818,5,FALSE) -> -80.530693 | J105: 998595 | K105: Ealey, Lee E | L105: 21020 | M105: 9.45 | N105: <30 | O105: <31.399 | P105: DOES NOT MEET | Q105: MEETS | R105: N/A | S105: N/A | T105: 31.399 | U105: 30
A106: Hedrick Industries | B106: South McDowell Quarry - Marion | C106: 2019-01-24 | D106: #78-M Stone for Electrochemical | E106: CA283 | F106: =VLOOKUP(Table16[[#This Row],[Facility ID]],'Coord.'!$A$1:$E$818,2,FALSE) -> N | G106: =VLOOKUP(Table16[[#This Row],[Facility ID]],'Coord.'!$A$1:$E$818,3,FALSE) -> 35.632061 | H106: =VLOOKUP(Table16[[#This Row],[Facility ID]],'Coord.'!$A$1:$E$818,4,FALSE) -> W | I106: =VLOOKUP(Table16[[#This Row],[Facility ID]],'Coord.'!$A$1:$E$818,5,FALSE) -> -81.961977 | J106: 946849 | K106: Rhymer, Robert C | L106: 26700 | M106: 9.2 | N106: 0 | O106: <24.719 | P106: DOES NOT MEET | Q106: MEETS | R106: N/A | S106: N/A | T106: 24.719 | U106: 0
A107: Salem Stone Corp. | B107: Southside Materials - Shelton Quarry - Pelham | C107: 2019-02-28 | D107: #78-M Stone for Electrochemical | E107: CA75 | F107: =VLOOKUP(Table16[[#This Row],[Facility ID]],'Coord.'!$A$1:$E$818,2,FALSE) -> 0 | G107: =VLOOKUP(Table16[[#This Row],[Facility ID]],'Coord.'!$A$1:$E$818,3,FALSE) -> 36.535157 | H107: =VLOOKUP(Table16[[#This Row],[Facility ID]],'Coord.'!$A$1:$E$818,4,FALSE) -> 0 | I107: =VLOOKUP(Table16[[#This Row],[Facility ID]],'Coord.'!$A$1:$E$818,5,FALSE) -> -79.45967 | J107: 952400 | K107: Westmoreland, Braxton J | L107: 33790 | M107: 7.8 | N107: 0 | O107: <19.532 | P107: MEETS | Q107: MEETS | R107: N/A | S107: N/A | T107: 19.532 | U107: 0
A108: Vulcan Materials Co. | B108: Spruce Pine Quarry - Bakersville | C108: 2019-09-16 | D108: #78-M Stone for Electrochemical | E108: CA111 | F108: =VLOOKUP(Table16[[#This Row],[Facility ID]],'Coord.'!$A$1:$E$818,2,FALSE) -> N | G108: =VLOOKUP(Table16[[#This Row],[Facility ID]],'Coord.'!$A$1:$E$818,3,FALSE) -> 35.5832 | H108: =VLOOKUP(Table16[[#This Row],[Facility ID]],'Coord.'!$A$1:$E$818,4,FALSE) -> W | I108: =VLOOKUP(Table16[[#This Row],[Facility ID]],'Coord.'!$A$1:$E$818,5,FALSE) -> -82.0541 | J108: 983086 | K108: Norton, Stephen S | L108: 12260 | M108: 7.61 | N108: <32 | O108: <53.834 | P108: MEETS | Q108: MEETS | R108: N/A | S108: N/A | T108: 53.834 | U108: 32
A109: Martin Marietta | B109: Statesville Quarry - Statesville | C109: 2019-10-09 | D109: #78-M Stone for Electrochemical | E109: CA54 | F109: =VLOOKUP(Table16[[#This Row],[Facility ID]],'Coord.'!$A$1:$E$818,2,FALSE) -> N | G109: =VLOOKUP(Table16[[#This Row],[Facility ID]],'Coord.'!$A$1:$E$818,3,FALSE) -> 35.804466 | H109: =VLOOKUP(Table16[[#This Row],[Facility ID]],'Coord.'!$A$1:$E$818,4,FALSE) -> W | I109: =VLOOKUP(Table16[[#This Row],[Facility ID]],'Coord.'!$A$1:$E$818,5,FALSE) -> -80.913084 | J109: 987453 | K109: Brinson, Joseph | L109: 6641 | M109: 6.94 | N109: <30 | O109: <99.383 | P109: MEETS | Q109: MEETS | R109: N/A | S109: N/A | T109: 99.383 | U109: 30
A110: Vulcan Materials Co. | B110: Stokesdale Quarry - Stokesdale | C110: 2019-02-28 | D110: #78-M Stone for Electrochemical | E110: CA76 | F110: =VLOOKUP(Table16[[#This Row],[Facility ID]],'Coord.'!$A$1:$E$818,2,FALSE) -> 0 | G110: =VLOOKUP(Table16[[#This Row],[Facility ID]],'Coord.'!$A$1:$E$818,3,FALSE) -> 36.24166 | H110: =VLOOKUP(Table16[[#This Row],[Facility ID]],'Coord.'!$A$1:$E$818,4,FALSE) -> W | I110: =VLOOKUP(Table16[[#This Row],[Facility ID]],'Coord.'!$A$1:$E$818,5,FALSE) -> -79.935815 | J110: 952377 | K110: Westmoreland, Braxton J | L110: 20110 | M110: 9.3 | N110: 0 | O110: <32.819 | P110: DOES NOT MEET | Q110: MEETS | R110: N/A | S110: N/A | T110: 32.819 | U110: 0
A111: Martin Marietta | B111: Thomasville Quarry - Thomasville | C111: 2020-03-10 | D111: #78-M Stone for Electrochemical | E111: CA102 | F111: =VLOOKUP(Table16[[#This Row],[Facility ID]],'Coord.'!$A$1:$E$818,2,FALSE) -> N | G111: =VLOOKUP(Table16[[#This Row],[Facility ID]],'Coord.'!$A$1:$E$818,3,FALSE) -> 35.85385 | H111: =VLOOKUP(Table16[[#This Row],[Facility ID]],'Coord.'!$A$1:$E$818,4,FALSE) -> W | I111: =VLOOKUP(Table16[[#This Row],[Facility ID]],'Coord.'!$A$1:$E$818,5,FALSE) -> -80.160168 | J111: 1005551 | K111: Ealey, Lee E | L111: 17700 | M111: 9.57 | N111: <30 | O111: <37.288 | P111: DOES NOT MEET | Q111: MEETS | R111: N/A | S111: N/A | T111: 37.288 | U111: 30
A112: Wake Stone Corp. | B112: Triangle Quarry - Cary | C112: 2019-02-27 | D112: #78-M Stone for Electrochemical | E112: CA157 | F112: =VLOOKUP(Table16[[#This Row],[Facility ID]],'Coord.'!$A$1:$E$818,2,FALSE) -> N | G112: =VLOOKUP(Table16[[#This Row],[Facility ID]],'Coord.'!$A$1:$E$818,3,FALSE) -> 35.838397 | H112: =VLOOKUP(Table16[[#This Row],[Facility ID]],'Coord.'!$A$1:$E$818,4,FALSE) -> W | I112: =VLOOKUP(Table16[[#This Row],[Facility ID]],'Coord.'!$A$1:$E$818,5,FALSE) -> -78.767809 | J112: 951912 | K112: Skinner, III, John L | L112: 19140 | M112: 9.4 | N112: 0 | O112: <34.483 | P112: DOES NOT MEET | Q112: MEETS | R112: N/A | S112: N/A | T112: 34.483 | U112: 0
A113: Harrison Construction Co., Inc. | B113: Waynesville Quarry - Waynesville | C113: 2019-07-29 | D113: #78-M Stone for Electrochemical | E113: CA1 | F113: =VLOOKUP(Table16[[#This Row],[Facility ID]],'Coord.'!$A$1:$E$818,2,FALSE) -> N | G113: =VLOOKUP(Table16[[#This Row],[Facility ID]],'Coord.'!$A$1:$E$818,3,FALSE) -> 35.440697 | H113: =VLOOKUP(Table16[[#This Row],[Facility ID]],'Coord.'!$A$1:$E$818,4,FALSE) -> W | I113: =VLOOKUP(Table16[[#This Row],[Facility ID]],'Coord.'!$A$1:$E$818,5,FALSE) -> -83.007457 | J113: 974813 | K113: Kindley, Wallace Quint | L113: 8835 | M113: 8.83 | N113: <29 | O113: <74.70 | P113: MEETS | Q113: MEETS | R113: N/A | S113: N/A | T113: 74.7 | U113: 29
A114: LBM Industries | B114: Whitewater Falls Quarry - Sapphire | C114: 2019-08-21 | D114: #78-M Stone for Electrochemical | E114: CA119 | F114: =VLOOKUP(Table16[[#This Row],[Facility ID]],'Coord.'!$A$1:$E$818,2,FALSE) -> N | G114: =VLOOKUP(Table16[[#This Row],[Facility ID]],'Coord.'!$A$1:$E$818,3,FALSE) -> 35.05631 | H114: =VLOOKUP(Table16[[#This Row],[Facility ID]],'Coord.'!$A$1:$E$818,4,FALSE) -> W | I114: =VLOOKUP(Table16[[#This Row],[Facility ID]],'Coord.'!$A$1:$E$818,5,FALSE) -> -82.58279 | J114: 979124 | K114: Wood, Dean Michael M | L114: 24020 | M114: 9.58 | N114: <32 | O114: <27.477 | P114: DOES NOT MEET | Q114: MEETS | R114: N/A | S114: N/A | T114: 27.477 | U114: 32
A115: Boone's Concrete Supply, LLC | B115: Woodlawn Quarry - Marion | C115: 2019-09-23 | D115: #78-M Stone for Electrochemical | E115: CA190 | F115: =VLOOKUP(Table16[[#This Row],[Facility ID]],'Coord.'!$A$1:$E$818,2,FALSE) -> N | G115: =VLOOKUP(Table16[[#This Row],[Facility ID]],'Coord.'!$A$1:$E$818,3,FALSE) -> 35.787314 | H115: =VLOOKUP(Table16[[#This Row],[Facility ID]],'Coord.'!$A$1:$E$818,4,FALSE) -> W | I115: =VLOOKUP(Table16[[#This Row],[Facility ID]],'Coord.'!$A$1:$E$818,5,FALSE) -> -82.036208 | J115: 984074 | K115: Norton, Stephen S | L115: 11100 | M115: 9.93 | N115: <32 | O115: <59.459 | P115: DOES NOT MEET | Q115: MEETS | R115: N/A | S115: N/A | T115: 59.459 | U115: 32
A116: Martin Marietta | B116: Woodleaf Quarry - Salisbury | C116: 2020-03-03 | D116: #78-M Stone for Electrochemical | E116: CA56 | F116: =VLOOKUP(Table16[[#This Row],[Facility ID]],'Coord.'!$A$1:$E$818,2,FALSE) -> N | G116: =VLOOKUP(Table16[[#This Row],[Facility ID]],'Coord.'!$A$1:$E$818,3,FALSE) -> 35.773539 | H116: =VLOOKUP(Table16[[#This Row],[Facility ID]],'Coord.'!$A$1:$E$818,4,FALSE) -> W | I116: =VLOOKUP(Table16[[#This Row],[Facility ID]],'Coord.'!$A$1:$E$818,5,FALSE) -> -80.598793 | J116: 1005350 | K116: Ealey, Lee E | L116: 17540 | M116: 9.48 | N116: <30 | O116: <37.628 | P116: DOES NOT MEET | Q116: MEETS | R116: N/A | S116: N/A | T116: 37.628 | U116: 30
A117: Carolina Sunrock LLC | B117: Woodsdale Quarry - Roxboro | C117: 2019-01-11 | D117: #78-M Stone for Electrochemical | E117: CA329 | F117: =VLOOKUP(Table16[[#This Row],[Facility ID]],'Coord.'!$A$1:$E$818,2,FALSE) -> N | G117: =VLOOKUP(Table16[[#This Row],[Facility ID]],'Coord.'!$A$1:$E$818,3,FALSE) -> 36.516776 | H117: =VLOOKUP(Table16[[#This Row],[Facility ID]],'Coord.'!$A$1:$E$818,4,FALSE) -> W | I117: =VLOOKUP(Table16[[#This Row],[Facility ID]],'Coord.'!$A$1:$E$818,5,FALSE) -> -78.963525 | J117: 945251 | K117: Skinner, III, John L | L117: 16390 | M117: 9.4 | N117: 0 | O117: <40.268 | P117: DOES NOT MEET | Q117: MEETS | R117: N/A | S117: N/A | T117: 40.268 | U117: 0
A118: Vulcan Materials Co. | B118: 115 Quarry - N. Wilkesboro | C118: 2019-08-05 | D118: #67 Stone for Electrochemical | E118: CA79 | F118: =VLOOKUP(Table16[[#This Row],[Facility ID]],'Coord.'!$A$1:$E$818,2,FALSE) -> N | G118: =VLOOKUP(Table16[[#This Row],[Facility ID]],'Coord.'!$A$1:$E$818,3,FALSE) -> 36.106467 | H118: =VLOOKUP(Table16[[#This Row],[Facility ID]],'Coord.'!$A$1:$E$818,4,FALSE) -> W | I118: =VLOOKUP(Table16[[#This Row],[Facility ID]],'Coord.'!$A$1:$E$818,5,FALSE) -> -81.099031 | J118: 976211 | K118: Church, Tracy G | L118: 15980 | M118: 9.2 | N118: <29 | O118: <41.302 | P118: DOES NOT MEET | Q118: MEETS | R118: N/A | S118: N/A | T118: 41.302 | U118: 29
A119: Martin Marietta | B119: American Stone - Carrboro | C119: 2019-02-13 | D119: #67 Stone for Electrochemical | E119: CA2 | F119: =VLOOKUP(Table16[[#This Row],[Facility ID]],'Coord.'!$A$1:$E$818,2,FALSE) -> N | G119: =VLOOKUP(Table16[[#This Row],[Facility ID]],'Coord.'!$A$1:$E$818,3,FALSE) -> 35.927265 | H119: =VLOOKUP(Table16[[#This Row],[Facility ID]],'Coord.'!$A$1:$E$818,4,FALSE) -> W | I119: =VLOOKUP(Table16[[#This Row],[Facility ID]],'Coord.'!$A$1:$E$818,5,FALSE) -> -79.153772 | J119: 949790 | K119: Westmoreland, Braxton J | L119: 16170 | M119: 9.8 | N119: 0 | O119: <40.816 | P119: DOES NOT MEET | Q119: MEETS | R119: N/A | S119: N/A | T119: 40.816 | U119: 0
A120: Hedrick Industries | B120: Aquadale Quarry - Norwood | C120: 2019-09-24 | D120: #67 Stone for Electrochemical | E120: CA274 | F120: =VLOOKUP(Table16[[#This Row],[Facility ID]],'Coord.'!$A$1:$E$818,2,FALSE) -> N | G120: =VLOOKUP(Table16[[#This Row],[Facility ID]],'Coord.'!$A$1:$E$818,3,FALSE) -> 35.236498 | H120: =VLOOKUP(Table16[[#This Row],[Facility ID]],'Coord.'!$A$1:$E$818,4,FALSE) -> W | I120: =VLOOKUP(Table16[[#This Row],[Facility ID]],'Coord.'!$A$1:$E$818,5,FALSE) -> -80.239287 | J120: 984693 | K120: Smith, Michael L | L120: 14180 | M120: 9.02 | N120: <32 | O120: <46.544 | P120: DOES NOT MEET | Q120: MEETS | R120: N/A | S120: N/A | T120: 46.544 | U120: 32
A121: Martin Marietta | B121: Arrowood Quarry - Charlotte | C121: 2019-09-18 | D121: #67 Stone for Electrochemical | E121: CA31 | F121: =VLOOKUP(Table16[[#This Row],[Facility ID]],'Coord.'!$A$1:$E$818,2,FALSE) -> N | G121: =VLOOKUP(Table16[[#This Row],[Facility ID]],'Coord.'!$A$1:$E$818,3,FALSE) -> 35.111865 | H121: =VLOOKUP(Table16[[#This Row],[Facility ID]],'Coord.'!$A$1:$E$818,4,FALSE) -> W | I121: =VLOOKUP(Table16[[#This Row],[Facility ID]],'Coord.'!$A$1:$E$818,5,FALSE) -> -80.921875 | J121: 983522 | K121: Smith, Michael L | L121: 10830 | M121: 9.15 | N121: <32 | O121: <60.942 | P121: DOES NOT MEET | Q121: MEETS | R121: N/A | S121: N/A | T121: 60.942 | U121: 32
A122: Martin Marietta | B122: Asheboro Quarry - Asheboro | C122: 2019-08-22 | D122: #67 Stone for Electrochemical | E122: CA30 | F122: =VLOOKUP(Table16[[#This Row],[Facility ID]],'Coord.'!$A$1:$E$818,2,FALSE) -> N | G122: =VLOOKUP(Table16[[#This Row],[Facility ID]],'Coord.'!$A$1:$E$818,3,FALSE) -> 35.766085 | H122: =VLOOKUP(Table16[[#This Row],[Facility ID]],'Coord.'!$A$1:$E$818,4,FALSE) -> W | I122: =VLOOKUP(Table16[[#This Row],[Facility ID]],'Coord.'!$A$1:$E$818,5,FALSE) -> -79.823999 | J122: 979365 | K122: Jackson, Brandon M | L122: 17770 | M122: 9.05 | N122: <29 | O122: <37.141 | P122: DOES NOT MEET | Q122: MEETS | R122: N/A | S122: N/A | T122: 37.141 | U122: 29
A123: Martin Marietta | B123: Bakers Quarry - Monroe | C123: 2019-11-27 | D123: #67 Stone for Electrochemical | E123: CA32 | F123: =VLOOKUP(Table16[[#This Row],[Facility ID]],'Coord.'!$A$1:$E$818,2,FALSE) -> N | G123: =VLOOKUP(Table16[[#This Row],[Facility ID]],'Coord.'!$A$1:$E$818,3,FALSE) -> 35.027618 | H123: =VLOOKUP(Table16[[#This Row],[Facility ID]],'Coord.'!$A$1:$E$818,4,FALSE) -> W | I123: =VLOOKUP(Table16[[#This Row],[Facility ID]],'Coord.'!$A$1:$E$818,5,FALSE) -> -80.603741 | J123: 993358 | K123: Smith, Michael L | L123: 23130 | M123: 9.38 | N123: <30 | O123: <28.534 | P123: DOES NOT MEET | Q123: MEETS | R123: N/A | S123: N/A | T123: 28.534 | U123: 30
A124: Sloan Construction Co. | B124: Blacksburg Quarry - Blacksburg, SC | C124: 2019-08-22 | D124: #67 Stone for Electrochemical | E124: CA382 | F124: =VLOOKUP(Table16[[#This Row],[Facility ID]],'Coord.'!$A$1:$E$818,2,FALSE) -> N | G124: =VLOOKUP(Table16[[#This Row],[Facility ID]],'Coord.'!$A$1:$E$818,3,FALSE) -> 35.136633 | H124: =VLOOKUP(Table16[[#This Row],[Facility ID]],'Coord.'!$A$1:$E$818,4,FALSE) -> W | I124: =VLOOKUP(Table16[[#This Row],[Facility ID]],'Coord.'!$A$1:$E$818,5,FALSE) -> 81.528683 | J124: 979540 | K124: Brinson, Joseph | L124: 24510 | M124: 7.76 | N124: <29 | O124: <26.928 | P124: MEETS | Q124: MEETS | R124: N/A | S124: N/A | T124: 26.928 | U124: 29
A125: Martin Marietta | B125: Bonds Quarry - Concord | C125: 2019-09-04 | D125: #67 Stone for Electrochemical | E125: CA276 | F125: =VLOOKUP(Table16[[#This Row],[Facility ID]],'Coord.'!$A$1:$E$818,2,FALSE) -> N | G125: =VLOOKUP(Table16[[#This Row],[Facility ID]],'Coord.'!$A$1:$E$818,3,FALSE) -> 35.379278 | H125: =VLOOKUP(Table16[[#This Row],[Facility ID]],'Coord.'!$A$1:$E$818,4,FALSE) -> W | I125: =VLOOKUP(Table16[[#This Row],[Facility ID]],'Coord.'!$A$1:$E$818,5,FALSE) -> -80.698135 | J125: 981560 | K125: Cero, Kevin M | L125: 19640 | M125: 9.72 | N125: <32 | O125: <33.605 | P125: DOES NOT MEET | Q125: MEETS | R125: N/A | S125: N/A | T125: 33.605 | U125: 32
A126: Martin Marietta | B126: Burlington Quarry - Burlington | C126: 2019-05-31 | D126: #67 Stone for Electrochemical | E126: CA39 | F126: =VLOOKUP(Table16[[#This Row],[Facility ID]],'Coord.'!$A$1:$E$818,2,FALSE) -> N | G126: =VLOOKUP(Table16[[#This Row],[Facility ID]],'Coord.'!$A$1:$E$818,3,FALSE) -> 36.051876 | H126: =VLOOKUP(Table16[[#This Row],[Facility ID]],'Coord.'!$A$1:$E$818,4,FALSE) -> W | I126: =VLOOKUP(Table16[[#This Row],[Facility ID]],'Coord.'!$A$1:$E$818,5,FALSE) -> -79.508237 | J126: 966239 | K126: Waller, John M | L126: 15550 | M126: 9.45 | N126: <30 | O126: <42.444 | P126: DOES NOT MEET | Q126: MEETS | R126: N/A | S126: N/A | T126: 42.444 | U126: 30
A127: Carolina Sunrock LLC | B127: Butner Quarry - Butner | C127: 2019-03-25 | D127: #67 Stone for Electrochemical | E127: CA178 | F127: =VLOOKUP(Table16[[#This Row],[Facility ID]],'Coord.'!$A$1:$E$818,2,FALSE) -> N | G127: =VLOOKUP(Table16[[#This Row],[Facility ID]],'Coord.'!$A$1:$E$818,3,FALSE) -> 36.121975 | H127: =VLOOKUP(Table16[[#This Row],[Facility ID]],'Coord.'!$A$1:$E$818,4,FALSE) -> W | I127: =VLOOKUP(Table16[[#This Row],[Facility ID]],'Coord.'!$A$1:$E$818,5,FALSE) -> -78.772541 | J127: 955934 | K127: Skinner, III, John L | L127: 10130 | M127: 10.1 | N127: <30 | O127: <65.153 | P127: DOES NOT MEET | Q127: DOES NOT MEET | R127: N/A | S127: N/A | T127: 65.153 | U127: 30
A128: Vulcan Materials Co. | B128: Cabarrus Quarry - Concord | C128: 2019-09-24 | D128: #67 Stone for Electrochemical | E128: CA186 | F128: =VLOOKUP(Table16[[#This Row],[Facility ID]],'Coord.'!$A$1:$E$818,2,FALSE) -> N | G128: =VLOOKUP(Table16[[#This Row],[Facility ID]],'Coord.'!$A$1:$E$818,3,FALSE) -> 35.40403 | H128: =VLOOKUP(Table16[[#This Row],[Facility ID]],'Coord.'!$A$1:$E$818,4,FALSE) -> W | I128: =VLOOKUP(Table16[[#This Row],[Facility ID]],'Coord.'!$A$1:$E$818,5,FALSE) -> -80.704829 | J128: 984943 | K128: Cero, Kevin M | L128: 17720 | M128: 9.65 | N128: <32 | O128: <37.246 | P128: DOES NOT MEET | Q128: MEETS | R128: N/A | S128: N/A | T128: 37.246 | U128: 32
A129: Martin Marietta | B129: Charlotte Quarry - Charlotte | C129: 2019-07-10 | D129: #67 Stone for Electrochemical | E129: CA41 | F129: =VLOOKUP(Table16[[#This Row],[Facility ID]],'Coord.'!$A$1:$E$818,2,FALSE) -> N | G129: =VLOOKUP(Table16[[#This Row],[Facility ID]],'Coord.'!$A$1:$E$818,3,FALSE) -> 35.297229 | H129: =VLOOKUP(Table16[[#This Row],[Facility ID]],'Coord.'!$A$1:$E$818,4,FALSE) -> W | I129: =VLOOKUP(Table16[[#This Row],[Facility ID]],'Coord.'!$A$1:$E$818,5,FALSE) -> -80.863066 | J129: 972758 | K129: Pegues, Jr., Henderson | L129: 18470 | M129: 9.49 | N129: <29 | O129: <35.734 | P129: DOES NOT MEET | Q129: MEETS | R129: N/A | S129: N/A | T129: 35.734 | U129: 29
A130: Martin Marietta | B130: Clarks Quarry - New Bern | C130: 2019-09-13 | D130: #67 Stone for Electrochemical | E130: CA189 | F130: =VLOOKUP(Table16[[#This Row],[Facility ID]],'Coord.'!$A$1:$E$818,2,FALSE) -> N | G130: =VLOOKUP(Table16[[#This Row],[Facility ID]],'Coord.'!$A$1:$E$818,3,FALSE) -> 35.150664 | H130: =VLOOKUP(Table16[[#This Row],[Facility ID]],'Coord.'!$A$1:$E$818,4,FALSE) -> W | I130: =VLOOKUP(Table16[[#This Row],[Facility ID]],'Coord.'!$A$1:$E$818,5,FALSE) -> -77.151771 | J130: 982797 | K130: Cobb, James R | L130: 4048 | M130: 8.22 | N130: <32 | O130: <163.043 | P130: =IF(AND(4.5 <= $M130, $M130 <= 9), "MEETS", "DOES NOT MEET") -> MEETS | Q130: =IF(AND(5 <= $M130, $M130 <= 10), "MEETS", "DOES NOT MEET") -> MEETS | R130: DOES NOT MEET | S130: DOES NOT MEET | T130: =IF(LEFT(O130, 1)="<", VALUE(RIGHT(O130,LEN(O130)-1)), O130) -> 163.043 | U130: =IF(LEFT(N130, 1)="<", VALUE(RIGHT(N130,LEN(N130)-1)), N130) -> 32
A131: Vulcan Materials Co. | B131: Clear Creek Q. - Charlotte | C131: 2020-02-04 | D131: #67 Stone for Electrochemical | E131: CA249 | F131: =VLOOKUP(Table16[[#This Row],[Facility ID]],'Coord.'!$A$1:$E$818,2,FALSE) -> N | G131: =VLOOKUP(Table16[[#This Row],[Facility ID]],'Coord.'!$A$1:$E$818,3,FALSE) -> 35.2205 | H131: =VLOOKUP(Table16[[#This Row],[Facility ID]],'Coord.'!$A$1:$E$818,4,FALSE) -> W | I131: =VLOOKUP(Table16[[#This Row],[Facility ID]],'Coord.'!$A$1:$E$818,5,FALSE) -> -80.647542 | J131: 998435 | K131: Pegues, Jr., Henderson | L131: 22470 | M131: 9.57 | N131: <30 | O131: <29.372 | P131: DOES NOT MEET | Q131: MEETS | R131: N/A | S131: N/A | T131: 29.372 | U131: 30
A132: Hanson Aggregates Southeast, Inc. | B132: Crabtree Quarry - Raleigh | C132: 2019-03-13 | D132: #67 Stone for Electrochemical | E132: CA61 | F132: =VLOOKUP(Table16[[#This Row],[Facility ID]],'Coord.'!$A$1:$E$818,2,FALSE) -> N | G132: =VLOOKUP(Table16[[#This Row],[Facility ID]],'Coord.'!$A$1:$E$818,3,FALSE) -> 35.846782 | H132: =VLOOKUP(Table16[[#This Row],[Facility ID]],'Coord.'!$A$1:$E$818,4,FALSE) -> W | I132: =VLOOKUP(Table16[[#This Row],[Facility ID]],'Coord.'!$A$1:$E$818,5,FALSE) -> -78.710388 | J132: 954289 | K132: Skinner, III, John L | L132: 18360 | M132: 8.8 | N132: 0 | O132: <35.948 | P132: MEETS | Q132: MEETS | R132: N/A | S132: N/A | T132: 35.948 | U132: 0
A133: Martin Marietta | B133: Denver Quarry - Denver | C133: 2019-08-28 | D133: #67 Stone for Electrochemical | E133: CA169 | F133: =VLOOKUP(Table16[[#This Row],[Facility ID]],'Coord.'!$A$1:$E$818,2,FALSE) -> N | G133: =VLOOKUP(Table16[[#This Row],[Facility ID]],'Coord.'!$A$1:$E$818,3,FALSE) -> 35.527092 | H133: =VLOOKUP(Table16[[#This Row],[Facility ID]],'Coord.'!$A$1:$E$818,4,FALSE) -> W | I133: =VLOOKUP(Table16[[#This Row],[Facility ID]],'Coord.'!$A$1:$E$818,5,FALSE) -> -81.026444 | J133: 980194 | K133: Brinson, Joseph | L133: 2476 | M133: 3.97 | N133: <32 | O133: <266.559 | P133: DOES NOT MEET | Q133: DOES NOT MEET | R133: N/A | S133: N/A | T133: 266.559 | U133: 32
A134: Vulcan Materials Co. | B134: East Forsyth Quarry - Kernersville | C134: 2020-02-24 | D134: #67 Stone for Electrochemical | E134: CA139 | F134: =VLOOKUP(Table16[[#This Row],[Facility ID]],'Coord.'!$A$1:$E$818,2,FALSE) -> N | G134: =VLOOKUP(Table16[[#This Row],[Facility ID]],'Coord.'!$A$1:$E$818,3,FALSE) -> 36.024623 | H134: =VLOOKUP(Table16[[#This Row],[Facility ID]],'Coord.'!$A$1:$E$818,4,FALSE) -> W | I134: =VLOOKUP(Table16[[#This Row],[Facility ID]],'Coord.'!$A$1:$E$818,5,FALSE) -> -80.06013 | J134: 1000307 | K134: Ealey, Lee E | L134: 21680 | M134: 9.36 | N134: <30 | O134: <30.443 | P134: DOES NOT MEET | Q134: MEETS | R134: N/A | S134: N/A | T134: 30.443 | U134: 30
A135: Boxley Materials Company | B135: Fieldale Quarry - Martinsville, VA | C135: 2019-03-05 | D135: #67 Stone for Electrochemical | E135: CA142 | F135: =VLOOKUP(Table16[[#This Row],[Facility ID]],'Coord.'!$A$1:$E$818,2,FALSE) -> N | G135: =VLOOKUP(Table16[[#This Row],[Facility ID]],'Coord.'!$A$1:$E$818,3,FALSE) -> 36.688295 | H135: =VLOOKUP(Table16[[#This Row],[Facility ID]],'Coord.'!$A$1:$E$818,4,FALSE) -> W | I135: =VLOOKUP(Table16[[#This Row],[Facility ID]],'Coord.'!$A$1:$E$818,5,FALSE) -> -79.938883 | J135: 953148 | K135: Westmoreland, Braxton J | L135: 10830 | M135: 8.7 | N135: 0 | O135: <60.942 | P135: MEETS | Q135: MEETS | R135: N/A | S135: N/A | T135: 60.942 | U135: 0
A136: Martin Marietta | B136: Garner Quarry - Garner | C136: 2019-01-29 | D136: #67 Stone for Electrochemical | E136: CA57 | F136: =VLOOKUP(Table16[[#This Row],[Facility ID]],'Coord.'!$A$1:$E$818,2,FALSE) -> N | G136: =VLOOKUP(Table16[[#This Row],[Facility ID]],'Coord.'!$A$1:$E$818,3,FALSE) -> 35.702164 | H136: =VLOOKUP(Table16[[#This Row],[Facility ID]],'Coord.'!$A$1:$E$818,4,FALSE) -> W | I136: =VLOOKUP(Table16[[#This Row],[Facility ID]],'Coord.'!$A$1:$E$818,5,FALSE) -> -78.577137 | J136: 947426 | K136: Skinner, III, John L | L136: 21980 | M136: 9.3 | N136: 0 | O136: <30.027 | P136: DOES NOT MEET | Q136: MEETS | R136: N/A | S136: N/A | T136: 30.027 | U136: 0
A137: Carolina Stalite Corp. | B137: Gold Hill (Light Wt.) - Gold Hill | C137: 2020-04-07 | D137: #67 Stone for Electrochemical | E137: CA226 | F137: =VLOOKUP(Table16[[#This Row],[Facility ID]],'Coord.'!$A$1:$E$818,2,FALSE) -> N | G137: =VLOOKUP(Table16[[#This Row],[Facility ID]],'Coord.'!$A$1:$E$818,3,FALSE) -> 35.504739 | H137: =VLOOKUP(Table16[[#This Row],[Facility ID]],'Coord.'!$A$1:$E$818,4,FALSE) -> W | I137: =VLOOKUP(Table16[[#This Row],[Facility ID]],'Coord.'!$A$1:$E$818,5,FALSE) -> -80.330615 | J137: 1004812 | K137: Whitley, Christopher D | L137: 8852 | M137: 9.45 | N137: <30 | O137: <74.56 | P137: DOES NOT MEET | Q137: MEETS | R137: N/A | S137: N/A | T137: 74.56 | U137: 30
A138: Vulcan Materials Co. | B138: Greystone Quarry - Henderson | C138: 2019-04-01 | D138: #67 Stone for Electrochemical | E138: CA70 | F138: =VLOOKUP(Table16[[#This Row],[Facility ID]],'Coord.'!$A$1:$E$818,2,FALSE) -> N | G138: =VLOOKUP(Table16[[#This Row],[Facility ID]],'Coord.'!$A$1:$E$818,3,FALSE) -> 36.355214 | H138: =VLOOKUP(Table16[[#This Row],[Facility ID]],'Coord.'!$A$1:$E$818,4,FALSE) -> W | I138: =VLOOKUP(Table16[[#This Row],[Facility ID]],'Coord.'!$A$1:$E$818,5,FALSE) -> -78.348459 | J138: 957253 | K138: Skinner, III, John L | L138: 24930 | M138: 9.5 | N138: <30 | O138: <26.474 | P138: DOES NOT MEET | Q138: MEETS | R138: =IF(OR(ISBLANK(L138), NOT(ISNUMBER(MATCH($E138, Coastal,0)))), "N/A", IF(AND(4.5 <= $M138, $M138 <= 9),IF($L138>=5000,IF($U138<=100,IF($T138<=200,"MEETS","DOES NOT MEET"),"DOES NOT MEET"),"DOES NOT MEET"),"DOES NOT MEET")) -> N/A | S138: =IF(OR(ISBLANK(M138), NOT(ISNUMBER(MATCH($E138, Coastal, 0)))), "N/A", IF(AND(5 <= $M138, $M138 <= 10),IF($L138>=5000,IF($U138<=100,IF($T138<=200,"MEETS","DOES NOT MEET"),"DOES NOT MEET"),"DOES NOT MEET"),"DOES NOT MEET")) -> N/A | T138: 26.474 | U138: 30
A139: Hedrick Industries | B139: Grove Stone Quarry - Black Mountain | C139: 2016-04-08 | D139: #67 Stone for Electrochemical | E139: CA146 | F139: =VLOOKUP(Table16[[#This Row],[Facility ID]],'Coord.'!$A$1:$E$818,2,FALSE) -> N | G139: =VLOOKUP(Table16[[#This Row],[Facility ID]],'Coord.'!$A$1:$E$818,3,FALSE) -> 35.610684 | H139: =VLOOKUP(Table16[[#This Row],[Facility ID]],'Coord.'!$A$1:$E$818,4,FALSE) -> W | I139: =VLOOKUP(Table16[[#This Row],[Facility ID]],'Coord.'!$A$1:$E$818,5,FALSE) -> -82.364769 | J139: 801531 | K139: Rhymer, Robert C | L139: 11593 | M139: 7 | N139: 0 | O139: 21 | P139: MEETS | Q139: MEETS | R139: N/A | S139: N/A | T139: 21 | U139: 0
A140: Vulcan Materials Co. | B140: Havre De Grace Quarry - Havre De Grace, MD | C140: 2020-09-21 | D140: #67 Stone for Electrochemical | E140: CA345 | F140: =VLOOKUP(Table16[[#This Row],[Facility ID]],'Coord.'!$A$1:$E$818,2,FALSE) -> N | G140: =VLOOKUP(Table16[[#This Row],[Facility ID]],'Coord.'!$A$1:$E$818,3,FALSE) -> 35.58499 | H140: =VLOOKUP(Table16[[#This Row],[Facility ID]],'Coord.'!$A$1:$E$818,4,FALSE) -> W | I140: =VLOOKUP(Table16[[#This Row],[Facility ID]],'Coord.'!$A$1:$E$818,5,FALSE) -> -76.103046 | J140: 1021094 | K140: Bonds, Maria M | L140: 13710 | M140: 9.31 | N140: <30 | O140: <48.140 | P140: DOES NOT MEET | Q140: MEETS | R140: DOES NOT MEET | S140: MEETS | T140: 48.14 | U140: 30
A141: Martin Marietta | B141: Hickory Quarry - Hickory | C141: 2019-07-08 | D141: #67 Stone for Electrochemical | E141: CA43 | F141: =VLOOKUP(Table16[[#This Row],[Facility ID]],'Coord.'!$A$1:$E$818,2,FALSE) -> N | G141: =VLOOKUP(Table16[[#This Row],[Facility ID]],'Coord.'!$A$1:$E$818,3,FALSE) -> 35.71702 | H141: =VLOOKUP(Table16[[#This Row],[Facility ID]],'Coord.'!$A$1:$E$818,4,FALSE) -> W | I141: =VLOOKUP(Table16[[#This Row],[Facility ID]],'Coord.'!$A$1:$E$818,5,FALSE) -> -81.301823 | J141: 971762 | K141: Gosnell, Jimmy L | L141: 22660 | M141: 9.47 | N141: <29 | O141: <29.126 | P141: DOES NOT MEET | Q141: MEETS | R141: N/A | S141: N/A | T141: 29.126 | U141: 29
A142: Hanson Aggregates Southeast, Inc. | B142: Holly Springs Quarry | C142: 2019-03-29 | D142: #67 Stone for Electrochemical | E142: CA282 | F142: =VLOOKUP(Table16[[#This Row],[Facility ID]],'Coord.'!$A$1:$E$818,2,FALSE) -> N | G142: =VLOOKUP(Table16[[#This Row],[Facility ID]],'Coord.'!$A$1:$E$818,3,FALSE) -> 35.602602 | H142: =VLOOKUP(Table16[[#This Row],[Facility ID]],'Coord.'!$A$1:$E$818,4,FALSE) -> W | I142: =VLOOKUP(Table16[[#This Row],[Facility ID]],'Coord.'!$A$1:$E$818,5,FALSE) -> -78.877609 | J142: 956968 | K142: Skinner, III, John L | L142: 16520 | M142: 9.3 | N142: <30 | O142: <39.952 | P142: DOES NOT MEET | Q142: MEETS | R142: N/A | S142: N/A | T142: 39.952 | U142: 30
A143: Vulcan Materials Co. | B143: Jack Quarry - Petersburg, VA | C143: 2020-09-21 | D143: #67 Stone for Electrochemical | E143: CA137 | F143: =VLOOKUP(Table16[[#This Row],[Facility ID]],'Coord.'!$A$1:$E$818,2,FALSE) -> 0 | G143: =VLOOKUP(Table16[[#This Row],[Facility ID]],'Coord.'!$A$1:$E$818,3,FALSE) -> 37.197638 | H143: =VLOOKUP(Table16[[#This Row],[Facility ID]],'Coord.'!$A$1:$E$818,4,FALSE) -> 0 | I143: =VLOOKUP(Table16[[#This Row],[Facility ID]],'Coord.'!$A$1:$E$818,5,FALSE) -> -77.504618 | J143: 1021106 | K143: Bonds, Maria M | L143: 19570 | M143: 9.52 | N143: <30 | O143: <33.725 | P143: DOES NOT MEET | Q143: MEETS | R143: DOES NOT MEET | S143: MEETS | T143: 33.725 | U143: 30
A144: Martin Marietta | B144: Jamestown Quarry - Jamestown | C144: 2019-06-04 | D144: #67 Stone for Electrochemical | E144: CA46 | F144: =VLOOKUP(Table16[[#This Row],[Facility ID]],'Coord.'!$A$1:$E$818,2,FALSE) -> 0 | G144: =VLOOKUP(Table16[[#This Row],[Facility ID]],'Coord.'!$A$1:$E$818,3,FALSE) -> 35.964756 | H144: =VLOOKUP(Table16[[#This Row],[Facility ID]],'Coord.'!$A$1:$E$818,4,FALSE) -> W | I144: =VLOOKUP(Table16[[#This Row],[Facility ID]],'Coord.'!$A$1:$E$818,5,FALSE) -> -79.920194 | J144: 966791 | K144: Waller, John M | L144: 26120 | M144: 9.15 | N144: <30 | O144: <25.268 | P144: DOES NOT MEET | Q144: MEETS | R144: N/A | S144: N/A | T144: 25.268 | U144: 30
A145: Hanson Aggregates Southeast, Inc. | B145: Jefferson Quarry - Jefferson, SC | C145: 2019-09-13 | D145: #67 Stone for Electrochemical | E145: CA120 | F145: =VLOOKUP(Table16[[#This Row],[Facility ID]],'Coord.'!$A$1:$E$818,2,FALSE) -> N | G145: =VLOOKUP(Table16[[#This Row],[Facility ID]],'Coord.'!$A$1:$E$818,3,FALSE) -> 34.69969 | H145: =VLOOKUP(Table16[[#This Row],[Facility ID]],'Coord.'!$A$1:$E$818,4,FALSE) -> W | I145: =VLOOKUP(Table16[[#This Row],[Facility ID]],'Coord.'!$A$1:$E$818,5,FALSE) -> -80.332675 | J145: 982914 | K145: Jordan, Daniel H | L145: 29240 | M145: 9.25 | N145: <32 | O145: <22.573 | P145: DOES NOT MEET | Q145: MEETS | R145: N/A | S145: N/A | T145: 22.573 | U145: 32
A146: Martin Marietta | B146: Kannapolis Quarry - Landis | C146: 2020-02-26 | D146: #67 Stone for Electrochemical | E146: CA47 | F146: =VLOOKUP(Table16[[#This Row],[Facility ID]],'Coord.'!$A$1:$E$818,2,FALSE) -> N | G146: =VLOOKUP(Table16[[#This Row],[Facility ID]],'Coord.'!$A$1:$E$818,3,FALSE) -> 35.520546 | H146: =VLOOKUP(Table16[[#This Row],[Facility ID]],'Coord.'!$A$1:$E$818,4,FALSE) -> W | I146: =VLOOKUP(Table16[[#This Row],[Facility ID]],'Coord.'!$A$1:$E$818,5,FALSE) -> -80.584058 | J146: 1000982 | K146: Ealey, Lee E | L146: 16709 | M146: 8.99 | N146: <30 | O146: <39.5 | P146: MEETS | Q146: MEETS | R146: N/A | S146: N/A | T146: 39.5 | U146: 30
A147: Martin Marietta | B147: Kings Mountain Quarry - Kings Mountain | C147: 2019-07-01 | D147: #67 Stone for Electrochemical | E147: CA48 | F147: =VLOOKUP(Table16[[#This Row],[Facility ID]],'Coord.'!$A$1:$E$818,2,FALSE) -> N | G147: =VLOOKUP(Table16[[#This Row],[Facility ID]],'Coord.'!$A$1:$E$818,3,FALSE) -> 35.225724 | H147: =VLOOKUP(Table16[[#This Row],[Facility ID]],'Coord.'!$A$1:$E$818,4,FALSE) -> W | I147: =VLOOKUP(Table16[[#This Row],[Facility ID]],'Coord.'!$A$1:$E$818,5,FALSE) -> -81.339362 | J147: 970678 | K147: Gosnell, Jimmy L | L147: 13190 | M147: 9.27 | N147: <29 | O147: <50.038 | P147: DOES NOT MEET | Q147: MEETS | R147: N/A | S147: N/A | T147: 50.038 | U147: 29
A148: Carolina Sunrock LLC | B148: Kittrell Quarry - Kittrell | C148: 2019-02-01 | D148: #67 Stone for Electrochemical | E148: CA304 | F148: =VLOOKUP(Table16[[#This Row],[Facility ID]],'Coord.'!$A$1:$E$818,2,FALSE) -> N | G148: =VLOOKUP(Table16[[#This Row],[Facility ID]],'Coord.'!$A$1:$E$818,3,FALSE) -> 36.169713 | H148: =VLOOKUP(Table16[[#This Row],[Facility ID]],'Coord.'!$A$1:$E$818,4,FALSE) -> W | I148: =VLOOKUP(Table16[[#This Row],[Facility ID]],'Coord.'!$A$1:$E$818,5,FALSE) -> -78.444864 | J148: 948021 | K148: Skinner, III, John L | L148: 20820 | M148: 9.3 | N148: 0 | O148: <31.7 | P148: DOES NOT MEET | Q148: MEETS | R148: N/A | S148: N/A | T148: 31.7 | U148: 0
A149: Hedrick Industries | B149: Lake Norman Quarry - Stanley | C149: 2019-07-12 | D149: #67 Stone for Electrochemical | E149: CA168 | F149: =VLOOKUP(Table16[[#This Row],[Facility ID]],'Coord.'!$A$1:$E$818,2,FALSE) -> N | G149: =VLOOKUP(Table16[[#This Row],[Facility ID]],'Coord.'!$A$1:$E$818,3,FALSE) -> 35.428624 | H149: =VLOOKUP(Table16[[#This Row],[Facility ID]],'Coord.'!$A$1:$E$818,4,FALSE) -> W | I149: =VLOOKUP(Table16[[#This Row],[Facility ID]],'Coord.'!$A$1:$E$818,5,FALSE) -> -81.017242 | J149: 972392 | K149: Gosnell, Jimmy L | L149: 7067 | M149: 9.24 | N149: <29 | O149: <71.467 | P149: DOES NOT MEET | Q149: MEETS | R149: N/A | S149: N/A | T149: 71.467 | U149: 29
A150: Martin Marietta | B150: Lemon Springs - Sanford | C150: 2019-08-16 | D150: #67 Stone for Electrochemical | E150: CA97 | F150: =VLOOKUP(Table16[[#This Row],[Facility ID]],'Coord.'!$A$1:$E$818,2,FALSE) -> 0 | G150: =VLOOKUP(Table16[[#This Row],[Facility ID]],'Coord.'!$A$1:$E$818,3,FALSE) -> 35.410661 | H150: =VLOOKUP(Table16[[#This Row],[Facility ID]],'Coord.'!$A$1:$E$818,4,FALSE) -> 0 | I150: =VLOOKUP(Table16[[#This Row],[Facility ID]],'Coord.'!$A$1:$E$818,5,FALSE) -> -79.2065 | J150: 978233 | K150: Jackson, Brandon M | L150: 16730 | M150: 9.33 | N150: <29 | O150: <39.450 | P150: DOES NOT MEET | Q150: MEETS | R150: N/A | S150: N/A | T150: 39.45 | U150: 29
A151: Vulcan Materials Co. | B151: Lenior Quarry - Lenoir | C151: 2006-08-25 | D151: #67 Stone for Electrochemical | E151: CA91 | F151: =VLOOKUP(Table16[[#This Row],[Facility ID]],'Coord.'!$A$1:$E$818,2,FALSE) -> N | G151: =VLOOKUP(Table16[[#This Row],[Facility ID]],'Coord.'!$A$1:$E$818,3,FALSE) -> 35.93525 | H151: =VLOOKUP(Table16[[#This Row],[Facility ID]],'Coord.'!$A$1:$E$818,4,FALSE) -> W | I151: =VLOOKUP(Table16[[#This Row],[Facility ID]],'Coord.'!$A$1:$E$818,5,FALSE) -> -81.488753 | J151: 419986 | K151: Church, Tracy G | L151: 22727 | M151: 7.5 | N151: <30 | O151: <200 | P151: MEETS | Q151: MEETS | R151: N/A | S151: N/A | T151: 200 | U151: 30
A152: Vulcan Materials Co. | B152: Lenior Quarry - Lenoir | C152: 2006-08-25 | D152: #67 Stone for Electrochemical | E152: CA91 | F152: =VLOOKUP(Table16[[#This Row],[Facility ID]],'Coord.'!$A$1:$E$818,2,FALSE) -> N | G152: =VLOOKUP(Table16[[#This Row],[Facility ID]],'Coord.'!$A$1:$E$818,3,FALSE) -> 35.93525 | H152: =VLOOKUP(Table16[[#This Row],[Facility ID]],'Coord.'!$A$1:$E$818,4,FALSE) -> W | I152: =VLOOKUP(Table16[[#This Row],[Facility ID]],'Coord.'!$A$1:$E$818,5,FALSE) -> -81.488753 | J152: 419987 | K152: Church, Tracy G | L152: 18904 | M152: 8.1 | N152: <30 | O152: <200 | P152: MEETS | Q152: MEETS | R152: N/A | S152: N/A | T152: 200 | U152: 30
A153: Georgia Stone Products | B153: Lynches River Quarry - Jefferson, SC | C153: 2016-02-11 | D153: #67 Stone for Electrochemical | E153: CA325 | F153: =VLOOKUP(Table16[[#This Row],[Facility ID]],'Coord.'!$A$1:$E$818,2,FALSE) -> N | G153: =VLOOKUP(Table16[[#This Row],[Facility ID]],'Coord.'!$A$1:$E$818,3,FALSE) -> 34.703235 | H153: =VLOOKUP(Table16[[#This Row],[Facility ID]],'Coord.'!$A$1:$E$818,4,FALSE) -> W | I153: =VLOOKUP(Table16[[#This Row],[Facility ID]],'Coord.'!$A$1:$E$818,5,FALSE) -> -80.461099 | J153: 793641 | K153: Jordan, Daniel H | L153: 30057 | M153: 7.6 | N153: 5.4 | O153: 4.8 | P153: MEETS | Q153: MEETS | R153: N/A | S153: N/A | T153: 4.8 | U153: 5.4
A154: Martin Marietta | B154: Mallard Creek Quarry - Charlotte | C154: 2019-11-06 | D154: #67 Stone for Electrochemical | E154: CA188 | F154: =VLOOKUP(Table16[[#This Row],[Facility ID]],'Coord.'!$A$1:$E$818,2,FALSE) -> N | G154: =VLOOKUP(Table16[[#This Row],[Facility ID]],'Coord.'!$A$1:$E$818,3,FALSE) -> 35.318085 | H154: =VLOOKUP(Table16[[#This Row],[Facility ID]],'Coord.'!$A$1:$E$818,4,FALSE) -> W | I154: =VLOOKUP(Table16[[#This Row],[Facility ID]],'Coord.'!$A$1:$E$818,5,FALSE) -> -80.728078 | J154: 990713 | K154: Pegues, Jr., Henderson | L154: 17870 | M154: 9.44 | N154: <32 | O154: <36.933 | P154: DOES NOT MEET | Q154: MEETS | R154: N/A | S154: N/A | T154: 36.933 | U154: 32
A155: Hanson Aggregates Southeast, Inc. | B155: Marlboro Plant - Bennettsville | C155: 2018-10-24 | D155: #67 Stone for Electrochemical | E155: CA34 | F155: =VLOOKUP(Table16[[#This Row],[Facility ID]],'Coord.'!$A$1:$E$818,2,FALSE) -> N | G155: =VLOOKUP(Table16[[#This Row],[Facility ID]],'Coord.'!$A$1:$E$818,3,FALSE) -> 34.584676 | H155: =VLOOKUP(Table16[[#This Row],[Facility ID]],'Coord.'!$A$1:$E$818,4,FALSE) -> W | I155: =VLOOKUP(Table16[[#This Row],[Facility ID]],'Coord.'!$A$1:$E$818,5,FALSE) -> -79.748297 | J155: 936888 | K155: Jordan, Daniel H | L155: 158500 | M155: 5.9 | N155: 0 | O155: <4.2 | P155: MEETS | Q155: MEETS | R155: N/A | S155: N/A | T155: 4.2 | U155: 0
A156: Martin Marietta | B156: Matthews Quarry - Matthews | C156: 2019-11-25 | D156: #67 Stone for Electrochemical | E156: CA37 | F156: =VLOOKUP(Table16[[#This Row],[Facility ID]],'Coord.'!$A$1:$E$818,2,FALSE) -> 0 | G156: =VLOOKUP(Table16[[#This Row],[Facility ID]],'Coord.'!$A$1:$E$818,3,FALSE) -> 35.131263 | H156: =VLOOKUP(Table16[[#This Row],[Facility ID]],'Coord.'!$A$1:$E$818,4,FALSE) -> W | I156: =VLOOKUP(Table16[[#This Row],[Facility ID]],'Coord.'!$A$1:$E$818,5,FALSE) -> -80.720372 | J156: 993307 | K156: Smith, Michael L | L156: 18460 | M156: 9.37 | N156: <30 | O156: <35.753 | P156: DOES NOT MEET | Q156: MEETS | R156: N/A | S156: N/A | T156: 35.753 | U156: 30
A157: Blue Water Industries | B157: Midway Quarry - Mascot, TN | C157: 2017-02-20 | D157: #67 Stone for Electrochemical | E157: CA183 | F157: =VLOOKUP(Table16[[#This Row],[Facility ID]],'Coord.'!$A$1:$E$818,2,FALSE) -> N | G157: =VLOOKUP(Table16[[#This Row],[Facility ID]],'Coord.'!$A$1:$E$818,3,FALSE) -> 36.066125 | H157: =VLOOKUP(Table16[[#This Row],[Facility ID]],'Coord.'!$A$1:$E$818,4,FALSE) -> W | I157: =VLOOKUP(Table16[[#This Row],[Facility ID]],'Coord.'!$A$1:$E$818,5,FALSE) -> -83.728347 | J157: 845872 | K157: Rhymer, Robert C | L157: 17056 | M157: 9.8 | N157: 0 | O157: 38.2 | P157: DOES NOT MEET | Q157: MEETS | R157: N/A | S157: N/A | T157: 38.2 | U157: 0
A158: Wake Stone Corp. | B158: Moncure Quarry - Moncure | C158: 2019-02-05 | D158: #67 Stone for Electrochemical | E158: CA100 | F158: =VLOOKUP(Table16[[#This Row],[Facility ID]],'Coord.'!$A$1:$E$818,2,FALSE) -> N | G158: =VLOOKUP(Table16[[#This Row],[Facility ID]],'Coord.'!$A$1:$E$818,3,FALSE) -> 35.61616 | H158: =VLOOKUP(Table16[[#This Row],[Facility ID]],'Coord.'!$A$1:$E$818,4,FALSE) -> W | I158: =VLOOKUP(Table16[[#This Row],[Facility ID]],'Coord.'!$A$1:$E$818,5,FALSE) -> -79.103876 | J158: 948529 | K158: Jordan, Daniel H | L158: 22870 | M158: 9.4 | N158: 0 | O158: <28.859 | P158: DOES NOT MEET | Q158: MEETS | R158: N/A | S158: N/A | T158: 28.859 | U158: 0
A159: Vulcan Materials Co. | B159: Morganton Quarry - Morganton | C159: 2016-04-21 | D159: #67 Stone for Electrochemical | E159: CA7 | F159: =VLOOKUP(Table16[[#This Row],[Facility ID]],'Coord.'!$A$1:$E$818,2,FALSE) -> N | G159: =VLOOKUP(Table16[[#This Row],[Facility ID]],'Coord.'!$A$1:$E$818,3,FALSE) -> 35.46101 | H159: =VLOOKUP(Table16[[#This Row],[Facility ID]],'Coord.'!$A$1:$E$818,4,FALSE) -> W | I159: =VLOOKUP(Table16[[#This Row],[Facility ID]],'Coord.'!$A$1:$E$818,5,FALSE) -> -81.394 | J159: 803453 | K159: Ausley, Jeff A | L159: 22386 | M159: 7.6 | N159: 0 | O159: 6.6 | P159: MEETS | Q159: MEETS | R159: N/A | S159: N/A | T159: 6.6 | U159: 0
A160: Vulcan Materials Co. | B160: North Quarry - Winston Salem | C160: 2020-02-25 | D160: #67 Stone for Electrochemical | E160: CA72 | F160: =VLOOKUP(Table16[[#This Row],[Facility ID]],'Coord.'!$A$1:$E$818,2,FALSE) -> N | G160: =VLOOKUP(Table16[[#This Row],[Facility ID]],'Coord.'!$A$1:$E$818,3,FALSE) -> 36.176855 | H160: =VLOOKUP(Table16[[#This Row],[Facility ID]],'Coord.'!$A$1:$E$818,4,FALSE) -> W | I160: =VLOOKUP(Table16[[#This Row],[Facility ID]],'Coord.'!$A$1:$E$818,5,FALSE) -> -80.268285 | J160: 1000798 | K160: Ealey, Lee E | L160: 22070 | M160: 9.36 | N160: <30 | O160: <29.905 | P160: DOES NOT MEET | Q160: MEETS | R160: N/A | S160: N/A | T160: 29.905 | U160: 30
A161: Vulcan Materials Co. | B161: Pineville Quarry - Charlotte | C161: 2019-08-21 | D161: #67 Stone for Electrochemical | E161: CA101 | F161: =VLOOKUP(Table16[[#This Row],[Facility ID]],'Coord.'!$A$1:$E$818,2,FALSE) -> N | G161: =VLOOKUP(Table16[[#This Row],[Facility ID]],'Coord.'!$A$1:$E$818,3,FALSE) -> 35.115856 | H161: =VLOOKUP(Table16[[#This Row],[Facility ID]],'Coord.'!$A$1:$E$818,4,FALSE) -> W | I161: =VLOOKUP(Table16[[#This Row],[Facility ID]],'Coord.'!$A$1:$E$818,5,FALSE) -> -80.896596 | J161: 979251 | K161: Smith, Michael L | L161: 12880 | M161: 9.39 | N161: <32 | O161: <51.242 | P161: DOES NOT MEET | Q161: MEETS | R161: N/A | S161: N/A | T161: 51.242 | U161: 32
A162: Luck Stone Corporation | B162: Pittsboro Quarry - Moncure | C162: 2016-03-29 | D162: #67 Stone for Electrochemical | E162: CA292 | F162: =VLOOKUP(Table16[[#This Row],[Facility ID]],'Coord.'!$A$1:$E$818,2,FALSE) -> N | G162: =VLOOKUP(Table16[[#This Row],[Facility ID]],'Coord.'!$A$1:$E$818,3,FALSE) -> 35.660416 | H162: =VLOOKUP(Table16[[#This Row],[Facility ID]],'Coord.'!$A$1:$E$818,4,FALSE) -> W | I162: =VLOOKUP(Table16[[#This Row],[Facility ID]],'Coord.'!$A$1:$E$818,5,FALSE) -> -79.176833 | J162: 799656 | K162: Jackson, Brandon M | L162: 20833 | M162: 8.6 | N162: 0 | O162: 6.1 | P162: MEETS | Q162: MEETS | R162: N/A | S162: N/A | T162: 6.1 | U162: 0
A163: Martin Marietta | B163: Pomona Quarry - Greensboro | C163: 2019-05-28 | D163: #67 Stone for Electrochemical | E163: CA51 | F163: =VLOOKUP(Table16[[#This Row],[Facility ID]],'Coord.'!$A$1:$E$818,2,FALSE) -> 0 | G163: =VLOOKUP(Table16[[#This Row],[Facility ID]],'Coord.'!$A$1:$E$818,3,FALSE) -> 36.060418 | H163: =VLOOKUP(Table16[[#This Row],[Facility ID]],'Coord.'!$A$1:$E$818,4,FALSE) -> 0 | I163: =VLOOKUP(Table16[[#This Row],[Facility ID]],'Coord.'!$A$1:$E$818,5,FALSE) -> -79.925365 | J163: 965377 | K163: Waller, John M | L163: 17760 | M163: 9.5 | N163: <30 | O163: <37.162 | P163: DOES NOT MEET | Q163: MEETS | R163: N/A | S163: N/A | T163: 37.162 | U163: 30
A164: Hanson Aggregates Southeast, Inc. | B164: Raleigh Quarry - Wake Forest | C164: 2019-01-09 | D164: #67 Stone for Electrochemical | E164: CA67 | F164: =VLOOKUP(Table16[[#This Row],[Facility ID]],'Coord.'!$A$1:$E$818,2,FALSE) -> N | G164: =VLOOKUP(Table16[[#This Row],[Facility ID]],'Coord.'!$A$1:$E$818,3,FALSE) -> 35.931107 | H164: =VLOOKUP(Table16[[#This Row],[Facility ID]],'Coord.'!$A$1:$E$818,4,FALSE) -> W | I164: =VLOOKUP(Table16[[#This Row],[Facility ID]],'Coord.'!$A$1:$E$818,5,FALSE) -> -78.543345 | J164: 944668 | K164: Skinner, III, John L | L164: 21840 | M164: 9.5 | N164: 0 | O164: <30.22 | P164: DOES NOT MEET | Q164: MEETS | R164: N/A | S164: N/A | T164: 30.22 | U164: 0
A165: Martin Marietta | B165: Raleigh-Durham Quarry - Raleigh | C165: 2019-01-18 | D165: #67 Stone for Electrochemical | E165: CA156 | F165: =VLOOKUP(Table16[[#This Row],[Facility ID]],'Coord.'!$A$1:$E$818,2,FALSE) -> N | G165: =VLOOKUP(Table16[[#This Row],[Facility ID]],'Coord.'!$A$1:$E$818,3,FALSE) -> 35.894071 | H165: =VLOOKUP(Table16[[#This Row],[Facility ID]],'Coord.'!$A$1:$E$818,4,FALSE) -> W | I165: =VLOOKUP(Table16[[#This Row],[Facility ID]],'Coord.'!$A$1:$E$818,5,FALSE) -> -78.74912 | J165: 946459 | K165: Skinner, III, John L | L165: 6298 | M165: 10.7 | N165: 0 | O165: <104.795 | P165: DOES NOT MEET | Q165: DOES NOT MEET | R165: N/A | S165: N/A | T165: 104.795 | U165: 0
A166: Martin Marietta | B166: Reidsville Quarry - Reidsville | C166: 2019-02-13 | D166: #67 Stone for Electrochemical | E166: CA52 | F166: =VLOOKUP(Table16[[#This Row],[Facility ID]],'Coord.'!$A$1:$E$818,2,FALSE) -> 0 | G166: =VLOOKUP(Table16[[#This Row],[Facility ID]],'Coord.'!$A$1:$E$818,3,FALSE) -> 36.371012 | H166: =VLOOKUP(Table16[[#This Row],[Facility ID]],'Coord.'!$A$1:$E$818,4,FALSE) -> 0 | I166: =VLOOKUP(Table16[[#This Row],[Facility ID]],'Coord.'!$A$1:$E$818,5,FALSE) -> -79.726775 | J166: 949848 | K166: Westmoreland, Braxton J | L166: 19290 | M166: 9.4 | N166: 0 | O166: <34.215 | P166: DOES NOT MEET | Q166: MEETS | R166: N/A | S166: N/A | T166: 34.215 | U166: 0
A167: Martin Marietta | B167: Rock Hill Quarry - Rock Hill, SC | C167: 2019-09-10 | D167: #67 Stone for Electrochemical | E167: CA271 | F167: =VLOOKUP(Table16[[#This Row],[Facility ID]],'Coord.'!$A$1:$E$818,2,FALSE) -> N | G167: =VLOOKUP(Table16[[#This Row],[Facility ID]],'Coord.'!$A$1:$E$818,3,FALSE) -> 34.894787 | H167: =VLOOKUP(Table16[[#This Row],[Facility ID]],'Coord.'!$A$1:$E$818,4,FALSE) -> W | I167: =VLOOKUP(Table16[[#This Row],[Facility ID]],'Coord.'!$A$1:$E$818,5,FALSE) -> -80.999022 | J167: 982307 | K167: Adair, Mildred (Millie) L | L167: 15260 | M167: 9.52 | N167: <32 | O167: <43.25 | P167: DOES NOT MEET | Q167: MEETS | R167: N/A | S167: N/A | T167: 43.25 | U167: 32
A168: Vulcan Materials Co. | B168: Rockingham Quarry - Rockingham | C168: 2019-08-13 | D168: #67 Stone for Electrochemical | E168: CA94 | F168: =VLOOKUP(Table16[[#This Row],[Facility ID]],'Coord.'!$A$1:$E$818,2,FALSE) -> N | G168: =VLOOKUP(Table16[[#This Row],[Facility ID]],'Coord.'!$A$1:$E$818,3,FALSE) -> 34.938706 | H168: =VLOOKUP(Table16[[#This Row],[Facility ID]],'Coord.'!$A$1:$E$818,4,FALSE) -> W | I168: =VLOOKUP(Table16[[#This Row],[Facility ID]],'Coord.'!$A$1:$E$818,5,FALSE) -> -79.823208 | J168: 977703 | K168: Jordan, Daniel H | L168: 17110 | M168: 9.45 | N168: <29 | O168: <38.574 | P168: DOES NOT MEET | Q168: MEETS | R168: N/A | S168: N/A | T168: 38.574 | U168: 29
A169: Hanson Aggregates Southeast, Inc. | B169: Rougemont Quarry | C169: 2019-01-11 | D169: #67 Stone for Electrochemical | E169: CA217 | F169: =VLOOKUP(Table16[[#This Row],[Facility ID]],'Coord.'!$A$1:$E$818,2,FALSE) -> N | G169: =VLOOKUP(Table16[[#This Row],[Facility ID]],'Coord.'!$A$1:$E$818,3,FALSE) -> 36.224888 | H169: =VLOOKUP(Table16[[#This Row],[Facility ID]],'Coord.'!$A$1:$E$818,4,FALSE) -> W | I169: =VLOOKUP(Table16[[#This Row],[Facility ID]],'Coord.'!$A$1:$E$818,5,FALSE) -> -78.951488 | J169: 945245 | K169: Skinner, III, John L | L169: 22770 | M169: 9.7 | N169: 0 | O169: <28.986 | P169: DOES NOT MEET | Q169: MEETS | R169: N/A | S169: N/A | T169: 28.986 | U169: 0
A170: Martin Marietta | B170: Salem Stone Quarry - Kernersville | C170: 2020-03-10 | D170: #67 Stone for Electrochemical | E170: CA209 | F170: =VLOOKUP(Table16[[#This Row],[Facility ID]],'Coord.'!$A$1:$E$818,2,FALSE) -> N | G170: =VLOOKUP(Table16[[#This Row],[Facility ID]],'Coord.'!$A$1:$E$818,3,FALSE) -> 36.03598 | H170: =VLOOKUP(Table16[[#This Row],[Facility ID]],'Coord.'!$A$1:$E$818,4,FALSE) -> W | I170: =VLOOKUP(Table16[[#This Row],[Facility ID]],'Coord.'!$A$1:$E$818,5,FALSE) -> -80.106778 | J170: 1005503 | K170: Ealey, Lee E | L170: 22730 | M170: 9.6 | N170: <30 | O170: <29.037 | P170: DOES NOT MEET | Q170: MEETS | R170: N/A | S170: N/A | T170: 29.037 | U170: 30
A171: Hanson Aggregates Southeast, Inc. | B171: Sandy Flats Quarry - Taylors, SC | C171: 2016-12-14 | D171: #67 Stone for Electrochemical | E171: CA298 | F171: =VLOOKUP(Table16[[#This Row],[Facility ID]],'Coord.'!$A$1:$E$818,2,FALSE) -> N | G171: =VLOOKUP(Table16[[#This Row],[Facility ID]],'Coord.'!$A$1:$E$818,3,FALSE) -> 35.008491 | H171: =VLOOKUP(Table16[[#This Row],[Facility ID]],'Coord.'!$A$1:$E$818,4,FALSE) -> W | I171: =VLOOKUP(Table16[[#This Row],[Facility ID]],'Coord.'!$A$1:$E$818,5,FALSE) -> -82.345755 | J171: 839142 | K171: Wood, Dean Michael M | L171: 21013 | M171: 7.6 | N171: 0 | O171: 1.6 | P171: MEETS | Q171: MEETS | R171: N/A | S171: N/A | T171: 1.6 | U171: 0
A172: Martin Marietta | B172: Savannah Marine Terminal | C172: 2018-12-28 | D172: #67 Stone for Electrochemical | E172: CA425 | F172: =VLOOKUP(Table16[[#This Row],[Facility ID]],'Coord.'!$A$1:$E$818,2,FALSE) -> N | G172: =VLOOKUP(Table16[[#This Row],[Facility ID]],'Coord.'!$A$1:$E$818,3,FALSE) -> 32.076151 | H172: =VLOOKUP(Table16[[#This Row],[Facility ID]],'Coord.'!$A$1:$E$818,4,FALSE) -> W | I172: =VLOOKUP(Table16[[#This Row],[Facility ID]],'Coord.'!$A$1:$E$818,5,FALSE) -> -81.048098 | J172: 944230 | K172: Maynard, William BJ T | L172: 16280 | M172: 9.5 | N172: 0 | O172: <40.541 | P172: DOES NOT MEET | Q172: MEETS | R172: N/A | S172: N/A | T172: 40.541 | U172: 0
A173: Vulcan Materials Co. | B173: Skippers Quarry - Skippers, VA | C173: 2019-02-21 | D173: #67 Stone for Electrochemical | E173: CA55 | F173: =VLOOKUP(Table16[[#This Row],[Facility ID]],'Coord.'!$A$1:$E$818,2,FALSE) -> N | G173: =VLOOKUP(Table16[[#This Row],[Facility ID]],'Coord.'!$A$1:$E$818,3,FALSE) -> 36.608707 | H173: =VLOOKUP(Table16[[#This Row],[Facility ID]],'Coord.'!$A$1:$E$818,4,FALSE) -> W | I173: =VLOOKUP(Table16[[#This Row],[Facility ID]],'Coord.'!$A$1:$E$818,5,FALSE) -> -77.582424 | J173: 952208 | K173: Thomas, Grady Q | L173: 15800 | M173: 9.6 | N173: <30 | O173: <41.772 | P173: DOES NOT MEET | Q173: MEETS | R173: DOES NOT MEET | S173: MEETS | T173: 41.772 | U173: 30
A174: Vulcan Materials Co. | B174: Smith Grove Q. - Mocksville | C174: 2020-02-03 | D174: #67 Stone for Electrochemical | E174: CA80 | F174: =VLOOKUP(Table16[[#This Row],[Facility ID]],'Coord.'!$A$1:$E$818,2,FALSE) -> N | G174: =VLOOKUP(Table16[[#This Row],[Facility ID]],'Coord.'!$A$1:$E$818,3,FALSE) -> 35.967185 | H174: =VLOOKUP(Table16[[#This Row],[Facility ID]],'Coord.'!$A$1:$E$818,4,FALSE) -> W | I174: =VLOOKUP(Table16[[#This Row],[Facility ID]],'Coord.'!$A$1:$E$818,5,FALSE) -> -80.530693 | J174: 998597 | K174: Ealey, Lee E | L174: 23390 | M174: 9.52 | N174: <30 | O174: <28.217 | P174: DOES NOT MEET | Q174: MEETS | R174: N/A | S174: N/A | T174: 28.217 | U174: 30
A175: Salem Stone Corp. | B175: Southside Materials - Shelton Quarry - Pelham | C175: 2019-02-28 | D175: #67 Stone for Electrochemical | E175: CA75 | F175: =VLOOKUP(Table16[[#This Row],[Facility ID]],'Coord.'!$A$1:$E$818,2,FALSE) -> 0 | G175: =VLOOKUP(Table16[[#This Row],[Facility ID]],'Coord.'!$A$1:$E$818,3,FALSE) -> 36.535157 | H175: =VLOOKUP(Table16[[#This Row],[Facility ID]],'Coord.'!$A$1:$E$818,4,FALSE) -> 0 | I175: =VLOOKUP(Table16[[#This Row],[Facility ID]],'Coord.'!$A$1:$E$818,5,FALSE) -> -79.45967 | J175: 952402 | K175: Westmoreland, Braxton J | L175: 22470 | M175: 9.3 | N175: 0 | O175: <29.372 | P175: DOES NOT MEET | Q175: MEETS | R175: N/A | S175: N/A | T175: 29.372 | U175: 0
A176: Martin Marietta | B176: Statesville Quarry - Statesville | C176: 2019-10-09 | D176: #67 Stone for Electrochemical | E176: CA54 | F176: =VLOOKUP(Table16[[#This Row],[Facility ID]],'Coord.'!$A$1:$E$818,2,FALSE) -> N | G176: =VLOOKUP(Table16[[#This Row],[Facility ID]],'Coord.'!$A$1:$E$818,3,FALSE) -> 35.804466 | H176: =VLOOKUP(Table16[[#This Row],[Facility ID]],'Coord.'!$A$1:$E$818,4,FALSE) -> W | I176: =VLOOKUP(Table16[[#This Row],[Facility ID]],'Coord.'!$A$1:$E$818,5,FALSE) -> -80.913084 | J176: 987452 | K176: Brinson, Joseph | L176: 9875 | M176: 9.41 | N176: <30 | O176: <66.835 | P176: DOES NOT MEET | Q176: MEETS | R176: N/A | S176: N/A | T176: 66.835 | U176: 30
A177: Vulcan Materials Co. | B177: Stokesdale Quarry - Stokesdale | C177: 2019-02-28 | D177: #67 Stone for Electrochemical | E177: CA76 | F177: =VLOOKUP(Table16[[#This Row],[Facility ID]],'Coord.'!$A$1:$E$818,2,FALSE) -> 0 | G177: =VLOOKUP(Table16[[#This Row],[Facility ID]],'Coord.'!$A$1:$E$818,3,FALSE) -> 36.24166 | H177: =VLOOKUP(Table16[[#This Row],[Facility ID]],'Coord.'!$A$1:$E$818,4,FALSE) -> W | I177: =VLOOKUP(Table16[[#This Row],[Facility ID]],'Coord.'!$A$1:$E$818,5,FALSE) -> -79.935815 | J177: 952376 | K177: Westmoreland, Braxton J | L177: 28210 | M177: 9.3 | N177: 0 | O177: <23.396 | P177: DOES NOT MEET | Q177: MEETS | R177: N/A | S177: N/A | T177: 23.396 | U177: 0
A178: Martin Marietta | B178: Thomasville Quarry - Thomasville | C178: 2020-03-10 | D178: #67 Stone for Electrochemical | E178: CA102 | F178: =VLOOKUP(Table16[[#This Row],[Facility ID]],'Coord.'!$A$1:$E$818,2,FALSE) -> N | G178: =VLOOKUP(Table16[[#This Row],[Facility ID]],'Coord.'!$A$1:$E$818,3,FALSE) -> 35.85385 | H178: =VLOOKUP(Table16[[#This Row],[Facility ID]],'Coord.'!$A$1:$E$818,4,FALSE) -> W | I178: =VLOOKUP(Table16[[#This Row],[Facility ID]],'Coord.'!$A$1:$E$818,5,FALSE) -> -80.160168 | J178: 1005547 | K178: Ealey, Lee E | L178: 19780 | M178: 9.69 | N178: <30 | O178: <33.367 | P178: DOES NOT MEET | Q178: MEETS | R178: N/A | S178: N/A | T178: 33.367 | U178: 30
A179: Wake Stone Corp. | B179: Triangle Quarry - Cary | C179: 2019-02-27 | D179: #67 Stone for Electrochemical | E179: CA157 | F179: =VLOOKUP(Table16[[#This Row],[Facility ID]],'Coord.'!$A$1:$E$818,2,FALSE) -> N | G179: =VLOOKUP(Table16[[#This Row],[Facility ID]],'Coord.'!$A$1:$E$818,3,FALSE) -> 35.838397 | H179: =VLOOKUP(Table16[[#This Row],[Facility ID]],'Coord.'!$A$1:$E$818,4,FALSE) -> W | I179: =VLOOKUP(Table16[[#This Row],[Facility ID]],'Coord.'!$A$1:$E$818,5,FALSE) -> -78.767809 | J179: 951911 | K179: Skinner, III, John L | L179: 19980 | M179: 9.5 | N179: 0 | O179: <33.033 | P179: DOES NOT MEET | Q179: MEETS | R179: N/A | S179: N/A | T179: 33.033 | U179: 0
A180: Harrison Construction Co., Inc. | B180: Waynesville Quarry - Waynesville | C180: 2008-12-09 | D180: #67 Stone for Electrochemical | E180: CA1 | F180: =VLOOKUP(Table16[[#This Row],[Facility ID]],'Coord.'!$A$1:$E$818,2,FALSE) -> N | G180: =VLOOKUP(Table16[[#This Row],[Facility ID]],'Coord.'!$A$1:$E$818,3,FALSE) -> 35.440697 | H180: =VLOOKUP(Table16[[#This Row],[Facility ID]],'Coord.'!$A$1:$E$818,4,FALSE) -> W | I180: =VLOOKUP(Table16[[#This Row],[Facility ID]],'Coord.'!$A$1:$E$818,5,FALSE) -> -83.007457 | J180: 475184 | K180: Hughes, Joseph W | L180: 6309 | M180: 7.6 | N180: <27 | O180: <200 | P180: MEETS | Q180: MEETS | R180: N/A | S180: N/A | T180: 200 | U180: 27
A181: Martin Marietta | B181: Woodleaf Quarry - Salisbury | C181: 2020-03-03 | D181: #67 Stone for Electrochemical | E181: CA56 | F181: =VLOOKUP(Table16[[#This Row],[Facility ID]],'Coord.'!$A$1:$E$818,2,FALSE) -> N | G181: =VLOOKUP(Table16[[#This Row],[Facility ID]],'Coord.'!$A$1:$E$818,3,FALSE) -> 35.773539 | H181: =VLOOKUP(Table16[[#This Row],[Facility ID]],'Coord.'!$A$1:$E$818,4,FALSE) -> W | I181: =VLOOKUP(Table16[[#This Row],[Facility ID]],'Coord.'!$A$1:$E$818,5,FALSE) -> -80.598793 | J181: 1005348 | K181: Ealey, Lee E | L181: 16770 | M181: 9.45 | N181: <30 | O181: <39.356 | P181: DOES NOT MEET | Q181: MEETS | R181: N/A | S181: N/A | T181: 39.356 | U181: 30
A182: Carolina Sunrock LLC | B182: Woodsdale Quarry - Roxboro | C182: 2019-01-11 | D182: #67 Stone for Electrochemical | E182: CA329 | F182: =VLOOKUP(Table16[[#This Row],[Facility ID]],'Coord.'!$A$1:$E$818,2,FALSE) -> N | G182: =VLOOKUP(Table16[[#This Row],[Facility ID]],'Coord.'!$A$1:$E$818,3,FALSE) -> 36.516776 | H182: =VLOOKUP(Table16[[#This Row],[Facility ID]],'Coord.'!$A$1:$E$818,4,FALSE) -> W | I182: =VLOOKUP(Table16[[#This Row],[Facility ID]],'Coord.'!$A$1:$E$818,5,FALSE) -> -78.963525 | J182: 945250 | K182: Skinner, III, John L | L182: 22230 | M182: 9.5 | N182: 0 | O182: <29.69 | P182: DOES NOT MEET | Q182: MEETS | R182: N/A | S182: N/A | T182: 29.69 | U182: 0
A183: Vulcan Materials Co. | B183: 115 Quarry - N. Wilkesboro | C183: 2018-05-10 | D183: #57 Stone for Electrochemical | E183: CA79 | F183: =VLOOKUP(Table16[[#This Row],[Facility ID]],'Coord.'!$A$1:$E$818,2,FALSE) -> N | G183: =VLOOKUP(Table16[[#This Row],[Facility ID]],'Coord.'!$A$1:$E$818,3,FALSE) -> 36.106467 | H183: =VLOOKUP(Table16[[#This Row],[Facility ID]],'Coord.'!$A$1:$E$818,4,FALSE) -> W | I183: =VLOOKUP(Table16[[#This Row],[Facility ID]],'Coord.'!$A$1:$E$818,5,FALSE) -> -81.099031 | J183: 910653 | K183: Patrie, Garin T | L183: 19387 | M183: 8.8 | N183: 0 | O183: 29.4 | P183: MEETS | Q183: MEETS | R183: N/A | S183: N/A | T183: 29.4 | U183: 0
A184: Blue Water Industries | B184: Abingdon Quarry | C184: 2016-09-28 | D184: #57 Stone for Electrochemical | E184: CA251 | F184: =VLOOKUP(Table16[[#This Row],[Facility ID]],'Coord.'!$A$1:$E$818,2,FALSE) -> N | G184: =VLOOKUP(Table16[[#This Row],[Facility ID]],'Coord.'!$A$1:$E$818,3,FALSE) -> 36.695325 | H184: =VLOOKUP(Table16[[#This Row],[Facility ID]],'Coord.'!$A$1:$E$818,4,FALSE) -> W | I184: =VLOOKUP(Table16[[#This Row],[Facility ID]],'Coord.'!$A$1:$E$818,5,FALSE) -> -81.982737 | J184: 828584 | K184: Church, Tracy G | L184: 8741 | M184: 7.7 | N184: 0 | O184: 14.2 | P184: MEETS | Q184: MEETS | R184: N/A | S184: N/A | T184: 14.2 | U184: 0
A185: Martin Marietta | B185: American Stone - Carrboro | C185: 2016-03-02 | D185: #57 Stone for Electrochemical | E185: CA2 | F185: =VLOOKUP(Table16[[#This Row],[Facility ID]],'Coord.'!$A$1:$E$818,2,FALSE) -> N | G185: =VLOOKUP(Table16[[#This Row],[Facility ID]],'Coord.'!$A$1:$E$818,3,FALSE) -> 35.927265 | H185: =VLOOKUP(Table16[[#This Row],[Facility ID]],'Coord.'!$A$1:$E$818,4,FALSE) -> W | I185: =VLOOKUP(Table16[[#This Row],[Facility ID]],'Coord.'!$A$1:$E$818,5,FALSE) -> -79.153772 | J185: 795851 | K185: Fosque, Robert W | L185: 22989 | M185: 8.9 | N185: 0 | O185: 4 | P185: MEETS | Q185: MEETS | R185: N/A | S185: N/A | T185: 4 | U185: 0
A186: Hedrick Industries | B186: Aquadale Quarry - Norwood | C186: 2019-09-24 | D186: #57 Stone for Electrochemical | E186: CA274 | F186: =VLOOKUP(Table16[[#This Row],[Facility ID]],'Coord.'!$A$1:$E$818,2,FALSE) -> N | G186: =VLOOKUP(Table16[[#This Row],[Facility ID]],'Coord.'!$A$1:$E$818,3,FALSE) -> 35.236498 | H186: =VLOOKUP(Table16[[#This Row],[Facility ID]],'Coord.'!$A$1:$E$818,4,FALSE) -> W | I186: =VLOOKUP(Table16[[#This Row],[Facility ID]],'Coord.'!$A$1:$E$818,5,FALSE) -> -80.239287 | J186: 984751 | K186: Smith, Michael L | L186: 11040 | M186: 8.92 | N186: <32 | O186: <59.783 | P186: MEETS | Q186: MEETS | R186: N/A | S186: N/A | T186: 59.783 | U186: 32
A187: Martin Marietta | B187: Arrowood Quarry - Charlotte | C187: 2016-02-24 | D187: #57 Stone for Electrochemical | E187: CA31 | F187: =VLOOKUP(Table16[[#This Row],[Facility ID]],'Coord.'!$A$1:$E$818,2,FALSE) -> N | G187: =VLOOKUP(Table16[[#This Row],[Facility ID]],'Coord.'!$A$1:$E$818,3,FALSE) -> 35.111865 | H187: =VLOOKUP(Table16[[#This Row],[Facility ID]],'Coord.'!$A$1:$E$818,4,FALSE) -> W | I187: =VLOOKUP(Table16[[#This Row],[Facility ID]],'Coord.'!$A$1:$E$818,5,FALSE) -> -80.921875 | J187: 796031 | K187: Adair, Mildred (Millie) L | L187: 22826 | M187: 7.7 | N187: 0 | O187: 9.7 | P187: MEETS | Q187: MEETS | R187: N/A | S187: N/A | T187: 9.7 | U187: 0
A188: Martin Marietta | B188: Asheboro Quarry - Asheboro | C188: 2019-08-22 | D188: #57 Stone for Electrochemical | E188: CA30 | F188: =VLOOKUP(Table16[[#This Row],[Facility ID]],'Coord.'!$A$1:$E$818,2,FALSE) -> N | G188: =VLOOKUP(Table16[[#This Row],[Facility ID]],'Coord.'!$A$1:$E$818,3,FALSE) -> 35.766085 | H188: =VLOOKUP(Table16[[#This Row],[Facility ID]],'Coord.'!$A$1:$E$818,4,FALSE) -> W | I188: =VLOOKUP(Table16[[#This Row],[Facility ID]],'Coord.'!$A$1:$E$818,5,FALSE) -> -79.823999 | J188: 979357 | K188: Jackson, Brandon M | L188: 18060 | M188: 9.17 | N188: <29 | O188: <36.545 | P188: DOES NOT MEET | Q188: MEETS | R188: N/A | S188: N/A | T188: 36.545 | U188: 29
A189: Martin Marietta | B189: Bakers Quarry - Monroe | C189: 2019-11-27 | D189: #57 Stone for Electrochemical | E189: CA32 | F189: =VLOOKUP(Table16[[#This Row],[Facility ID]],'Coord.'!$A$1:$E$818,2,FALSE) -> N | G189: =VLOOKUP(Table16[[#This Row],[Facility ID]],'Coord.'!$A$1:$E$818,3,FALSE) -> 35.027618 | H189: =VLOOKUP(Table16[[#This Row],[Facility ID]],'Coord.'!$A$1:$E$818,4,FALSE) -> W | I189: =VLOOKUP(Table16[[#This Row],[Facility ID]],'Coord.'!$A$1:$E$818,5,FALSE) -> -80.603741 | J189: 993357 | K189: Smith, Michael L | L189: 22460 | M189: 9.34 | N189: <30 | O189: <29.386 | P189: DOES NOT MEET | Q189: MEETS | R189: N/A | S189: N/A | T189: 29.386 | U189: 30
A190: Radford Quarries Of Boone, Inc. | B190: Bamboo Quarry | C190: 2016-02-08 | D190: #57 Stone for Electrochemical | E190: CA122 | F190: =VLOOKUP(Table16[[#This Row],[Facility ID]],'Coord.'!$A$1:$E$818,2,FALSE) -> N | G190: =VLOOKUP(Table16[[#This Row],[Facility ID]],'Coord.'!$A$1:$E$818,3,FALSE) -> 36.215747 | H190: =VLOOKUP(Table16[[#This Row],[Facility ID]],'Coord.'!$A$1:$E$818,4,FALSE) -> W | I190: =VLOOKUP(Table16[[#This Row],[Facility ID]],'Coord.'!$A$1:$E$818,5,FALSE) -> -81.636512 | J190: 793016 | K190: Church, Tracy G | L190: 19073 | M190: 7.4 | N190: 0 | O190: 6.7 | P190: MEETS | Q190: MEETS | R190: N/A | S190: N/A | T190: 6.7 | U190: 0
A191: Martin Marietta | B191: Benson Quarry - Benson | C191: 2016-03-16 | D191: #57 Stone for Electrochemical | E191: CA176 | F191: =VLOOKUP(Table16[[#This Row],[Facility ID]],'Coord.'!$A$1:$E$818,2,FALSE) -> N | G191: =VLOOKUP(Table16[[#This Row],[Facility ID]],'Coord.'!$A$1:$E$818,3,FALSE) -> 35.422585 | H191: =VLOOKUP(Table16[[#This Row],[Facility ID]],'Coord.'!$A$1:$E$818,4,FALSE) -> W | I191: =VLOOKUP(Table16[[#This Row],[Facility ID]],'Coord.'!$A$1:$E$818,5,FALSE) -> -78.501492 | J191: 798243 | K191: Raines, James R | L191: 27917 | M191: 7.7 | N191: 0 | O191: 0 | P191: MEETS | Q191: MEETS | R191: N/A | S191: N/A | T191: 0 | U191: 0
A192: Sloan Construction Co. | B192: Blacksburg Quarry - Blacksburg, SC | C192: 2019-08-22 | D192: #57 Stone for Electrochemical | E192: CA382 | F192: =VLOOKUP(Table16[[#This Row],[Facility ID]],'Coord.'!$A$1:$E$818,2,FALSE) -> N | G192: =VLOOKUP(Table16[[#This Row],[Facility ID]],'Coord.'!$A$1:$E$818,3,FALSE) -> 35.136633 | H192: =VLOOKUP(Table16[[#This Row],[Facility ID]],'Coord.'!$A$1:$E$818,4,FALSE) -> W | I192: =VLOOKUP(Table16[[#This Row],[Facility ID]],'Coord.'!$A$1:$E$818,5,FALSE) -> 81.528683 | J192: 979539 | K192: Brinson, Joseph | L192: 48690 | M192: 7.52 | N192: <29 | O192: <13.555 | P192: MEETS | Q192: MEETS | R192: N/A | S192: N/A | T192: 13.555 | U192: 29
A193: Appalachian Aggregates, LLC | B193: Bluefield Plant | C193: 2017-03-22 | D193: #57 Stone for Electrochemical | E193: CA307 | F193: =VLOOKUP(Table16[[#This Row],[Facility ID]],'Coord.'!$A$1:$E$818,2,FALSE) -> N | G193: =VLOOKUP(Table16[[#This Row],[Facility ID]],'Coord.'!$A$1:$E$818,3,FALSE) -> 37.236154 | H193: =VLOOKUP(Table16[[#This Row],[Facility ID]],'Coord.'!$A$1:$E$818,4,FALSE) -> W | I193: =VLOOKUP(Table16[[#This Row],[Facility ID]],'Coord.'!$A$1:$E$818,5,FALSE) -> -81.319535 | J193: 850413 | K193: Church, Tracy G | L193: 16706 | M193: 9.4 | N193: 0 | O193: 36.8 | P193: DOES NOT MEET | Q193: MEETS | R193: N/A | S193: N/A | T193: 36.8 | U193: 0
A194: Martin Marietta | B194: Bonds Quarry - Concord | C194: 2018-09-10 | D194: #57 Stone for Electrochemical | E194: CA276 | F194: =VLOOKUP(Table16[[#This Row],[Facility ID]],'Coord.'!$A$1:$E$818,2,FALSE) -> N | G194: =VLOOKUP(Table16[[#This Row],[Facility ID]],'Coord.'!$A$1:$E$818,3,FALSE) -> 35.379278 | H194: =VLOOKUP(Table16[[#This Row],[Facility ID]],'Coord.'!$A$1:$E$818,4,FALSE) -> W | I194: =VLOOKUP(Table16[[#This Row],[Facility ID]],'Coord.'!$A$1:$E$818,5,FALSE) -> -80.698135 | J194: 930587 | K194: Pegues, Jr., Henderson | L194: 14640 | M194: 9.5 | N194: 7.5 | O194: <45.97 | P194: =IF(AND(4.5 <= $M194, $M194 <= 9), "MEETS", "DOES NOT MEET") -> DOES NOT MEET | Q194: =IF(AND(5 <= $M194, $M194 <= 10), "MEETS", "DOES NOT MEET") -> MEETS | R194: N/A | S194: N/A | T194: =IF(LEFT(O194, 1)="<", VALUE(RIGHT(O194,LEN(O194)-1)), O194) -> 45.97 | U194: =IF(LEFT(N194, 1)="<", VALUE(RIGHT(N194,LEN(N194)-1)), N194) -> 7.5
A195: Vulcan Materials Co. | B195: Boone Quarry - Boone | C195: 2019-11-22 | D195: #57 Stone for Electrochemical | E195: CA21 | F195: =VLOOKUP(Table16[[#This Row],[Facility ID]],'Coord.'!$A$1:$E$818,2,FALSE) -> N | G195: =VLOOKUP(Table16[[#This Row],[Facility ID]],'Coord.'!$A$1:$E$818,3,FALSE) -> 36.205551 | H195: =VLOOKUP(Table16[[#This Row],[Facility ID]],'Coord.'!$A$1:$E$818,4,FALSE) -> W | I195: =VLOOKUP(Table16[[#This Row],[Facility ID]],'Coord.'!$A$1:$E$818,5,FALSE) -> -81.71842 | J195: 993803 | K195: Church, Tracy G | L195: 81740 | M195: 7.97 | N195: <30 | O195: <8.074 | P195: MEETS | Q195: MEETS | R195: N/A | S195: N/A | T195: 8.074 | U195: 30
A196: Martin Marietta | B196: Burlington Quarry - Burlington | C196: 2016-02-29 | D196: #57 Stone for Electrochemical | E196: CA39 | F196: =VLOOKUP(Table16[[#This Row],[Facility ID]],'Coord.'!$A$1:$E$818,2,FALSE) -> N | G196: =VLOOKUP(Table16[[#This Row],[Facility ID]],'Coord.'!$A$1:$E$818,3,FALSE) -> 36.051876 | H196: =VLOOKUP(Table16[[#This Row],[Facility ID]],'Coord.'!$A$1:$E$818,4,FALSE) -> W | I196: =VLOOKUP(Table16[[#This Row],[Facility ID]],'Coord.'!$A$1:$E$818,5,FALSE) -> -79.508237 | J196: 795917 | K196: Loshinskiy, Roman | L196: 18420 | M196: 8.9 | N196: 0 | O196: 4 | P196: MEETS | Q196: MEETS | R196: N/A | S196: N/A | T196: 4 | U196: 0
A197: Carolina Sunrock LLC | B197: Butner Quarry - Butner | C197: 2016-02-08 | D197: #57 Stone for Electrochemical | E197: CA178 | F197: =VLOOKUP(Table16[[#This Row],[Facility ID]],'Coord.'!$A$1:$E$818,2,FALSE) -> N | G197: =VLOOKUP(Table16[[#This Row],[Facility ID]],'Coord.'!$A$1:$E$818,3,FALSE) -> 36.121975 | H197: =VLOOKUP(Table16[[#This Row],[Facility ID]],'Coord.'!$A$1:$E$818,4,FALSE) -> W | I197: =VLOOKUP(Table16[[#This Row],[Facility ID]],'Coord.'!$A$1:$E$818,5,FALSE) -> -78.772541 | J197: 793015 | K197: Skinner, III, John L | L197: 19697 | M197: 9.2 | N197: 0 | O197: 0 | P197: DOES NOT MEET | Q197: MEETS | R197: N/A | S197: N/A | T197: 0 | U197: 0
A198: Vulcan Materials Co. | B198: Cabarrus Quarry - Concord | C198: 2019-09-24 | D198: #57 Stone for Electrochemical | E198: CA186 | F198: =VLOOKUP(Table16[[#This Row],[Facility ID]],'Coord.'!$A$1:$E$818,2,FALSE) -> N | G198: =VLOOKUP(Table16[[#This Row],[Facility ID]],'Coord.'!$A$1:$E$818,3,FALSE) -> 35.40403 | H198: =VLOOKUP(Table16[[#This Row],[Facility ID]],'Coord.'!$A$1:$E$818,4,FALSE) -> W | I198: =VLOOKUP(Table16[[#This Row],[Facility ID]],'Coord.'!$A$1:$E$818,5,FALSE) -> -80.704829 | J198: 984941 | K198: Cero, Kevin M | L198: 15810 | M198: 9.58 | N198: <32 | O198: <41.746 | P198: DOES NOT MEET | Q198: MEETS | R198: N/A | S198: N/A | T198: 41.746 | U198: 32
A199: Salem Stone Corp. | B199: Cardinal Quarries - Smethport Quarry - W. Jefferson | C199: 2016-08-02 | D199: #57 Stone for Electrochemical | E199: CA123 | F199: =VLOOKUP(Table16[[#This Row],[Facility ID]],'Coord.'!$A$1:$E$818,2,FALSE) -> N | G199: =VLOOKUP(Table16[[#This Row],[Facility ID]],'Coord.'!$A$1:$E$818,3,FALSE) -> 36.439356 | H199: =VLOOKUP(Table16[[#This Row],[Facility ID]],'Coord.'!$A$1:$E$818,4,FALSE) -> W | I199: =VLOOKUP(Table16[[#This Row],[Facility ID]],'Coord.'!$A$1:$E$818,5,FALSE) -> -81.48872 | J199: 819961 | K199: Church, Tracy G | L199: 14002 | M199: 9.2 | N199: 0 | O199: 17.3 | P199: DOES NOT MEET | Q199: MEETS | R199: N/A | S199: N/A | T199: 17.3 | U199: 0
A200: Salem Stone Corp. | B200: Cardinal Realty - Galax Quarry - Galax, VA | C200: 2016-03-07 | D200: #57 Stone for Electrochemical | E200: CA11 | F200: =VLOOKUP(Table16[[#This Row],[Facility ID]],'Coord.'!$A$1:$E$818,2,FALSE) -> N | G200: =VLOOKUP(Table16[[#This Row],[Facility ID]],'Coord.'!$A$1:$E$818,3,FALSE) -> 36.574819 | H200: =VLOOKUP(Table16[[#This Row],[Facility ID]],'Coord.'!$A$1:$E$818,4,FALSE) -> W | I200: =VLOOKUP(Table16[[#This Row],[Facility ID]],'Coord.'!$A$1:$E$818,5,FALSE) -> -80.929177 | J200: 797284 | K200: Whitley, Christopher D | L200: 14977 | M200: 7.8 | N200: 0 | O200: 5.6 | P200: MEETS | Q200: MEETS | R200: N/A | S200: N/A | T200: 5.6 | U200: 0
... 99 more rows

Sheet Historical Data CoarseAggregate
A1: Producer Name | B1: Facility Name | C1: Sample Date | D1: Material Description | E1: Facility ID | F1: Sample ID | G1: Sampled By | H1: Resistivity [ohm-cm]: | I1: pH Units: | J1: Chloride [ppm]: | K1: Sulfate [ppm]: | L1: Geosynthetic Spec | M1: Steel Spec | N1: Coastal Plain Geosynthetic Spec | O1: Coastal Plain Steel Spec | P1: SO4 | Q1: Cl | T1: Coastal Plain Aggregates
A2: Wake Stone Corp. | B2: Moncure Quarry - Moncure | C2: 2020-10-14 | D2: #57 Stone for Electrochemical | E2: CA100 | F2: 1023283 | G2: Braly, James R | H2: 18550 | I2: 9.49 | J2: <30 | K2: <35.58 | L2: =IF(AND(4.5 <= $I2, $I2 <= 9), "MEETS", "DOES NOT MEET") -> DOES NOT MEET | M2: =IF(AND(5 <= $I2, $I2 <= 10), "MEETS", "DOES NOT MEET") -> MEETS | N2: =IF(OR(ISBLANK(H2), NOT(ISNUMBER(MATCH($E2, Coastal,0)))), "N/A", IF(AND(4.5 <= $I2, $I2 <= 9),IF($H2>=5000,IF($Q2<=100,IF($P2<=200,"MEETS","DOES NOT MEET"),"DOES NOT MEET"),"DOES NOT MEET"),"DOES NOT MEET")) -> N/A | O2: =IF(OR(ISBLANK(I2), NOT(ISNUMBER(MATCH($E2, Coastal, 0)))), "N/A", IF(AND(5 <= $I2, $I2 <= 10),IF($H2>=5000,IF($Q2<=100,IF($P2<=200,"MEETS","DOES NOT MEET"),"DOES NOT MEET"),"DOES NOT MEET"),"DOES NOT MEET")) -> N/A | P2: =IF(LEFT(K2, 1)="<", VALUE(RIGHT(K2,LEN(K2)-1)), K2) -> 35.58 | Q2: =IF(LEFT(J2, 1)="<", VALUE(RIGHT(J2,LEN(J2)-1)), J2) -> 30 | T2: CA345
A3: Wake Stone Corp. | B3: Moncure Quarry - Moncure | C3: 2020-10-14 | D3: #78-M Stone for Electrochemical | E3: CA100 | F3: 1023300 | G3: Braly, James R | H3: 14920 | I3: 9.2 | J3: <30 | K3: <44.236 | L3: DOES NOT MEET | M3: MEETS | N3: N/A | O3: N/A | P3: 44.236 | Q3: 30 | T3: CA224
A4: Martin Marietta | B4: Fountain Quarry - Fountain | C4: 2020-09-25 | D4: #57 Stone for Electrochemical | E4: CA42 | F4: 1021240 | G4: Cobb, James R | H4: 22540 | I4: 9.22 | J4: <30 | K4: <29.281 | L4: DOES NOT MEET | M4: MEETS | N4: DOES NOT MEET | O4: MEETS | P4: 29.281 | Q4: 30 | T4: CA137
A5: Martin Marietta | B5: Fountain Quarry - Fountain | C5: 2020-09-25 | D5: #78-M Stone for Electrochemical | E5: CA42 | F5: 1021241 | G5: Cobb, James R | H5: 14210 | I5: 9.44 | J5: <30 | K5: <46.446 | L5: DOES NOT MEET | M5: MEETS | N5: DOES NOT MEET | O5: MEETS | P5: 46.446 | Q5: 30 | T5: CA337
A6: Vulcan Materials Co. | B6: Jack Quarry - Petersburg, VA | C6: 2020-09-21 | D6: #78-M Stone for Electrochemical | E6: CA137 | F6: 1021105 | G6: Bonds, Maria M | H6: 10330 | I6: 9.51 | J6: <30 | K6: <63.892 | L6: DOES NOT MEET | M6: MEETS | N6: DOES NOT MEET | O6: MEETS | P6: 63.892 | Q6: 30 | T6: CA411
A7: Vulcan Materials Co. | B7: Jack Quarry - Petersburg, VA | C7: 2020-09-21 | D7: #67 Stone for Electrochemical | E7: CA137 | F7: 1021106 | G7: Bonds, Maria M | H7: 19570 | I7: 9.52 | J7: <30 | K7: <33.725 | L7: DOES NOT MEET | M7: MEETS | N7: DOES NOT MEET | O7: MEETS | P7: 33.725 | Q7: 30 | T7: CA216
A8: Vulcan Materials Co. | B8: Havre De Grace Quarry - Havre De Grace, MD | C8: 2020-09-21 | D8: Miscellaneous Material for Electrochemical | E8: CA345 | F8: 1021092 | G8: Bonds, Maria M | H8: 21050 | I8: 8.78 | J8: <30 | K8: <31.354 | L8: MEETS | M8: MEETS | N8: MEETS | O8: MEETS | P8: 31.354 | Q8: 30 | T8: CA55
A9: Vulcan Materials Co. | B9: Havre De Grace Quarry - Havre De Grace, MD | C9: 2020-09-21 | D9: #67 Stone for Electrochemical | E9: CA345 | F9: 1021094 | G9: Bonds, Maria M | H9: 13710 | I9: 9.31 | J9: <30 | K9: <48.140 | L9: DOES NOT MEET | M9: MEETS | N9: DOES NOT MEET | O9: MEETS | P9: 48.14 | Q9: 30 | T9: CA223
A10: Vulcan Materials Co. | B10: Puddledock Quarry - Prince George, VA | C10: 2020-09-21 | D10: #78-M Stone for Electrochemical | E10: CA224 | F10: 1021102 | G10: Bonds, Maria M | H10: 38360 | I10: 4.87 | J10: <30 | K10: <17.205 | L10: MEETS | M10: DOES NOT MEET | N10: MEETS | O10: DOES NOT MEET | P10: 17.205 | Q10: 30 | T10: CA371
A11: Vulcan Materials Co. | B11: Puddledock Quarry - Prince George, VA | C11: 2020-09-21 | D11: #57 Stone for Electrochemical | E11: CA224 | F11: 1021103 | G11: Bonds, Maria M | H11: 21740 | I11: 4.36 | J11: <30 | K11: <30.359 | L11: DOES NOT MEET | M11: DOES NOT MEET | N11: DOES NOT MEET | O11: DOES NOT MEET | P11: 30.359 | Q11: 30 | T11: CA288
A12: Wake Stone Corp. | B12: Knightdale Quarry - Knightdale | C12: 2020-09-14 | D12: #78-M Stone for Electrochemical | E12: CA98 | F12: 1020095 | G12: Skinner, III, John L | H12: 16560 | I12: 9.51 | J12: <30 | K12: <39.855 | L12: DOES NOT MEET | M12: MEETS | N12: N/A | O12: N/A | P12: 39.855 | Q12: 30 | T12: CA66
A13: Vulcan Materials Co. | B13: Hendersonville Quarry - Hendersonville | C13: 2020-07-27 | D13: #57 Stone for Electrochemical | E13: CA81 | F13: 1015163 | G13: Wood, Dean Michael M | H13: 27630 | I13: 9.54 | J13: <30 | K13: <23.887 | L13: DOES NOT MEET | M13: MEETS | N13: N/A | O13: N/A | P13: 23.887 | Q13: 30 | T13: CA42
A14: Wake Stone Corp. | B14: Knightdale Quarry - Knightdale | C14: 2020-05-19 | D14: Coarse Aggregate, #78M | E14: CA98 | F14: 1009036 | G14: Riddle, Andrew T | H14: 18200 | I14: 8.74 | J14: <30 | K14: <36 | L14: MEETS | M14: MEETS | N14: N/A | O14: N/A | P14: 36 | Q14: 30 | T14: CA64
A15: Carolina Stalite Corp. | B15: Gold Hill (Light Wt.) - Gold Hill | C15: 2020-04-07 | D15: #67 Stone for Electrochemical | E15: CA226 | F15: 1004812 | G15: Whitley, Christopher D | H15: 8852 | I15: 9.45 | J15: <30 | K15: <74.56 | L15: DOES NOT MEET | M15: MEETS | N15: N/A | O15: N/A | P15: 74.56 | Q15: 30 | T15: CA380
A16: Carolina Stalite Corp. | B16: Gold Hill (Light Wt.) - Gold Hill | C16: 2020-04-07 | D16: #78-M Stone for Electrochemical | E16: CA226 | F16: 1004822 | G16: Whitley, Christopher D | H16: 4816 | I16: 9.67 | J16: <30 | K16: <137.0 | L16: DOES NOT MEET | M16: MEETS | N16: N/A | O16: N/A | P16: 137 | Q16: 30 | T16: CA390
A17: Wake Stone Corp. | B17: Knightdale Quarry - Knightdale | C17: 2020-03-13 | D17: Coarse Aggregate, #78M | E17: CA98 | F17: 1002358 | G17: Cheeves, Patrick | H17: 16340 | I17: 9.26 | J17: <30 | K17: <40.392 | L17: DOES NOT MEET | M17: MEETS | N17: N/A | O17: N/A | P17: 40.392 | Q17: 30 | T17: CA189
A18: Martin Marietta | B18: Salem Stone Quarry - Kernersville | C18: 2020-03-10 | D18: #57 Stone for Electrochemical | E18: CA209 | F18: 1005499 | G18: Ealey, Lee E | H18: 25960 | I18: 9.61 | J18: <30 | K18: <25.424 | L18: DOES NOT MEET | M18: MEETS | N18: N/A | O18: N/A | P18: 25.424 | Q18: 30 | T18: CA38
A19: Martin Marietta | B19: Salem Stone Quarry - Kernersville | C19: 2020-03-10 | D19: #67 Stone for Electrochemical | E19: CA209 | F19: 1005503 | G19: Ealey, Lee E | H19: 22730 | I19: 9.6 | J19: <30 | K19: <29.037 | L19: DOES NOT MEET | M19: MEETS | N19: N/A | O19: N/A | P19: 29.037 | Q19: 30 | T19: CA381
A20: Martin Marietta | B20: Salem Stone Quarry - Kernersville | C20: 2020-03-10 | D20: #78-M Stone for Electrochemical | E20: CA209 | F20: 1005506 | G20: Ealey, Lee E | H20: 22540 | I20: 9.28 | J20: <30 | K20: <29.281 | L20: DOES NOT MEET | M20: MEETS | N20: N/A | O20: N/A | P20: 29.281 | Q20: 30 | T20: CA408
A21: Martin Marietta | B21: Thomasville Quarry - Thomasville | C21: 2020-03-10 | D21: #57 Stone for Electrochemical | E21: CA102 | F21: 1005546 | G21: Ealey, Lee E | H21: 22040 | I21: 9.63 | J21: <30 | K21: <29.946 | L21: DOES NOT MEET | M21: MEETS | N21: N/A | O21: N/A | P21: 29.946 | Q21: 30 | T21: CA259
A22: Martin Marietta | B22: Thomasville Quarry - Thomasville | C22: 2020-03-10 | D22: #67 Stone for Electrochemical | E22: CA102 | F22: 1005547 | G22: Ealey, Lee E | H22: 19780 | I22: 9.69 | J22: <30 | K22: <33.367 | L22: DOES NOT MEET | M22: MEETS | N22: N/A | O22: N/A | P22: 33.367 | Q22: 30 | T22: CA380
A23: Martin Marietta | B23: Thomasville Quarry - Thomasville | C23: 2020-03-10 | D23: #78-M Stone for Electrochemical | E23: CA102 | F23: 1005551 | G23: Ealey, Lee E | H23: 17700 | I23: 9.57 | J23: <30 | K23: <37.288 | L23: DOES NOT MEET | M23: MEETS | N23: N/A | O23: N/A | P23: 37.288 | Q23: 30 | T23: CA319
A24: Martin Marietta | B24: Woodleaf Quarry - Salisbury | C24: 2020-03-03 | D24: #57 Stone for Electrochemical | E24: CA56 | F24: 1005347 | G24: Ealey, Lee E | H24: 24680 | I24: 9.46 | J24: <30 | K24: <26.742 | L24: DOES NOT MEET | M24: MEETS | N24: N/A | O24: N/A | P24: 26.742 | Q24: 30 | T24: CA349
A25: Martin Marietta | B25: Woodleaf Quarry - Salisbury | C25: 2020-03-03 | D25: #67 Stone for Electrochemical | E25: CA56 | F25: 1005348 | G25: Ealey, Lee E | H25: 16770 | I25: 9.45 | J25: <30 | K25: <39.356 | L25: DOES NOT MEET | M25: MEETS | N25: N/A | O25: N/A | P25: 39.356 | Q25: 30 | T25: CA272
A26: Martin Marietta | B26: Woodleaf Quarry - Salisbury | C26: 2020-03-03 | D26: #78-M Stone for Electrochemical | E26: CA56 | F26: 1005350 | G26: Ealey, Lee E | H26: 17540 | I26: 9.48 | J26: <30 | K26: <37.628 | L26: DOES NOT MEET | M26: MEETS | N26: N/A | O26: N/A | P26: 37.628 | Q26: 30 | T26: CA289
A27: Martin Marietta | B27: Kannapolis Quarry - Landis | C27: 2020-02-26 | D27: #57 Stone for Electrochemical | E27: CA47 | F27: 1000981 | G27: Ealey, Lee E | H27: 24350 | I27: 9.39 | J27: <30 | K27: <27.105 | L27: DOES NOT MEET | M27: MEETS | N27: N/A | O27: N/A | P27: 27.105 | Q27: 30 | T27: CA310
A28: Martin Marietta | B28: Kannapolis Quarry - Landis | C28: 2020-02-26 | D28: #67 Stone for Electrochemical | E28: CA47 | F28: 1000982 | G28: Ealey, Lee E | H28: 16709 | I28: 8.99 | J28: <30 | K28: <39.5 | L28: MEETS | M28: MEETS | N28: N/A | O28: N/A | P28: 39.5 | Q28: 30 | T28: CA138
A29: Martin Marietta | B29: Kannapolis Quarry - Landis | C29: 2020-02-26 | D29: #78-M Stone for Electrochemical | E29: CA47 | F29: 1000984 | G29: Ealey, Lee E | H29: 20890 | I29: 9.13 | J29: <30 | K29: <31.594 | L29: DOES NOT MEET | M29: MEETS | N29: N/A | O29: N/A | P29: 31.594 | Q29: 30 | T29: CA63
A30: Wake Stone Corp. | B30: Knightdale Quarry - Knightdale | C30: 2020-02-25 | D30: #78-M Stone for Electrochemical | E30: CA98 | F30: 1000356 | G30: Skinner, III, John L | H30: 17070 | I30: 9.2 | J30: <30 | K30: <38.664 | L30: DOES NOT MEET | M30: MEETS | N30: N/A | O30: N/A | P30: 38.664 | Q30: 30
A31: Vulcan Materials Co. | B31: North Quarry - Winston Salem | C31: 2020-02-25 | D31: #57 Stone for Electrochemical | E31: CA72 | F31: 1000797 | G31: Ealey, Lee E | H31: 21160 | I31: 9.38 | J31: <30 | K31: <31.191 | L31: DOES NOT MEET | M31: MEETS | N31: N/A | O31: N/A | P31: 31.191 | Q31: 30
A32: Vulcan Materials Co. | B32: North Quarry - Winston Salem | C32: 2020-02-25 | D32: #67 Stone for Electrochemical | E32: CA72 | F32: 1000798 | G32: Ealey, Lee E | H32: 22070 | I32: 9.36 | J32: <30 | K32: <29.905 | L32: DOES NOT MEET | M32: MEETS | N32: N/A | O32: N/A | P32: 29.905 | Q32: 30
A33: Vulcan Materials Co. | B33: North Quarry - Winston Salem | C33: 2020-02-25 | D33: #78-M Stone for Electrochemical | E33: CA72 | F33: 1000799 | G33: Ealey, Lee E | H33: 19050 | I33: 9.24 | J33: <30 | K33: <34.646 | L33: DOES NOT MEET | M33: MEETS | N33: N/A | O33: N/A | P33: 34.646 | Q33: 30
A34: Vulcan Materials Co. | B34: East Forsyth Quarry - Kernersville | C34: 2020-02-24 | D34: #57 Stone for Electrochemical | E34: CA139 | F34: 1000306 | G34: Ealey, Lee E | H34: 19230 | I34: 9.38 | J34: <30 | K34: <34.321 | L34: DOES NOT MEET | M34: MEETS | N34: N/A | O34: N/A | P34: 34.321 | Q34: 30
A35: Vulcan Materials Co. | B35: East Forsyth Quarry - Kernersville | C35: 2020-02-24 | D35: #67 Stone for Electrochemical | E35: CA139 | F35: 1000307 | G35: Ealey, Lee E | H35: 21680 | I35: 9.36 | J35: <30 | K35: <30.443 | L35: DOES NOT MEET | M35: MEETS | N35: N/A | O35: N/A | P35: 30.443 | Q35: 30
A36: Vulcan Materials Co. | B36: East Forsyth Quarry - Kernersville | C36: 2020-02-24 | D36: #78-M Stone for Electrochemical | E36: CA139 | F36: 1000310 | G36: Ealey, Lee E | H36: 16860 | I36: 9.25 | J36: <30 | K36: <39.146 | L36: DOES NOT MEET | M36: MEETS | N36: N/A | O36: N/A | P36: 39.146 | Q36: 30
A37: Vulcan Materials Co. | B37: Gold Hill Quarry - Gold Hill | C37: 2020-02-20 | D37: #57 Stone for Electrochemical | E37: CA85 | F37: 1000215 | G37: Ealey, Lee E | H37: 7432 | I37: 8.45 | J37: <30 | K37: <88.805 | L37: MEETS | M37: MEETS | N37: N/A | O37: N/A | P37: 88.805 | Q37: 30
A38: Vulcan Materials Co. | B38: Gold Hill Quarry - Gold Hill | C38: 2020-02-20 | D38: #78-M Stone for Electrochemical | E38: CA85 | F38: 1000216 | G38: Ealey, Lee E | H38: 6092 | I38: 8.35 | J38: <30 | K38: <108.339 | L38: MEETS | M38: MEETS | N38: N/A | O38: N/A | P38: 108.339 | Q38: 30
A39: Vulcan Materials Co. | B39: Skippers Quarry - Skippers, VA | C39: 2020-02-05 | D39: #57 Stone for Electrochemical | E39: CA55 | F39: 998836 | G39: Thomas, Grady Q | H39: 11680 | I39: 9.23 | J39: <30 | K39: <56.507 | L39: DOES NOT MEET | M39: MEETS | N39: DOES NOT MEET | O39: MEETS | P39: 56.507 | Q39: 30
A40: Vulcan Materials Co. | B40: Skippers Quarry - Skippers, VA | C40: 2020-02-05 | D40: #78-M Stone for Electrochemical | E40: CA55 | F40: 998832 | G40: Thomas, Grady Q | H40: 15140 | I40: 9.33 | J40: <30 | K40: <43.593 | L40: DOES NOT MEET | M40: MEETS | N40: DOES NOT MEET | O40: MEETS | P40: 43.593 | Q40: 30
A41: Vulcan Materials Co. | B41: Clear Creek Q. - Charlotte | C41: 2020-02-04 | D41: #57 Stone for Electrochemical | E41: CA249 | F41: 998428 | G41: Pegues, Jr., Henderson | H41: 24690 | I41: 9.57 | J41: <30 | K41: <26.731 | L41: DOES NOT MEET | M41: MEETS | N41: N/A | O41: N/A | P41: 26.731 | Q41: 30
A42: Vulcan Materials Co. | B42: Clear Creek Q. - Charlotte | C42: 2020-02-04 | D42: #67 Stone for Electrochemical | E42: CA249 | F42: 998435 | G42: Pegues, Jr., Henderson | H42: 22470 | I42: 9.57 | J42: <30 | K42: <29.372 | L42: DOES NOT MEET | M42: MEETS | N42: N/A | O42: N/A | P42: 29.372 | Q42: 30
A43: Vulcan Materials Co. | B43: Clear Creek Q. - Charlotte | C43: 2020-02-04 | D43: #78-M Stone for Electrochemical | E43: CA249 | F43: 998424 | G43: Pegues, Jr., Henderson | H43: 20190 | I43: 9.46 | J43: <30 | K43: <32.689 | L43: DOES NOT MEET | M43: MEETS | N43: N/A | O43: N/A | P43: 32.689 | Q43: 30
A44: Vulcan Materials Co. | B44: Smith Grove Q. - Mocksville | C44: 2020-02-03 | D44: #57 Stone for Electrochemical | E44: CA80 | F44: 998601 | G44: Ealey, Lee E | H44: 24340 | I44: 9.56 | J44: <30 | K44: <27.116 | L44: DOES NOT MEET | M44: MEETS | N44: N/A | O44: N/A | P44: 27.116 | Q44: 30
A45: Vulcan Materials Co. | B45: Smith Grove Q. - Mocksville | C45: 2020-02-03 | D45: #67 Stone for Electrochemical | E45: CA80 | F45: 998597 | G45: Ealey, Lee E | H45: 23390 | I45: 9.52 | J45: <30 | K45: <28.217 | L45: DOES NOT MEET | M45: MEETS | N45: N/A | O45: N/A | P45: 28.217 | Q45: 30
A46: Vulcan Materials Co. | B46: Smith Grove Q. - Mocksville | C46: 2020-02-03 | D46: #78-M Stone for Electrochemical | E46: CA80 | F46: 998595 | G46: Ealey, Lee E | H46: 21020 | I46: 9.45 | J46: <30 | K46: <31.399 | L46: DOES NOT MEET | M46: MEETS | N46: N/A | O46: N/A | P46: 31.399 | Q46: 30
A47: Wake Stone Corp. | B47: Knightdale Quarry - Knightdale | C47: 2020-01-29 | D47: #78-M Stone for Electrochemical | E47: CA98 | F47: 997869 | G47: Skinner, III, John L | H47: 19800 | I47: 9.5 | J47: <30 | K47: <33.333 | L47: DOES NOT MEET | M47: MEETS | N47: N/A | O47: N/A | P47: 33.333 | Q47: 30
A48: Martin Marietta | B48: Bakers Quarry - Monroe | C48: 2019-11-27 | D48: #57 Stone for Electrochemical | E48: CA32 | F48: 993357 | G48: Smith, Michael L | H48: 22460 | I48: 9.34 | J48: <30 | K48: <29.386 | L48: DOES NOT MEET | M48: MEETS | N48: N/A | O48: N/A | P48: 29.386 | Q48: 30
A49: Martin Marietta | B49: Bakers Quarry - Monroe | C49: 2019-11-27 | D49: #67 Stone for Electrochemical | E49: CA32 | F49: 993358 | G49: Smith, Michael L | H49: 23130 | I49: 9.38 | J49: <30 | K49: <28.534 | L49: DOES NOT MEET | M49: MEETS | N49: N/A | O49: N/A | P49: 28.534 | Q49: 30
A50: Martin Marietta | B50: Bakers Quarry - Monroe | C50: 2019-11-27 | D50: #78-M Stone for Electrochemical | E50: CA32 | F50: 993359 | G50: Smith, Michael L | H50: 17070 | I50: 9.27 | J50: <30 | K50: <38.664 | L50: DOES NOT MEET | M50: MEETS | N50: N/A | O50: N/A | P50: 38.664 | Q50: 30
A51: Martin Marietta | B51: Matthews Quarry - Matthews | C51: 2019-11-25 | D51: #57 Stone for Electrochemical | E51: CA37 | F51: 993304 | G51: Smith, Michael L | H51: 19880 | I51: 9.38 | J51: <30 | K51: <33.199 | L51: DOES NOT MEET | M51: MEETS | N51: N/A | O51: N/A | P51: 33.199 | Q51: 30
A52: Martin Marietta | B52: Matthews Quarry - Matthews | C52: 2019-11-25 | D52: #67 Stone for Electrochemical | E52: CA37 | F52: 993307 | G52: Smith, Michael L | H52: 18460 | I52: 9.37 | J52: <30 | K52: <35.753 | L52: DOES NOT MEET | M52: MEETS | N52: N/A | O52: N/A | P52: 35.753 | Q52: 30
A53: Martin Marietta | B53: Matthews Quarry - Matthews | C53: 2019-11-25 | D53: #78-M Stone for Electrochemical | E53: CA37 | F53: 993308 | G53: Smith, Michael L | H53: 18410 | I53: 9.25 | J53: <30 | K53: <35.850 | L53: DOES NOT MEET | M53: MEETS | N53: N/A | O53: N/A | P53: 35.85 | Q53: 30
A54: Vulcan Materials Co. | B54: Boone Quarry - Boone | C54: 2019-11-22 | D54: #57 Stone for Electrochemical | E54: CA21 | F54: 993803 | G54: Church, Tracy G | H54: 81740 | I54: 7.97 | J54: <30 | K54: <8.074 | L54: MEETS | M54: MEETS | N54: N/A | O54: N/A | P54: 8.074 | Q54: 30
A55: Martin Marietta | B55: Mallard Creek Quarry - Charlotte | C55: 2019-11-06 | D55: #67 Stone for Electrochemical | E55: CA188 | F55: 990713 | G55: Pegues, Jr., Henderson | H55: 17870 | I55: 9.44 | J55: <32 | K55: <36.933 | L55: DOES NOT MEET | M55: MEETS | N55: N/A | O55: N/A | P55: 36.933 | Q55: 32
A56: Martin Marietta | B56: Mallard Creek Quarry - Charlotte | C56: 2019-11-06 | D56: #78-M Stone for Electrochemical | E56: CA188 | F56: 990711 | G56: Pegues, Jr., Henderson | H56: 15450 | I56: 9.34 | J56: <32 | K56: <42.718 | L56: DOES NOT MEET | M56: MEETS | N56: N/A | O56: N/A | P56: 42.718 | Q56: 32
A57: Martin Marietta | B57: Statesville Quarry - Statesville | C57: 2019-10-09 | D57: #67 Stone for Electrochemical | E57: CA54 | F57: 987452 | G57: Brinson, Joseph | H57: 9875 | I57: 9.41 | J57: <30 | K57: <66.835 | L57: DOES NOT MEET | M57: MEETS | N57: N/A | O57: N/A | P57: 66.835 | Q57: 30
A58: Martin Marietta | B58: Statesville Quarry - Statesville | C58: 2019-10-09 | D58: #78-M Stone for Electrochemical | E58: CA54 | F58: 987453 | G58: Brinson, Joseph | H58: 6641 | I58: 6.94 | J58: <30 | K58: <99.383 | L58: MEETS | M58: MEETS | N58: N/A | O58: N/A | P58: 99.383 | Q58: 30
A59: Thompson Contractors | B59: Miller Creek Quarry - Rutherfordton | C59: 2019-09-27 | D59: #57 Stone for Electrochemical | E59: CA59 | F59: 985267 | G59: Norton, Stephen S | H59: 19130 | I59: 9.53 | J59: <30 | K59: <34.501 | L59: DOES NOT MEET | M59: MEETS | N59: N/A | O59: N/A | P59: 34.501 | Q59: 30
A60: Thompson Contractors | B60: Miller Creek Quarry - Rutherfordton | C60: 2019-09-27 | D60: #78-M Stone for Electrochemical | E60: CA59 | F60: 985270 | G60: Norton, Stephen S | H60: 14090 | I60: 9.34 | J60: <30 | K60: <46.842 | L60: DOES NOT MEET | M60: MEETS | N60: N/A | O60: N/A | P60: 46.842 | Q60: 30
A61: Hedrick Industries | B61: Aquadale Quarry - Norwood | C61: 2019-09-24 | D61: #57 Stone for Electrochemical | E61: CA274 | F61: 984751 | G61: Smith, Michael L | H61: 11040 | I61: 8.92 | J61: <32 | K61: <59.783 | L61: MEETS | M61: MEETS | N61: N/A | O61: N/A | P61: 59.783 | Q61: 32
A62: Hedrick Industries | B62: Aquadale Quarry - Norwood | C62: 2019-09-24 | D62: #67 Stone for Electrochemical | E62: CA274 | F62: 984693 | G62: Smith, Michael L | H62: 14180 | I62: 9.02 | J62: <32 | K62: <46.544 | L62: DOES NOT MEET | M62: MEETS | N62: N/A | O62: N/A | P62: 46.544 | Q62: 32
A63: Hedrick Industries | B63: Aquadale Quarry - Norwood | C63: 2019-09-24 | D63: #78-M Stone for Electrochemical | E63: CA274 | F63: 984802 | G63: Smith, Michael L | H63: 9018 | I63: 8.86 | J63: <32 | K63: <73.187 | L63: MEETS | M63: MEETS | N63: N/A | O63: N/A | P63: 73.187 | Q63: 32
A64: Vulcan Materials Co. | B64: Cabarrus Quarry - Concord | C64: 2019-09-24 | D64: #57 Stone for Electrochemical | E64: CA186 | F64: 984941 | G64: Cero, Kevin M | H64: 15810 | I64: 9.58 | J64: <32 | K64: <41.746 | L64: DOES NOT MEET | M64: MEETS | N64: N/A | O64: N/A | P64: 41.746 | Q64: 32
A65: Vulcan Materials Co. | B65: Cabarrus Quarry - Concord | C65: 2019-09-24 | D65: #67 Stone for Electrochemical | E65: CA186 | F65: 984943 | G65: Cero, Kevin M | H65: 17720 | I65: 9.65 | J65: <32 | K65: <37.246 | L65: DOES NOT MEET | M65: MEETS | N65: N/A | O65: N/A | P65: 37.246 | Q65: 32
A66: Vulcan Materials Co. | B66: Cabarrus Quarry - Concord | C66: 2019-09-24 | D66: #78-M Stone for Electrochemical | E66: CA186 | F66: 984945 | G66: Cero, Kevin M | H66: 15200 | I66: 9.73 | J66: <32 | K66: <43.421 | L66: =IF(AND(4.5 <= $I66, $I66 <= 9), "MEETS", "DOES NOT MEET") -> DOES NOT MEET | M66: =IF(AND(5 <= $I66, $I66 <= 10), "MEETS", "DOES NOT MEET") -> MEETS | N66: =IF(OR(ISBLANK(H66), NOT(ISNUMBER(MATCH($E66, Coastal,0)))), "N/A", IF(AND(4.5 <= $I66, $I66 <= 9),IF($H66>=5000,IF($Q66<=100,IF($P66<=200,"MEETS","DOES NOT MEET"),"DOES NOT MEET"),"DOES NOT MEET"),"DOES NOT MEET")) -> N/A | O66: =IF(OR(ISBLANK(I66), NOT(ISNUMBER(MATCH($E66, Coastal, 0)))), "N/A", IF(AND(5 <= $I66, $I66 <= 10),IF($H66>=5000,IF($Q66<=100,IF($P66<=200,"MEETS","DOES NOT MEET"),"DOES NOT MEET"),"DOES NOT MEET"),"DOES NOT MEET")) -> N/A | P66: =IF(LEFT(K66, 1)="<", VALUE(RIGHT(K66,LEN(K66)-1)), K66) -> 43.421 | Q66: =IF(LEFT(J66, 1)="<", VALUE(RIGHT(J66,LEN(J66)-1)), J66) -> 32
A67: Boone's Concrete Supply, LLC | B67: Woodlawn Quarry - Marion | C67: 2019-09-23 | D67: #57 Stone for Electrochemical | E67: CA190 | F67: 984072 | G67: Norton, Stephen S | H67: 12400 | I67: 9.78 | J67: <32 | K67: <53.226 | L67: DOES NOT MEET | M67: MEETS | N67: N/A | O67: N/A | P67: 53.226 | Q67: 32
A68: Boone's Concrete Supply, LLC | B68: Woodlawn Quarry - Marion | C68: 2019-09-23 | D68: #78-M Stone for Electrochemical | E68: CA190 | F68: 984074 | G68: Norton, Stephen S | H68: 11100 | I68: 9.93 | J68: <32 | K68: <59.459 | L68: DOES NOT MEET | M68: MEETS | N68: N/A | O68: N/A | P68: 59.459 | Q68: 32
A69: Martin Marietta | B69: Denver Quarry - Denver | C69: 2019-09-20 | D69: #57 Stone for Electrochemical | E69: CA169 | F69: 983979 | G69: Myers, Jesse J | H69: 14160 | I69: 8.98 | J69: <32 | K69: <46.610 | L69: MEETS | M69: MEETS | N69: N/A | O69: N/A | P69: 46.61 | Q69: 32
A70: Martin Marietta | B70: Denver Quarry - Denver | C70: 2019-09-20 | D70: #78-M Stone for Electrochemical | E70: CA169 | F70: 983981 | G70: Myers, Jesse J | H70: 10780 | I70: 8.52 | J70: <32 | K70: <61.224 | L70: MEETS | M70: MEETS | N70: N/A | O70: N/A | P70: 61.224 | Q70: 32
A71: Martin Marietta | B71: Arrowood Quarry - Charlotte | C71: 2019-09-18 | D71: #67 Stone for Electrochemical | E71: CA31 | F71: 983522 | G71: Smith, Michael L | H71: 10830 | I71: 9.15 | J71: <32 | K71: <60.942 | L71: DOES NOT MEET | M71: MEETS | N71: N/A | O71: N/A | P71: 60.942 | Q71: 32
A72: Martin Marietta | B72: Arrowood Quarry - Charlotte | C72: 2019-09-18 | D72: #78-M Stone for Electrochemical | E72: CA31 | F72: 983524 | G72: Smith, Michael L | H72: 9789 | I72: 9.03 | J72: <32 | K72: <67.423 | L72: DOES NOT MEET | M72: MEETS | N72: N/A | O72: N/A | P72: 67.423 | Q72: 32
A73: Vulcan Materials Co. | B73: Spruce Pine Quarry - Bakersville | C73: 2019-09-16 | D73: #57 Stone for Electrochemical | E73: CA111 | F73: 983085 | G73: Norton, Stephen S | H73: 17960 | I73: 9.24 | J73: <32 | K73: <36.748 | L73: DOES NOT MEET | M73: MEETS | N73: N/A | O73: N/A | P73: 36.748 | Q73: 32
A74: Vulcan Materials Co. | B74: Spruce Pine Quarry - Bakersville | C74: 2019-09-16 | D74: #78-M Stone for Electrochemical | E74: CA111 | F74: 983086 | G74: Norton, Stephen S | H74: 12260 | I74: 7.61 | J74: <32 | K74: <53.834 | L74: MEETS | M74: MEETS | N74: N/A | O74: N/A | P74: 53.834 | Q74: 32
A75: Martin Marietta | B75: Clarks Quarry - New Bern | C75: 2019-09-13 | D75: #67 Stone for Electrochemical | E75: CA189 | F75: 982797 | G75: Cobb, James R | H75: 4048 | I75: 8.22 | J75: <32 | K75: <163.043 | L75: MEETS | M75: MEETS | N75: DOES NOT MEET | O75: DOES NOT MEET | P75: 163.043 | Q75: 32
A76: Martin Marietta | B76: Clarks Quarry - New Bern | C76: 2019-09-13 | D76: #78-M Stone for Electrochemical | E76: CA189 | F76: 982804 | G76: Cobb, James R | H76: 3934 | I76: 8.05 | J76: <32 | K76: <167.768 | L76: MEETS | M76: MEETS | N76: DOES NOT MEET | O76: DOES NOT MEET | P76: 167.768 | Q76: 32
A77: Hanson Aggregates Southeast, Inc. | B77: Jefferson Quarry - Jefferson, SC | C77: 2019-09-13 | D77: #57 Stone for Electrochemical | E77: CA120 | F77: 982912 | G77: Jordan, Daniel H | H77: 32700 | I77: 9.15 | J77: <32 | K77: <20.183 | L77: DOES NOT MEET | M77: MEETS | N77: N/A | O77: N/A | P77: 20.183 | Q77: 32
A78: Hanson Aggregates Southeast, Inc. | B78: Jefferson Quarry - Jefferson, SC | C78: 2019-09-13 | D78: #67 Stone for Electrochemical | E78: CA120 | F78: 982914 | G78: Jordan, Daniel H | H78: 29240 | I78: 9.25 | J78: <32 | K78: <22.573 | L78: DOES NOT MEET | M78: MEETS | N78: N/A | O78: N/A | P78: 22.573 | Q78: 32
A79: Hanson Aggregates Southeast, Inc. | B79: Jefferson Quarry - Jefferson, SC | C79: 2019-09-13 | D79: #78-M Stone for Electrochemical | E79: CA120 | F79: 982918 | G79: Jordan, Daniel H | H79: 55150 | I79: 7.86 | J79: <32 | K79: <11.967 | L79: MEETS | M79: MEETS | N79: N/A | O79: N/A | P79: 11.967 | Q79: 32
A80: Martin Marietta | B80: Rock Hill Quarry - Rock Hill, SC | C80: 2019-09-10 | D80: #67 Stone for Electrochemical | E80: CA271 | F80: 982307 | G80: Adair, Mildred (Millie) L | H80: 15260 | I80: 9.52 | J80: <32 | K80: <43.25 | L80: DOES NOT MEET | M80: MEETS | N80: N/A | O80: N/A | P80: 43.25 | Q80: 32
A81: Martin Marietta | B81: Rock Hill Quarry - Rock Hill, SC | C81: 2019-09-10 | D81: #78-M Stone for Electrochemical | E81: CA271 | F81: 982310 | G81: Adair, Mildred (Millie) L | H81: 16020 | I81: 9.47 | J81: <32 | K81: <41.199 | L81: DOES NOT MEET | M81: MEETS | N81: N/A | O81: N/A | P81: 41.199 | Q81: 32
A82: Vulcan Materials Co. | B82: Enka Quarry - Enka | C82: 2019-09-05 | D82: #57 Stone for Electrochemical | E82: CA69 | F82: 981847 | G82: Rhymer, Robert C | H82: 12720 | I82: 8.17 | J82: <32 | K82: <51.887 | L82: MEETS | M82: MEETS | N82: N/A | O82: N/A | P82: 51.887 | Q82: 32
A83: Vulcan Materials Co. | B83: Enka Quarry - Enka | C83: 2019-09-05 | D83: #78-M Stone for Electrochemical | E83: CA69 | F83: 981853 | G83: Rhymer, Robert C | H83: 11350 | I83: 8.64 | J83: <32 | K83: <58.150 | L83: MEETS | M83: MEETS | N83: N/A | O83: N/A | P83: 58.15 | Q83: 32
A84: Martin Marietta | B84: Bonds Quarry - Concord | C84: 2019-09-04 | D84: #67 Stone for Electrochemical | E84: CA276 | F84: 981560 | G84: Cero, Kevin M | H84: 19640 | I84: 9.72 | J84: <32 | K84: <33.605 | L84: DOES NOT MEET | M84: MEETS | N84: N/A | O84: N/A | P84: 33.605 | Q84: 32
A85: Martin Marietta | B85: Bonds Quarry - Concord | C85: 2019-09-04 | D85: #78-M Stone for Electrochemical | E85: CA276 | F85: 981563 | G85: Cero, Kevin M | H85: 19530 | I85: 9.43 | J85: <32 | K85: <33.794 | L85: DOES NOT MEET | M85: MEETS | N85: N/A | O85: N/A | P85: 33.794 | Q85: 32
A86: Martin Marietta | B86: Denver Quarry - Denver | C86: 2019-08-28 | D86: #57 Stone for Electrochemical | E86: CA169 | F86: 980193 | G86: Brinson, Joseph | H86: 2399 | I86: 4.54 | J86: <32 | K86: <275.115 | L86: MEETS | M86: DOES NOT MEET | N86: N/A | O86: N/A | P86: 275.115 | Q86: 32
A87: Martin Marietta | B87: Denver Quarry - Denver | C87: 2019-08-28 | D87: #67 Stone for Electrochemical | E87: CA169 | F87: 980194 | G87: Brinson, Joseph | H87: 2476 | I87: 3.97 | J87: <32 | K87: <266.559 | L87: DOES NOT MEET | M87: DOES NOT MEET | N87: N/A | O87: N/A | P87: 266.559 | Q87: 32
A88: Martin Marietta | B88: Denver Quarry - Denver | C88: 2019-08-28 | D88: #78-M Stone for Electrochemical | E88: CA169 | F88: 980195 | G88: Brinson, Joseph | H88: 2501 | I88: 4.78 | J88: <32 | K88: <263.894 | L88: MEETS | M88: DOES NOT MEET | N88: N/A | O88: N/A | P88: 263.894 | Q88: 32
A89: Vulcan Materials Co. | B89: Havre De Grace Quarry - Havre De Grace, MD | C89: 2019-08-26 | D89: #67 Stone for Electrochemical | E89: CA345 | F89: 980140 | G89: Bonds, Maria M | H89: 15510 | I89: 9.25 | J89: <29 | K89: <42.553 | L89: DOES NOT MEET | M89: MEETS | N89: DOES NOT MEET | O89: MEETS | P89: 42.553 | Q89: 29
A90: Vulcan Materials Co. | B90: Jack Quarry - Petersburg, VA | C90: 2019-08-26 | D90: #67 Stone for Electrochemical | E90: CA137 | F90: 980166 | G90: Bonds, Maria M | H90: 16700 | I90: 9.56 | J90: <29 | K90: <39.521 | L90: DOES NOT MEET | M90: MEETS | N90: DOES NOT MEET | O90: MEETS | P90: 39.521 | Q90: 29
A91: Vulcan Materials Co. | B91: Jack Quarry - Petersburg, VA | C91: 2019-08-26 | D91: #78-M Stone for Electrochemical | E91: CA137 | F91: 980164 | G91: Bonds, Maria M | H91: 17590 | I91: 9.57 | J91: <29 | K91: <37.521 | L91: DOES NOT MEET | M91: MEETS | N91: DOES NOT MEET | O91: MEETS | P91: 37.521 | Q91: 29
A92: Vulcan Materials Co. | B92: Puddledock Quarry - Prince George, VA | C92: 2019-08-26 | D92: #57 Stone for Electrochemical | E92: CA224 | F92: 980146 | G92: Bonds, Maria M | H92: 51280 | I92: 4.87 | J92: <29 | K92: <12.871 | L92: MEETS | M92: DOES NOT MEET | N92: MEETS | O92: DOES NOT MEET | P92: 12.871 | Q92: 29
A93: Vulcan Materials Co. | B93: Puddledock Quarry - Prince George, VA | C93: 2019-08-26 | D93: #78-M Stone for Electrochemical | E93: CA224 | F93: 980145 | G93: Bonds, Maria M | H93: 59680 | I93: 4.67 | J93: <29 | K93: <11.059 | L93: MEETS | M93: DOES NOT MEET | N93: MEETS | O93: DOES NOT MEET | P93: 11.059 | Q93: 29
A94: Martin Marietta | B94: Asheboro Quarry - Asheboro | C94: 2019-08-22 | D94: #57 Stone for Electrochemical | E94: CA30 | F94: 979357 | G94: Jackson, Brandon M | H94: 18060 | I94: 9.17 | J94: <29 | K94: <36.545 | L94: DOES NOT MEET | M94: MEETS | N94: N/A | O94: N/A | P94: 36.545 | Q94: 29
A95: Martin Marietta | B95: Asheboro Quarry - Asheboro | C95: 2019-08-22 | D95: #67 Stone for Electrochemical | E95: CA30 | F95: 979365 | G95: Jackson, Brandon M | H95: 17770 | I95: 9.05 | J95: <29 | K95: <37.141 | L95: DOES NOT MEET | M95: MEETS | N95: N/A | O95: N/A | P95: 37.141 | Q95: 29
A96: Martin Marietta | B96: Asheboro Quarry - Asheboro | C96: 2019-08-22 | D96: #78-M Stone for Electrochemical | E96: CA30 | F96: 979366 | G96: Jackson, Brandon M | H96: 18550 | I96: 9.11 | J96: <29 | K96: <35.580 | L96: DOES NOT MEET | M96: MEETS | N96: N/A | O96: N/A | P96: 35.58 | Q96: 29
A97: Sloan Construction Co. | B97: Blacksburg Quarry - Blacksburg, SC | C97: 2019-08-22 | D97: #57 Stone for Electrochemical | E97: CA382 | F97: 979539 | G97: Brinson, Joseph | H97: 48690 | I97: 7.52 | J97: <29 | K97: <13.555 | L97: MEETS | M97: MEETS | N97: N/A | O97: N/A | P97: 13.555 | Q97: 29
A98: Sloan Construction Co. | B98: Blacksburg Quarry - Blacksburg, SC | C98: 2019-08-22 | D98: #67 Stone for Electrochemical | E98: CA382 | F98: 979540 | G98: Brinson, Joseph | H98: 24510 | I98: 7.76 | J98: <29 | K98: <26.928 | L98: MEETS | M98: MEETS | N98: N/A | O98: N/A | P98: 26.928 | Q98: 29
A99: Vulcan Materials Co. | B99: Pineville Quarry - Charlotte | C99: 2019-08-21 | D99: #67 Stone for Electrochemical | E99: CA101 | F99: 979251 | G99: Smith, Michael L | H99: 12880 | I99: 9.39 | J99: <32 | K99: <51.242 | L99: DOES NOT MEET | M99: MEETS | N99: N/A | O99: N/A | P99: 51.242 | Q99: 32
A100: Vulcan Materials Co. | B100: Pineville Quarry - Charlotte | C100: 2019-08-21 | D100: #78-M Stone for Electrochemical | E100: CA101 | F100: 979253 | G100: Smith, Michael L | H100: 12210 | I100: 9.29 | J100: <32 | K100: <54.054 | L100: DOES NOT MEET | M100: MEETS | N100: N/A | O100: N/A | P100: 54.054 | Q100: 32
A101: LBM Industries | B101: Whitewater Falls Quarry - Sapphire | C101: 2019-08-21 | D101: #57 Stone for Electrochemical | E101: CA119 | F101: 979122 | G101: Wood, Dean Michael M | H101: 39270 | I101: 9.1 | J101: <32 | K101: <16.807 | L101: DOES NOT MEET | M101: MEETS | N101: N/A | O101: N/A | P101: 16.807 | Q101: 32
A102: LBM Industries | B102: Whitewater Falls Quarry - Sapphire | C102: 2019-08-21 | D102: #78-M Stone for Electrochemical | E102: CA119 | F102: 979124 | G102: Wood, Dean Michael M | H102: 24020 | I102: 9.58 | J102: <32 | K102: <27.477 | L102: DOES NOT MEET | M102: MEETS | N102: N/A | O102: N/A | P102: 27.477 | Q102: 32
A103: Martin Marietta | B103: Lemon Springs - Sanford | C103: 2019-08-16 | D103: #57 Stone for Electrochemical | E103: CA97 | F103: 978230 | G103: Jackson, Brandon M | H103: 16210 | I103: 9.46 | J103: <29 | K103: <40.716 | L103: DOES NOT MEET | M103: MEETS | N103: N/A | O103: N/A | P103: 40.716 | Q103: 29
A104: Martin Marietta | B104: Lemon Springs - Sanford | C104: 2019-08-16 | D104: #67 Stone for Electrochemical | E104: CA97 | F104: 978233 | G104: Jackson, Brandon M | H104: 16730 | I104: 9.33 | J104: <29 | K104: <39.450 | L104: DOES NOT MEET | M104: MEETS | N104: N/A | O104: N/A | P104: 39.45 | Q104: 29
A105: Martin Marietta | B105: Lemon Springs - Sanford | C105: 2019-08-16 | D105: #78-M Stone for Electrochemical | E105: CA97 | F105: 978234 | G105: Jackson, Brandon M | H105: 15270 | I105: 9.23 | J105: <29 | K105: <43.222 | L105: DOES NOT MEET | M105: MEETS | N105: N/A | O105: N/A | P105: 43.222 | Q105: 29
A106: Vulcan Materials Co. | B106: Gold Hill Quarry - Gold Hill | C106: 2019-08-13 | D106: #78-M Stone for Electrochemical | E106: CA85 | F106: 977727 | G106: Jordan, Daniel H | H106: 7103 | I106: 8.41 | J106: <29 | K106: <92.92 | L106: MEETS | M106: MEETS | N106: N/A | O106: N/A | P106: 92.92 | Q106: 29
A107: Vulcan Materials Co. | B107: Rockingham Quarry - Rockingham | C107: 2019-08-13 | D107: #57 Stone for Electrochemical | E107: CA94 | F107: 977702 | G107: Jordan, Daniel H | H107: 17630 | I107: 9.43 | J107: <29 | K107: <37.436 | L107: DOES NOT MEET | M107: MEETS | N107: N/A | O107: N/A | P107: 37.436 | Q107: 29
A108: Vulcan Materials Co. | B108: Rockingham Quarry - Rockingham | C108: 2019-08-13 | D108: #67 Stone for Electrochemical | E108: CA94 | F108: 977703 | G108: Jordan, Daniel H | H108: 17110 | I108: 9.45 | J108: <29 | K108: <38.574 | L108: DOES NOT MEET | M108: MEETS | N108: N/A | O108: N/A | P108: 38.574 | Q108: 29
A109: Vulcan Materials Co. | B109: Rockingham Quarry - Rockingham | C109: 2019-08-13 | D109: #78-M Stone for Electrochemical | E109: CA94 | F109: 977705 | G109: Jordan, Daniel H | H109: 13960 | I109: 9.42 | J109: <29 | K109: <47.278 | L109: DOES NOT MEET | M109: MEETS | N109: N/A | O109: N/A | P109: 47.278 | Q109: 29
A110: McCrary Stone | B110: Marshall Quarry - Marshall | C110: 2019-08-12 | D110: #57 Stone for Electrochemical | E110: CA113 | F110: 978212 | G110: Kindley, Wallace Quint | H110: 16190 | I110: 9.38 | J110: <29 | K110: <40.766 | L110: DOES NOT MEET | M110: MEETS | N110: N/A | O110: N/A | P110: 40.766 | Q110: 29
A111: McCrary Stone | B111: Marshall Quarry - Marshall | C111: 2019-08-12 | D111: #78-M Stone for Electrochemical | E111: CA113 | F111: 978213 | G111: Kindley, Wallace Quint | H111: 11310 | I111: 8.83 | J111: <29 | K111: <58.355 | L111: MEETS | M111: MEETS | N111: N/A | O111: N/A | P111: 58.355 | Q111: 29
A112: Vulcan Materials Co. | B112: 115 Quarry - N. Wilkesboro | C112: 2019-08-05 | D112: #67 Stone for Electrochemical | E112: CA79 | F112: 976211 | G112: Church, Tracy G | H112: 15980 | I112: 9.2 | J112: <29 | K112: <41.302 | L112: DOES NOT MEET | M112: MEETS | N112: N/A | O112: N/A | P112: 41.302 | Q112: 29
A113: Vulcan Materials Co. | B113: Pacolet Quarry - Pacolet, SC | C113: 2019-08-01 | D113: #57 Stone for Electrochemical | E113: CA83 | F113: 975598 | G113: Gosnell, Jimmy L | H113: 3415 | I113: 7.86 | J113: <29 | K113: <193.265 | L113: MEETS | M113: MEETS | N113: N/A | O113: N/A | P113: 193.265 | Q113: 29
A114: Vulcan Materials Co. | B114: Blacksburg Quarry - Blacksburg, SC | C114: 2019-07-30 | D114: #67 Stone for Electrochemical | E114: CA82 | F114: 975112 | G114: Gosnell, Jimmy L | H114: 12450 | I114: 9.73 | J114: <29 | K114: <53.012 | L114: DOES NOT MEET | M114: MEETS | N114: N/A | O114: N/A | P114: 53.012 | Q114: 29
A115: Vulcan Materials Co. | B115: Blacksburg Quarry - Blacksburg, SC | C115: 2019-07-30 | D115: #78-M Stone for Electrochemical | E115: CA82 | F115: 975113 | G115: Gosnell, Jimmy L | H115: 12430 | I115: 9.82 | J115: <29 | K115: <53.097 | L115: DOES NOT MEET | M115: MEETS | N115: N/A | O115: N/A | P115: 53.097 | Q115: 29
A116: Harrison Construction Co., Inc. | B116: Waynesville Quarry - Waynesville | C116: 2019-07-29 | D116: #57 Stone for Electrochemical | E116: CA1 | F116: 974809 | G116: Kindley, Wallace Quint | H116: 12180 | I116: 9.03 | J116: <29 | K116: <54.187 | L116: DOES NOT MEET | M116: MEETS | N116: N/A | O116: N/A | P116: 54.187 | Q116: 29
A117: Harrison Construction Co., Inc. | B117: Waynesville Quarry - Waynesville | C117: 2019-07-29 | D117: #78-M Stone for Electrochemical | E117: CA1 | F117: 974813 | G117: Kindley, Wallace Quint | H117: 8835 | I117: 8.83 | J117: <29 | K117: <74.70 | L117: MEETS | M117: MEETS | N117: N/A | O117: N/A | P117: 74.7 | Q117: 29
A118: Martin Marietta | B118: Denver Quarry - Denver | C118: 2019-07-25 | D118: #57 Stone for Electrochemical | E118: CA169 | F118: 974525 | G118: Gosnell, Jimmy L | H118: 3976 | I118: 4.61 | J118: <29 | K118: <165.996 | L118: MEETS | M118: DOES NOT MEET | N118: N/A | O118: N/A | P118: 165.996 | Q118: 29
A119: Martin Marietta | B119: Denver Quarry - Denver | C119: 2019-07-25 | D119: #67 Stone for Electrochemical | E119: CA169 | F119: 974526 | G119: Gosnell, Jimmy L | H119: 28270 | I119: 9.61 | J119: <29 | K119: <23.346 | L119: DOES NOT MEET | M119: MEETS | N119: N/A | O119: N/A | P119: 23.346 | Q119: 29
A120: Martin Marietta | B120: Denver Quarry - Denver | C120: 2019-07-25 | D120: #78-M Stone for Electrochemical | E120: CA169 | F120: 974527 | G120: Gosnell, Jimmy L | H120: 3053 | I120: 6.05 | J120: <29 | K120: <216.181 | L120: MEETS | M120: MEETS | N120: N/A | O120: N/A | P120: 216.181 | Q120: 29
A121: Hedrick Industries | B121: Lake Norman Quarry - Stanley | C121: 2019-07-12 | D121: #57 Stone for Electrochemical | E121: CA168 | F121: 972391 | G121: Gosnell, Jimmy L | H121: 7776 | I121: 9.24 | J121: <29 | K121: <84.877 | L121: DOES NOT MEET | M121: MEETS | N121: N/A | O121: N/A | P121: 84.877 | Q121: 29
A122: Hedrick Industries | B122: Lake Norman Quarry - Stanley | C122: 2019-07-12 | D122: #67 Stone for Electrochemical | E122: CA168 | F122: 972392 | G122: Gosnell, Jimmy L | H122: 7067 | I122: 9.24 | J122: <29 | K122: <71.467 | L122: DOES NOT MEET | M122: MEETS | N122: N/A | O122: N/A | P122: 71.467 | Q122: 29
A123: Hedrick Industries | B123: Lake Norman Quarry - Stanley | C123: 2019-07-12 | D123: #78-M Stone for Electrochemical | E123: CA168 | F123: 972393 | G123: Gosnell, Jimmy L | H123: 8980 | I123: 9.04 | J123: <29 | K123: <73.497 | L123: DOES NOT MEET | M123: MEETS | N123: N/A | O123: N/A | P123: 73.497 | Q123: 29
A124: Mountain Materials, Inc. | B124: Mouth of Wilson Quarry - VA | C124: 2019-07-12 | D124: #57 Stone for Electrochemical | E124: CA180 | F124: 972577 | G124: Church, Tracy G | H124: 12890 | I124: 8.85 | J124: <29 | K124: <51.202 | L124: MEETS | M124: MEETS | N124: N/A | O124: N/A | P124: 51.202 | Q124: 29
A125: Martin Marietta | B125: Charlotte Quarry - Charlotte | C125: 2019-07-10 | D125: #57 Stone for Electrochemical | E125: CA41 | F125: 972755 | G125: Pegues, Jr., Henderson | H125: 17300 | I125: 9.56 | J125: <29 | K125: <38.150 | L125: DOES NOT MEET | M125: MEETS | N125: N/A | O125: N/A | P125: 38.15 | Q125: 29
A126: Martin Marietta | B126: Charlotte Quarry - Charlotte | C126: 2019-07-10 | D126: #67 Stone for Electrochemical | E126: CA41 | F126: 972758 | G126: Pegues, Jr., Henderson | H126: 18470 | I126: 9.49 | J126: <29 | K126: <35.734 | L126: DOES NOT MEET | M126: MEETS | N126: N/A | O126: N/A | P126: 35.734 | Q126: 29
A127: Martin Marietta | B127: Charlotte Quarry - Charlotte | C127: 2019-07-10 | D127: #78-M Stone for Electrochemical | E127: CA41 | F127: 972759 | G127: Pegues, Jr., Henderson | H127: 17520 | I127: 9.34 | J127: <29 | K127: <37.671 | L127: DOES NOT MEET | M127: MEETS | N127: N/A | O127: N/A | P127: 37.671 | Q127: 29
A128: Georgia Stone Products | B128: Lynches River Quarry - Jefferson, SC | C128: 2019-07-10 | D128: #57 Stone for Electrochemical | E128: CA325 | F128: 971836 | G128: Jordan, Daniel H | H128: 26750 | I128: 9.5 | J128: <29 | K128: <24.673 | L128: DOES NOT MEET | M128: MEETS | N128: N/A | O128: N/A | P128: 24.673 | Q128: 29
A129: Georgia Stone Products | B129: Lynches River Quarry - Jefferson, SC | C129: 2019-07-10 | D129: #78-M Stone for Electrochemical | E129: CA325 | F129: 971840 | G129: Jordan, Daniel H | H129: 25790 | I129: 9.33 | J129: <29 | K129: <25.591 | L129: DOES NOT MEET | M129: MEETS | N129: N/A | O129: N/A | P129: 25.591 | Q129: 29
